{"text_format":"1","workbook":"xlsx","n_sheets":10,"sheets":["PPTO DETALLADO","PRESUPUESTO CONSOLIDADO","PRESUPUESTO1","1a Modificacion Presupuestal","2a Modificacion Presupuestal ","3a Modificacion Presupuestal ","Modificacion Presupuestal1","2da_Modificacion Presupuestal1","3da_Modificacion Presupuestal1","Hoja1"],"not_rendered":{"charts":0,"images":15,"macros":0,"external_links":1,"defined_names":24,"comments":1,"pivot_tables":0},"unopened":[],"bounds":{"document_bytes":16777216,"sheet_cells":100000,"rows_first":2000,"rows_last":500,"rows_between":2000,"halvings":0,"cell_chars":16384,"cell_head_chars":4096},"cells_cut":0,"cells_raw":0,"read":"whole","date_system":"1900"}

{"sheet":"PPTO DETALLADO","index":0,"n_rows":441,"n_cols":27,"rows_kept":441,"cut":false,"hidden":false,"merged":[[21,0,21,2],[385,0,386,10],[330,1,330,10],[331,1,331,10],[320,8,320,9],[323,0,323,4],[323,5,323,7],[368,1,368,8],[368,0,369,0],[369,1,369,10],[370,1,370,10],[343,1,343,10],[347,1,347,10],[348,1,348,10],[352,1,352,10],[353,1,353,10],[345,0,345,10],[359,0,359,10],[357,1,357,10],[358,1,358,10],[351,0,352,0],[356,1,356,8],[363,1,363,8],[383,0,383,1],[413,1,413,5],[412,1,412,5],[411,1,411,5],[410,1,410,5],[409,1,409,10],[408,1,408,5],[407,1,407,5],[406,1,406,5],[405,1,405,5],[300,0,300,10],[293,0,293,10],[297,1,297,9],[298,1,298,9],[299,1,299,9],[302,0,303,0],[310,0,311,0],[144,6,144,8],[144,4,144,5],[144,1,144,3],[311,1,311,9],[268,1,268,9],[266,0,267,0],[267,1,267,9],[257,0,257,10],[252,1,252,8],[250,0,250,10],[261,1,261,9],[259,1,259,8],[262,1,262,9],[263,1,263,9],[254,1,254,9],[255,1,255,9],[256,1,256,9],[319,0,319,10],[264,0,264,10],[275,1,275,9],[276,1,276,9],[277,1,277,9],[316,0,317,0],[312,1,312,9],[313,1,313,9],[317,1,317,10],[274,1,274,9],[269,1,269,9],[318,1,318,10],[280,0,281,0],[281,1,281,9],[288,0,289,0],[289,1,289,9],[282,1,282,9],[283,1,283,9],[284,1,284,9],[285,1,285,9],[290,1,290,9],[291,1,291,9],[292,1,292,9],[314,0,314,10],[320,0,320,4],[320,5,320,7],[323,8,323,9],[329,0,330,0],[329,1,329,8],[327,0,327,10],[342,1,342,8],[259,0,260,0],[260,1,260,9],[326,5,326,7],[316,1,316,8],[266,1,266,8],[304,1,304,9],[305,1,305,9],[306,1,306,9],[321,5,321,7],[302,1,302,8],[322,0,322,10],[295,1,295,8],[296,1,296,9],[295,0,296,0],[303,1,303,9],[270,1,270,9],[273,0,274,0],[215,0,216,0],[207,0,208,0],[207,1,207,7],[207,8,208,8],[227,1,227,7],[228,1,228,7],[239,1,239,9],[240,1,240,9],[241,1,241,9],[229,0,229,10],[231,1,231,8],[235,0,235,10],[220,0,221,0],[221,1,221,7],[231,0,232,0],[232,1,232,7],[237,0,238,0],[238,1,238,9],[217,1,217,8],[209,1,209,7],[210,1,210,7],[211,1,211,7],[212,1,212,7],[220,1,220,8],[233,1,233,7],[234,1,234,7],[245,0,246,0],[222,1,222,7],[223,1,223,7],[224,1,224,7],[225,1,225,7],[226,1,226,7],[242,1,242,9],[246,1,246,9],[247,1,247,9],[248,1,248,9],[245,1,245,8],[249,1,249,9],[252,0,253,0],[253,1,253,9],[230,0,230,10],[237,1,237,8],[325,0,325,4],[321,8,321,9],[280,1,280,8],[310,1,310,8],[308,0,308,10],[324,8,324,9],[325,8,325,9],[321,0,321,4],[286,0,286,10],[324,5,324,7],[243,0,243,10],[288,1,288,8],[271,0,271,10],[273,1,273,8],[278,0,278,10],[324,0,324,4],[167,1,167,3],[167,4,167,5],[167,6,167,8],[187,9,188,9],[202,1,202,7],[203,1,203,7],[166,1,166,3],[166,4,166,5],[166,6,166,8],[198,0,199,0],[199,1,199,7],[198,1,198,7],[198,8,199,8],[168,1,168,3],[168,4,168,5],[168,6,168,8],[171,0,172,0],[172,1,172,9],[173,1,173,9],[169,0,169,10],[180,0,180,10],[183,1,183,8],[182,0,183,0],[184,1,184,8],[187,0,188,0],[188,1,188,8],[189,1,189,9],[194,1,194,7],[192,0,193,0],[171,1,171,8],[160,1,160,3],[160,4,160,5],[160,6,160,8],[164,1,164,3],[164,4,164,5],[164,6,164,8],[165,1,165,3],[165,4,165,5],[165,6,165,8],[163,1,163,3],[163,4,163,5],[163,6,163,8],[161,1,161,3],[161,4,161,5],[161,6,161,8],[162,1,162,3],[162,4,162,5],[162,6,162,8],[154,1,154,3],[154,4,154,5],[154,6,154,8],[157,0,158,0],[157,1,157,8],[158,1,158,3],[158,4,158,5],[158,6,158,8],[159,1,159,3],[159,4,159,5],[159,6,159,8],[155,0,155,10],[151,1,151,3],[151,4,151,5],[151,6,151,8],[152,1,152,3],[152,4,152,5],[152,6,152,8],[153,1,153,3],[153,4,153,5],[153,6,153,8],[142,4,142,5],[145,1,145,3],[148,1,148,3],[148,4,148,5],[148,6,148,8],[149,1,149,3],[149,4,149,5],[149,6,149,8],[150,1,150,3],[150,4,150,5],[150,6,150,8],[57,0,57,10],[65,0,65,10],[59,9,61,9],[55,3,55,6],[55,7,55,8],[146,1,146,3],[146,4,146,5],[146,6,146,8],[147,1,147,3],[147,4,147,5],[147,6,147,8],[136,1,136,3],[136,4,136,5],[136,6,136,8],[137,1,137,3],[137,4,137,5],[137,6,137,8],[138,1,138,3],[142,6,142,8],[143,1,143,3],[143,4,143,5],[143,6,143,8],[141,6,141,8],[142,1,142,3],[81,1,81,8],[77,1,77,7],[85,0,85,9],[68,1,68,7],[62,9,62,10],[63,9,63,10],[73,1,73,7],[62,1,62,6],[70,0,70,10],[69,1,69,7],[68,10,69,10],[94,16,94,17],[146,16,154,16],[138,4,138,5],[138,6,138,8],[139,1,139,3],[139,4,139,5],[139,6,139,8],[140,1,140,3],[140,4,140,5],[140,6,140,8],[141,1,141,3],[141,4,141,5],[117,4,117,5],[98,4,98,5],[107,1,107,7],[116,4,116,5],[117,1,117,3],[115,1,115,3],[115,4,115,5],[99,4,99,5],[100,4,100,5],[101,4,101,5],[114,1,114,3],[114,4,114,5],[189,16,191,16],[201,16,204,16],[174,0,174,10],[97,1,97,3],[98,1,98,3],[99,1,99,3],[111,16,111,17],[111,4,111,5],[102,1,102,3],[102,4,102,5],[108,1,108,3],[108,4,108,5],[133,1,133,8],[124,1,124,7],[125,1,125,7],[126,1,126,7],[127,1,127,7],[130,1,130,7],[119,1,119,3],[119,4,119,5],[120,1,120,3],[120,4,120,5],[204,0,204,10],[145,6,145,8],[217,16,219,16],[191,1,191,6],[177,1,177,8],[178,1,178,7],[179,1,179,7],[182,1,182,8],[185,0,185,10],[187,1,187,8],[215,9,217,9],[215,10,217,10],[218,0,218,10],[177,0,178,0],[200,1,200,7],[201,1,201,7],[192,1,192,7],[192,8,193,8],[193,1,193,7],[196,0,196,10],[197,1,197,6],[211,16,213,16],[213,0,213,10],[216,1,216,8],[190,0,190,10],[208,1,208,7],[97,4,97,5],[135,4,135,5],[135,6,135,8],[0,0,2,0],[12,3,12,4],[8,5,8,6],[5,0,5,10],[15,7,15,8],[7,7,7,8],[7,9,7,10],[7,1,7,6],[3,1,3,4],[8,8,8,9],[10,8,10,9],[15,9,15,10],[12,5,12,6],[8,1,8,4],[9,1,9,7],[10,1,10,7],[11,1,11,10],[0,1,0,8],[13,0,13,10],[59,10,61,10],[60,1,60,6],[110,1,110,3],[84,0,84,10],[123,9,125,9],[116,1,116,3],[100,1,100,3],[101,1,101,3],[135,1,135,3],[89,10,90,10],[106,10,107,10],[106,9,107,9],[89,1,89,7],[90,1,90,7],[91,4,91,5],[91,1,91,3],[93,1,93,3],[133,0,134,0],[123,8,125,8],[128,1,128,7],[129,1,129,7],[134,4,134,5],[134,6,134,8],[134,1,134,3],[131,0,131,10],[122,0,123,0],[48,0,48,2],[67,9,68,9],[54,3,54,6],[63,1,63,6],[89,9,90,9],[64,1,64,6],[64,9,64,10],[74,1,74,7],[75,1,75,7],[87,0,87,10],[83,0,83,10],[80,0,81,0],[82,1,82,8],[80,9,82,9],[80,10,82,10],[72,1,72,7],[72,8,73,8],[78,0,78,10],[67,8,68,8],[54,9,54,10],[50,0,50,2],[52,7,52,8],[72,0,73,0],[61,1,61,6],[45,0,46,2],[47,0,47,2],[45,9,47,9],[45,10,47,10],[40,9,41,9],[35,0,35,10],[37,0,37,10],[41,1,41,7],[41,10,42,10],[40,0,41,0],[40,1,40,7],[42,1,42,7],[46,3,46,8],[33,7,33,9],[55,9,55,10],[50,7,50,8],[51,7,51,8],[51,9,51,10],[27,4,27,7],[27,9,27,10],[29,9,29,10],[29,4,29,7],[47,3,47,8],[52,9,52,10],[53,7,53,8],[53,9,53,10],[48,3,48,6],[49,3,49,6],[48,9,48,10],[49,9,49,10],[48,7,48,8],[49,7,49,8],[50,3,50,6],[51,3,51,6],[53,3,53,6],[52,3,52,6],[92,4,92,5],[109,4,109,5],[106,1,106,7],[104,0,104,10],[93,4,93,5],[94,4,94,5],[95,4,95,5],[50,9,50,10],[195,1,195,7],[54,7,54,8],[51,0,51,2],[56,9,56,10],[67,1,67,7],[52,0,52,2],[53,0,53,2],[92,1,92,3],[103,1,103,3],[94,1,94,3],[95,1,95,3],[96,1,96,3],[96,4,96,5],[103,4,103,5],[109,1,109,3],[110,4,110,5],[342,0,343,0],[344,1,344,10],[339,1,339,4],[340,0,340,10],[354,0,354,10],[349,0,349,10],[351,1,351,8],[111,1,111,3],[402,0,402,6],[399,0,399,6],[307,1,307,9],[326,8,326,9],[325,5,325,7],[215,1,215,8],[145,4,145,5],[123,1,123,7],[122,1,122,8],[123,10,125,10],[118,1,118,3],[118,4,118,5],[112,1,112,3],[112,4,112,5],[113,1,113,3],[113,4,113,5],[401,17,402,17],[407,17,408,17],[404,10,405,10],[403,1,403,10],[404,1,404,5],[346,1,346,8],[371,0,371,10],[346,0,347,0],[365,1,365,10],[383,7,383,9],[377,0,377,9],[366,0,366,10],[363,0,364,0],[364,1,364,9],[356,0,357,0],[373,0,374,0],[373,1,373,8],[374,1,374,10],[375,1,375,10],[361,6,361,7],[361,3,361,5],[19,3,19,8],[20,3,20,8],[17,7,17,8],[18,0,18,2],[33,0,33,1],[19,0,19,2],[20,0,20,2],[76,1,76,7],[29,0,29,3],[56,0,56,2],[56,3,56,6],[56,7,56,8],[45,3,45,8],[40,8,41,8],[55,0,55,2],[49,0,49,2],[54,0,54,2],[67,0,68,0],[59,1,59,6],[59,0,60,0],[59,7,61,7],[59,8,61,8],[27,0,27,3],[43,0,43,10],[333,1,333,4],[334,1,334,4],[335,1,335,4],[339,5,339,6],[337,5,337,6],[336,5,336,6],[332,5,332,6],[333,5,333,6],[334,5,334,6],[335,5,335,6],[336,1,336,4],[337,1,337,4],[338,1,338,4],[338,5,338,6],[326,0,326,4],[1,1,1,8],[2,1,2,8],[0,9,2,10],[17,0,17,2],[17,9,17,10],[23,0,25,0],[23,6,25,6],[23,7,23,11],[17,3,17,6],[24,7,24,11],[25,7,25,11],[24,1,24,5],[25,1,25,5],[16,0,16,1],[15,0,15,2],[12,1,12,2],[16,3,16,8],[23,1,23,5],[15,3,15,6],[38,0,38,10],[80,1,80,8],[21,3,21,10],[18,3,18,8]]}
[null,"UNIVERSIDAD SURCOLOMBIANA",null,null,null,null,null,null,null,null,null,null,null,null,null,null,null,null,null,null,null,null,null,null,"GARZÓN"]
[null,"GESTIÓN FINANCIERA Y DE RECURSOS FÍSICOS ",null,null,null,null,null,null,null,null,null,null,null,null,null,null,null,null,null,null,null,null,null,null,"LA PLATA"]
[null,"PRESUPUESTO INGRESOS Y EGRESOS DE PROYECTOS DE LA FACULTAD DE SALUD SIN EXCEDENTES FONDOS ESPECIALES ",null,null,null,null,null,null,null,null,null,null,null,null,null,null,null,null,null,null,null,null,null,null,"NEIVA"]
["CODIGO","AP-FIN-FO-45",null,null,null,"VERSIÓN",1,"VIGENCIA",2023,"PÁGINA","1 De 1",null,null,null,null,null,null,null,null,null,null,null,null,null,"PITALITO"]
[null,null,null,null,null,null,null,null,null,null,null,null,null,null,null,null,null,null,null,null,null,null,"CIENCIAS EXACTAS Y NATURALES"]
["I. INFORMACION GENERAL DEL PROYECTO",null,null,null,null,null,null,null,null,null,null,null,null,null,null,null,null,null,null,null,null,null,"CIENCIAS SOCIALES Y HUMANAS"]
[null,null,null,null,null,null,null,null,null,null,null,null,null,null,null,null,null,null,null,null,null,null,"CIENCIAS JURIDICAS Y POLITICAS "]
["Sede Proyecto",null,null,null,null,null,null,"Total Proyectos aprobados por la Facultad en la Vigencia",null,null,null,null,null,null,null,null,null,null,null,null,null,null,"ECONÓMIA Y ADMINISTRACIÓN"]
["Facultad",null,null,null,null,"N° Acta de aprobación Consejo Facultad",null,null,"Fecha Aprobación Acta Consejo Facultad MES/DIA/AÑO",null,null,null,null,null,null,"TIPO DE PROYECTO",null,null,null,null,null,null,"EDUCACIÓN"]
["Nombre del Proyecto",null,null,null,null,null,null,null,"Codigo Proyecto ",null,null,null,null,null,null,"03 -",null,null,null,null,null,null,"INGENIERIA"]
["Objeto  ",null,null,null,null,null,null,null,"Centro de Costos Asignado al Proyecto",null,null,null,null,"BANCOS ",null,"06 -",null,null,null,null,null,null,"CIENCIAS DE LA SALUD"]
["Justificación",null,null,null,null,null,null,null,null,null,null,null,null,"OCCIDENTE",null,"MODIFICACIONES "]
["Tipo de Proyecto",null,null,"N° Cuenta  Bancaria",null,null,null,"BANCO",null,"N° Modificion",null,null,null,"BANCOLOMBIA"]
["Tiempo de ejecución DIA / MES / AÑO",null,null,null,null,null,null,null,null,null,null,null,null,"BOGOTA",null,0]
[null,null,null,null,null,null,null,null,null,null,null,null,null,"BANCOLOMBIA /OCCIDENTE",null,1]
["Fecha de Inicio ",null,null,null,null,null,null,"Fecha Finalización ",null,null,null,null,null,null,null,2]
["E-Mail Institucional del Proyecto",null,null,null,null,null,null,null,null,"N° Telefónico/Ext.",null,null,null,null,null,3]
["Gestor Proyecto/Propuesta",null,null,null,null,null,null,"Firma Gestor Proyecto/Propuesta"]
["Coordinador Asignado",null,null,null,null,null,null,null,null,"N° Cedula"]
["E-Mail Coordinador",null,null,null,null,null,null,null,null,"N° Celular "]
["Nombre Ordenador del Gasto ",null,null,null,null,null,null,null,null,"N° Resolución Ordenación Gasto"]
["Firma Aval Ordenador del gasto"]
[]
["Fecha Radicado F.E",null,null,null,null,null,"Nombre Quien Recibe:"]
[]
[]
[]
["Fecha Creación en el Sistema Financiero y Administrativo:",null,null,null,null,null,null,null,"Nombre Quien Crea en Linix:"]
[]
["Fecha registro presupuesto en LINIX",null,null,null,null,null,null,null,"Nombre Quien registra en Linix:"]
[]
[]
[]
["FIRMA ORDENADOR DEL GASTO",null,null,null,null,null,null,"FIRMA COORDINADOR "]
[]
["Vigilada Mineducación\nLa versión vigente y controlada de este documento, solo podrá ser consultada a través del sitio web Institucional  www.usco.edu.co, link Sistema Gestión de Calidad. La copia o impresión diferente a la publicada, será considerada como documento no controlado y su uso indebido no es de responsabilidad de la Universidad Surcolombiana"]
[]
["Nota: Todo presupuesto debe elaborarse con base al procedimiento MI-PSO-PR-04 GESTIÓN, APROBACIÓN Y EJECUCIÓN DE ACTIVIDADES DE PROYECCIÓN SOCIAl FONDOS ESPECIALES y el documento de apoyo AP-FIN-DA-02 ESTRUCTURA INGRESOS Y GASTOS/COSTOS PROYECTOS FONDOS ESPECIALES vigentes. "]
["II – INGRESOS "]
[]
["# CASIFICADOR ","INSCRIPCIONES POSGRADO ",null,null,null,null,null,null,"Cantidad","Valor Unitario","Valor Total"]
[null,"DENOMINACION CLASIFICADOR ",null,null,null,null,null,null,null,null,{"$f":"($I$43*$J$43)","v":0}]
[]
["Observaciones: "]
[]
["# CLASIFICADOR ",null,null," MATRICULAS POSGRADOS ",null,null,null,null,null,"VALOR TOTAL",{"$f":"+J50-J52-J53","v":0}]
[null,null,null,"DENOMINACION CLASIFICADOR"]
[]
["Concepto",null,null,"Valor Unitario Concepto $",null,null,null,"Cantidad ",null,"Total Concepto $"]
["Matricula(s) Bruta",null,null,null,null,null,null,null,null,{"$f":"$D$50*$H$50","v":0}]
["Matricula Continuidad",null,null,null,null,null,null,null,null,{"$f":"$D$51*$H$51","v":0}]
["Descuento(s) Egresado(s)",null,null,null,null,null,null,null,null,{"$f":"$D$52*$H$52","v":0}]
["Descuento(s) Electoral ",null,null,null,null,null,null,null,null,{"$f":"$D$53*$H$53","v":0}]
["Beca(s) Otorgada(s)"]
["Otros Descuentos "]
["Descuento(s) Egresado(s) Matricula Continuidad"]
["Descuento(s) Electoral Matricula(s)  Continuidad"]
["Observaciones: "]
[]
["# CLASIFICADOR","DERECHOS DE GRADO POSGRADOS",null,null,null,null,null,"Cantidad","Valor Unitario","Valor Total",{"$f":"SUM($J$63:$K$65)","v":0}]
[null," DENOMINACION CLASIFICADOR"]
[]
["Ceremonia Solemne ",null,null,null,null,null,null,null,null,{"$f":"ROUNDUP(($I$63*$H$63),0)","v":0}]
["Ceremonia Privada",null,null,null,null,null,null,null,null,{"$f":"ROUNDUP(($I$64*$H$64),0)","v":0}]
["Ceremonia Privada Especial",null,null,null,null,null,null,null,null,{"$f":"ROUNDUP(($I$65*$H$65),0)","v":0}]
["Observaciones: "]
[]
["# CLASIFICADOR","CURSOS DE POSTGRADOS (DIRIGIDOS E INTENSIVOS)",null,null,null,null,null,null,"Cantidad","Valor Unitario","Valor Total"]
[null," DENOMINACION CLASIFICADOR",null,null,null,null,null,null,null,null,{"$f":"($J$70*$I$70)","v":0}]
[]
["Observaciones:"]
[]
["# CLASIFICADOR","VENTAS DE SERVICIOS - EXTENCION (EDUCACIÓN NO FORMAL-CONTINUADA, LABORATORIOS, CONTRATOS Y/O CONVENIOS INTERADMINISTRATIVOS) ",null,null,null,null,null,null,"Canidad","Valor Total",{"$f":"SUM($K$75:$K$78)","v":0}]
[null,"DENOMINACION CLASIFICADOR",null,null,null,null,null,null,null,"Valor ","Subtotal",null,"mo"]
[null,null,null,null,null,null,null,null,null,null,{"$f":"I75*J75","v":0}]
[null,null,null,null,null,null,null,null,null,null,0]
[null,null,null,null,null,null,null,null,null,null,0]
[null,null,null,null,null,null,null,null,null,null,0]
["Observaciones:"]
[]
["# CLASIFICADOR","VALOR GENERADO DE 4 X 1000 DE PROYECTOS LIQUIDADOS                                                                                                                       (CLASIFICADOR SOLO PARA PRESUPUESTAR PROYECTO ANUAL DE MANEJO 4X1000 FACULTAD)  ",null,null,null,null,null,null,null,"Valor Total"]
[null,"DENOMINACION CLASIFICADOR"]
[]
["Observaciones:"]
[]
["TOTAL INGRESOS",null,null,null,null,null,null,null,null,null,{"$f":"($K$81+$K$73+$K$69+$K$60+$K$46+$K$42)","v":0}]
[]
["III – EGRESOS"]
[]
["# CLASIFICADOR","DENOMINACION CLASIFICADOR",null,null,null,null,null,null,"TIPO DOCENTE","Valor Total",{"$f":"SUM($K$93:$K$104)","v":0}]
[null,null,null,null,null,null,null,null,"USCO "]
["Cédula ","Nombre(s) y Apellido(s)",null,null,"  Categoría o Formación del Docente",null,"Puntos Docente s/n Categoría o Formación ","Valor Punto Docente ","Valor Unitario Hora","Cantidad Horas Contratadas","Subtotal",null,null,null,null,null,null,null,null,"CATEGORIA O NIVEL DE FORMACION ","PUNTOS S/N CATEGORIA O NIVEL DE FORMACION ","TIPO DE PROYECTO ",null,"valor punto docente vigente ",16441]
[null,null,null,null,"NINGUNO",null,{"$f":"IF(E93=$T$93,$U$93,IF(E93=$T$94,$U$94,IF(E93=$T$95,$U$95,IF(E93=$T$96,$U$96,IF(E93=$T$97,$U$97,IF(E93=$T$98,$U$98,IF(E93=$T$99,$U$99,IF(E93=$T$100,$U$100,IF(E93=$T$101,$U$101,IF(E93=$T$102,$U$102,IF(E93=$T$103,$U$103,IF(E94=$T$104,$U$104,\"\"))))))))))))","v":0},0,null,null,{"$f":"I93*J93","v":0},null,null,null,null,null,null,null,null,"P.S. CATEGORIA AUXILIAR USCO",6.6,"VENTA SERVICIOS",null,null,0]
[null,null,null,null,"NINGUNO",null,{"$f":"IF(E94=$T$93,$U$93,IF(E94=$T$94,$U$94,IF(E94=$T$95,$U$95,IF(E94=$T$96,$U$96,IF(E94=$T$100,$U$100,IF(E94=$T$101,$U$101,IF(E94=$T$102,$U$102,IF(E94=$T$103,$U$103,IF(E94=$T$97,$U$97,IF(E94=$T$98,$U$98,IF(E94=$T$99,$U$99,\"\")))))))))))","v":""},0,null,null,{"$f":"I94*J94","v":0},null,null,null,null,null,null,null,null,"P.S. CATEGORIA ASISTENTE USCO",8.25,"VENTA SERVICIOS "]
[null,null,null,null,"NINGUNO",null,"",0,null,null,0,null,null,null,null,null,null,null,null,"P.S. CATEGORIA ASOCIADO USCO",9.9,"VENTA SERVICIOS "]
[null,null,null,null,"NINGUNO",null,"",0,null,null,0,null,null,null,null,null,null,null,null,"P.S. CATEGORIA TITULAR USCO",11.55,"VENTA SERVICIOS "]
[null,null,null,null,"NINGUNO",null,"",0,null,null,0,null,null,null,null,null,null,null,null,"P.S. ESPECIALIZACIÓN INVITADOS",8.25,"VENTA SERVICIOS "]
[null,null,null,null,"NINGUNO",null,"",0,null,null,0,null,null,null,null,null,null,null,null,"P.S. MAESTRIA  INVITADOS",9.9,"VENTA SERVICIOS "]
[null,null,null,null,"NINGUNO",null,"",0,null,null,0,null,null,null,null,null,null,null,null,"P.S. DOCTORADO INVITADOS",11.55,"VENTA SERVICIOS "]
[null,null,null,null,"NINGUNO",null,"",0,null,null,0,null,null,null,null,null,null,null,null,"POSGRADOS ESPECIALIZACIÓN ",8.25,"POSGRADOS"]
[null,null,null,null,"NINGUNO",null,"",0,null,null,0,null,null,null,null,null,null,null,null,"POSGRADOS MAESTRIA",11.55,"POSGRADOS"]
[null,null,null,null,"NINGUNO",null,"",0,null,null,0,null,null,null,null,null,null,null,null,"POSGRADOS DOCTORADO",13,"POSGRADOS"]
[null,null,null,null,"NINGUNO",null,{"$f":"IF(E103=$T$93,$U$93,IF(E103=$T$94,$U$94,IF(E103=$T$95,$U$95,IF(E103=$T$96,$U$96,IF(E103=$T$100,$U$100,IF(E103=$T$101,$U$101,IF(E103=$T$102,$U$102,IF(E103=$T$103,$U$103,IF(E103=$T$97,$U$97,IF(E103=$T$98,$U$98,IF(E103=$T$99,$U$99,\"\")))))))))))","v":""},0,null,null,0,null,null,null,null,null,null,null,null,"DOCENTES ESPECIALES ",0,"POSGRADOS Y/O VENTA SERVICIOS"]
[null,null,null,null,"NINGUNO",null,{"$f":"IF(E104=$T$93,$U$93,IF(E104=$T$94,$U$94,IF(E104=$T$95,$U$95,IF(E104=$T$96,$U$96,IF(E104=$T$100,$U$100,IF(E104=$T$101,$U$101,IF(E104=$T$102,$U$102,IF(E104=$T$103,$U$103,IF(E104=$T$97,$U$97,IF(E104=$T$98,$U$98,IF(E104=$T$99,$U$99,\"\")))))))))))","v":""},0,null,null,0,null,null,null,null,null,null,null,null,"NINGUNO",0]
["Observaciones: "]
[]
["# CLASIFICADOR","DENOMINACION CLASIFICADOR",null,null,null,null,null,null,"TIPO DOCENTE","Valor Total",{"$f":"SUM($K$110:$K$121)","v":0}]
[null,null,null,null,null,null,null,null,"EXTERNOS"]
["Cédula ","Nombre(s) y Apellido(s)",null,null,"  Categoría o Formación del Docente",null,"Puntos Docente s/n Categoría o Formación ","Valor Punto Docente ","Valor Unitario Hora","Cantidad Horas Contratadas","Subtotal",null,null,null,null,null,null,null,null,"CATEGORIA O NIVEL DE FORMACION ","PUNTOS S/N CATEGORIA O NIVEL DE FORMACION ","TIPO DE PROYECTO "]
[null,null,null,null,"NINGUNO",null,{"$f":"IF(E110=$T$93,$U$93,IF(E110=$T$94,$U$94,IF(E110=$T$95,$U$95,IF(E110=$T$96,$U$96,IF(E110=$T$97,$U$97,IF(E110=$T$98,$U$98,IF(E110=$T$99,$U$99,IF(E110=$T$100,$U$100,IF(E110=$T$101,$U$101,IF(E110=$T$102,$U$102,IF(E110=$T$103,$U$103,IF(E111=$T$104,$U$104,\"\"))))))))))))","v":0},0,null,null,{"$f":"I110*J110","v":0},null,null,null,null,null,null,null,null,"P.S. CATEGORIA AUXILIAR USCO",6.6,"VENTA SERVICIOS"]
[null,null,null,null,"NINGUNO",null,{"$f":"IF(E111=$T$93,$U$93,IF(E111=$T$94,$U$94,IF(E111=$T$95,$U$95,IF(E111=$T$96,$U$96,IF(E111=$T$100,$U$100,IF(E111=$T$101,$U$101,IF(E111=$T$102,$U$102,IF(E111=$T$103,$U$103,IF(E111=$T$97,$U$97,IF(E111=$T$98,$U$98,IF(E111=$T$99,$U$99,\"\")))))))))))","v":""},0,null,null,0,null,null,null,null,null,null,null,null,"P.S. CATEGORIA ASISTENTE USCO",8.25,"VENTA SERVICIOS "]
[null,null,null,null,"NINGUNO",null,"",0,null,null,0,null,null,null,null,null,null,null,null,"P.S. CATEGORIA ASOCIADO USCO",9.9,"VENTA SERVICIOS "]
[null,null,null,null,"NINGUNO",null,"",0,null,null,0,null,null,null,null,null,null,null,null,"P.S. CATEGORIA TITULAR USCO",11.55,"VENTA SERVICIOS "]
[null,null,null,null,"NINGUNO",null,"",0,null,null,0,null,null,null,null,null,null,null,null,"P.S. ESPECIALIZACIÓN INVITADOS",8.25,"VENTA SERVICIOS "]
[null,null,null,null,"NINGUNO",null,"",0,null,null,0,null,null,null,null,null,null,null,null,"P.S. MAESTRIA  INVITADOS",9.9,"VENTA SERVICIOS "]
[null,null,null,null,"NINGUNO",null,"",0,null,null,0,null,null,null,null,null,null,null,null,"P.S. DOCTORADO INVITADOS",11.55,"VENTA SERVICIOS "]
[null,null,null,null,"NINGUNO",null,"",0,null,null,0,null,null,null,null,null,null,null,null,"POSGRADOS ESPECIALIZACIÓN ",8.25,"POSGRADOS"]
[null,null,null,null,"NINGUNO",null,"",0,null,null,0,null,null,null,null,null,null,null,null,"POSGRADOS MAESTRIA",11.55,"POSGRADOS"]
[null,null,null,null,"NINGUNO",null,"",0,null,null,0,null,null,null,null,null,null,null,null,"POSGRADOS DOCTORADO",13,"POSGRADOS"]
[null,null,null,null,"NINGUNO",null,{"$f":"IF(E120=$T$93,$U$93,IF(E120=$T$94,$U$94,IF(E120=$T$95,$U$95,IF(E120=$T$96,$U$96,IF(E120=$T$100,$U$100,IF(E120=$T$101,$U$101,IF(E120=$T$102,$U$102,IF(E120=$T$103,$U$103,IF(E120=$T$97,$U$97,IF(E120=$T$98,$U$98,IF(E120=$T$99,$U$99,\"\")))))))))))","v":""},0,null,null,0,null,null,null,null,null,null,null,null,"DOCENTES ESPECIALES ",0,"POSGRADOS Y/O VENTA SERVICIOS"]
[null,null,null,null,"NINGUNO",null,{"$f":"IF(E121=$T$93,$U$93,IF(E121=$T$94,$U$94,IF(E121=$T$95,$U$95,IF(E121=$T$96,$U$96,IF(E121=$T$100,$U$100,IF(E121=$T$101,$U$101,IF(E121=$T$102,$U$102,IF(E121=$T$103,$U$103,IF(E121=$T$97,$U$97,IF(E121=$T$98,$U$98,IF(E121=$T$99,$U$99,\"\")))))))))))","v":""},0,null,null,0,null,null,null,null,null,null,null,null,"NINGUNO",0]
[]
["# CLASIFICADOR","SERVICIOS DE ASESORÍA, TUTORÍAS, JURADOS EN TRABAJOS DE GRADO E INVESTIGACIÓN",null,null,null,null,null,null,null,"Valor Total",{"$f":"SUM($K$127:$K$131)","v":0},null,null,null,null,null,null,{"$f":"ROUNDUP(SUM(K125:K131),0)","v":0},null,null,null,null,null,null,null,"igual a honorarios docentes "]
[null,"DENOMINACION CLASIFICADOR",null,null,null,null,null,null,"Cantidad Horas ","Valor Hora  ","Subtotal",null,null,null,null,null,null,null,null,null,null,null,null,null,null,"medir igual que honorarios docentes"]
[]
["Cédula ","Nombre(s) y Apellido(s)"]
[null,null,null,null,null,null,null,null,null,null,{"$f":"$I$127*$J$127","v":0}]
[null,null,null,null,null,null,null,null,null,null,{"$f":"$I$128*$J$128","v":0}]
[null,null,null,null,null,null,null,null,null,null,{"$f":"$I$129*$J$129","v":0}]
[null,null,null,null,null,null,null,null,null,null,{"$f":"$I$130*$J$130","v":0}]
[null,null,null,null,null,null,null,null,null,null,{"$f":"$I$131*$J$131","v":0}]
["Observaciones: "]
[]
["# CLASIFICADOR","EQUIPO OPERATIVO / NO DOCENTE ",null,null,null,null,null,null,null,"Valor Total",{"$f":"SUM($K$136:$K$155)","v":0}]
[null,"DENOMINACION CLASIFICADOR",null,null,"N° Cédula ",null,"Nombre(s) y Apellido(s)",null,null,"Tiempo (En N° Días)","Valor ",null,null,null,null,null,null,null,null,null,null,null,null,null,null,"cambiar orden primero 2004 y luego 2003"]
[]
[]
[]
[]
[]
[]
[]
[]
[]
[null,null,null,null,null,null,null,null,null,null,null,null,null,null,null,null,null,null,null,null,null,null,null,null,null,"2003 Personal de Apoyo Administrativo"]
[null,null,null,null,null,null,null,null,null,null,null,null,null,null,null,null,null,{"$f":"K146/J146","v":{"$error":"#DIV/0!"}},null,null,"=SI(REDONDEAR.MAS(A1;0)-A1>0,5;REDONDEAR.MAS(A1;0)-0,5;REDONDEAR.MAS(A1;0))",null,null,null,null,"adicionar columna de cargo"]
[null,null,null,null,null,null,null,null,null,null,null,null,null,null,null,null,null,null,null,null,null,null,null,null,null,"adicionar columnas fechas desde hasta y duración"]
[]
[]
[]
[]
[]
[]
[]
[]
["Observaciones: "]
[]
["# CLASIFICADOR","EQUIPO OPERATIVO / LABORATORIO",null,null,null,null,null,null,null,"Valor Total",{"$f":"SUM($K$160:$K$169)","v":0},null,null,null,null,null,null,{"$f":"ROUNDUP(SUM(K165:K169),0)","v":0}]
[null,"DENOMINACION CLASIFICADOR",null,null,"N° Cédula ",null,"Nombre(s) y Apellido(s)",null,null,"Tiempo (En N° Días)","Valor "]
[]
[]
[]
[]
[]
[]
[]
[]
[]
[]
["Observaciones:"]
[]
["# CLASIFICADOR","ROTACION ESTUDIANTES POSGRADOS FACULTAD SALUD ",null,null,null,null,null,null,null,"Valor Total",{"$f":"SUM($K$174:$K$174)","v":0},null,null,null,null,null,null,{"$f":"ROUNDUP(SUM(K174:K174),0)","v":0}]
[null,"DENOMINACION CLASIFICADOR",null,null,null,null,null,null,null,null,"Valor Subtotal"]
[]
["Observaciones: "]
[]
[]
["# CLASIFICADOR","MONITORES ",null,null,null,null,null,null,null,"Valor Total",{"$f":"SUM($K$180:$K$180)","v":0},null,null,null,null,null,null,{"$f":"ROUNDUP(SUM(K180:K180),0)","v":0}]
[null,"DENOMINACION CLASIFICADOR",null,null,null,null,null,null,"Total Cantidad Horas ","Valor Hora  ","Valor Subtotal"]
[]
["Observaciones:"]
[]
["# CLASIFICADOR","SEGURIDAD SOCIAL RESIDENTES",null,null,null,null,null,null,null,"Valor Total",{"$f":"SUM($K$185:$K$185)","v":0},null,null,null,null,null,null,{"$f":"ROUNDUP(SUM(K185:K185),0)","v":0}]
[null,"DENOMINACION CLASIFICADOR",null,null,null,null,null,null,null,"Número Meses ","Valor Subtotal"]
[null,null,null,null,null,null,null,null,null,null,null,null,null,null,null,null,null,null,null,null,null,null,null,{"$f":"DATEDIF(H185,I185,\"m\")","v":0},"Meses",{"$f":"DATEDIF(H185,I185,\"md\")","v":0},"Días"]
["Observaciones: ",null,null,null,null,null,null,null,null,null,null,null,null,null,null,null,null,null,null,null,null,null,null,{"$f":"DATEDIF(H186,I186,\"m\")","v":0},"Meses",{"$f":"DATEDIF(H186,I186,\"md\")","v":0},"Días"]
[]
["# CLASIFICADOR"," CAPACITACIONES                                                                                                                                                                                                                   (PROYECTOS DE POSTGRADOS, CONTRATOS Y/O CONVENIO INTERADMINISTRATIVOS)",null,null,null,null,null,null,null,"Valor Total",{"$f":"SUM($K$190:$K$190)","v":0},null,null,null,null,null,null,{"$f":"ROUNDUP(SUM(K190:K190),0)","v":0}]
[null,"DENOMINACION CLASIFICADOR",null,null,null,null,null,null,null,null,"Valor Subtotal"]
[null,null,null,null,null,null,null,null,null,null,null,null,null,null,null,null,null,null,null,null,null,null,null,{"$f":"DATEDIF(H190,I190,\"m\")","v":0},"Meses",{"$f":"DATEDIF(H190,I190,\"md\")","v":0},"Días"]
["Observaciones: ",null,null,null,null,null,null,null,null,null,null,null,null,null,null,null,null,null,null,null,null,null,null,{"$f":"DATEDIF(H191,I191,\"m\")","v":0},"Meses",{"$f":"DATEDIF(H191,I191,\"md\")","v":0},"Días"]
[null,null,null,null,null,null,null,null,null,null,null,null,null,null,null,null,null,null,null,null,null,null,null,{"$f":"DATEDIF(H192,I192,\"m\")","v":0},"Meses",{"$f":"DATEDIF(H192,I192,\"md\")","v":0},"Días"]
["# CLASIFICADOR","VIATICOS ",null,null,null,null,null,null,"Valor día ","Valor Total",{"$f":"+K195+K196","v":0},null,null,null,null,null,null,{"$f":"ROUNDUP(SUM(K195:K195),0)","v":0}]
[null,"DENOMINACION CLASIFICADOR",null,null,null,null,null,null,null,"Total N° Días","Valor Subtotal"]
[null,null,null,null,null,null,null,null,null,null,{"$f":"+I195*J195","v":0},null,null,null,null,null,null,null,null,null,null,null,null,{"$f":"DATEDIF(H195,I195,\"m\")","v":0},"Meses",{"$f":"DATEDIF(H195,I195,\"md\")","v":0},"Días"]
[null,null,null,null,null,null,null,null,null,null,{"$f":"+I196*J196","v":0}]
["Observaciones: ",null,null,null,null,null,null,null,null,null,null,null,null,null,null,null,null,null,null,null,null,null,null,{"$f":"DATEDIF(H197,I197,\"m\")","v":0},"Meses",{"$f":"DATEDIF(H197,I197,\"md\")","v":0},"Días"]
[]
["# CLASIFICADOR","SERVICIO DE ALOJAMIENTO Y/O ALIMETACION",null,null,null,null,null,null,"Valor día ","Valor Total",{"$f":"SUM($K$201:$K$204)","v":0},null,null,null,null,null,null,{"$f":"ROUNDUP(SUM(K201:K204),0)","v":0}]
[null,"DENOMINACION CLASIFICADOR",null,null,null,null,null,null,null,"Total N° Días","Valor Subtotal"]
[null,null,null,null,null,null,null,null,null,null,{"$f":"+I201*J201","v":0},null,null,null,null,null,null,null,null,null,null,null,null,{"$f":"DATEDIF(H201,I201,\"m\")","v":0},"Meses",{"$f":"DATEDIF(H201,I201,\"md\")","v":0},"Días"]
[null,null,null,null,null,null,null,null,null,null,{"$f":"+I202*J202","v":0},null,null,null,null,null,null,null,null,null,null,null,null,{"$f":"DATEDIF(H202,I202,\"m\")","v":0},"Meses",{"$f":"DATEDIF(H202,I202,\"md\")","v":0},"Días"]
[]
[null,null,null,null,null,null,null,null,null,null,null,null,null,null,null,null,null,null,null,null,null,null,null,{"$f":"DATEDIF(H204,I204,\"m\")","v":0},"Meses",{"$f":"DATEDIF(H204,I204,\"md\")","v":0},"Días"]
["Observaciones: ",null,null,null,null,null,null,null,null,null,null,null,null,null,null,null,null,null,null,null,null,null,null,{"$f":"DATEDIF(H205,I205,\"m\")","v":0},"Meses",{"$f":"DATEDIF(H205,I205,\"md\")","v":0},"Días"]
[]
[]
["# CLASIFICADOR","SERVICIO DE TRANSPORTE ",null,null,null,null,null,null,"Valor día ","Valor Total",{"$f":"SUM($K$210:$K$213)","v":0},null,null,null,null,null,null,{"$f":"ROUNDUP(SUM(K210:K213),0)","v":0}]
[null,"DENOMINACION CLASIFICADOR",null,null,null,null,null,null,null,"Total N° Días","Valor Subtotal"]
[null,null,null,null,null,null,null,null,null,null,{"$f":"+I210*J210","v":0},null,null,null,null,null,null,null,null,null,null,null,null,{"$f":"DATEDIF(H210,I210,\"m\")","v":0},"Meses",{"$f":"DATEDIF(H210,I210,\"md\")","v":0},"Días"]
[null,null,null,null,null,null,null,null,null,null,{"$f":"+I211*J211","v":0},null,null,null,null,null,null,null,null,null,null,null,null,{"$f":"DATEDIF(H211,I211,\"m\")","v":0},"Meses",{"$f":"DATEDIF(H211,I211,\"md\")","v":0},"Días"]
[null,null,null,null,null,null,null,null,null,null,{"$f":"+I212*J212","v":0},null,null,null,null,null,null,null,null,null,null,null,null,{"$f":"DATEDIF(H212,I212,\"m\")","v":0},"Meses",{"$f":"DATEDIF(H212,I212,\"md\")","v":0},"Días"]
[null,null,null,null,null,null,null,null,null,null,{"$f":"+I213*J213","v":0},null,null,null,null,null,null,null,null,null,null,null,null,{"$f":"DATEDIF(H213,I213,\"m\")","v":0},"Meses",{"$f":"DATEDIF(H213,I213,\"md\")","v":0},"Días"]
["Observaciones: ",null,null,null,null,null,null,null,null,null,null,null,null,null,null,null,null,null,null,null,null,null,null,{"$f":"DATEDIF(H214,I214,\"m\")","v":0},"Meses",{"$f":"DATEDIF(H214,I214,\"md\")","v":0},"Días"]
[]
["# CLASIFICADOR","GASTOS /COSTOS LEGALES",null,null,null,null,null,null,null,"Valor Total"]
[null,"DENOMINACION CLASIFICADOR"]
[null,null,null,null,null,null,null,null,null,null,null,null,null,null,null,null,null,null,null,null,null,null,null,{"$f":"DATEDIF(H218,I218,\"m\")","v":0},"Meses",{"$f":"DATEDIF(H218,I218,\"md\")","v":0},"Días"]
["Observaciones:",null,null,null,null,null,null,null,null,null,null,null,null,null,null,null,null,null,null,null,null,null,null,{"$f":"DATEDIF(H219,I219,\"m\")","v":0},"Meses",{"$f":"DATEDIF(H219,I219,\"md\")","v":0},"Días"]
[]
["# CLASIFICADOR","MATERIALES E INSUMOS",null,null,null,null,null,null,null,"Valor Total",{"$f":"SUM($K$223:$K$229)","v":0},null,null,null,null,null,null,{"$f":"ROUNDUP(SUM(K223:K229),0)","v":0}]
[null,"DENOMINACION CLASIFICADOR",null,null,null,null,null,null,"Cantidad","Valor Unitario","Valor Subtotal"]
[null,null,null,null,null,null,null,null,null,null,{"$f":"J223*I223","v":0}]
[null,null,null,null,null,null,null,null,null,null,0]
[null,null,null,null,null,null,null,null,null,null,0]
[null,null,null,null,null,null,null,null,null,null,0]
[null,null,null,null,null,null,null,null,null,null,0]
[null,null,null,null,null,null,null,null,null,null,0]
[null,null,null,null,null,null,null,null,null,null,0]
["Observaciones:"]
[]
["# CLASIFICADOR","SERVICIOS DE LABORATORIO EXTERNO",null,null,null,null,null,null,null,"Valor Total",{"$f":"SUM($K$234:$K$235)","v":0},null,null,null,null,null,null,{"$f":"ROUNDUP(SUM(K234:K235),0)","v":0}]
[null,"DENOMINACION CLASIFICADOR",null,null,null,null,null,null,"Cantidad","Valor Unitario","Valor Subtotal"]
[null,null,null,null,null,null,null,null,null,null,{"$f":"J234*I234","v":0}]
[null,null,null,null,null,null,null,null,null,null,{"$f":"J235*I235","v":0}]
["Observaciones:"]
[]
["# CLASIFICADOR","PAPELERÍA GENERAL Y ELEMENTOS DE OFICINA",null,null,null,null,null,null,null,"Valor Total",{"$f":"SUM($K$240:$K$243)","v":0},null,null,null,null,null,null,{"$f":"ROUNDUP(SUM(K240:K243),0)","v":0}]
[null,"DENOMINACION CLASIFICADOR",null,null,null,null,null,null,null,null,"Valor Subtotal"]
[]
[]
[]
[]
["Observaciones: "]
[]
["# CLASIFICADOR","SERVICIOS DE FOTOCOPIAS, MÓDULOS E IMPRESOS",null,null,null,null,null,null,null,"Valor Total",{"$f":"SUM($K$248:$K$250)","v":0},null,null,null,null,null,null,{"$f":"ROUNDUP(SUM(K248:K250),0)","v":0}]
[null,"DENOMINACION CLASIFICADOR",null,null,null,null,null,null,null,null,"Valor Subtotal"]
[]
[]
[]
["Observaciones:"]
[]
["# CLASIFICADOR","SERVICIOS DE PUBLICACIONES",null,null,null,null,null,null,null,"Valor Total",{"$f":"SUM($K$255:$K$257)","v":0},null,null,null,null,null,null,{"$f":"ROUNDUP(SUM(K255:K257),0)","v":0}]
[null,"DENOMINACION CLASIFICADOR",null,null,null,null,null,null,null,null,"Valor Subtotal"]
[]
[]
[]
["Observaciones: "]
[]
["# CLASIFICADOR","SERVICIOS DE PUBLICIDAD Y MERCADEO",null,null,null,null,null,null,null,"Valor Total",{"$f":"SUM($K$262:$K$264)","v":0},null,null,null,null,null,null,{"$f":"ROUNDUP(SUM(K262:K265),0)","v":0}]
[null,"DENOMINACION CLASIFICADOR",null,null,null,null,null,null,null,null,"Valor Subtotal"]
[]
[]
[]
["Observaciones:"]
[]
["# CLASIFICADOR","PRODUCTOS DE ASEO Y CAFETERÍA",null,null,null,null,null,null,null,"Valor Total",{"$f":"SUM($K$269:$K$271)","v":0},null,null,null,null,null,null,{"$f":"ROUNDUP(SUM(K269:K271),0)","v":0}]
[null,"DENOMINACION CLASIFICADOR",null,null,null,null,null,null,null,null,"Valor Subtotal"]
[]
[]
[]
["Observaciones:"]
[]
["# CLASIFICADOR","ARRENDAMIENTO BIENES MUEBLES E INMUEBLES EXTERNOS",null,null,null,null,null,null,null,"Valor Total",{"$f":"SUM($K$276:$K$278)","v":0},null,null,null,null,null,null,{"$f":"ROUNDUP(SUM(K276:K278),0)","v":0}]
[null,"DENOMINACION CLASIFICADOR",null,null,null,null,null,null,null,null,"Valor Subtotal"]
[null,null,null,null,null,null,null,null,null,null,null,null,null,null,null,null,null,null,null,null,null,null,null,{"$f":"DATEDIF(H276,I276,\"m\")","v":0},"Meses",{"$f":"DATEDIF(H276,I276,\"md\")","v":0},"Días"]
[null,null,null,null,null,null,null,null,null,null,null,null,null,null,null,null,null,null,null,null,null,null,null,{"$f":"DATEDIF(H277,I277,\"m\")","v":0},"Meses",{"$f":"DATEDIF(H277,I277,\"md\")","v":0},"Días"]
[null,null,null,null,null,null,null,null,null,null,null,null,null,null,null,null,null,null,null,null,null,null,null,{"$f":"DATEDIF(H278,I278,\"m\")","v":0},"Meses",{"$f":"DATEDIF(H278,I278,\"md\")","v":0},"Días"]
["Observaciones: "]
[]
["# CLASIFICADOR","INSTALACIÓN, MANTENIMIENTO Y ADECUACIÓN DE EQUIPOS Y PLANTA FÍSICA USCO",null,null,null,null,null,null,null,"Valor Total",{"$f":"SUM($K$283:$K$286)","v":0},null,null,null,null,null,null,{"$f":"ROUNDUP(SUM(K283:K286),0)","v":0}]
[null,"DENOMINACION CLASIFICADOR",null,null,null,null,null,null,null,null,"Valor Subtotal"]
[]
[]
[]
[]
["Observaciones:"]
[]
["# CLASIFICADOR","PRÁCTICAS EXTRAMUROS PROYECTOS DE POSTGRADO",null,null,null,null,null,null,null,"Valor Total",{"$f":"SUM($K$291:$K$293)","v":0},null,null,null,null,null,null,{"$f":"ROUNDUP(SUM(K291:K293),0)","v":0}]
[null,"DENOMINACION CLASIFICADOR",null,null,null,null,null,null,null,null,"Valor Subtotal"]
[null,null,null,null,null,null,null,null,null,null,null,null,null,null,null,null,null,null,null,null,null,null,null,{"$f":"DATEDIF(H291,I291,\"m\")","v":0},"Meses",{"$f":"DATEDIF(H291,I291,\"md\")","v":0},"Días"]
[null,null,null,null,null,null,null,null,null,null,null,null,null,null,null,null,null,null,null,null,null,null,null,{"$f":"DATEDIF(H292,I292,\"m\")","v":0},"Meses",{"$f":"DATEDIF(H292,I292,\"md\")","v":0},"Días"]
[null,null,null,null,null,null,null,null,null,null,null,null,null,null,null,null,null,null,null,null,null,null,null,{"$f":"DATEDIF(H293,I293,\"m\")","v":0},"Meses",{"$f":"DATEDIF(H293,I293,\"md\")","v":0},"Días"]
["Observaciones:"]
[]
["# CLASIFICADOR","RECURSOS BIBLIOGRÁFICOS ",null,null,null,null,null,null,null,"Valor Total",{"$f":"SUM($K$298:$K$300)","v":0},null,null,null,null,null,null,{"$f":"ROUNDUP(SUM(K298:K300),0)","v":0}]
[null,"DENOMINACION CLASIFICADOR",null,null,null,null,null,null,null,null,"Valor Subtotal"]
[]
[]
[]
["Observaciones:"]
[]
["# CLASIFICADOR","ADQUISICIÓN DE MUEBLES Y/O EQUIPOS",null,null,null,null,null,null,null,"Valor Total",{"$f":"+K305+K306+K307+K308","v":0},null,null,null,null,null,null,{"$f":"ROUNDUP(SUM(K305:K307),0)","v":0}]
[null,"DENOMINACION CLASIFICADOR",null,null,null,null,null,null,null,null,"Valor Subtotal"]
[]
[]
[]
[]
["Observaciones: "]
[]
["# CLASIFICADOR","SERVICIOS POSTALES, MENSAJERÍA Y/O CORRESPONDENCIA",null,null,null,null,null,null,null,"Valor Total",{"$f":"SUM($K$313:$K$314)","v":0},null,null,null,null,null,null,{"$f":"ROUNDUP(SUM(K313:K314),0)","v":0}]
[null,"DENOMINACION CLASIFICADOR",null,null,null,null,null,null,null,null,"Valor Subtotal"]
[null,null,null,null,null,null,null,null,null,null,null,null,null,null,null,null,null,null,null,null,null,null,null,{"$f":"DATEDIF(H313,I313,\"m\")","v":0},"Meses",{"$f":"DATEDIF(H313,I313,\"md\")","v":0},"Días"]
[null,null,null,null,null,null,null,null,null,null,null,null,null,null,null,null,null,null,null,null,null,null,null,{"$f":"DATEDIF(H314,I314,\"m\")","v":0},"Meses",{"$f":"DATEDIF(H314,I314,\"md\")","v":0},"Días"]
["Observaciones:"]
[]
["# CLASIFICADOR","SERVICIOS PÚBLICOS",null,null,null,null,null,null,null,"Valor Total",null,null,null,null,null,null,null,{"$f":"ROUNDUP(SUM(K322:K327),0)","v":0}]
[null,"DENOMINACION CLASIFICADOR"]
[null,null,null,null,null,null,null,null,null,null,null,null,null,null,null,"SERVICIOS PUBLICOS "]
["PROYECTOS DE POSGRADOS "]
["RANGO SEGÚN INGRESOS ",null,null,null,null,"Valor  S.M.M.L.V.",null,null,"% S.M.M.L.V.",null,"VALOR"]
["UN (1) S.M.M.L.V.",null,null,null,null,null,null,null,1,null,{"$f":"F322*I322","v":0},null,null,"smmlv ",1160000]
["PROYECTOS DE VENTA DE SERVICIOS - EXTENCION ",null,null,null,null,null,null,null,null,null,null,null,null,null,1160000,null,null,null,null,null,null,null,null,{"$f":"DATEDIF(#REF!,#REF!,\"m\")","v":{"$error":"#REF!"}},"Meses",{"$f":"DATEDIF(#REF!,#REF!,\"md\")","v":{"$error":"#REF!"}},"Días"]
["RANGO SEGÚN INGRESOS ",null,null,null,null,"Valor  S.M.M.L.V.",null,null,"% S.M.M.L.V.",null,"VALOR"]
["DE 0 A 5 MILLONES",null,null,null,null,null,null,null,0.1,null,{"$f":"F325*I325","v":0}]
["5.000.001 A 30.000.000",null,null,null,null,0,null,null,0.3,null,{"$f":"F326*I326","v":0}]
["MAYOR A 30.000.001",null,null,null,null,0,null,null,1,null,{"$f":"F327*I327","v":0},null,null,null,null,null,null,null,null,null,null,null,null,{"$f":"DATEDIF(H327,I327,\"m\")","v":0},"Meses",{"$f":"DATEDIF(H327,I327,\"md\")","v":1},"Días"]
["Observaciones: "]
[]
["# CLASIFICADOR","ARRENDAMIENTO PLANTA FÍSICA USCO",null,null,null,null,null,null,null,"Valor Total",{"$f":"SUM($K$334:$K$336)+SUM($K$338:$K$340)","v":0},null,null,null,null,null,null,{"$f":"ROUNDUP(SUM(K334:K340),0)","v":0}]
[null,"DENOMINACION CLASIFICADOR"]
[]
["UBICACIÓN ","AULAS U OFICINAS SIN AIRE ACONDICIONADO",null,null,null,"Valor  S.M.M.L.V.",null,"% S.M.M.L.V.","VALOR HORA"," HORAS REQUERIDAS","SUB-TOTAL VALOR HORAS"]
[null,"HASTA 30 ALUMNOS ",null,null,null,0,null,6.0000000000000001E-3,{"$f":"F334*H334","v":0},null,{"$f":"J334*I334","v":0}]
[null,"ENTRE 40 Y 45 ALUMNOS ",null,null,null,0,null,8.0000000000000002E-3,{"$f":"F335*H335","v":0},null,{"$f":"J335*I335","v":0}]
[null,"MAYOR A 50 ALUMNOS ",null,null,null,null,null,1.2E-2,0,null,{"$f":"J336*I336","v":0}]
["UBICACIÓN ","AULAS U OFICINAS CON AIRE ACONDICIONADO",null,null,null,"Valor  S.M.M.L.V.",null,"% S.M.M.L.V.","VALOR HORA"," HORAS REQUERIDAS","SUB-TOTAL VALOR HORAS"]
[null,"HASTA 30 ALUMNOS ",null,null,null,null,null,7.0000000000000001E-3,{"$f":"F338*H338","v":0},null,{"$f":"J338*I338","v":0}]
[null,"ENTRE 40 Y 45 ALUMNOS ",null,null,null,null,null,0.01,{"$f":"F339*H339","v":0},null,{"$f":"F339*H339","v":0}]
[null,"MAYOR A 50 ALUMNOS ",null,null,null,null,null,1.4999999999999999E-2,0,null,{"$f":"F340*H340","v":0}]
["Observaciones: "]
[]
["# CLASIFICADOR","PÓLIZA DE SEGUROS POR BIENES MUEBLES Y/O EQUIPOS ADQUIRIDOS",null,null,null,null,null,null,null,"Valor Total",{"$f":"$K$303*1%","v":0}]
[null,"DENOMINACION CLASIFICADOR"]
[null,null,null,null,null,null,null,null,null,null,null,null,null,null,null,null,null,null,null,null,null,null,null,{"$f":"DATEDIF(H345,I345,\"m\")","v":0},"Meses",{"$f":"DATEDIF(H345,I345,\"md\")","v":0},"Días"]
["Observaciones:"]
["# CLASIFICADOR","GASTOS ADMINISTRATIVOS SEDE CENTRAL",null,null,null,null,null,null,null,"Valor Total"]
[null,"DENOMINACION CLASIFICADOR"]
[]
["Observaciones:  "]
[]
["# CLASIFICADOR","GASTOS ADMINISTRATIVOS FACULTAD DE CIENCIAS DE LA SALUD",null,null,null,null,null,null,null,"Valor Total",null,null,null,null,null,null,{"$f":"+$P$362*1%","v":0},{"$f":"IF(ROUNDUP(Q352,0)-Q352>0.5,ROUNDUP(Q352,0)-0.5,ROUNDUP(Q352,0))","v":0}]
[null,"DENOMINACION CLASIFICADOR"]
[]
["Observaciones:  "]
[]
["# CLASIFICADOR","ARRENDAMIENTO INFRAESTRUCTURA NO ACADEMICA USCO S/N RESOLUCION VIGENTE",null,null,null,null,null,null,null,"Valor Total"]
[null,"DENOMINACION CLASIFICADOR"]
[]
["Observaciones:"]
[]
[null,null,null,"Sub-total 1. Egresos ",null,null,{"$f":"$K$357+$K$352+$K$347+$K$343+$K$330+$K$317+$K$311+$K$303+$K$296+$K$289+$K$281+$K$274+$K$267+$K$260+$K$253+$K$246+$K$238+$K$232+$K$221+$K$216+$K$208+$K$199+$K$193+$K$188+$K$183+$K$178+$K$172+$K$158+$K$134+$K$123+$K$107+$K$90","v":0}]
[]
["# CLASIFICADOR","APOYO ESTUDIANTES POSGRADOS ",null,null,null,null,null,null,null,"Valor Total"]
[null,"DENOMINACION CLASIFICADOR",null,null,null,null,null,null,null,null,"Valor Subtotal",null,null,null,"INCENTIVOS"]
[null,null,null,null,null,null,null,null,null,null,null,null,null,null,"INCENTIVOS COORDINACIÓN  - FEA - FAC ECON Y ADMON - EXTENSION","2512022090209190122. - FEA","FEA"]
["Observaciones: ",null,null,null,null,null,null,null,null,null,null,null,null,null,"INCENTIVOS COORDINACIÓN - FEA - FAC ECON Y ADMON - POSGRADOS","25120220902050202123. - FEA","FEA"]
[null,null,null,null,null,null,null,null,null,null,null,null,null,null,"INCENTIVOS COORDINACIÓN - FEA - FAC ECON Y ADMON - POSGRADOS","25120220902050201123. - FEA","FEA"]
["# CLASIFICADOR","FORTALECIMIENTO DEL EQUIPO HUMANO OPERATIVO DE LOS FONDOS ESPECIALES ÁREA GESTIÓN FINANCIERA",null,null,null,null,null,null,null,"Valor Total",null,null,null,null,"INCENTIVOS COORDINACIÓN - FJU - FAC CIENC JUR Y POL - EXTENSION","2522022090209190124' - FJU","FJU"]
[null,"DENOMINACION CLASIFICADOR",null,null,null,null,null,null,null,null,null,null,null,null,"INCENTIVOS COORDINACIÓN - FJU - FAC CIENC JUR Y POL - POSGRADOS","25220220902050201125. - FJU","FJU"]
[null,null,null,null,null,null,null,null,null,null,null,null,null,null,"INCENTIVOS COORDINACIÓN - FJU - FAC CIENC JUR Y POL - POSGRADOS","25220220902050202125. - FJU","FJU"]
["Observaciones: ",null,null,null,null,null,null,null,null,null,null,null,null,null,"INCENTIVOS COORDINACIÓN - FSH - FAC CIENC SOL Y HUM - POSGRADOS","25320220902050202127' - FSH","FSH"]
[null,null,null,null,null,null,null,null,null,null,null,null,null,null,"INCENTIVOS COORDINACIÓN - FED - FAC EDUCACION - EXTENSION","2542022090209190128. - FED","FED"]
["# CLASIFICADOR","GASTOS  BANCARIOS (GMF)",null,null,null,null,null,null,null,"Valor Total",null,null,null,null,"INCENTIVOS COORDINACIÓN - FED - FAC EDUCACION -´POSGRADOS","25420220902050202129. - FED","FED"]
[null,"DENOMINACION CLASIFICADOR",null,null,null,null,null,null,null,null,null,null,null,null,"INCENTIVOS COORDINACIÓN - FIN - FAC INGENIERIA - EXTENSION","2552022090209190130. - FIN","FIN"]
[null,null,null,null,null,null,null,null,null,null,null,null,null,null,"INCENTIVOS COORDINACIÓN - FIN - POSGRADOS","25520220902050202131. - FIN","FIN"]
[null,null,null,null,null,null,null,null,null,null,null,null,null,null,"INCENTIVOS COORDINACIÓN - FEN - FAC CIENC EXAC Y NAT - EXTENSION","2562022090209190132. - FEN","FEN"]
["TOTAL EGRESOS ",null,null,null,null,null,null,null,null,null,null,null,null,null,"INCENTIVOS COORDINADOR - FEN-FAC-CIENC EXAC Y NAT - POSGRADOS - MAESTRIA","25620220902050202133. - FEN","FEN"]
[null,null,null,null,null,null,null,null,null,null,null,null,null,null,"INCENTIVOS COORDINADOR - FEN-FAC-CIENC EXAC Y NAT - POSGRADOS -ESPECIALIZACION","25620220902050201133. - FEN","FEN"]
[null,null,null,null,null,null,null,null,null,null,null,null,null,null,"INCENTIVOS COORDINACIÓN - FSA - FAC SALUD - POSGRADOS - ESPECIALIZACIÓN","25720220902050201135. - FSA","FSA"]
[null,null,null,null,null,null,null,null,null,null,null,{"$f":"+#REF!+7.5%","v":{"$error":"#REF!"}},"SIN INCENTIVOS ",null,"EXCEDENTES USCO FJU - POSGRADOS","2521101101011525. -FJU","FJU"]
[null,null,null,null,null,null,null,null,null,null,null,0.15,"INCENTIVOS COORDINADOR ",null,"EXCEDENTES USCO FSH - POSGRADOS","2531101101011527' - FSH","FSH"]
[null,null,null,null,null,null,null,null,null,null,null,0,"SIN INCENTIVOS ",null,"EXCEDENTES USCO FED - EXTENSION","2541101101010728. - FED","FED"]
[null,null,null,null,null,null,null,null,null,null,null,null,null,null,"EXCEDENTES USCO FED - POSGRADOS","2541101101011529. - FED","FED"]
[null,null,null,null,null,null,null,null,null,null,null,null,null,null,"EXCEDENTES USCO FIN - EXTENSION","2551101101010730. - FIN","FIN"]
["Vigilada Mineducación\nLa versión vigente y controlada de este documento, solo podrá ser consultada a través del sitio web Institucional  www.usco.edu.co, link Sistema Gestión de Calidad. La copia o impresión diferente a la publicada, será considerada como documento no controlado y su uso indebido no es de responsabilidad de la Universidad Surcolombiana",null,null,null,null,null,null,null,null,null,null,null,null,null,"EXCEDENTES USCO FIN - POSGRADOS ","2551101101011531. - FIN","FIN"]
[null,null,null,null,null,null,null,null,null,null,null,null,null,null,"EXCEDENTES USCO FEN - EXTENSION","2561101101010732.- FEN","FEN"]
[null,null,null,null,null,null,null,null,null,null,null,null,null,null,"EXCEDENTES USCO FEN - POSGRADOS","2561101101011533.- FEN","FEN"]
[null,null,null,null,null,null,null,null,null,null,null,null,null,null,"EXCEDENTES USCO FSA - EXTENSION",".2571101101010734'- FSA","FSA"]
[null,null,null,null,null,null,null,null,null,null,null,null,null,null,"EXCEDENTES USCO FSA - POSGRADOS","2571101101011535. - FSA","FSA"]
[]
[null,null,null,null,null,null,null,null,null,null,null,null,null,null,"EXCEDENTES FACULTAD"]
[null,null,null,null,null,null,null,null,null,null,null,null,null,null,"EXCEDENTES FACULTAD  FEA - EXTENSION","2511101101010822. - FEA","FEA"]
[null,null,null,null,null,null,null,null,null,null,null,null,null,null,"EXCEDENTES FACULTAD  FEA - POSGRADOS","2511101101011623.- FEA","FEA"]
[null,null,null,null,null,null,null,null,null,null,null,null,null,null,"EXCEDENTES FACULTAD  FJU - EXTENSION","2521101101010824. - FJU","FJU"]
[null,null,null,null,null,null,null,null,null,null,null,null,null,null,"EXCEDENTES FACULTAD  FJU - POSGRADOS","2521101101011625. -FJU","FJU"]
[null,null,null,null,null,null,null,null,null,null,null,null,null,null,"EXCEDENTES FACULTAD  FSH - POSGRADOS","2531101101011627' -FSH","FSH"]
[null,null,null,null,null,null,null,null,null,null,null,null,null,null,"EXCEDENTES FACULTAD FED - EXTENSION","2541101101010828. - FED","FED"]
[null,null,null,null,null,null,null,null,null,null,null,null,null,null,"EXCEDENTES FACULTAD  FED - POSGRADOS","2541101101011629. - FED","FED"]
["Vigilada Mineducación\nLa versión vigente y controlada de este documento, solo podrá ser consultada a través del sitio web Institucional  www.usco.edu.co, link Sistema Gestión de Calidad. La copia o impresión diferente a la publicada, será considerada como documento no controlado y su uso indebido no es de responsabilidad de la Universidad Surcolombiana",null,null,null,null,null,null,null,null,null,null,null,null,null,"EXCEDENTES FACULTAD  FIN - EXTENSION","2551101101010830. - FIN","FIN"]
[null,null,null,null,null,null,null,null,null,null,null,null,null,null,"EXCEDENTES FACULTAD  FIN - POSGRADOS","2551101101011631. - FIN","FIN"]
[null,null,null,null,null,null,null,null,null,null,null,null,{"$f":"ROUND(IF(ROUNDUP(I405,0)-I405>0.5,ROUNDUP(I405,0)-0.5,ROUNDUP(I405,0)),0)","v":{"$error":"#REF!"}},null,"EXCEDENTES FACULTAD FEN - EXTENSION","2561101101010832. - FEN","FEN",0.45]
["Vigilada Mineducación\nLa versión vigente y controlada de este documento, solo podrá ser consultada a través del sitio web Institucional  www.usco.edu.co, link Sistema Gestión de Calidad. La copia o impresión diferente a la publicada, será considerada como documento no controlado y su uso indebido no es de responsabilidad de la Universidad Surcolombiana",null,null,null,null,null,null,null,null,null,null,null,{"$f":"ROUND(IF(ROUNDUP(I406,0)-I406>0.5,ROUNDUP(I406,0)-0.5,ROUNDUP(I406,0)),0)","v":{"$error":"#REF!"}},null,"EXCEDENTES FACULTAD FEN - POSGRADOS","2561101101011633. - FEN","FEN"]
[null,"SEDE CENTRAL",null,null,null,null,null,null,null,null,null,null,{"$f":"ROUND(IF(ROUNDUP(I407,0)-I407>0.5,ROUNDUP(I407,0)-0.5,ROUNDUP(I407,0)),0)","v":{"$error":"#REF!"}},null,"EXCEDENTES FACULTAD FSA - EXTENSION",".2571101101010834' - FSA","FSA",0.4]
[null,"ADMINISTRACION CENTRAL  ",null,null,null,null,null,0.45,{"$f":"#REF!*H405","v":{"$error":"#REF!"}},{"$f":"I405+J407","v":{"$error":"#REF!"}},null,null,null,null,"EXCEDENTES FACULTAD FSA - POSGRADOS","2571101101011635. - FSA","FSA",{"$f":"SUM(R402:R404)","v":0.85000000000000009}]
[null,"FACULTAD",null,null,null,null,null,0.4,{"$f":"#REF!*H406","v":{"$error":"#REF!"}},{"$f":"I406+J407","v":{"$error":"#REF!"}}]
[null,"INCENTIVOS COORDINADOR ",null,null,null,null,null,0.15,{"$f":"#REF!*H407","v":{"$error":"#REF!"}},{"$f":"(I407/2)","v":{"$error":"#REF!"}}]
[null,null,null,null,null,null,null,{"$f":"SUM(H405:H407)","v":1},{"$f":"SUM(I405:I407)","v":{"$error":"#REF!"}},{"$f":"J405+J406","v":{"$error":"#REF!"}},null,null,null,null,null,null,null,0.45]
[]
[null,"OTROS CONVENIOS",null,null,null,null,null,null,null,null,null,null,null,null,null,null,null,0.4]
[null,"ADMINISTRACION CENTRAL  ",null,null,null,null,null,0.52500000000000002,{"$f":"#REF!*H411","v":{"$error":"#REF!"}},null,null,null,null,null,null,"La Plata","Pitalito"]
[null,"FACULTAD",null,null,null,null,null,0.45240000000000002,{"$f":"#REF!*H412","v":{"$error":"#REF!"}},null,null,null,null,"Garzón",null,{"$f":"IFERROR(IF(F416>0,F416+F420),0)","v":false},{"$f":"IFERROR(IF(H416>0,H416+H420),0)","v":false}]
[null,"INCENTIVOS COORDINADOR ",null,null,null,null,null,0,null,null,null,null,{"$f":"J416","v":0},{"$f":"IFERROR(IF(D416>0,D416+D420),0)","v":false},null,{"$f":"IFERROR(IF(F417>0,F417+F420),0)","v":false},{"$f":"IFERROR(IF(H417>0,H417+H420),0)","v":false},{"$f":"Q412+P412+N413+K416","v":0},null,{"$f":"IF((R413-INT(R413))<= 0.6,ROUNDDOWN(R413,0),ROUNDUP(R413,0))","v":0},{"$f":"IF((T413-INT(T413))<= 0.6,ROUNDDOWN(T413,0),ROUNDUP(T413,0))","v":0}]
[null,null,null,null,null,null,null,{"$f":"SUM(H411:H413)","v":0.97740000000000005},{"$f":"SUM(I411:I413)","v":{"$error":"#REF!"}},null,null,null,{"$f":"J417","v":0},{"$f":"IFERROR(IF(D417>0,D417+D420),0)","v":false},null,null,null,{"$f":"Q413+P413+N414+K417","v":0},null,{"$f":"IF((R414-INT(R414))<= 0.6,ROUNDDOWN(R414,0),ROUNDUP(R414,0))","v":0},{"$f":"IF((T414-INT(T414))<= 0.6,ROUNDDOWN(T414,0),ROUNDUP(T414,0))","v":0}]
[null,"Neiva",null,"Garzón",null,"La Plata",null,"Pitalito",null,null,"Neiva",null,{"$f":"J418","v":0},null,{"$f":"M417","v":0},{"$f":"P412+P413","v":0},0,0,null,{"$f":"IF((R415-INT(R415))<= 0.6,ROUNDDOWN(R415,0),ROUNDUP(R415,0))","v":0}]
[null,{"$f":"IF($B$8=\"Neiva\",$I$405,0)","v":0},null,{"$f":"IF($B$8=\"Garzón\",$I$405,0)","v":0},null,{"$f":"IF($B$8=\"La Plata\",$I$405,0)","v":0},null,{"$f":"IF($B$8=\"Pitalito\",$I$405,0)","v":0},{"$f":"(B416+D416+F416+H416)","v":0},{"$f":"IF((I416-INT(I416))<= 0.6,ROUNDDOWN(I416,0),ROUNDUP(I416,0))","v":0},{"$f":"IFERROR(IF(B416>0,B416+B420),0)","v":false},null,null,0,{"$f":"IF(M414>J417,M414+I423,M414)","v":0},null,null,0]
[null,{"$f":"IF($B$8=\"Neiva\",$I$406,0)","v":0},null,{"$f":"IF($B$8=\"Garzón\",$I$406,0)","v":0},null,{"$f":"IF($B$8=\"La Plata\",$I$406,0)","v":0},null,{"$f":"IF($B$8=\"Pitalito\",$I$406,0)","v":0},{"$f":"(B417+D417+F417+H417)","v":0},{"$f":"IF((I417-INT(I417))<= 0.6,ROUNDDOWN(I417,0),ROUNDUP(I417,0))","v":0},{"$f":"IFERROR(IF(B417>0,B417+B420),0)","v":false},null,{"$f":"M413","v":0},null,{"$f":"M419","v":0},null,null,{"$f":"R413","v":0}]
[null,{"$f":"IF($B$8=\"Neiva\",$I$407,0)","v":0},null,{"$f":"IF($B$8=\"Garzón\",$I$407,0)","v":0},null,{"$f":"IF($B$8=\"La Plata\",$I$407,0)","v":0},null,{"$f":"IF($B$8=\"Pitalito\",$I$407,0)","v":0},{"$f":"(B418+D418+F418+H418)","v":0},{"$f":"IF((I418-INT(I418))<= 0.6,ROUNDDOWN(I418,0),ROUNDUP(I418,0))","v":0},null,null,{"$f":"IF(M414>K417,J423-I423,M414+1)","v":1},{"$f":"IF(M414>J417,TRUE,FALSE)","v":false},{"$f":"SUM(O415:O417)","v":0},null,null,{"$f":"R414","v":0}]
[null,{"$f":"SUM(B416:B418)","v":0},null,{"$f":"SUM(D416:D418)","v":0},null,null,null,null,{"$f":"B419+D419+F419+H419","v":0},{"$f":"C419+E419+G419+I419","v":0},{"$f":"K416+K417","v":0},null,{"$f":"M415","v":0},null,null,null,null,0]
[null,{"$f":"IFERROR(B418/2,0)","v":0},null,{"$f":"IFERROR(D418/2,0)","v":0},null,{"$f":"IFERROR(F418/2,0)","v":0},null,{"$f":"IFERROR(H418/2,0)","v":0},{"$f":"B420+D420+F420+H420","v":0},null,null,null,{"$f":"SUM(M417:M419)","v":1},null,null,null,null,{"$f":"SUM(R417:R419)","v":0}]
[null,"Otros Convenios",null,null,null,null,null,null,null,null,"Otros Convenios"]
[null,null,null,null,null,null,null,null,{"$f":"SUM(I416:I418)","v":0},{"$f":"SUM(J416:J418)","v":0}]
[null,null,null,null,null,null,null,null,{"$f":"J422-I422","v":0},{"$f":"I423*(-1)","v":0}]
[]
[]
[]
[]
[null,{"$f":"IF($B$8=\"Otros Convenios\",$I$411,\"\")","v":""},null,null,null,null,null,null,null,null,{"$f":"IF($B$8=\"Otros Convenios\",$I$411,\"\")","v":""}]
[null,{"$f":"IF($B$8=\"Otros Convenios\",$I$412,\"\")","v":""},null,null,null,null,null,null,null,null,{"$f":"IF($B$8=\"Otros Convenios\",$I$412,\"\")","v":""}]
[null,{"$f":"IF($B$8=\"Otros Convenios\",$I$413,\"\")","v":""},null,null,null,null,null,null,null,null,{"$f":"IF($B$8=\"Otros Convenios\",$I$413,\"\")","v":""}]
[null,{"$f":"SUM(B428:B430)","v":0},null,null,null,null,null,null,null,null,{"$f":"SUM(K428:K430)","v":0}]
[]
[]
[null,null,null,{"$f":"IF(#REF!>=$D$437,$F$437,$F$438)","v":{"$error":"#REF!"}}]
[null,null,null,{"$f":"IF(B13=B436,IF(#REF!>=$D$437,$F$437,$F$438),IF(#REF!>=$D$440,$F$440,$F$441))","v":{"$error":"#REF!"}}]
[null,"Posgrados"]
[null,1,null,0.2,null,"El proyecto cumple con el excedente para Proyectos de Posgrados del 20% establecido en la Normatividad"]
[null,null,null,null,null,"El proyecto No cumple con el excedente para Proyectos de Posgrados del 20% establecido en la Normatividad"]
[]
[null,"Venta de Servicios",null,0.1,null,"El proyecto cumple con el excedente para Venta de Servicios del 10% establecido en la Normatividad"]
[null,null,null,null,null,"El proyecto No cumple con el excedente para Venta de Servicios del 10% establecido en la Normatividad"]

{"sheet":"PRESUPUESTO CONSOLIDADO","index":1,"n_rows":425,"n_cols":16,"rows_kept":425,"cut":false,"hidden":false,"merged":[[114,1,114,5],[115,1,115,5],[116,1,116,5],[117,1,117,5],[104,1,104,5],[105,1,105,5],[106,1,106,5],[107,1,107,5],[108,1,108,5],[112,1,112,5],[39,1,39,5],[33,1,33,5],[32,1,32,5],[36,1,36,5],[37,1,37,5],[34,1,34,5],[35,1,35,5],[86,1,86,5],[102,1,102,5],[81,1,81,5],[82,1,82,5],[83,1,83,5],[84,1,84,5],[85,1,85,5],[100,1,100,5],[101,1,101,5],[60,1,60,5],[62,1,62,5],[63,1,63,5],[64,1,64,5],[65,1,65,5],[74,1,74,5],[75,1,75,5],[76,1,76,5],[73,1,73,5],[92,1,92,5],[93,1,93,5],[94,1,94,5],[95,1,95,5],[96,1,96,5],[97,1,97,5],[70,1,70,5],[71,1,71,5],[72,1,72,5],[77,1,77,5],[78,1,78,5],[79,1,79,5],[80,1,80,5],[87,1,87,5],[88,1,88,5],[89,1,89,5],[90,1,90,5],[91,1,91,5],[103,1,103,5],[125,1,125,5],[126,1,126,5],[113,1,113,5],[46,1,46,5],[47,1,47,5],[48,1,48,5],[44,1,44,5],[45,1,45,5],[57,1,57,5],[53,1,53,5],[51,1,51,5],[49,1,49,5],[50,1,50,5],[67,1,67,5],[66,1,66,5],[69,1,69,5],[98,1,98,5],[99,1,99,5],[58,1,58,5],[59,1,59,5],[54,1,54,5],[61,1,61,5],[68,1,68,5],[0,0,2,0],[0,1,0,5],[0,6,2,6],[1,1,1,5],[2,1,2,5],[11,0,11,6],[10,3,10,4],[9,1,9,3],[5,0,5,6],[7,1,7,3],[8,0,8,1],[8,3,8,4],[8,5,8,6],[7,4,7,5],[12,1,12,3],[12,5,12,6],[55,1,55,5],[56,1,56,5],[15,0,15,6],[52,1,52,5],[24,1,24,5],[25,1,25,5],[20,1,20,5],[21,1,21,5],[22,1,22,5],[23,1,23,5],[41,1,41,5],[43,1,43,5],[40,1,40,5],[42,1,42,5],[18,1,18,5],[19,1,19,5],[27,0,27,6],[30,1,30,5],[13,1,13,3],[13,5,13,6],[31,1,31,5],[38,1,38,5],[162,0,162,6],[141,4,141,6],[141,0,141,2],[127,0,127,5],[130,1,130,5],[118,1,118,5],[119,1,119,5],[120,1,120,5],[121,1,121,5],[122,1,122,5],[129,1,129,5],[123,1,123,5],[124,0,124,6],[131,1,131,5],[132,1,132,5],[171,1,171,9],[182,1,182,8],[187,1,187,9],[192,1,192,7],[193,1,193,7],[198,1,198,7],[199,1,199,7],[207,1,207,7],[237,1,237,9],[342,1,342,10],[363,1,363,10],[368,1,368,10],[373,1,373,10],[238,1,238,9],[259,1,259,9],[295,1,295,9],[302,1,302,9],[303,1,303,9],[304,1,304,9],[305,1,305,9],[316,1,316,10],[319,5,319,7]]}
[null,"UNIVERSIDAD SURCOLOMBIANA"]
[null,"GESTIÓN FINANCIERA Y DE RECURSOS FÍSICOS"]
[null,{"$f":"'PPTO DETALLADO'!B3:J3","v":"PRESUPUESTO INGRESOS Y EGRESOS DE PROYECTOS DE LA FACULTAD DE SALUD SIN EXCEDENTES FONDOS ESPECIALES "}]
["CODIGO","AP-FIN-FO-45","VERSIÓN",1,"VIGENCIA",2023,"Pagina 1 De 1","1 de 1 "]
[]
[{"$f":"'PPTO DETALLADO'!A6","v":"I. INFORMACION GENERAL DEL PROYECTO"}]
[]
[{"$f":"'PPTO DETALLADO'!A9","v":"Facultad"},null,null,null,{"$f":"'PPTO DETALLADO'!H8","v":"Total Proyectos aprobados por la Facultad en la Vigencia"}]
[{"$f":"'PPTO DETALLADO'!F9","v":"N° Acta de aprobación Consejo Facultad"},null,null,{"$f":"'PPTO DETALLADO'!I9","v":"Fecha Aprobación Acta Consejo Facultad MES/DIA/AÑO"}]
[{"$f":"'PPTO DETALLADO'!A10","v":"Nombre del Proyecto"},null,null,null,{"$f":"'PPTO DETALLADO'!I10","v":"Codigo Proyecto "},null,null,null,null,null,"22SA05"]
[{"$f":"'PPTO DETALLADO'!A13","v":"Tipo de Proyecto"},null,{"$f":"'PPTO DETALLADO'!D13","v":"N° Cuenta  Bancaria"},null,null,{"$f":"'PPTO DETALLADO'!J13","v":"N° Modificion"},null,null,null,null,"L02-FSA-ESP"]
["Tiempo de ejecución "]
[{"$f":"'PPTO DETALLADO'!A16","v":"Fecha de Inicio "},null,null,null,{"$f":"'PPTO DETALLADO'!H16","v":"Fecha Finalización "}]
[{"$f":"'PPTO DETALLADO'!A19:C19","v":"Coordinador Asignado"},null,null,null,{"$f":"'PPTO DETALLADO'!A21","v":"Nombre Ordenador del Gasto "}]
[]
[{"$f":"'PPTO DETALLADO'!A39:K39","v":"II – INGRESOS "},null,null,null,null,null,null,null,null,"2022-12-31"]
[null,null,null,"postgradosclinicos@usco.edu.co"]
[null,null,null,null,null,"TOTAL",null,{"$f":"G18-'PPTO DETALLADO'!K86","v":0}]
["# CLASIFICADOR","DENOMINACION CLASIFICADOR",null,null,null,null,"VALOR",null,null,null,12135281]
[{"$f":"'PPTO DETALLADO'!A43","v":0},{"$f":"'PPTO DETALLADO'!B43","v":0},null,null,null,null,{"$f":"'PPTO DETALLADO'!K42","v":0},null,null,null,3174007354]
[{"$f":"'PPTO DETALLADO'!A48","v":0},{"$f":"'PPTO DETALLADO'!D48","v":0},null,null,null,null,{"$f":"'PPTO DETALLADO'!$K$46","v":0},null,null,null,"048 del 23 de enero de 2020"]
[{"$f":"'PPTO DETALLADO'!A62","v":0},{"$f":"'PPTO DETALLADO'!B62:G62","v":0},null,null,null,null,{"$f":"'PPTO DETALLADO'!K60","v":0}]
[]
[{"$f":"'PPTO DETALLADO'!A70","v":0},{"$f":"'PPTO DETALLADO'!B70:H70","v":0},null,null,null,null,{"$f":"'PPTO DETALLADO'!K69","v":0}]
[{"$f":"'PPTO DETALLADO'!A75","v":0},{"$f":"'PPTO DETALLADO'!B75","v":0},null,null,null,null,{"$f":"'PPTO DETALLADO'!K75","v":0}]
[{"$f":"'PPTO DETALLADO'!A83","v":0},{"$f":"'PPTO DETALLADO'!B83","v":0},null,null,null,null,{"$f":"'PPTO DETALLADO'!K81","v":0}]
[]
["II - EGRESOS"]
[]
[null,null,null,null,null,"TOTAL",{"$f":"G128+G131+G130+G132+G133","v":0}]
["# CLASIFICADOR","DENOMINACION CLASIFICADOR",null,null,null,null,"VALOR"]
[{"$f":"'PPTO DETALLADO'!A91","v":0},{"$f":"'PPTO DETALLADO'!B91:H91","v":0},null,null,null,null,{"$f":"'PPTO DETALLADO'!K90","v":0}]
[{"$f":"'PPTO DETALLADO'!A108","v":0},{"$f":"'PPTO DETALLADO'!B108:H108","v":0},null,null,null,null,{"$f":"'PPTO DETALLADO'!K107","v":0}]
[{"$f":"'PPTO DETALLADO'!A125","v":0},{"$f":"'PPTO DETALLADO'!B125:H125","v":0},null,null,null,null,{"$f":"'PPTO DETALLADO'!K123","v":0}]
[{"$f":"'PPTO DETALLADO'!A136","v":0},{"$f":"'PPTO DETALLADO'!B136:D136","v":0},null,null,null,null,{"$f":"'PPTO DETALLADO'!K136","v":0}]
[{"$f":"'PPTO DETALLADO'!A137","v":0},{"$f":"'PPTO DETALLADO'!B137:D137","v":0},null,null,null,null,{"$f":"'PPTO DETALLADO'!K137","v":0}]
[{"$f":"'PPTO DETALLADO'!A138","v":0},{"$f":"'PPTO DETALLADO'!B138:D138","v":0},null,null,null,null,{"$f":"'PPTO DETALLADO'!K138","v":0}]
[{"$f":"'PPTO DETALLADO'!A139","v":0},{"$f":"'PPTO DETALLADO'!B139:D139","v":0},null,null,null,null,{"$f":"'PPTO DETALLADO'!K139","v":0}]
[{"$f":"'PPTO DETALLADO'!A140","v":0},{"$f":"'PPTO DETALLADO'!B140:D140","v":0},null,null,null,null,{"$f":"'PPTO DETALLADO'!K140","v":0}]
[{"$f":"'PPTO DETALLADO'!A141","v":0},{"$f":"'PPTO DETALLADO'!B141:D141","v":0},null,null,null,null,{"$f":"'PPTO DETALLADO'!K141","v":0}]
[{"$f":"'PPTO DETALLADO'!A142","v":0},{"$f":"'PPTO DETALLADO'!B142:D142","v":0},null,null,null,null,{"$f":"'PPTO DETALLADO'!K142","v":0}]
[{"$f":"'PPTO DETALLADO'!A143","v":0},{"$f":"'PPTO DETALLADO'!B143:D143","v":0},null,null,null,null,{"$f":"'PPTO DETALLADO'!K143","v":0}]
[{"$f":"'PPTO DETALLADO'!A144","v":0},{"$f":"'PPTO DETALLADO'!B144:D144","v":0},null,null,null,null,{"$f":"'PPTO DETALLADO'!K144","v":0},null,80,321100]
[{"$f":"'PPTO DETALLADO'!A145","v":0},{"$f":"'PPTO DETALLADO'!B145:D145","v":0},null,null,null,null,{"$f":"'PPTO DETALLADO'!K145","v":0}]
[{"$f":"'PPTO DETALLADO'!A146","v":0},{"$f":"'PPTO DETALLADO'!B146:D146","v":0},null,null,null,null,{"$f":"'PPTO DETALLADO'!K146","v":0}]
[{"$f":"'PPTO DETALLADO'!A147","v":0},{"$f":"'PPTO DETALLADO'!B147:D147","v":0},null,null,null,null,{"$f":"'PPTO DETALLADO'!K147","v":0},null,null,null,{"$f":"+J50-J52-J53","v":0}]
[{"$f":"'PPTO DETALLADO'!A148","v":0},{"$f":"'PPTO DETALLADO'!B148:D148","v":0},null,null,null,null,{"$f":"'PPTO DETALLADO'!K148","v":0}]
[{"$f":"'PPTO DETALLADO'!A149","v":0},{"$f":"'PPTO DETALLADO'!B149:D149","v":0},null,null,null,null,{"$f":"'PPTO DETALLADO'!K149","v":0}]
[{"$f":"'PPTO DETALLADO'!A150","v":0},{"$f":"'PPTO DETALLADO'!B150:D150","v":0},null,null,null,null,{"$f":"'PPTO DETALLADO'!K150","v":0}]
[{"$f":"'PPTO DETALLADO'!A151","v":0},{"$f":"'PPTO DETALLADO'!B151:D151","v":0},null,null,null,null,{"$f":"'PPTO DETALLADO'!K151","v":0},24,null,{"$f":"$D$50*$H$50","v":0}]
[{"$f":"'PPTO DETALLADO'!A152","v":0},{"$f":"'PPTO DETALLADO'!B152:D152","v":0},null,null,null,null,{"$f":"'PPTO DETALLADO'!K152","v":0}]
[{"$f":"'PPTO DETALLADO'!A153","v":0},{"$f":"'PPTO DETALLADO'!B153:D153","v":0},null,null,null,null,{"$f":"'PPTO DETALLADO'!K153","v":0},4]
[{"$f":"'PPTO DETALLADO'!A154","v":0},{"$f":"'PPTO DETALLADO'!B154:D154","v":0},null,null,null,null,{"$f":"'PPTO DETALLADO'!K154","v":0},18,null,{"$f":"$D$53*$H$53","v":0}]
[{"$f":"'PPTO DETALLADO'!A155","v":0},{"$f":"'PPTO DETALLADO'!B155:D155","v":0},null,null,null,null,{"$f":"'PPTO DETALLADO'!K155","v":0}]
[{"$f":"'PPTO DETALLADO'!A160","v":0},{"$f":"'PPTO DETALLADO'!B160:D160","v":0},null,null,null,null,{"$f":"'PPTO DETALLADO'!K160","v":0}]
[{"$f":"'PPTO DETALLADO'!A161","v":0},{"$f":"'PPTO DETALLADO'!B161:D161","v":0},null,null,null,null,{"$f":"'PPTO DETALLADO'!K161","v":0}]
[{"$f":"'PPTO DETALLADO'!A162","v":0},{"$f":"'PPTO DETALLADO'!B162:D162","v":0},null,null,null,null,{"$f":"'PPTO DETALLADO'!K162","v":0}]
["Observaciones: Acto mediante el cual el aspirante admitido adquiere la calidad de estudiante.",{"$f":"'PPTO DETALLADO'!B163:D163","v":0},null,null,null,null,{"$f":"'PPTO DETALLADO'!K163","v":0}]
[{"$f":"'PPTO DETALLADO'!A164","v":0},{"$f":"'PPTO DETALLADO'!B164:D164","v":0},null,null,null,null,{"$f":"'PPTO DETALLADO'!K164","v":0}]
[{"$f":"'PPTO DETALLADO'!A165","v":0},{"$f":"'PPTO DETALLADO'!B165:D165","v":0},null,null,null,null,{"$f":"'PPTO DETALLADO'!K165","v":0}]
[{"$f":"'PPTO DETALLADO'!A166","v":0},{"$f":"'PPTO DETALLADO'!B166:D166","v":0},null,null,null,null,{"$f":"'PPTO DETALLADO'!K166","v":0}]
[11022020120201,"DERECHOS DE GRADO POSGRADOS",null,null,null,null,{"$f":"'PPTO DETALLADO'!K167","v":0}]
[{"$f":"'PPTO DETALLADO'!A168","v":0},{"$f":"'PPTO DETALLADO'!B168:D168","v":0},null,null,null,null,{"$f":"'PPTO DETALLADO'!K168","v":0}]
[{"$f":"'PPTO DETALLADO'!A174","v":0},{"$f":"'PPTO DETALLADO'!B174:D174","v":0},null,null,null,null,{"$f":"'PPTO DETALLADO'!K172","v":0},4,963038]
[]
[{"$f":"'PPTO DETALLADO'!A180","v":0},{"$f":"'PPTO DETALLADO'!B180:H180","v":0},null,null,null,null,{"$f":"'PPTO DETALLADO'!K180","v":0}]
[{"$f":"'PPTO DETALLADO'!A185","v":0},{"$f":"'PPTO DETALLADO'!B185:I185","v":0},null,null,null,null,{"$f":"'PPTO DETALLADO'!K185","v":0}]
[{"$f":"'PPTO DETALLADO'!A190","v":0},{"$f":"'PPTO DETALLADO'!B190:J190","v":0},null,null,null,null,{"$f":"'PPTO DETALLADO'!K190","v":0}]
[]
[{"$f":"'PPTO DETALLADO'!A201","v":0},{"$f":"'PPTO DETALLADO'!B201:H201","v":0},null,null,null,null,{"$f":"'PPTO DETALLADO'!K201","v":0}]
[{"$f":"'PPTO DETALLADO'!A202","v":0},{"$f":"'PPTO DETALLADO'!B202:H202","v":0},null,null,null,null,{"$f":"'PPTO DETALLADO'!K202","v":0}]
[{"$f":"'PPTO DETALLADO'!A203","v":0},{"$f":"'PPTO DETALLADO'!B203:H203","v":0},null,null,null,null,{"$f":"'PPTO DETALLADO'!K203","v":0}]
[{"$f":"'PPTO DETALLADO'!A204","v":0},{"$f":"'PPTO DETALLADO'!B204:H204","v":0},null,null,null,null,{"$f":"'PPTO DETALLADO'!K204","v":0}]
[{"$f":"'PPTO DETALLADO'!A210","v":0},{"$f":"'PPTO DETALLADO'!B210:H210","v":0},null,null,null,null,{"$f":"'PPTO DETALLADO'!K210","v":0}]
[{"$f":"'PPTO DETALLADO'!A211","v":0},{"$f":"'PPTO DETALLADO'!B211:H211","v":0},null,null,null,null,{"$f":"'PPTO DETALLADO'!K211","v":0}]
[{"$f":"'PPTO DETALLADO'!A212","v":0},{"$f":"'PPTO DETALLADO'!B212:H212","v":0},null,null,null,null,{"$f":"'PPTO DETALLADO'!K212","v":0}]
[{"$f":"'PPTO DETALLADO'!A213","v":0},{"$f":"'PPTO DETALLADO'!B213:H213","v":0},null,null,null,null,{"$f":"'PPTO DETALLADO'!K213","v":0}]
[{"$f":"'PPTO DETALLADO'!A218","v":0},{"$f":"'PPTO DETALLADO'!B218:I218","v":0},null,null,null,null,{"$f":"'PPTO DETALLADO'!K216","v":0}]
[{"$f":"'PPTO DETALLADO'!A223","v":0},{"$f":"'PPTO DETALLADO'!B223:H223","v":0},null,null,null,null,{"$f":"'PPTO DETALLADO'!K223","v":0}]
[{"$f":"'PPTO DETALLADO'!A224","v":0},{"$f":"'PPTO DETALLADO'!B224:H224","v":0},null,null,null,null,{"$f":"'PPTO DETALLADO'!K224","v":0}]
[{"$f":"'PPTO DETALLADO'!A225","v":0},{"$f":"'PPTO DETALLADO'!B225:H225","v":0},null,null,null,null,{"$f":"'PPTO DETALLADO'!K225","v":0}]
[{"$f":"'PPTO DETALLADO'!A226","v":0},{"$f":"'PPTO DETALLADO'!B226:H226","v":0},null,null,null,null,{"$f":"'PPTO DETALLADO'!K226","v":0}]
[{"$f":"'PPTO DETALLADO'!A227","v":0},{"$f":"'PPTO DETALLADO'!B227:H227","v":0},null,null,null,null,{"$f":"'PPTO DETALLADO'!K227","v":0}]
[{"$f":"'PPTO DETALLADO'!A228","v":0},{"$f":"'PPTO DETALLADO'!B228:H228","v":0},null,null,null,null,{"$f":"'PPTO DETALLADO'!K228","v":0}]
[{"$f":"'PPTO DETALLADO'!A229","v":0},{"$f":"'PPTO DETALLADO'!B229:H229","v":0},null,null,null,null,{"$f":"'PPTO DETALLADO'!K229","v":0}]
[]
[{"$f":"'PPTO DETALLADO'!A195","v":0},{"$f":"'PPTO DETALLADO'!B195:H195","v":0},null,null,null,null,{"$f":"'PPTO DETALLADO'!K193","v":0}]
[{"$f":"'PPTO DETALLADO'!A240","v":0},{"$f":"'PPTO DETALLADO'!B240:J240","v":0},null,null,null,null,{"$f":"'PPTO DETALLADO'!K240","v":0}]
[{"$f":"'PPTO DETALLADO'!A241","v":0},{"$f":"'PPTO DETALLADO'!B241:J241","v":0},null,null,null,null,{"$f":"'PPTO DETALLADO'!K241","v":0}]
[]
[]
[]
[{"$f":"'PPTO DETALLADO'!A262","v":0},{"$f":"'PPTO DETALLADO'!B262:J262","v":0},null,null,null,null,{"$f":"'PPTO DETALLADO'!K260","v":0},null,51500,74]
[{"$f":"'PPTO DETALLADO'!A250","v":0},{"$f":"'PPTO DETALLADO'!B250:J250","v":0},null,null,null,null,{"$f":"'PPTO DETALLADO'!K250","v":0},null,51500,80]
[{"$f":"'PPTO DETALLADO'!A255","v":0},{"$f":"'PPTO DETALLADO'!B255:J255","v":0},null,null,null,null,{"$f":"'PPTO DETALLADO'!K255","v":0}]
[{"$f":"'PPTO DETALLADO'!A256","v":0},{"$f":"'PPTO DETALLADO'!B256:J256","v":0},null,null,null,null,{"$f":"'PPTO DETALLADO'!K256","v":0}]
[{"$f":"'PPTO DETALLADO'!A257","v":0},{"$f":"'PPTO DETALLADO'!B257:J257","v":0},null,null,null,null,{"$f":"'PPTO DETALLADO'!K257","v":0}]
[]
[{"$f":"'PPTO DETALLADO'!A263","v":0},{"$f":"'PPTO DETALLADO'!B263:J263","v":0},null,null,null,null,{"$f":"'PPTO DETALLADO'!K263","v":0}]
[{"$f":"'PPTO DETALLADO'!A264","v":0},{"$f":"'PPTO DETALLADO'!B264:J264","v":0},null,null,null,null,{"$f":"'PPTO DETALLADO'!K264","v":0}]
[{"$f":"'PPTO DETALLADO'!A269","v":0},{"$f":"'PPTO DETALLADO'!B269:J269","v":0},null,null,null,null,{"$f":"'PPTO DETALLADO'!K269","v":0}]
[{"$f":"'PPTO DETALLADO'!A270","v":0},{"$f":"'PPTO DETALLADO'!B270:J270","v":0},null,null,null,null,{"$f":"'PPTO DETALLADO'!K270","v":0}]
[{"$f":"'PPTO DETALLADO'!A271","v":0},{"$f":"'PPTO DETALLADO'!B271:J271","v":0},null,null,null,null,{"$f":"'PPTO DETALLADO'!K271","v":0}]
[{"$f":"'PPTO DETALLADO'!A276","v":0},{"$f":"'PPTO DETALLADO'!B276:J276","v":0},null,null,null,null,{"$f":"'PPTO DETALLADO'!K276","v":0}]
[{"$f":"'PPTO DETALLADO'!A277","v":0},{"$f":"'PPTO DETALLADO'!B277:J277","v":0},null,null,null,null,{"$f":"'PPTO DETALLADO'!K277","v":0}]
[{"$f":"'PPTO DETALLADO'!A278","v":0},{"$f":"'PPTO DETALLADO'!B278:J278","v":0},null,null,null,null,{"$f":"'PPTO DETALLADO'!K278","v":0}]
[{"$f":"'PPTO DETALLADO'!A283","v":0},{"$f":"'PPTO DETALLADO'!B283:J283","v":0},null,null,null,null,{"$f":"'PPTO DETALLADO'!K283","v":0}]
[2.5720220902050202E+19,{"$f":"'PPTO DETALLADO'!B284:J284","v":0},null,null,null,null,{"$f":"'PPTO DETALLADO'!K284","v":0}]
[{"$f":"'PPTO DETALLADO'!A285","v":0},{"$f":"'PPTO DETALLADO'!B285:J285","v":0},null,null,null,null,{"$f":"'PPTO DETALLADO'!K285","v":0}]
[{"$f":"'PPTO DETALLADO'!A286","v":0},{"$f":"'PPTO DETALLADO'!B291:J291","v":0},null,null,null,null,{"$f":"'PPTO DETALLADO'!K286","v":0},null,39114,60]
[{"$f":"'PPTO DETALLADO'!A291","v":0},{"$f":"'PPTO DETALLADO'!B292:J292","v":0},null,null,null,null,{"$f":"'PPTO DETALLADO'!K291","v":0},null,39114,60]
[{"$f":"'PPTO DETALLADO'!A292","v":0},"TALLER DE FORMACION DOCENTE",null,null,null,null,{"$f":"'PPTO DETALLADO'!K292","v":0},null,39114,60]
[{"$f":"'PPTO DETALLADO'!A293","v":0},{"$f":"'PPTO DETALLADO'!B293:J293","v":0},null,null,null,null,{"$f":"'PPTO DETALLADO'!K293","v":0}]
[{"$f":"'PPTO DETALLADO'!A298","v":0},{"$f":"'PPTO DETALLADO'!B298:J298","v":0},null,null,null,null,{"$f":"'PPTO DETALLADO'!K298","v":0}]
[{"$f":"'PPTO DETALLADO'!A299","v":0},{"$f":"'PPTO DETALLADO'!B299:J299","v":0},null,null,null,null,{"$f":"'PPTO DETALLADO'!K299","v":0}]
[{"$f":"'PPTO DETALLADO'!A300","v":0},{"$f":"'PPTO DETALLADO'!B300:J300","v":0},null,null,null,null,{"$f":"'PPTO DETALLADO'!K300","v":0}]
[{"$f":"'PPTO DETALLADO'!A305","v":0},{"$f":"'PPTO DETALLADO'!B305:J305","v":0},null,null,null,null,{"$f":"'PPTO DETALLADO'!K305","v":0}]
[{"$f":"'PPTO DETALLADO'!A306","v":0},{"$f":"'PPTO DETALLADO'!B306:J306","v":0},null,null,null,null,{"$f":"'PPTO DETALLADO'!K306","v":0}]
[{"$f":"'PPTO DETALLADO'!A307","v":0},{"$f":"'PPTO DETALLADO'!B307:J307","v":0},null,null,null,null,{"$f":"'PPTO DETALLADO'!K307","v":0}]
[{"$f":"'PPTO DETALLADO'!A308","v":0},{"$f":"'PPTO DETALLADO'!B308:J308","v":0},null,null,null,null,{"$f":"'PPTO DETALLADO'!K308","v":0}]
[{"$f":"'PPTO DETALLADO'!A314","v":0},{"$f":"'PPTO DETALLADO'!B314:J314","v":0},null,null,null,null,{"$f":"'PPTO DETALLADO'!K314","v":0}]
[{"$f":"'PPTO DETALLADO'!A319","v":0},{"$f":"'PPTO DETALLADO'!B319:K319","v":0},null,null,null,null,{"$f":"'PPTO DETALLADO'!K317","v":0}]
[{"$f":"'PPTO DETALLADO'!A332","v":0},{"$f":"'PPTO DETALLADO'!B332:K332","v":0},null,null,null,null,{"$f":"'PPTO DETALLADO'!K330","v":0}]
[{"$f":"'PPTO DETALLADO'!A359","v":0},{"$f":"'PPTO DETALLADO'!B359:K359","v":0},null,null,null,null,{"$f":"'PPTO DETALLADO'!K357","v":0}]
["GASTOS ADMINISTRATIVOS Y OPERATIVOS"]
[null,null,null,null,null,null,{"$f":"'PPTO DETALLADO'!K347","v":0}]
[null,null,null,null,null,null,{"$f":"'PPTO DETALLADO'!K352","v":0}]
["Sub-total 1. Egresos ",null,null,null,null,null,{"$f":"SUM(G32:G124)+G126+G127","v":0},null,150,51500]
[]
[{"$f":"'PPTO DETALLADO'!A345","v":0},{"$f":"'PPTO DETALLADO'!B345:K345","v":0},null,null,null,null,{"$f":"'PPTO DETALLADO'!K343","v":0}]
[{"$f":"'PPTO DETALLADO'!A366","v":0},{"$f":"'PPTO DETALLADO'!B366:J366","v":0},null,null,null,null,{"$f":"'PPTO DETALLADO'!K364","v":0}]
[{"$f":"'PPTO DETALLADO'!A371","v":0},{"$f":"'PPTO DETALLADO'!B371:K371","v":0},null,null,null,null,{"$f":"'PPTO DETALLADO'!K369","v":0}]
[{"$f":"'PPTO DETALLADO'!A376","v":0},{"$f":"'PPTO DETALLADO'!B376:K376","v":0},null,null,null,null,{"$f":"'PPTO DETALLADO'!K374","v":0}]
[]
[]
[]
[]
[]
[]
[]
[]
["FIRMA DECANO (A)",null,null,null,"FIRMA COORDINADOR (A)"]
[]
[]
[]
[]
[]
[]
[]
[]
[]
[]
[]
[]
[]
[]
[]
[]
[]
[]
[]
[]
[]
[]
[]
[]
[]
[]
[]
[]
[]
["257202209030135","SERVICIOS DE SALUD HUMANA - FSA - FAC SALUD - POSGRADOS","SERVICIOS DE SALUD HUMANA - FSA - FAC SALUD - POSGRADOS","SERVICIOS DE SALUD HUMANA - FSA - FAC SALUD - POSGRADOS","SERVICIOS DE SALUD HUMANA - FSA - FAC SALUD - POSGRADOS","SERVICIOS DE SALUD HUMANA - FSA - FAC SALUD - POSGRADOS","SERVICIOS DE SALUD HUMANA - FSA - FAC SALUD - POSGRADOS","SERVICIOS DE SALUD HUMANA - FSA - FAC SALUD - POSGRADOS","SERVICIOS DE SALUD HUMANA - FSA - FAC SALUD - POSGRADOS","SERVICIOS DE SALUD HUMANA - FSA - FAC SALUD - POSGRADOS",8000000]
[]
[]
[]
[]
[]
[]
[]
[]
[]
[]
["25720220701030335","SERVICIOS DE SEGUROS SOCIALES DE SALUD Y RIESGOS LABORALES  - FSA - FAC SALUD - POSGRADOS","SERVICIOS DE SEGUROS SOCIALES DE SALUD Y RIESGOS LABORALES  - FSA - FAC SALUD - POSGRADOS","SERVICIOS DE SEGUROS SOCIALES DE SALUD Y RIESGOS LABORALES  - FSA - FAC SALUD - POSGRADOS","SERVICIOS DE SEGUROS SOCIALES DE SALUD Y RIESGOS LABORALES  - FSA - FAC SALUD - POSGRADOS","SERVICIOS DE SEGUROS SOCIALES DE SALUD Y RIESGOS LABORALES  - FSA - FAC SALUD - POSGRADOS","SERVICIOS DE SEGUROS SOCIALES DE SALUD Y RIESGOS LABORALES  - FSA - FAC SALUD - POSGRADOS","SERVICIOS DE SEGUROS SOCIALES DE SALUD Y RIESGOS LABORALES  - FSA - FAC SALUD - POSGRADOS","SERVICIOS DE SEGUROS SOCIALES DE SALUD Y RIESGOS LABORALES  - FSA - FAC SALUD - POSGRADOS",12,17819200]
[]
[]
[]
[]
["257202209020935","OTROS TIPOS DE EDUCACIÓN Y SERVICIOS DE APOYO EDUCATIVO - FSA - FAC SALUD - POSGRADOS","OTROS TIPOS DE EDUCACIÓN Y SERVICIOS DE APOYO EDUCATIVO - FSA - FAC SALUD - POSGRADOS","OTROS TIPOS DE EDUCACIÓN Y SERVICIOS DE APOYO EDUCATIVO - FSA - FAC SALUD - POSGRADOS","OTROS TIPOS DE EDUCACIÓN Y SERVICIOS DE APOYO EDUCATIVO - FSA - FAC SALUD - POSGRADOS","OTROS TIPOS DE EDUCACIÓN Y SERVICIOS DE APOYO EDUCATIVO - FSA - FAC SALUD - POSGRADOS","OTROS TIPOS DE EDUCACIÓN Y SERVICIOS DE APOYO EDUCATIVO - FSA - FAC SALUD - POSGRADOS","OTROS TIPOS DE EDUCACIÓN Y SERVICIOS DE APOYO EDUCATIVO - FSA - FAC SALUD - POSGRADOS","OTROS TIPOS DE EDUCACIÓN Y SERVICIOS DE APOYO EDUCATIVO - FSA - FAC SALUD - POSGRADOS","OTROS TIPOS DE EDUCACIÓN Y SERVICIOS DE APOYO EDUCATIVO - FSA - FAC SALUD - POSGRADOS",11000000]
[]
[]
[null,null,null,null,null,null,null,null,null,null,{"$f":"+K193+K194","v":{"$error":"#VALUE!"}}]
[]
["2572022100135","VIÁTICOS DE LOS FUNCIONARIOS EN COMISIÓN - FSA - FAC SALUD - POSGRADOS","VIÁTICOS DE LOS FUNCIONARIOS EN COMISIÓN - FSA - FAC SALUD - POSGRADOS","VIÁTICOS DE LOS FUNCIONARIOS EN COMISIÓN - FSA - FAC SALUD - POSGRADOS","VIÁTICOS DE LOS FUNCIONARIOS EN COMISIÓN - FSA - FAC SALUD - POSGRADOS","VIÁTICOS DE LOS FUNCIONARIOS EN COMISIÓN - FSA - FAC SALUD - POSGRADOS","VIÁTICOS DE LOS FUNCIONARIOS EN COMISIÓN - FSA - FAC SALUD - POSGRADOS","VIÁTICOS DE LOS FUNCIONARIOS EN COMISIÓN - FSA - FAC SALUD - POSGRADOS",185093,5,"+FC[-2]*FC[-1]"]
["2572022100135","VIÁTICOS DE LOS FUNCIONARIOS EN COMISIÓN - FSA - FAC SALUD - POSGRADOS","VIÁTICOS DE LOS FUNCIONARIOS EN COMISIÓN - FSA - FAC SALUD - POSGRADOS","VIÁTICOS DE LOS FUNCIONARIOS EN COMISIÓN - FSA - FAC SALUD - POSGRADOS","VIÁTICOS DE LOS FUNCIONARIOS EN COMISIÓN - FSA - FAC SALUD - POSGRADOS","VIÁTICOS DE LOS FUNCIONARIOS EN COMISIÓN - FSA - FAC SALUD - POSGRADOS","VIÁTICOS DE LOS FUNCIONARIOS EN COMISIÓN - FSA - FAC SALUD - POSGRADOS","VIÁTICOS DE LOS FUNCIONARIOS EN COMISIÓN - FSA - FAC SALUD - POSGRADOS",630000,7,"+FC[-2]*FC[-1]"]
[]
[]
[]
[]
["257202206030135","SERVICIOS DE ALOJAMIENTO PARA ESTANCIAS CORTAS - FSA - FAC SALUD - POSGRADOS","SERVICIOS DE ALOJAMIENTO PARA ESTANCIAS CORTAS - FSA - FAC SALUD - POSGRADOS","SERVICIOS DE ALOJAMIENTO PARA ESTANCIAS CORTAS - FSA - FAC SALUD - POSGRADOS","SERVICIOS DE ALOJAMIENTO PARA ESTANCIAS CORTAS - FSA - FAC SALUD - POSGRADOS","SERVICIOS DE ALOJAMIENTO PARA ESTANCIAS CORTAS - FSA - FAC SALUD - POSGRADOS","SERVICIOS DE ALOJAMIENTO PARA ESTANCIAS CORTAS - FSA - FAC SALUD - POSGRADOS","SERVICIOS DE ALOJAMIENTO PARA ESTANCIAS CORTAS - FSA - FAC SALUD - POSGRADOS",260000,11,"+FC[-2]*FC[-1]"]
["257202206030335","SERVICIOS DE SUMINISTRO DE COMIDAS - FSA - FAC SALUD - POSGRADOS","SERVICIOS DE SUMINISTRO DE COMIDAS - FSA - FAC SALUD - POSGRADOS","SERVICIOS DE SUMINISTRO DE COMIDAS - FSA - FAC SALUD - POSGRADOS","SERVICIOS DE SUMINISTRO DE COMIDAS - FSA - FAC SALUD - POSGRADOS","SERVICIOS DE SUMINISTRO DE COMIDAS - FSA - FAC SALUD - POSGRADOS","SERVICIOS DE SUMINISTRO DE COMIDAS - FSA - FAC SALUD - POSGRADOS","SERVICIOS DE SUMINISTRO DE COMIDAS - FSA - FAC SALUD - POSGRADOS",4880000,1,"+FC[-2]*FC[-1]"]
[]
[]
[]
[]
[]
[]
[]
["2572022060435","SERVICIOS DE TRANSPORTE DE PASAJEROS - FSA - FAC SALUD - POSGRADOS","SERVICIOS DE TRANSPORTE DE PASAJEROS - FSA - FAC SALUD - POSGRADOS","SERVICIOS DE TRANSPORTE DE PASAJEROS - FSA - FAC SALUD - POSGRADOS","SERVICIOS DE TRANSPORTE DE PASAJEROS - FSA - FAC SALUD - POSGRADOS","SERVICIOS DE TRANSPORTE DE PASAJEROS - FSA - FAC SALUD - POSGRADOS","SERVICIOS DE TRANSPORTE DE PASAJEROS - FSA - FAC SALUD - POSGRADOS","SERVICIOS DE TRANSPORTE DE PASAJEROS - FSA - FAC SALUD - POSGRADOS",10000000,1]
[]
[]
[]
[]
[]
[]
[]
[]
[]
[]
[]
[]
[]
[]
[]
[]
[]
[]
[]
[]
[]
[]
[]
[]
[]
[]
[]
[]
[]
[257202103020135,"PASTA DE PAPEL, PAPEL Y CARTÓN - FSA - FAC SALUD - POSGRADOS",null,null,null,null,null,null,null,null,400000]
[257202103050135,"PINTURAS Y BARNICES Y PRODUCTOS RELACIONADOS; COLORES PARA LA PINTURA ARTÍSTICA; TINTAS - FSA - FAC SALUD - POSGRADOS",null,null,null,null,null,null,null,null,1100000]
[]
[]
[]
[]
[]
[]
[]
[]
[]
[]
[]
[]
[]
[]
[]
[]
[]
[]
[]
[]
["257202208030635","SERVICIOS DE PUBLICIDAD Y EL SUMINISTRO DE ESPACIO O TIEMPO PUBLICITARIOS - FSA - FAC SALUD - POSGRADOS","SERVICIOS DE PUBLICIDAD Y EL SUMINISTRO DE ESPACIO O TIEMPO PUBLICITARIOS - FSA - FAC SALUD - POSGRADOS","SERVICIOS DE PUBLICIDAD Y EL SUMINISTRO DE ESPACIO O TIEMPO PUBLICITARIOS - FSA - FAC SALUD - POSGRADOS","SERVICIOS DE PUBLICIDAD Y EL SUMINISTRO DE ESPACIO O TIEMPO PUBLICITARIOS - FSA - FAC SALUD - POSGRADOS","SERVICIOS DE PUBLICIDAD Y EL SUMINISTRO DE ESPACIO O TIEMPO PUBLICITARIOS - FSA - FAC SALUD - POSGRADOS","SERVICIOS DE PUBLICIDAD Y EL SUMINISTRO DE ESPACIO O TIEMPO PUBLICITARIOS - FSA - FAC SALUD - POSGRADOS","SERVICIOS DE PUBLICIDAD Y EL SUMINISTRO DE ESPACIO O TIEMPO PUBLICITARIOS - FSA - FAC SALUD - POSGRADOS","SERVICIOS DE PUBLICIDAD Y EL SUMINISTRO DE ESPACIO O TIEMPO PUBLICITARIOS - FSA - FAC SALUD - POSGRADOS","SERVICIOS DE PUBLICIDAD Y EL SUMINISTRO DE ESPACIO O TIEMPO PUBLICITARIOS - FSA - FAC SALUD - POSGRADOS",2500000]
[]
[]
[]
[]
[]
[]
[]
[]
[]
[]
[]
[]
[]
[]
[]
[]
[]
[]
[]
[]
[]
[]
[]
[]
[]
[]
[]
[]
[]
[]
[]
[]
[]
[]
[]
["257202103020235",{"$f":"'[1]FONDOS ESPECIALES'!$O$13972","v":"LIBROS IMPRESOS  - FSA - FAC SALUD - POSGRADOS"},null,null,null,null,null,null,null,null,1500000]
[]
[]
[]
[]
[null,null,null,null,null,null,null,null,null,null,{"$f":"+K303+K304+K305+K306","v":24000000}]
[]
["25720110308010135","ASIENTOS - FSA - FAC SALUD - POSGRADOS","ASIENTOS - FSA - FAC SALUD - POSGRADOS","ASIENTOS - FSA - FAC SALUD - POSGRADOS","ASIENTOS - FSA - FAC SALUD - POSGRADOS","ASIENTOS - FSA - FAC SALUD - POSGRADOS","ASIENTOS - FSA - FAC SALUD - POSGRADOS","ASIENTOS - FSA - FAC SALUD - POSGRADOS","ASIENTOS - FSA - FAC SALUD - POSGRADOS","ASIENTOS - FSA - FAC SALUD - POSGRADOS",2000000]
["25720110308010235","MUEBLES, DEL TIPO UTILIZADO EN OFICINAS - FSA - FAC SALUD - POSGRADOS","MUEBLES, DEL TIPO UTILIZADO EN OFICINAS - FSA - FAC SALUD - POSGRADOS","MUEBLES, DEL TIPO UTILIZADO EN OFICINAS - FSA - FAC SALUD - POSGRADOS","MUEBLES, DEL TIPO UTILIZADO EN OFICINAS - FSA - FAC SALUD - POSGRADOS","MUEBLES, DEL TIPO UTILIZADO EN OFICINAS - FSA - FAC SALUD - POSGRADOS","MUEBLES, DEL TIPO UTILIZADO EN OFICINAS - FSA - FAC SALUD - POSGRADOS","MUEBLES, DEL TIPO UTILIZADO EN OFICINAS - FSA - FAC SALUD - POSGRADOS","MUEBLES, DEL TIPO UTILIZADO EN OFICINAS - FSA - FAC SALUD - POSGRADOS","MUEBLES, DEL TIPO UTILIZADO EN OFICINAS - FSA - FAC SALUD - POSGRADOS",2000000]
["257201104030935","OTRAS MÁQUINAS PARA USOS GENERALES Y SUS PARTES Y PIEZAS - FSA - FAC SALUD - POSGRADOS","OTRAS MÁQUINAS PARA USOS GENERALES Y SUS PARTES Y PIEZAS - FSA - FAC SALUD - POSGRADOS","OTRAS MÁQUINAS PARA USOS GENERALES Y SUS PARTES Y PIEZAS - FSA - FAC SALUD - POSGRADOS","OTRAS MÁQUINAS PARA USOS GENERALES Y SUS PARTES Y PIEZAS - FSA - FAC SALUD - POSGRADOS","OTRAS MÁQUINAS PARA USOS GENERALES Y SUS PARTES Y PIEZAS - FSA - FAC SALUD - POSGRADOS","OTRAS MÁQUINAS PARA USOS GENERALES Y SUS PARTES Y PIEZAS - FSA - FAC SALUD - POSGRADOS","OTRAS MÁQUINAS PARA USOS GENERALES Y SUS PARTES Y PIEZAS - FSA - FAC SALUD - POSGRADOS","OTRAS MÁQUINAS PARA USOS GENERALES Y SUS PARTES Y PIEZAS - FSA - FAC SALUD - POSGRADOS","OTRAS MÁQUINAS PARA USOS GENERALES Y SUS PARTES Y PIEZAS - FSA - FAC SALUD - POSGRADOS",5000000]
["257201104050235","MAQUINARIA DE INFORMÁTICA Y SUS PARTES, PIEZAS Y ACCESORIOS - FSA - FAC SALUD - POSGRADOS","MAQUINARIA DE INFORMÁTICA Y SUS PARTES, PIEZAS Y ACCESORIOS - FSA - FAC SALUD - POSGRADOS","MAQUINARIA DE INFORMÁTICA Y SUS PARTES, PIEZAS Y ACCESORIOS - FSA - FAC SALUD - POSGRADOS","MAQUINARIA DE INFORMÁTICA Y SUS PARTES, PIEZAS Y ACCESORIOS - FSA - FAC SALUD - POSGRADOS","MAQUINARIA DE INFORMÁTICA Y SUS PARTES, PIEZAS Y ACCESORIOS - FSA - FAC SALUD - POSGRADOS","MAQUINARIA DE INFORMÁTICA Y SUS PARTES, PIEZAS Y ACCESORIOS - FSA - FAC SALUD - POSGRADOS","MAQUINARIA DE INFORMÁTICA Y SUS PARTES, PIEZAS Y ACCESORIOS - FSA - FAC SALUD - POSGRADOS","MAQUINARIA DE INFORMÁTICA Y SUS PARTES, PIEZAS Y ACCESORIOS - FSA - FAC SALUD - POSGRADOS","MAQUINARIA DE INFORMÁTICA Y SUS PARTES, PIEZAS Y ACCESORIOS - FSA - FAC SALUD - POSGRADOS",15000000]
[]
[]
[]
[]
[]
[]
[]
[]
[]
[]
["257202208040135","SERVICIOS DE TELEFONÍA Y OTRAS TELECOMUNICACIONES - FSA - FAC SALUD - POSGRADOS","SERVICIOS DE TELEFONÍA Y OTRAS TELECOMUNICACIONES - FSA - FAC SALUD - POSGRADOS","SERVICIOS DE TELEFONÍA Y OTRAS TELECOMUNICACIONES - FSA - FAC SALUD - POSGRADOS","SERVICIOS DE TELEFONÍA Y OTRAS TELECOMUNICACIONES - FSA - FAC SALUD - POSGRADOS","SERVICIOS DE TELEFONÍA Y OTRAS TELECOMUNICACIONES - FSA - FAC SALUD - POSGRADOS","SERVICIOS DE TELEFONÍA Y OTRAS TELECOMUNICACIONES - FSA - FAC SALUD - POSGRADOS","SERVICIOS DE TELEFONÍA Y OTRAS TELECOMUNICACIONES - FSA - FAC SALUD - POSGRADOS","SERVICIOS DE TELEFONÍA Y OTRAS TELECOMUNICACIONES - FSA - FAC SALUD - POSGRADOS","SERVICIOS DE TELEFONÍA Y OTRAS TELECOMUNICACIONES - FSA - FAC SALUD - POSGRADOS","SERVICIOS DE TELEFONÍA Y OTRAS TELECOMUNICACIONES - FSA - FAC SALUD - POSGRADOS"]
[]
[]
[null,null,null,null,null,963038]
[]
[]
[]
[]
[]
[]
[]
[]
[]
[]
[]
[]
[]
[]
[]
[]
[]
[]
[]
[]
[]
[]
["2571101101011335","PÓLIZA DE SEGUROS DE BIENES MUEBLES FSA - POSGRADOS","PÓLIZA DE SEGUROS DE BIENES MUEBLES FSA - POSGRADOS","PÓLIZA DE SEGUROS DE BIENES MUEBLES FSA - POSGRADOS","PÓLIZA DE SEGUROS DE BIENES MUEBLES FSA - POSGRADOS","PÓLIZA DE SEGUROS DE BIENES MUEBLES FSA - POSGRADOS","PÓLIZA DE SEGUROS DE BIENES MUEBLES FSA - POSGRADOS","PÓLIZA DE SEGUROS DE BIENES MUEBLES FSA - POSGRADOS","PÓLIZA DE SEGUROS DE BIENES MUEBLES FSA - POSGRADOS","PÓLIZA DE SEGUROS DE BIENES MUEBLES FSA - POSGRADOS","PÓLIZA DE SEGUROS DE BIENES MUEBLES FSA - POSGRADOS"]
[]
[]
[]
[]
[]
[]
[]
[]
[]
[]
[]
[]
[]
[]
[]
[]
[]
[]
[]
[]
["257501206070935","OTROS SERVICIOS DE APOYO AL TRANSPORTE - FSA - FAC SALUD - POSGRADOS","OTROS SERVICIOS DE APOYO AL TRANSPORTE - FSA - FAC SALUD - POSGRADOS","OTROS SERVICIOS DE APOYO AL TRANSPORTE - FSA - FAC SALUD - POSGRADOS","OTROS SERVICIOS DE APOYO AL TRANSPORTE - FSA - FAC SALUD - POSGRADOS","OTROS SERVICIOS DE APOYO AL TRANSPORTE - FSA - FAC SALUD - POSGRADOS","OTROS SERVICIOS DE APOYO AL TRANSPORTE - FSA - FAC SALUD - POSGRADOS","OTROS SERVICIOS DE APOYO AL TRANSPORTE - FSA - FAC SALUD - POSGRADOS","OTROS SERVICIOS DE APOYO AL TRANSPORTE - FSA - FAC SALUD - POSGRADOS","OTROS SERVICIOS DE APOYO AL TRANSPORTE - FSA - FAC SALUD - POSGRADOS","OTROS SERVICIOS DE APOYO AL TRANSPORTE - FSA - FAC SALUD - POSGRADOS"]
[]
[]
[]
[]
["2571101101011235","FORTALECIMIENTO EQUIPO HUMANO OPERATIVO DE LOS FONDOS ESPECIALES ÁREA GESTIÓN FINANCIERA FSA - POSGRADOS","FORTALECIMIENTO EQUIPO HUMANO OPERATIVO DE LOS FONDOS ESPECIALES ÁREA GESTIÓN FINANCIERA FSA - POSGRADOS","FORTALECIMIENTO EQUIPO HUMANO OPERATIVO DE LOS FONDOS ESPECIALES ÁREA GESTIÓN FINANCIERA FSA - POSGRADOS","FORTALECIMIENTO EQUIPO HUMANO OPERATIVO DE LOS FONDOS ESPECIALES ÁREA GESTIÓN FINANCIERA FSA - POSGRADOS","FORTALECIMIENTO EQUIPO HUMANO OPERATIVO DE LOS FONDOS ESPECIALES ÁREA GESTIÓN FINANCIERA FSA - POSGRADOS","FORTALECIMIENTO EQUIPO HUMANO OPERATIVO DE LOS FONDOS ESPECIALES ÁREA GESTIÓN FINANCIERA FSA - POSGRADOS","FORTALECIMIENTO EQUIPO HUMANO OPERATIVO DE LOS FONDOS ESPECIALES ÁREA GESTIÓN FINANCIERA FSA - POSGRADOS","FORTALECIMIENTO EQUIPO HUMANO OPERATIVO DE LOS FONDOS ESPECIALES ÁREA GESTIÓN FINANCIERA FSA - POSGRADOS","FORTALECIMIENTO EQUIPO HUMANO OPERATIVO DE LOS FONDOS ESPECIALES ÁREA GESTIÓN FINANCIERA FSA - POSGRADOS","FORTALECIMIENTO EQUIPO HUMANO OPERATIVO DE LOS FONDOS ESPECIALES ÁREA GESTIÓN FINANCIERA FSA - POSGRADOS"]
[]
[]
[]
[]
["2571101101010935","GASTOS BANCARIOS (GMF) FSA - POSGRADOS","GASTOS BANCARIOS (GMF) FSA - POSGRADOS","GASTOS BANCARIOS (GMF) FSA - POSGRADOS","GASTOS BANCARIOS (GMF) FSA - POSGRADOS","GASTOS BANCARIOS (GMF) FSA - POSGRADOS","GASTOS BANCARIOS (GMF) FSA - POSGRADOS","GASTOS BANCARIOS (GMF) FSA - POSGRADOS","GASTOS BANCARIOS (GMF) FSA - POSGRADOS","GASTOS BANCARIOS (GMF) FSA - POSGRADOS","GASTOS BANCARIOS (GMF) FSA - POSGRADOS"]
[]
[]
[]
[]
[null,null,null,null,null,null,null,null,null,null,null,null,null,null,null,"25720220902050201135. - FSA"]
[]
[]
[]
[]
[]
[]
[]
[]
[]
[]
[]
[]
[]
[]
[]
[]
[]
[]
[]
[]
[]
[]
[]
[]
[]
[]
[]
[]
[]
[]
[]
[]
[]
[]
[]
[]
[]
[]
[]
[]
[]
[]
[]
[]
[]
[null,null,null,null,null,null,null,null,null,null,{"$f":"$O$425","v":0},null,null,null,{"$f":"P422+P413+P409+Q406","v":0}]

{"sheet":"PRESUPUESTO1","index":2,"n_rows":138,"n_cols":8,"rows_kept":138,"cut":false,"hidden":true,"merged":[[3,2,3,3],[0,1,2,1],[0,2,0,6],[0,7,2,7],[1,2,1,6],[2,2,2,6],[31,3,31,5],[32,3,32,5],[38,3,38,5],[39,4,39,5],[33,3,33,5],[34,3,34,5],[35,3,35,5],[36,3,36,5],[37,3,37,5],[18,3,18,5],[19,3,19,5],[20,3,20,5],[15,1,15,7],[30,3,30,5],[27,1,27,7],[29,2,29,4],[40,3,40,5],[41,3,41,5],[44,1,44,7],[5,1,5,7],[8,2,8,7],[9,2,9,7],[7,2,7,3],[10,2,10,7],[11,6,11,7],[23,3,23,5],[24,3,24,5],[25,3,25,5],[21,3,21,5],[22,3,22,5],[13,2,13,5],[17,2,17,4],[46,2,46,4],[54,5,57,5],[54,6,57,7],[54,1,57,1],[54,2,57,4],[48,3,48,4],[49,3,49,4],[50,3,50,4],[51,3,51,4],[52,3,52,6]]}
[null,null,"UNIVERSIDAD SURCOLOMBIANA"]
[]
[null,null,"PRESUPUESTO INGRESOS Y COSTOS PROYECTOS DE FONDOS ESPECIALES "]
[null,"CODIGO",null,null,"VERSIÓN:",1,"VIGENCIA",2017]
[]
[null,"I. INFORMACION GENERAL DEL PROYECTO"]
[]
[null,"Facultad",{"$f":"+'PPTO DETALLADO'!B9:D9","v":0},null,"Acto Administrativo",{"$f":"+'PPTO DETALLADO'!H9","v":0},"Fecha",{"$f":"+'PPTO DETALLADO'!K9","v":0}]
[null,"Nombre del Proyecto",{"$f":"+'PPTO DETALLADO'!C10:K10","v":0}]
[null,"Objeto  ",{"$f":"+'PPTO DETALLADO'!B11:K11","v":0}]
[null,"Justificacion",{"$f":"+'PPTO DETALLADO'!B12:K12","v":0}]
[null,"Tipo de Proyecto",{"$f":"'PPTO DETALLADO'!B13","v":0},"N° Cuenta Banco",{"$f":"+'PPTO DETALLADO'!F13","v":0},"N° Modificación",{"$f":"+'PPTO DETALLADO'!J13:K13","v":{"$error":"#VALUE!"}}]
[null,"Tiempo de ejecución D/M/A","Fecha de Inicio ",{"$f":"+'PPTO DETALLADO'!D16","v":"00:00:00"},"Fecha Terminación ",{"$f":"+'PPTO DETALLADO'!#REF!","v":{"$error":"#REF!"}},"Duración ",{"$f":"+'PPTO DETALLADO'!K16","v":"00:00:00"}]
[null,"E-Mail del Proyecto",{"$f":"+'PPTO DETALLADO'!B17:H17","v":0},null,null,null,"N° Telefonico/Ext.",{"$f":"+'PPTO DETALLADO'!K17","v":0}]
[]
[null,{"$f":"'PPTO DETALLADO'!A39","v":"II – INGRESOS "}]
[]
[null,null,null,null,null,"TOTAL",{"$f":"ROUND(SUM(G20:G26),0)","v":{"$error":"#N/A"}}]
[null,null,"Rubro","Descripción",null,null,"Valor"]
[null,null,1001,{"$f":"IF(C20=\"\",\"\",VLOOKUP(C20,$D$95:$E$101,2))","v":{"$error":"#N/A"}},null,null,{"$f":"IF(C20=\"\",\"\",VLOOKUP(D20,$E$95:$F$101,2,0))","v":{"$error":"#N/A"}}]
[null,null,1002,{"$f":"IF(C21=\"\",\"\",VLOOKUP(C21,$D$95:$E$101,2))","v":{"$error":"#N/A"}},null,null,{"$f":"IF(C21=\"\",\"\",VLOOKUP(D21,$E$95:$F$101,2,0))","v":{"$error":"#N/A"}}]
[null,null,1003,{"$error":"#N/A"},null,null,{"$f":"IF(C22=\"\",\"\",VLOOKUP(D22,$E$95:$F$101,2,0))","v":{"$error":"#N/A"}}]
[null,null,null,""]
[null,null,null,"",null,null,{"$f":"IF(C24=\"\",\"\",VLOOKUP(D24,$E$95:$F$101,2,0))","v":""}]
[null,null,null,"",null,null,{"$f":"IF(C25=\"\",\"\",VLOOKUP(D25,$E$95:$F$101,2,0))","v":""}]
[null,null,null,"",null,null,{"$f":"IF(C26=\"\",\"\",VLOOKUP(D26,$E$95:$F$101,2,0))","v":""}]
[]
[null,"III – COSTOS DEL PROYECTO"]
[]
[null,null,null,null,null,"TOTAL",{"$f":"ROUND(SUM(G32:G39),0)","v":0}]
[null,null,"Rubro","Descripción",null,null,"Valor"]
[null,null,2007,{"$f":"IF(C32=\"\",\"\",VLOOKUP(C32,D95:E138,2))","v":"DENOMINACION CLASIFICADOR"},null,null,null,"?"]
[null,null,null,""]
[null,null,null,""]
[null,null,null,""]
[null,null,null,""]
[null,null,null,""]
[null,null,null,""]
[null,null,null,""]
[null,null,null,null,{"$f":"IF(D40=\"\",\"\",VLOOKUP(D40,$D$95:$E$138,2))","v":""}]
[null,null,2034,{"$f":"+'PPTO DETALLADO'!#REF!","v":{"$error":"#REF!"}}]
[null,null,2035,{"$f":"+'PPTO DETALLADO'!#REF!","v":{"$error":"#REF!"}}]
[]
[]
[null,"EXCEDENTES GENERADOS POR LA EJECUCION DEL PROYECTO (10% VENTA DE SERVICIOS / 20% POSGRADOS)"]
[]
[null,null,"TOTAL EXCEDENTES GENERADOS POR LA EJECUCION DEL PROYECTO ",null,null,{"$f":"+'PPTO DETALLADO'!#REF!","v":{"$error":"#REF!"}}]
[]
[null,null,"RUBRO","DESTINO",null,"VALOR"]
[null,null,2034,"ADMINISTRACION CENTRAL  ",null,{"$f":"+'PPTO DETALLADO'!#REF!","v":{"$error":"#REF!"}}]
[null,null,2035,"FACULTAD",null,{"$f":"+'PPTO DETALLADO'!#REF!","v":{"$error":"#REF!"}}]
[null,null,2036,"INCENTIVOS COORDINADOR ",null,{"$f":"+'PPTO DETALLADO'!#REF!","v":{"$error":"#REF!"}}]
[]
[]
[null,"Firma Decano(a)",null,null,null,"Firma Coordinador(a)"]
[]
[]
[]
[]
[]
[]
[]
[]
[]
[]
[]
[]
[]
[]
[]
[]
[]
[]
[]
[]
[]
[]
[]
[]
[]
[]
[]
[]
[]
[]
[]
[]
[]
[]
[null,null,null,"El presente Presupuesto del Proyecto Genera excedentes por encima de lo establecido para ser reconocido como solidario y por lo tanto debe ser gestionado a través de la Oficina de Fondos Especiales"]
[null,null,null,"El presente Presupuesto del Proyecto genera excedentes por debajo de lo establecido en los Acuerdos de Fondos Especiales y por tanto debe Gestionarse a través de la Vicerrectoría de Investigación y Proyección Social como un Proyecto Solidario."]
[]
[null,null,null,null,"INGRESOS"]
[null,null,null,"Rubro","Descripción"]
[null,null,null,{"$f":"'PPTO DETALLADO'!A41","v":"# CASIFICADOR "},{"$f":"'PPTO DETALLADO'!B42","v":"DENOMINACION CLASIFICADOR "},{"$f":"'PPTO DETALLADO'!K42","v":0}]
[null,null,null,{"$f":"'PPTO DETALLADO'!A46","v":"# CLASIFICADOR "},{"$f":"'PPTO DETALLADO'!D47","v":"DENOMINACION CLASIFICADOR"},{"$f":"'PPTO DETALLADO'!#REF!","v":{"$error":"#REF!"}}]
[null,null,null,{"$f":"'PPTO DETALLADO'!A60","v":"# CLASIFICADOR"},{"$f":"+'PPTO DETALLADO'!B61","v":" DENOMINACION CLASIFICADOR"},{"$f":"'PPTO DETALLADO'!J63","v":0}]
[null,null,null,{"$f":"'PPTO DETALLADO'!A68","v":"# CLASIFICADOR"},{"$f":"+'PPTO DETALLADO'!B68","v":"CURSOS DE POSTGRADOS (DIRIGIDOS E INTENSIVOS)"},{"$f":"'PPTO DETALLADO'!#REF!","v":{"$error":"#REF!"}}]
[null,null,null,{"$f":"'PPTO DETALLADO'!A73","v":"# CLASIFICADOR"},{"$f":"+'PPTO DETALLADO'!B73","v":"VENTAS DE SERVICIOS - EXTENCION (EDUCACIÓN NO FORMAL-CONTINUADA, LABORATORIOS, CONTRATOS Y/O CONVENIOS INTERADMINISTRATIVOS) "},{"$f":"'PPTO DETALLADO'!#REF!","v":{"$error":"#REF!"}}]
[null,null,null,{"$f":"'PPTO DETALLADO'!A81","v":"# CLASIFICADOR"},{"$f":"'PPTO DETALLADO'!B81","v":"VALOR GENERADO DE 4 X 1000 DE PROYECTOS LIQUIDADOS                                                                                                                       (CLASIFICADOR SOLO PARA PRESUPUESTAR PROYECTO ANUAL DE MANEJO 4X1000 FACULTAD)  "},{"$f":"'PPTO DETALLADO'!K82","v":0}]
[null,null,null,{"$f":"'PPTO DETALLADO'!#REF!","v":{"$error":"#REF!"}},{"$f":"'PPTO DETALLADO'!#REF!","v":{"$error":"#REF!"}},{"$f":"'PPTO DETALLADO'!#REF!","v":{"$error":"#REF!"}}]
[]
[null,null,null,null,"COSTOS"]
[null,null,null,{"$f":"+'PPTO DETALLADO'!A90","v":"# CLASIFICADOR"},{"$f":"+'PPTO DETALLADO'!B90","v":"DENOMINACION CLASIFICADOR"},{"$f":"+'PPTO DETALLADO'!K90","v":0}]
[null,null,null,{"$f":"+'PPTO DETALLADO'!#REF!","v":{"$error":"#REF!"}},{"$f":"+'PPTO DETALLADO'!#REF!","v":{"$error":"#REF!"}},{"$f":"+'PPTO DETALLADO'!#REF!","v":{"$error":"#REF!"}}]
[null,null,null,{"$f":"'PPTO DETALLADO'!A135","v":0},{"$f":"'PPTO DETALLADO'!B135","v":"DENOMINACION CLASIFICADOR"},{"$f":"'PPTO DETALLADO'!#REF!","v":{"$error":"#REF!"}}]
[null,null,null,{"$f":"'PPTO DETALLADO'!A123","v":"# CLASIFICADOR"},{"$f":"'PPTO DETALLADO'!B124","v":"DENOMINACION CLASIFICADOR"},{"$f":"'PPTO DETALLADO'!K123","v":0}]
[null,null,null,{"$f":"'PPTO DETALLADO'!A178","v":"# CLASIFICADOR"},{"$f":"'PPTO DETALLADO'!B178","v":"MONITORES "},{"$f":"'PPTO DETALLADO'!K178","v":0}]
[null,null,null,{"$f":"'PPTO DETALLADO'!A183","v":"# CLASIFICADOR"},{"$f":"'PPTO DETALLADO'!B183","v":"SEGURIDAD SOCIAL RESIDENTES"},{"$f":"'PPTO DETALLADO'!#REF!","v":{"$error":"#REF!"}}]
[null,null,null,{"$f":"'PPTO DETALLADO'!A188","v":"# CLASIFICADOR"},{"$f":"'PPTO DETALLADO'!B188","v":" CAPACITACIONES                                                                                                                                                                                                                   (PROYECTOS DE POSTGRADOS, CONTRATOS Y/O CONVENIO INTERADMINISTRATIVOS)"},{"$f":"'PPTO DETALLADO'!K188","v":0}]
[null,null,null,{"$f":"'PPTO DETALLADO'!A199","v":"# CLASIFICADOR"},{"$f":"'PPTO DETALLADO'!B199","v":"SERVICIO DE ALOJAMIENTO Y/O ALIMETACION"},{"$f":"'PPTO DETALLADO'!K199","v":0}]
[null,null,null,{"$f":"'PPTO DETALLADO'!#REF!","v":{"$error":"#REF!"}},{"$f":"'PPTO DETALLADO'!#REF!","v":{"$error":"#REF!"}},{"$f":"'PPTO DETALLADO'!#REF!","v":{"$error":"#REF!"}}]
[null,null,null,{"$f":"'PPTO DETALLADO'!A216","v":"# CLASIFICADOR"},{"$f":"'PPTO DETALLADO'!B216","v":"GASTOS /COSTOS LEGALES"},{"$f":"'PPTO DETALLADO'!K216","v":0}]
[null,null,null,{"$f":"'PPTO DETALLADO'!A364","v":"# CLASIFICADOR"},{"$f":"'PPTO DETALLADO'!B364","v":"APOYO ESTUDIANTES POSGRADOS "},{"$f":"'PPTO DETALLADO'!K364","v":0}]
[null,null,null,{"$f":"'PPTO DETALLADO'!A221","v":"# CLASIFICADOR"},{"$f":"'PPTO DETALLADO'!B221","v":"MATERIALES E INSUMOS"},{"$f":"'PPTO DETALLADO'!K221","v":0}]
[null,null,null,{"$f":"'PPTO DETALLADO'!A232","v":"# CLASIFICADOR"},{"$f":"'PPTO DETALLADO'!B232","v":"SERVICIOS DE LABORATORIO EXTERNO"},{"$f":"'PPTO DETALLADO'!K232","v":0}]
[null,null,null,{"$f":"'PPTO DETALLADO'!A238","v":"# CLASIFICADOR"},{"$f":"'PPTO DETALLADO'!B238","v":"PAPELERÍA GENERAL Y ELEMENTOS DE OFICINA"},{"$f":"'PPTO DETALLADO'!K238","v":0}]
[null,null,null,{"$f":"'PPTO DETALLADO'!A246","v":"# CLASIFICADOR"},{"$f":"'PPTO DETALLADO'!B246","v":"SERVICIOS DE FOTOCOPIAS, MÓDULOS E IMPRESOS"},{"$f":"'PPTO DETALLADO'!K246","v":0}]
[null,null,null,{"$f":"'PPTO DETALLADO'!A253","v":"# CLASIFICADOR"},{"$f":"'PPTO DETALLADO'!B253","v":"SERVICIOS DE PUBLICACIONES"},{"$f":"'PPTO DETALLADO'!K253","v":0}]
[null,null,null,{"$f":"'PPTO DETALLADO'!A260","v":"# CLASIFICADOR"},{"$f":"'PPTO DETALLADO'!B260","v":"SERVICIOS DE PUBLICIDAD Y MERCADEO"},{"$f":"'PPTO DETALLADO'!K260","v":0}]
[null,null,null,{"$f":"'PPTO DETALLADO'!A267","v":"# CLASIFICADOR"},{"$f":"'PPTO DETALLADO'!B267","v":"PRODUCTOS DE ASEO Y CAFETERÍA"},{"$f":"'PPTO DETALLADO'!K267","v":0}]
[null,null,null,{"$f":"'PPTO DETALLADO'!A274","v":"# CLASIFICADOR"},{"$f":"'PPTO DETALLADO'!B274","v":"ARRENDAMIENTO BIENES MUEBLES E INMUEBLES EXTERNOS"},{"$f":"'PPTO DETALLADO'!K274","v":0}]
[null,null,null,{"$f":"'PPTO DETALLADO'!A281","v":"# CLASIFICADOR"},{"$f":"'PPTO DETALLADO'!B281","v":"INSTALACIÓN, MANTENIMIENTO Y ADECUACIÓN DE EQUIPOS Y PLANTA FÍSICA USCO"},{"$f":"'PPTO DETALLADO'!K281","v":0}]
[null,null,null,{"$f":"'PPTO DETALLADO'!A289","v":"# CLASIFICADOR"},{"$f":"'PPTO DETALLADO'!B289","v":"PRÁCTICAS EXTRAMUROS PROYECTOS DE POSTGRADO"},{"$f":"'PPTO DETALLADO'!K289","v":0}]
[null,null,null,{"$f":"'PPTO DETALLADO'!#REF!","v":{"$error":"#REF!"}},{"$f":"'PPTO DETALLADO'!#REF!","v":{"$error":"#REF!"}},{"$f":"'PPTO DETALLADO'!#REF!","v":{"$error":"#REF!"}}]
[null,null,null,{"$f":"'PPTO DETALLADO'!A296","v":"# CLASIFICADOR"},{"$f":"'PPTO DETALLADO'!B296","v":"RECURSOS BIBLIOGRÁFICOS "},{"$f":"'PPTO DETALLADO'!K296","v":0}]
[null,null,null,{"$f":"'PPTO DETALLADO'!#REF!","v":{"$error":"#REF!"}},{"$f":"'PPTO DETALLADO'!#REF!","v":{"$error":"#REF!"}},{"$f":"'PPTO DETALLADO'!#REF!","v":{"$error":"#REF!"}}]
[null,null,null,{"$f":"'PPTO DETALLADO'!A303","v":"# CLASIFICADOR"},{"$f":"'PPTO DETALLADO'!B303","v":"ADQUISICIÓN DE MUEBLES Y/O EQUIPOS"},{"$f":"'PPTO DETALLADO'!K303","v":0}]
[null,null,null,{"$f":"'PPTO DETALLADO'!A311","v":"# CLASIFICADOR"},{"$f":"'PPTO DETALLADO'!B311","v":"SERVICIOS POSTALES, MENSAJERÍA Y/O CORRESPONDENCIA"},{"$f":"'PPTO DETALLADO'!K311","v":0}]
[null,null,null,{"$f":"'PPTO DETALLADO'!#REF!","v":{"$error":"#REF!"}},{"$f":"'PPTO DETALLADO'!#REF!","v":{"$error":"#REF!"}},{"$f":"'PPTO DETALLADO'!#REF!","v":{"$error":"#REF!"}}]
[null,null,null,{"$f":"'PPTO DETALLADO'!#REF!","v":{"$error":"#REF!"}},{"$f":"'PPTO DETALLADO'!#REF!","v":{"$error":"#REF!"}},{"$f":"'PPTO DETALLADO'!#REF!","v":{"$error":"#REF!"}}]
[null,null,null,{"$f":"'PPTO DETALLADO'!#REF!","v":{"$error":"#REF!"}},{"$f":"'PPTO DETALLADO'!#REF!","v":{"$error":"#REF!"}},{"$f":"'PPTO DETALLADO'!#REF!","v":{"$error":"#REF!"}}]
[null,null,null,{"$f":"'PPTO DETALLADO'!A317","v":"# CLASIFICADOR"},{"$f":"'PPTO DETALLADO'!B317","v":"SERVICIOS PÚBLICOS"},{"$f":"'PPTO DETALLADO'!K317","v":0}]
[null,null,null,{"$f":"'PPTO DETALLADO'!A330","v":"# CLASIFICADOR"},{"$f":"'PPTO DETALLADO'!B330","v":"ARRENDAMIENTO PLANTA FÍSICA USCO"},{"$f":"'PPTO DETALLADO'!K330","v":0}]
[null,null,null,{"$f":"'PPTO DETALLADO'!#REF!","v":{"$error":"#REF!"}},{"$f":"'PPTO DETALLADO'!B369","v":"FORTALECIMIENTO DEL EQUIPO HUMANO OPERATIVO DE LOS FONDOS ESPECIALES ÁREA GESTIÓN FINANCIERA"},{"$f":"'PPTO DETALLADO'!K369","v":0}]
[null,null,null,{"$f":"'PPTO DETALLADO'!A343","v":"# CLASIFICADOR"},{"$f":"'PPTO DETALLADO'!B343","v":"PÓLIZA DE SEGUROS POR BIENES MUEBLES Y/O EQUIPOS ADQUIRIDOS"},{"$f":"'PPTO DETALLADO'!#REF!","v":{"$error":"#REF!"}}]
[null,null,null,{"$f":"'PPTO DETALLADO'!#REF!","v":{"$error":"#REF!"}},{"$f":"'PPTO DETALLADO'!#REF!","v":{"$error":"#REF!"}},{"$f":"'PPTO DETALLADO'!#REF!","v":{"$error":"#REF!"}}]
[null,null,null,{"$f":"'PPTO DETALLADO'!#REF!","v":{"$error":"#REF!"}},{"$f":"'PPTO DETALLADO'!#REF!","v":{"$error":"#REF!"}},{"$f":"'PPTO DETALLADO'!#REF!","v":{"$error":"#REF!"}}]

{"sheet":"1a Modificacion Presupuestal","index":3,"n_rows":424,"n_cols":18,"rows_kept":424,"cut":false,"hidden":false,"merged":[[211,2,211,6],[212,2,212,6],[202,2,202,6],[203,2,203,6],[204,2,204,6],[205,2,205,6],[206,2,206,6],[207,2,207,6],[208,2,208,6],[209,2,209,6],[210,2,210,6],[182,2,182,6],[183,2,183,6],[184,2,184,6],[185,2,185,6],[186,2,186,6],[187,2,187,6],[188,2,188,6],[189,2,189,6],[190,2,190,6],[173,2,173,6],[174,2,174,6],[175,2,175,6],[176,2,176,6],[177,2,177,6],[178,2,178,6],[179,2,179,6],[180,2,180,6],[181,2,181,6],[164,2,164,6],[165,2,165,6],[166,2,166,6],[167,2,167,6],[168,2,168,6],[169,2,169,6],[170,2,170,6],[171,2,171,6],[172,2,172,6],[155,2,155,6],[156,2,156,6],[157,2,157,6],[158,2,158,6],[159,2,159,6],[160,2,160,6],[161,2,161,6],[162,2,162,6],[163,2,163,6],[146,2,146,6],[147,2,147,6],[148,2,148,6],[149,2,149,6],[150,2,150,6],[151,2,151,6],[152,2,152,6],[153,2,153,6],[154,2,154,6],[139,0,141,0],[139,1,139,5],[139,6,141,6],[140,1,140,5],[141,1,141,5],[124,0,124,3],[144,2,144,6],[145,2,145,6],[269,1,269,3],[247,0,247,2],[247,4,247,6],[250,0,250,6],[133,0,135,0],[191,2,191,6],[192,2,192,6],[193,2,193,6],[194,2,194,6],[195,2,195,6],[196,2,196,6],[197,2,197,6],[198,2,198,6],[199,2,199,6],[200,2,200,6],[201,2,201,6],[270,1,270,3],[271,1,271,3],[264,1,264,3],[265,1,265,3],[266,1,266,3],[267,1,267,6],[268,1,268,3],[252,0,252,6],[261,1,261,6],[262,1,262,3],[262,6,263,6],[263,1,263,3],[131,0,132,0],[0,0,2,0],[0,1,0,5],[20,1,20,3],[17,1,17,3],[16,0,16,3],[23,1,23,3],[26,0,26,3],[27,1,27,3],[18,1,18,3],[5,0,5,6],[19,1,19,3],[21,1,21,3],[22,1,22,3],[7,1,7,3],[7,4,7,5],[8,0,8,1],[8,3,8,4],[8,5,8,6],[9,1,9,3],[10,3,10,4],[11,0,11,6],[12,1,12,3],[12,5,12,6],[13,1,13,3],[0,6,2,6],[1,1,1,5],[2,1,2,5],[33,1,33,3],[24,1,24,3],[58,1,58,3],[13,5,13,6],[55,1,55,3],[28,1,28,3],[29,1,29,3],[30,1,30,3],[57,1,57,3],[31,1,31,3],[41,1,41,3],[51,1,51,3],[34,1,34,3],[47,1,47,3],[42,1,42,3],[32,1,32,3],[35,1,35,3],[36,1,36,3],[37,1,37,3],[38,1,38,3],[39,1,39,3],[77,1,77,3],[65,1,65,3],[82,1,82,3],[83,1,83,3],[84,1,84,3],[85,1,85,3],[66,1,66,3],[67,1,67,3],[78,1,78,3],[79,1,79,3],[80,1,80,3],[81,1,81,3],[68,1,68,3],[69,1,69,3],[70,1,70,3],[71,1,71,3],[72,1,72,3],[73,1,73,3],[74,1,74,3],[75,1,75,3],[76,1,76,3],[61,1,61,3],[62,1,62,3],[63,1,63,3],[64,1,64,3],[60,1,60,3],[53,1,53,3],[40,1,40,3],[52,1,52,3],[43,1,43,3],[44,1,44,3],[45,1,45,3],[46,1,46,3],[48,1,48,3],[56,1,56,3],[54,1,54,3],[49,1,49,3],[50,1,50,3],[59,1,59,3],[86,1,86,3],[87,1,87,3],[88,1,88,3],[89,1,89,3],[90,1,90,3],[91,1,91,3],[92,1,92,3],[93,1,93,3],[94,1,94,3],[95,1,95,3],[96,1,96,3],[97,1,97,3],[98,1,98,3],[99,1,99,3],[100,1,100,3],[101,1,101,3],[102,1,102,3],[103,1,103,3],[104,1,104,3],[105,1,105,3],[106,1,106,3],[107,1,107,3],[108,1,108,3],[109,1,109,3],[110,1,110,3],[111,1,111,3],[112,1,112,3],[113,1,113,3],[114,1,114,3],[115,1,115,3],[116,1,116,3],[117,1,117,3],[118,1,118,3],[119,1,119,3],[120,1,120,3],[121,1,121,3],[122,1,122,3],[131,3,131,5],[131,1,132,1],[133,1,135,1],[127,1,127,3],[128,1,128,3],[123,1,123,3],[126,1,126,3],[131,2,132,2],[213,2,213,6],[214,2,214,6],[215,2,215,6],[216,2,216,6],[217,2,217,6],[218,2,218,6],[219,2,219,6],[220,2,220,6],[221,2,221,6],[222,2,222,6],[223,2,223,6],[224,2,224,6],[225,2,225,6],[226,2,226,6],[227,2,227,6],[228,2,228,6],[229,2,229,6],[230,2,230,6],[240,2,240,6],[241,2,241,6],[231,2,231,6],[232,2,232,6],[233,2,233,6],[234,2,234,6],[235,2,235,6],[236,2,236,6],[237,2,237,6],[238,2,238,6],[239,2,239,6]]}
[null,"UNIVERSIDAD SURCOLOMBIANA",null,null,null,null,null,null,null,{"$f":"'PPTO DETALLADO'!#REF!","v":{"$error":"#REF!"}}]
[null,"GESTIÓN FINANCIERA Y DE RECURSOS FÍSICOS "]
[null,"MODIFICACIONES PRESUPUESTO INGRESOS Y EGRESOS PROYECTOS DE LA FACULTAD DE SALUD SIN EXCEDENTES DE FONDOS ESPECIALES "]
["CODIGO","AP-FIN-FO-46","VERSIÓN:",1,"VIGENCIA:",2023,"Pagina 1 De 2"]
[]
["PRIMERA MODIFICACIÓN PRESUPUESTAL\nINFORMACION GENERAL DEL PROYECTO"]
[]
[{"$f":"'PPTO DETALLADO'!A9","v":"Facultad"},null,null,null,{"$f":"'PPTO DETALLADO'!H8","v":"Total Proyectos aprobados por la Facultad en la Vigencia"}]
[{"$f":"'PPTO DETALLADO'!F9","v":"N° Acta de aprobación Consejo Facultad"},null,null,"Fecha Aprobación 1. Modificación Acta Consejo Facultad MES/DIA/AÑO"]
[{"$f":"'PPTO DETALLADO'!A10","v":"Nombre del Proyecto"},null,null,null,{"$f":"'PPTO DETALLADO'!I10","v":"Codigo Proyecto "}]
[{"$f":"'PPTO DETALLADO'!A13","v":"Tipo de Proyecto"},null,{"$f":"'PPTO DETALLADO'!D13","v":"N° Cuenta  Bancaria"},null,null,"N° Modificion (Seleccionar)",null,null,null,null,null,null,null,null,null,null,null,1]
["Tiempo de ejecución ",null,null,null,null,null,null,null,null,null,null,null,null,null,null,null,null,2]
[{"$f":"'PPTO DETALLADO'!A16","v":"Fecha de Inicio "},null,null,null,{"$f":"'PPTO DETALLADO'!H16","v":"Fecha Finalización "},null,null,null,null,null,null,null,null,null,null,null,null,3]
[{"$f":"'PPTO DETALLADO'!A19:C19","v":"Coordinador Asignado"},null,null,null,{"$f":"'PPTO DETALLADO'!A21","v":"Nombre Ordenador del Gasto "}]
[]
[null,null,null,null,null,null,null,null,null,null,null,2]
["A. INGRESOS DEL PROYECTO",null,null,null,"Ingreso Presup Inicial","Adición/Modif","Total Ingreso Ajustado Modif. 1.",null,null,null,null,3]
["# CLASIFICADOR","DENOMINACION CLASIFICADOR",null,null,{"$f":"SUM(E19:E25)","v":0},{"$f":"SUM(F19:F25)","v":0},{"$f":"SUM(G19:G25)","v":0}]
[{"$f":"'PRESUPUESTO CONSOLIDADO'!A20","v":0},{"$f":"'PRESUPUESTO CONSOLIDADO'!B20:F20","v":0},null,null,{"$f":"'PRESUPUESTO CONSOLIDADO'!G20","v":0},null,{"$f":"$E$19+$F$19","v":0}]
[{"$f":"'PRESUPUESTO CONSOLIDADO'!A21","v":0},{"$f":"'PRESUPUESTO CONSOLIDADO'!B21:F21","v":0},null,null,{"$f":"'PRESUPUESTO CONSOLIDADO'!G21","v":0},null,{"$f":"$E$20+$F$20","v":0}]
[{"$f":"'PRESUPUESTO CONSOLIDADO'!A22","v":0},{"$f":"'PRESUPUESTO CONSOLIDADO'!B22:F22","v":0},null,null,{"$f":"'PRESUPUESTO CONSOLIDADO'!G22","v":0},null,{"$f":"$E$21+$F$21","v":0}]
[{"$f":"'PRESUPUESTO CONSOLIDADO'!A23","v":0},{"$f":"'PRESUPUESTO CONSOLIDADO'!B23:F23","v":0},null,null,{"$f":"'PRESUPUESTO CONSOLIDADO'!G23","v":0},null,{"$f":"$E$22+$F$22","v":0}]
[{"$f":"'PRESUPUESTO CONSOLIDADO'!A24","v":0},{"$f":"'PRESUPUESTO CONSOLIDADO'!B24:F24","v":0},null,null,{"$f":"'PRESUPUESTO CONSOLIDADO'!G24","v":0},null,{"$f":"$E$23+$F$23","v":0}]
[{"$f":"'PRESUPUESTO CONSOLIDADO'!A25","v":0},{"$f":"'PRESUPUESTO CONSOLIDADO'!B25:F25","v":0},null,null,{"$f":"'PRESUPUESTO CONSOLIDADO'!G25","v":0},null,{"$f":"$E$24+$F$24","v":0}]
[{"$f":"'PRESUPUESTO CONSOLIDADO'!A26","v":0},{"$f":"'PRESUPUESTO CONSOLIDADO'!B26:F26","v":0},null,null,{"$f":"'PRESUPUESTO CONSOLIDADO'!G26","v":0},null,{"$f":"$E$25+$F$25","v":0}]
[]
["B. EGRESOS DEL PROYECTO",null,null,null,"Egreso Presup Inicial","Adición/Modif","Total Egreso Ajustado Modif (1)"]
["# CLASIFICADOR","DENOMINACION CLASIFICADOR",null,null,{"$f":"E125+E127+E128+E129","v":0},{"$f":"F125+F127+F128+F129","v":0},{"$f":"G125+G127+G128+G129","v":0}]
[{"$f":"'PRESUPUESTO CONSOLIDADO'!A32","v":0},{"$f":"'PRESUPUESTO CONSOLIDADO'!B32:F32","v":0},null,null,{"$f":"'PRESUPUESTO CONSOLIDADO'!G32","v":0},null,{"$f":"E29+F29","v":0}]
[{"$f":"'PRESUPUESTO CONSOLIDADO'!A33","v":0},{"$f":"'PRESUPUESTO CONSOLIDADO'!B33:F33","v":0},null,null,{"$f":"'PRESUPUESTO CONSOLIDADO'!G33","v":0},null,{"$f":"E30+F30","v":0}]
[{"$f":"'PRESUPUESTO CONSOLIDADO'!A34","v":0},{"$f":"'PRESUPUESTO CONSOLIDADO'!B34:F34","v":0},null,null,{"$f":"'PRESUPUESTO CONSOLIDADO'!G34","v":0},null,0]
[{"$f":"'PRESUPUESTO CONSOLIDADO'!A35","v":0},{"$f":"'PRESUPUESTO CONSOLIDADO'!B35:F35","v":0},null,null,{"$f":"'PRESUPUESTO CONSOLIDADO'!G35","v":0},null,0]
[{"$f":"'PRESUPUESTO CONSOLIDADO'!A36","v":0},{"$f":"'PRESUPUESTO CONSOLIDADO'!B36:F36","v":0},null,null,{"$f":"'PRESUPUESTO CONSOLIDADO'!G36","v":0},null,0]
[{"$f":"'PRESUPUESTO CONSOLIDADO'!A37","v":0},{"$f":"'PRESUPUESTO CONSOLIDADO'!B37:F37","v":0},null,null,{"$f":"'PRESUPUESTO CONSOLIDADO'!G37","v":0},null,0]
[{"$f":"'PRESUPUESTO CONSOLIDADO'!A38","v":0},{"$f":"'PRESUPUESTO CONSOLIDADO'!B38:F38","v":0},null,null,{"$f":"'PRESUPUESTO CONSOLIDADO'!G38","v":0},null,0]
[{"$f":"'PRESUPUESTO CONSOLIDADO'!A39","v":0},{"$f":"'PRESUPUESTO CONSOLIDADO'!B39:F39","v":0},null,null,{"$f":"'PRESUPUESTO CONSOLIDADO'!G39","v":0},null,0]
[{"$f":"'PRESUPUESTO CONSOLIDADO'!A40","v":0},{"$f":"'PRESUPUESTO CONSOLIDADO'!B40:F40","v":0},null,null,{"$f":"'PRESUPUESTO CONSOLIDADO'!G40","v":0},null,0]
[{"$f":"'PRESUPUESTO CONSOLIDADO'!A41","v":0},{"$f":"'PRESUPUESTO CONSOLIDADO'!B41:F41","v":0},null,null,{"$f":"'PRESUPUESTO CONSOLIDADO'!G41","v":0},null,0]
[{"$f":"'PRESUPUESTO CONSOLIDADO'!A42","v":0},{"$f":"'PRESUPUESTO CONSOLIDADO'!B42:F42","v":0},null,null,{"$f":"'PRESUPUESTO CONSOLIDADO'!G42","v":0},null,0]
[{"$f":"'PRESUPUESTO CONSOLIDADO'!A43","v":0},{"$f":"'PRESUPUESTO CONSOLIDADO'!B43:F43","v":0},null,null,{"$f":"'PRESUPUESTO CONSOLIDADO'!G43","v":0},null,0]
[{"$f":"'PRESUPUESTO CONSOLIDADO'!A44","v":0},{"$f":"'PRESUPUESTO CONSOLIDADO'!B44:F44","v":0},null,null,{"$f":"'PRESUPUESTO CONSOLIDADO'!G44","v":0},null,0]
[{"$f":"'PRESUPUESTO CONSOLIDADO'!A45","v":0},{"$f":"'PRESUPUESTO CONSOLIDADO'!B45:F45","v":0},null,null,{"$f":"'PRESUPUESTO CONSOLIDADO'!G45","v":0},null,0]
[{"$f":"'PRESUPUESTO CONSOLIDADO'!A46","v":0},{"$f":"'PRESUPUESTO CONSOLIDADO'!B46:F46","v":0},null,null,{"$f":"'PRESUPUESTO CONSOLIDADO'!G46","v":0},null,0]
[{"$f":"'PRESUPUESTO CONSOLIDADO'!A47","v":0},{"$f":"'PRESUPUESTO CONSOLIDADO'!B47:F47","v":0},null,null,{"$f":"'PRESUPUESTO CONSOLIDADO'!G47","v":0},null,0]
[{"$f":"'PRESUPUESTO CONSOLIDADO'!A48","v":0},{"$f":"'PRESUPUESTO CONSOLIDADO'!B48:F48","v":0},null,null,{"$f":"'PRESUPUESTO CONSOLIDADO'!G48","v":0},null,0]
[{"$f":"'PRESUPUESTO CONSOLIDADO'!A49","v":0},{"$f":"'PRESUPUESTO CONSOLIDADO'!B49:F49","v":0},null,null,{"$f":"'PRESUPUESTO CONSOLIDADO'!G49","v":0},null,0]
[{"$f":"'PRESUPUESTO CONSOLIDADO'!A50","v":0},{"$f":"'PRESUPUESTO CONSOLIDADO'!B50:F50","v":0},null,null,{"$f":"'PRESUPUESTO CONSOLIDADO'!G50","v":0},null,0]
[{"$f":"'PRESUPUESTO CONSOLIDADO'!A51","v":0},{"$f":"'PRESUPUESTO CONSOLIDADO'!B51:F51","v":0},null,null,{"$f":"'PRESUPUESTO CONSOLIDADO'!G51","v":0},null,0]
[{"$f":"'PRESUPUESTO CONSOLIDADO'!A52","v":0},{"$f":"'PRESUPUESTO CONSOLIDADO'!B52:F52","v":0},null,null,{"$f":"'PRESUPUESTO CONSOLIDADO'!G52","v":0},null,0]
[{"$f":"'PRESUPUESTO CONSOLIDADO'!A53","v":0},{"$f":"'PRESUPUESTO CONSOLIDADO'!B53:F53","v":0},null,null,{"$f":"'PRESUPUESTO CONSOLIDADO'!G53","v":0},null,0]
[{"$f":"'PRESUPUESTO CONSOLIDADO'!A54","v":0},{"$f":"'PRESUPUESTO CONSOLIDADO'!B54:F54","v":0},null,null,{"$f":"'PRESUPUESTO CONSOLIDADO'!G54","v":0},null,0]
[{"$f":"'PRESUPUESTO CONSOLIDADO'!A55","v":0},{"$f":"'PRESUPUESTO CONSOLIDADO'!B55:F55","v":0},null,null,{"$f":"'PRESUPUESTO CONSOLIDADO'!G55","v":0},null,0]
[{"$f":"'PRESUPUESTO CONSOLIDADO'!A56","v":0},{"$f":"'PRESUPUESTO CONSOLIDADO'!B56:F56","v":0},null,null,{"$f":"'PRESUPUESTO CONSOLIDADO'!G56","v":0},null,0]
[{"$f":"'PRESUPUESTO CONSOLIDADO'!A57","v":0},{"$f":"'PRESUPUESTO CONSOLIDADO'!B57:F57","v":0},null,null,{"$f":"'PRESUPUESTO CONSOLIDADO'!G57","v":0},null,0]
[{"$f":"'PRESUPUESTO CONSOLIDADO'!A58","v":"Observaciones: Acto mediante el cual el aspirante admitido adquiere la calidad de estudiante."},{"$f":"'PRESUPUESTO CONSOLIDADO'!B58:F58","v":0},null,null,{"$f":"'PRESUPUESTO CONSOLIDADO'!G58","v":0},null,0]
[{"$f":"'PRESUPUESTO CONSOLIDADO'!A59","v":0},{"$f":"'PRESUPUESTO CONSOLIDADO'!B59:F59","v":0},null,null,{"$f":"'PRESUPUESTO CONSOLIDADO'!G59","v":0},null,0]
[{"$f":"'PRESUPUESTO CONSOLIDADO'!A60","v":0},{"$f":"'PRESUPUESTO CONSOLIDADO'!B60:F60","v":0},null,null,{"$f":"'PRESUPUESTO CONSOLIDADO'!G60","v":0},null,0]
[{"$f":"'PRESUPUESTO CONSOLIDADO'!A61","v":0},{"$f":"'PRESUPUESTO CONSOLIDADO'!B61:F61","v":0},null,null,{"$f":"'PRESUPUESTO CONSOLIDADO'!G61","v":0},null,0]
[{"$f":"'PRESUPUESTO CONSOLIDADO'!A62","v":11022020120201},{"$f":"'PRESUPUESTO CONSOLIDADO'!B62:F62","v":"DERECHOS DE GRADO POSGRADOS"},null,null,{"$f":"'PRESUPUESTO CONSOLIDADO'!G62","v":0},null,0]
[{"$f":"'PRESUPUESTO CONSOLIDADO'!A63","v":0},{"$f":"'PRESUPUESTO CONSOLIDADO'!B63:F63","v":0},null,null,{"$f":"'PRESUPUESTO CONSOLIDADO'!G63","v":0},null,0]
[{"$f":"'PRESUPUESTO CONSOLIDADO'!A64","v":0},{"$f":"'PRESUPUESTO CONSOLIDADO'!B64:F64","v":0},null,null,{"$f":"'PRESUPUESTO CONSOLIDADO'!G64","v":0},null,0]
[{"$f":"'PRESUPUESTO CONSOLIDADO'!A65","v":0},{"$f":"'PRESUPUESTO CONSOLIDADO'!B65:F65","v":0},null,null,{"$f":"'PRESUPUESTO CONSOLIDADO'!G65","v":0},null,0]
[{"$f":"'PRESUPUESTO CONSOLIDADO'!A66","v":0},{"$f":"'PRESUPUESTO CONSOLIDADO'!B66:F66","v":0},null,null,{"$f":"'PRESUPUESTO CONSOLIDADO'!G66","v":0},null,0]
[{"$f":"'PRESUPUESTO CONSOLIDADO'!A67","v":0},{"$f":"'PRESUPUESTO CONSOLIDADO'!B67:F67","v":0},null,null,{"$f":"'PRESUPUESTO CONSOLIDADO'!G67","v":0},null,0]
[{"$f":"'PRESUPUESTO CONSOLIDADO'!A68","v":0},{"$f":"'PRESUPUESTO CONSOLIDADO'!B68:F68","v":0},null,null,{"$f":"'PRESUPUESTO CONSOLIDADO'!G68","v":0},null,0]
[{"$f":"'PRESUPUESTO CONSOLIDADO'!A69","v":0},{"$f":"'PRESUPUESTO CONSOLIDADO'!B69:F69","v":0},null,null,{"$f":"'PRESUPUESTO CONSOLIDADO'!G69","v":0},null,0]
[{"$f":"'PRESUPUESTO CONSOLIDADO'!A70","v":0},{"$f":"'PRESUPUESTO CONSOLIDADO'!B70:F70","v":0},null,null,{"$f":"'PRESUPUESTO CONSOLIDADO'!G70","v":0},null,0]
[{"$f":"'PRESUPUESTO CONSOLIDADO'!A71","v":0},{"$f":"'PRESUPUESTO CONSOLIDADO'!B71:F71","v":0},null,null,{"$f":"'PRESUPUESTO CONSOLIDADO'!G71","v":0},null,0]
[{"$f":"'PRESUPUESTO CONSOLIDADO'!A72","v":0},{"$f":"'PRESUPUESTO CONSOLIDADO'!B72:F72","v":0},null,null,{"$f":"'PRESUPUESTO CONSOLIDADO'!G72","v":0},null,0]
[{"$f":"'PRESUPUESTO CONSOLIDADO'!A73","v":0},{"$f":"'PRESUPUESTO CONSOLIDADO'!B73:F73","v":0},null,null,{"$f":"'PRESUPUESTO CONSOLIDADO'!G73","v":0},null,0]
[{"$f":"'PRESUPUESTO CONSOLIDADO'!A74","v":0},{"$f":"'PRESUPUESTO CONSOLIDADO'!B74:F74","v":0},null,null,{"$f":"'PRESUPUESTO CONSOLIDADO'!G74","v":0},null,0]
[{"$f":"'PRESUPUESTO CONSOLIDADO'!A75","v":0},{"$f":"'PRESUPUESTO CONSOLIDADO'!B75:F75","v":0},null,null,{"$f":"'PRESUPUESTO CONSOLIDADO'!G75","v":0},null,0]
[{"$f":"'PRESUPUESTO CONSOLIDADO'!A76","v":0},{"$f":"'PRESUPUESTO CONSOLIDADO'!B76:F76","v":0},null,null,{"$f":"'PRESUPUESTO CONSOLIDADO'!G76","v":0},null,0]
[{"$f":"'PRESUPUESTO CONSOLIDADO'!A77","v":0},{"$f":"'PRESUPUESTO CONSOLIDADO'!B77:F77","v":0},null,null,{"$f":"'PRESUPUESTO CONSOLIDADO'!G77","v":0},null,0]
[{"$f":"'PRESUPUESTO CONSOLIDADO'!A78","v":0},{"$f":"'PRESUPUESTO CONSOLIDADO'!B78:F78","v":0},null,null,{"$f":"'PRESUPUESTO CONSOLIDADO'!G78","v":0},null,0]
[{"$f":"'PRESUPUESTO CONSOLIDADO'!A79","v":0},{"$f":"'PRESUPUESTO CONSOLIDADO'!B79:F79","v":0},null,null,{"$f":"'PRESUPUESTO CONSOLIDADO'!G79","v":0},null,0]
[{"$f":"'PRESUPUESTO CONSOLIDADO'!A80","v":0},{"$f":"'PRESUPUESTO CONSOLIDADO'!B80:F80","v":0},null,null,{"$f":"'PRESUPUESTO CONSOLIDADO'!G80","v":0},null,0]
[{"$f":"'PRESUPUESTO CONSOLIDADO'!A81","v":0},{"$f":"'PRESUPUESTO CONSOLIDADO'!B81:F81","v":0},null,null,{"$f":"'PRESUPUESTO CONSOLIDADO'!G81","v":0},null,0]
[{"$f":"'PRESUPUESTO CONSOLIDADO'!A82","v":0},{"$f":"'PRESUPUESTO CONSOLIDADO'!B82:F82","v":0},null,null,{"$f":"'PRESUPUESTO CONSOLIDADO'!G82","v":0},null,0]
[{"$f":"'PRESUPUESTO CONSOLIDADO'!A83","v":0},{"$f":"'PRESUPUESTO CONSOLIDADO'!B83:F83","v":0},null,null,{"$f":"'PRESUPUESTO CONSOLIDADO'!G83","v":0},null,0]
[{"$f":"'PRESUPUESTO CONSOLIDADO'!A84","v":0},{"$f":"'PRESUPUESTO CONSOLIDADO'!B84:F84","v":0},null,null,{"$f":"'PRESUPUESTO CONSOLIDADO'!G84","v":0},null,0]
[{"$f":"'PRESUPUESTO CONSOLIDADO'!A85","v":0},{"$f":"'PRESUPUESTO CONSOLIDADO'!B85:F85","v":0},null,null,{"$f":"'PRESUPUESTO CONSOLIDADO'!G85","v":0},null,0]
[{"$f":"'PRESUPUESTO CONSOLIDADO'!A86","v":0},{"$f":"'PRESUPUESTO CONSOLIDADO'!B86:F86","v":0},null,null,{"$f":"'PRESUPUESTO CONSOLIDADO'!G86","v":0},null,0]
[{"$f":"'PRESUPUESTO CONSOLIDADO'!A87","v":0},{"$f":"'PRESUPUESTO CONSOLIDADO'!B87:F87","v":0},null,null,{"$f":"'PRESUPUESTO CONSOLIDADO'!G87","v":0},null,0]
[{"$f":"'PRESUPUESTO CONSOLIDADO'!A88","v":0},{"$f":"'PRESUPUESTO CONSOLIDADO'!B88:F88","v":0},null,null,{"$f":"'PRESUPUESTO CONSOLIDADO'!G88","v":0},null,0]
[{"$f":"'PRESUPUESTO CONSOLIDADO'!A89","v":0},{"$f":"'PRESUPUESTO CONSOLIDADO'!B89:F89","v":0},null,null,{"$f":"'PRESUPUESTO CONSOLIDADO'!G89","v":0},null,0]
[{"$f":"'PRESUPUESTO CONSOLIDADO'!A90","v":0},{"$f":"'PRESUPUESTO CONSOLIDADO'!B90:F90","v":0},null,null,{"$f":"'PRESUPUESTO CONSOLIDADO'!G90","v":0},null,0]
[{"$f":"'PRESUPUESTO CONSOLIDADO'!A91","v":0},{"$f":"'PRESUPUESTO CONSOLIDADO'!B91:F91","v":0},null,null,{"$f":"'PRESUPUESTO CONSOLIDADO'!G91","v":0},null,0]
[{"$f":"'PRESUPUESTO CONSOLIDADO'!A92","v":0},{"$f":"'PRESUPUESTO CONSOLIDADO'!B92:F92","v":0},null,null,{"$f":"'PRESUPUESTO CONSOLIDADO'!G92","v":0},null,0]
[{"$f":"'PRESUPUESTO CONSOLIDADO'!A93","v":0},{"$f":"'PRESUPUESTO CONSOLIDADO'!B93:F93","v":0},null,null,{"$f":"'PRESUPUESTO CONSOLIDADO'!G93","v":0},null,{"$f":"E90+F90","v":0}]
[{"$f":"'PRESUPUESTO CONSOLIDADO'!A94","v":0},{"$f":"'PRESUPUESTO CONSOLIDADO'!B94:F94","v":0},null,null,{"$f":"'PRESUPUESTO CONSOLIDADO'!G94","v":0},null,0]
[{"$f":"'PRESUPUESTO CONSOLIDADO'!A95","v":0},{"$f":"'PRESUPUESTO CONSOLIDADO'!B95:F95","v":0},null,null,{"$f":"'PRESUPUESTO CONSOLIDADO'!G95","v":0},null,0]
[{"$f":"'PRESUPUESTO CONSOLIDADO'!A96","v":0},{"$f":"'PRESUPUESTO CONSOLIDADO'!B96:F96","v":0},null,null,{"$f":"'PRESUPUESTO CONSOLIDADO'!G96","v":0},null,0]
[{"$f":"'PRESUPUESTO CONSOLIDADO'!A97","v":0},{"$f":"'PRESUPUESTO CONSOLIDADO'!B97:F97","v":0},null,null,{"$f":"'PRESUPUESTO CONSOLIDADO'!G97","v":0},null,0]
[{"$f":"'PRESUPUESTO CONSOLIDADO'!A98","v":0},{"$f":"'PRESUPUESTO CONSOLIDADO'!B98:F98","v":0},null,null,{"$f":"'PRESUPUESTO CONSOLIDADO'!G98","v":0},null,0]
[{"$f":"'PRESUPUESTO CONSOLIDADO'!A99","v":0},{"$f":"'PRESUPUESTO CONSOLIDADO'!B99:F99","v":0},null,null,{"$f":"'PRESUPUESTO CONSOLIDADO'!G99","v":0},null,0]
[{"$f":"'PRESUPUESTO CONSOLIDADO'!A100","v":0},{"$f":"'PRESUPUESTO CONSOLIDADO'!B100:F100","v":0},null,null,{"$f":"'PRESUPUESTO CONSOLIDADO'!G100","v":0},null,0]
[{"$f":"'PRESUPUESTO CONSOLIDADO'!A101","v":0},{"$f":"'PRESUPUESTO CONSOLIDADO'!B101:F101","v":0},null,null,{"$f":"'PRESUPUESTO CONSOLIDADO'!G101","v":0},null,0]
[{"$f":"'PRESUPUESTO CONSOLIDADO'!A102","v":0},{"$f":"'PRESUPUESTO CONSOLIDADO'!B102:F102","v":0},null,null,{"$f":"'PRESUPUESTO CONSOLIDADO'!G102","v":0},null,0]
[{"$f":"'PRESUPUESTO CONSOLIDADO'!A103","v":0},{"$f":"'PRESUPUESTO CONSOLIDADO'!B103:F103","v":0},null,null,{"$f":"'PRESUPUESTO CONSOLIDADO'!G103","v":0},null,0]
[{"$f":"'PRESUPUESTO CONSOLIDADO'!A104","v":0},{"$f":"'PRESUPUESTO CONSOLIDADO'!B104:F104","v":0},null,null,{"$f":"'PRESUPUESTO CONSOLIDADO'!G104","v":0},null,0]
[{"$f":"'PRESUPUESTO CONSOLIDADO'!A105","v":0},{"$f":"'PRESUPUESTO CONSOLIDADO'!B105:F105","v":0},null,null,{"$f":"'PRESUPUESTO CONSOLIDADO'!G105","v":0},null,0]
[{"$f":"'PRESUPUESTO CONSOLIDADO'!A106","v":0},{"$f":"'PRESUPUESTO CONSOLIDADO'!B106:F106","v":0},null,null,{"$f":"'PRESUPUESTO CONSOLIDADO'!G106","v":0},null,0]
[{"$f":"'PRESUPUESTO CONSOLIDADO'!A107","v":0},{"$f":"'PRESUPUESTO CONSOLIDADO'!B107:F107","v":0},null,null,{"$f":"'PRESUPUESTO CONSOLIDADO'!G107","v":0},null,0]
[{"$f":"'PRESUPUESTO CONSOLIDADO'!A108","v":2.5720220902050202E+19},{"$f":"'PRESUPUESTO CONSOLIDADO'!B108:F108","v":0},null,null,{"$f":"'PRESUPUESTO CONSOLIDADO'!G108","v":0},null,0]
[{"$f":"'PRESUPUESTO CONSOLIDADO'!A109","v":0},{"$f":"'PRESUPUESTO CONSOLIDADO'!B109:F109","v":0},null,null,{"$f":"'PRESUPUESTO CONSOLIDADO'!G109","v":0},null,0]
[{"$f":"'PRESUPUESTO CONSOLIDADO'!A110","v":0},{"$f":"'PRESUPUESTO CONSOLIDADO'!B110:F110","v":0},null,null,{"$f":"'PRESUPUESTO CONSOLIDADO'!G110","v":0},null,0]
[{"$f":"'PRESUPUESTO CONSOLIDADO'!A111","v":0},{"$f":"'PRESUPUESTO CONSOLIDADO'!B111:F111","v":0},null,null,{"$f":"'PRESUPUESTO CONSOLIDADO'!G111","v":0},null,0]
[{"$f":"'PRESUPUESTO CONSOLIDADO'!A112","v":0},{"$f":"'PRESUPUESTO CONSOLIDADO'!B112:F112","v":"TALLER DE FORMACION DOCENTE"},null,null,{"$f":"'PRESUPUESTO CONSOLIDADO'!G112","v":0},null,0]
[{"$f":"'PRESUPUESTO CONSOLIDADO'!A113","v":0},{"$f":"'PRESUPUESTO CONSOLIDADO'!B113:F113","v":0},null,null,{"$f":"'PRESUPUESTO CONSOLIDADO'!G113","v":0},null,0]
[{"$f":"'PRESUPUESTO CONSOLIDADO'!A114","v":0},{"$f":"'PRESUPUESTO CONSOLIDADO'!B114:F114","v":0},null,null,{"$f":"'PRESUPUESTO CONSOLIDADO'!G114","v":0},null,0]
[{"$f":"'PRESUPUESTO CONSOLIDADO'!A115","v":0},{"$f":"'PRESUPUESTO CONSOLIDADO'!B115:F115","v":0},null,null,{"$f":"'PRESUPUESTO CONSOLIDADO'!G115","v":0},null,0]
[{"$f":"'PRESUPUESTO CONSOLIDADO'!A116","v":0},{"$f":"'PRESUPUESTO CONSOLIDADO'!B116:F116","v":0},null,null,{"$f":"'PRESUPUESTO CONSOLIDADO'!G116","v":0},null,0]
[{"$f":"'PRESUPUESTO CONSOLIDADO'!A117","v":0},{"$f":"'PRESUPUESTO CONSOLIDADO'!B117:F117","v":0},null,null,{"$f":"'PRESUPUESTO CONSOLIDADO'!G117","v":0},null,0,"ADQ BIENES Y EQUIPOS"]
[{"$f":"'PRESUPUESTO CONSOLIDADO'!A118","v":0},{"$f":"'PRESUPUESTO CONSOLIDADO'!B118:F118","v":0},null,null,{"$f":"'PRESUPUESTO CONSOLIDADO'!G118","v":0},null,0,"ADQ BIENES Y EQUIPOS"]
[{"$f":"'PRESUPUESTO CONSOLIDADO'!A119","v":0},{"$f":"'PRESUPUESTO CONSOLIDADO'!B119:F119","v":0},null,null,{"$f":"'PRESUPUESTO CONSOLIDADO'!G119","v":0},null,0,"ADQ BIENES Y EQUIPOS"]
[{"$f":"'PRESUPUESTO CONSOLIDADO'!A120","v":0},{"$f":"'PRESUPUESTO CONSOLIDADO'!B120:F120","v":0},null,null,{"$f":"'PRESUPUESTO CONSOLIDADO'!G120","v":0},null,0]
[{"$f":"'PRESUPUESTO CONSOLIDADO'!A121","v":0},{"$f":"'PRESUPUESTO CONSOLIDADO'!B121:F121","v":0},null,null,{"$f":"'PRESUPUESTO CONSOLIDADO'!G121","v":0},null,0]
[{"$f":"'PRESUPUESTO CONSOLIDADO'!A122","v":0},{"$f":"'PRESUPUESTO CONSOLIDADO'!B122:F122","v":0},null,null,{"$f":"'PRESUPUESTO CONSOLIDADO'!G122","v":0},null,0]
[{"$f":"'PRESUPUESTO CONSOLIDADO'!A123","v":0},{"$f":"'PRESUPUESTO CONSOLIDADO'!B123:F123","v":0},null,null,{"$f":"'PRESUPUESTO CONSOLIDADO'!G123","v":0},null,0]
[{"$f":"'PRESUPUESTO CONSOLIDADO'!#REF!","v":{"$error":"#REF!"}},{"$f":"'PRESUPUESTO CONSOLIDADO'!#REF!","v":{"$error":"#REF!"}},null,null,{"$f":"'PRESUPUESTO CONSOLIDADO'!#REF!","v":{"$error":"#REF!"}},null,{"$f":"E121+F121","v":{"$error":"#REF!"}}]
[{"$f":"'PRESUPUESTO CONSOLIDADO'!#REF!","v":{"$error":"#REF!"}},{"$f":"'PRESUPUESTO CONSOLIDADO'!#REF!","v":{"$error":"#REF!"}},null,null,{"$f":"'PRESUPUESTO CONSOLIDADO'!#REF!","v":{"$error":"#REF!"}},null,{"$f":"E122+F122","v":{"$error":"#REF!"}}]
[{"$f":"'PRESUPUESTO CONSOLIDADO'!A124","v":0},{"$f":"'PRESUPUESTO CONSOLIDADO'!B124:F124","v":0},null,null,{"$f":"'PRESUPUESTO CONSOLIDADO'!G124","v":0},null,{"$f":"E123+F123","v":0}]
[{"$f":"'PRESUPUESTO CONSOLIDADO'!A130","v":0},{"$f":"'PRESUPUESTO CONSOLIDADO'!B130:F130","v":0},null,null,{"$f":"'PRESUPUESTO CONSOLIDADO'!G130","v":0},0,{"$f":"E124+F124","v":0},"POLIZA"]
["SUBTOTAL 1.",null,null,null,null,{"$f":"SUM(F29:F124)","v":0},null,null,null,null,null,null,null,null,"CALCULO GMF",{"$f":"($G$18*0.004)-#REF!","v":{"$error":"#REF!"}}]
[]
[{"$f":"'PRESUPUESTO CONSOLIDADO'!A131","v":0},{"$f":"'PRESUPUESTO CONSOLIDADO'!B131:F131","v":0},null,null,{"$f":"'PRESUPUESTO CONSOLIDADO'!G131","v":0},null,{"$f":"E127+F127","v":0},"APOYO ESTUDIANTES "]
[{"$f":"'PRESUPUESTO CONSOLIDADO'!A132","v":0},{"$f":"'PRESUPUESTO CONSOLIDADO'!B132:F132","v":0},null,null,{"$f":"'PRESUPUESTO CONSOLIDADO'!G132","v":0},null,{"$f":"E128+F128","v":0},"EQUIPO F.E."]
[{"$f":"'PRESUPUESTO CONSOLIDADO'!A133","v":0},{"$f":"'PRESUPUESTO CONSOLIDADO'!B133:F133","v":0},null,null,{"$f":"'PRESUPUESTO CONSOLIDADO'!G133","v":0},null,{"$f":"E129+F129","v":0},"4X1000"]
[null,null,null,null,null,null,null,null,null,null,null,null,null,null,"CALCULO AME",{"$f":"(SUM(#REF!+$G$125)*1%)-#REF!","v":{"$error":"#REF!"}}]
[]
[{"$f":"'PRESUPUESTO CONSOLIDADO'!#REF!","v":{"$error":"#REF!"}},"EXCEDENTES GENERADOS Modif (1)","# CLASIFICADOR","TOTAL EXCEDENTES GENERADOS EJECUCION PROYECTO",null,null,"Valor EXCEDENTES Modif (1)",null,0.45,"ADMINISTRACION CENTRAL  "]
[null,null,null,"% DISTRIBUCION (SELECCIONAR)","EXCEDENTE INICIAL","Adición/Modif 1",{"$f":"$G$18-$G$28","v":0},null,{"$f":"+I132+7.5%","v":0.52500000000000002},"SIN INCENTIVOS "]
[null,null,null,null,null,null,{"$f":"+E134-F134","v":0},null,0.4,"FACULTAD "]
[null,null,null,null,null,null,{"$f":"+E135-F135","v":0},null,{"$f":"+I134+7.5%","v":0.47500000000000003},"SIN INCENTIVOS "]
[null,null,null,null,null,null,0,null,0.15,"INCENTIVOS COORDINADOR "]
[]
[]
[null,null,null,null,null,null,null,null,0,"SIN INCENTIVOS "]
[null,"UNIVERSIDAD SURCOLOMBIANA",null,null,null,null,null,null,null,{"$f":"'PPTO DETALLADO'!C510","v":0}]
[null,"GESTIÓN FINANCIERA Y DE RECURSOS FÍSICOS "]
[null,"MODIFICACIONES PRESUPUESTO INGRESOS Y EGRESOS PROYECTOS DE LA FACULTAD DE SALUD SIN EXCEDENTES DE FONDOS ESPECIALES "]
["CODIGO","AP-FIN-FO-46","VERSIÓN:",1,"VIGENCIA:",2023,"Página 2 de 2"]
[]
["# Clasificador","Denominacion Clasificador ","Justificacion 1. Modificacion Clasificadores"]
[{"$f":"A19","v":0}]
[0]
[0]
[0]
[0]
[0]
[0]
[{"$f":"A29","v":0}]
[0]
[0]
[0]
[0]
[0]
[0]
[0]
[0]
[0]
[0]
[0]
[0]
[0]
[0]
[0]
[0]
[0]
[0]
[0]
[0]
[0]
[0]
[0]
[0]
[0]
["Observaciones: Acto mediante el cual el aspirante admitido adquiere la calidad de estudiante."]
[0]
[0]
[0]
[11022020120201]
[0]
[0]
[0]
[0]
[0]
[0]
[0]
[0]
[0]
[0]
[0]
[0]
[0]
[0]
[0]
[{"$f":"A71","v":0}]
[0]
[0]
[0]
[0]
[0]
[0]
[0]
[0]
[0]
[0]
[0]
[0]
[0]
[0]
[0]
[0]
[0]
[0]
[0]
[0]
[0]
[0]
[0]
[0]
[0]
[0]
[0]
[0]
[0]
[0]
[0]
[{"$f":"A103","v":0}]
[0]
[2.5720220902050202E+19]
[0]
[0]
[0]
[0]
[0]
[0]
[0]
[0]
[0]
[]
[]
[]
[]
[]
["FIRMA DECANO (A)",null,null,null,"FIRMA COORDINADOR (A)"]
[]
[]
[]
[]
[]
[]
[]
[null,null,null,null,null,null,null,null,"FALTA CUADRO ULTIMO DE SUSTENTACION DE LA MODIFICACION REALIZADA "]
[]
[null,null,null,null,null,null,null,null,null,"Neiva"]
[]
[]
[]
[null,"SEDE CENTRAL"]
[null,"ADMINISTRACION CENTRAL  ",null,null,0.45,{"$f":"#REF!*E263","v":{"$error":"#REF!"}}]
[null,"FACULTAD",null,null,0.4,{"$f":"#REF!*E264","v":{"$error":"#REF!"}}]
[null,"INCENTIVOS COORDINADOR ",null,null,0.15,{"$f":"#REF!*E265","v":{"$error":"#REF!"}}]
[null,null,null,null,{"$f":"SUM(E263:E265)","v":1},{"$f":"SUM(F263:F265)","v":{"$error":"#REF!"}}]
[]
[null,"OTROS CONVENIOS"]
[null,"ADMINISTRACION CENTRAL  ",null,null,0.5,{"$f":"#REF!*E269","v":{"$error":"#REF!"}}]
[null,"FACULTAD",null,null,0.5,{"$f":"#REF!*E270","v":{"$error":"#REF!"}}]
[null,"INCENTIVOS COORDINADOR ",null,null,0,{"$f":"#REF!*E271","v":{"$error":"#REF!"}}]
[null,null,null,null,{"$f":"SUM(E269:E271)","v":1},{"$f":"SUM(F269:F271)","v":{"$error":"#REF!"}}]
[null,"Neiva","Garzon","La Plata","Pitalito",null,null,null,null,null,"Garzon","La Plata","Pitalito"]
[null,{"$f":"IF(#REF!=\"Neiva\",$F$263,\"\")","v":{"$error":"#REF!"}},{"$f":"IF(#REF!=\"Garzon\",$F$263,\"\")","v":{"$error":"#REF!"}},{"$f":"IF(#REF!=\"La Plata\",$F$263,\"\")","v":{"$error":"#REF!"}},{"$f":"IF(#REF!=\"Pitalito\",$F$263,\"\")","v":{"$error":"#REF!"}}]
[null,{"$f":"IF(#REF!=\"Neiva\",$F$264,\"\")","v":{"$error":"#REF!"}},{"$f":"IF(#REF!=\"Garzon\",$F$264,\"\")","v":{"$error":"#REF!"}},{"$f":"IF(#REF!=\"La Plata\",$F$264,\"\")","v":{"$error":"#REF!"}},{"$f":"IF(#REF!=\"Pitalito\",$F$264,\"\")","v":{"$error":"#REF!"}}]
[null,{"$f":"IF(#REF!=\"Neiva\",$F$265,\"\")","v":{"$error":"#REF!"}},{"$f":"IF(#REF!=\"Garzon\",$F$265,\"\")","v":{"$error":"#REF!"}},{"$f":"IF(#REF!=\"La Plata\",$F$265,\"\")","v":{"$error":"#REF!"}},{"$f":"IF(#REF!=\"Pitalito\",$F$265,\"\")","v":{"$error":"#REF!"}}]
[null,{"$f":"SUM(B274:B276)","v":{"$error":"#REF!"}}]
[null,"Otros Convenios"]
[null,{"$f":"IF(#REF!=\"Otros Convenios\",$F$269,\"\")","v":{"$error":"#REF!"}}]
[null,{"$f":"IF(#REF!=\"Otros Convenios\",$F$270,\"\")","v":{"$error":"#REF!"}}]
[null,{"$f":"IF(#REF!=\"Otros Convenios\",$F$271,\"\")","v":{"$error":"#REF!"}}]
[null,{"$f":"SUM(B279:B281)","v":{"$error":"#REF!"}}]
[]
[]
[null,"Posgrados"]
[null,1,0.2,"El proyecto cumple con el excedente para Proyectos de Posgrados del 20% establecido en la Normatividad"]
[null,null,null,"El proyecto No cumple con el excedente para Proyectos de Posgrados del 20% establecido en la Normatividad"]
[null,null,null,null,null,null,null,null,null,"Garzon"]
[null,"Venta de Servicios",0.1,"El proyecto cumple con el excedente para Venta de Servicios del 10% establecido en la Normatividad",null,null,null,null,null,{"$f":"IFERROR(IF($C$304>0,$C$304+$C$308),0)","v":0}]
[null,null,null,"El proyecto No cumple con el excedente para Venta de Servicios del 10% establecido en la Normatividad",null,null,null,null,null,{"$f":"IFERROR(IF($C$305>0,$C$305+$C$308),0)","v":0}]
[]
[null,null,null,null,null,null,null,null,null,{"$f":"J289+J290","v":0}]
[null,{"$f":"IFERROR(B276/2,0)","v":0}]
[]
[]
[]
[]
[null,"ADMINISTRACION CENTRAL  ",null,0.45,{"$f":"IF((F298-INT(F298))<= 0.6,ROUNDDOWN(F298,0),ROUNDUP(F298,0))","v":0},{"$f":"(L57*D298)","v":0}]
[null,"FACULTAD",null,0.4,{"$f":"IF((F299-INT(F299))<= 0.6,ROUNDDOWN(F299,0),ROUNDUP(F299,0))","v":0},{"$f":"(L57*D299)","v":0}]
[null,"INCENTIVOS COORDINADOR ",null,0.15,0,{"$f":"(L57*D300)","v":0}]
[null,null,null,{"$f":"SUM(D298:D300)","v":1},{"$f":"SUM(E298:E300)","v":0}]
[]
[null,"Neiva","Garzon","La Plata","Pitalito","Total",null,null,"Neiva",null,"La Plata","Pitalito","Total"]
[null,{"$f":"IF(#REF!=\"Neiva\",$E$298,0)","v":{"$error":"#REF!"}},{"$f":"IF(#REF!=\"Garzón\",$E$298,0)","v":{"$error":"#REF!"}},{"$f":"IF(#REF!=\"La Plata\",$E$298,0)","v":{"$error":"#REF!"}},{"$f":"IF(#REF!=\"Pitalito\",$E$298,0)","v":{"$error":"#REF!"}},{"$f":"SUM(B304:E304)","v":{"$error":"#REF!"}},null,null,{"$f":"IFERROR(IF($B$304>0,$B$304+$B$308),0)","v":0},null,{"$f":"IFERROR(IF($D$304>0,$D$304+$D$308),0)","v":0},{"$f":"IFERROR(IF($E$304>0,$E$304+$E$308),0)","v":0},{"$f":"SUM(I304:L304)","v":0},{"$f":"IF((M304-INT(M304))<= 0.6,ROUNDDOWN(M304,0),ROUNDUP(M304,0))","v":0},{"$f":"N304","v":0},{"$f":"IF(N307>M307,TRUE,FALSE)","v":false},{"$f":"IF(N307>M307,N304+M308,N304)","v":0},"SI(N209>M209;N206-M210;N206)"]
[null,{"$f":"IF(#REF!=\"Neiva\",$E$299,0)","v":{"$error":"#REF!"}},{"$f":"IF(#REF!=\"Garzón\",$E$299,0)","v":{"$error":"#REF!"}},{"$f":"IF(#REF!=\"La Plata\",$E$299,0)","v":{"$error":"#REF!"}},{"$f":"IF(#REF!=\"Pitalito\",$E$299,0)","v":{"$error":"#REF!"}},{"$f":"SUM(B305:E305)","v":{"$error":"#REF!"}},null,null,{"$f":"IFERROR(IF($B$305>0,$B$305+$B$308),0)","v":0},null,{"$f":"IFERROR(IF($D$305>0,$D$305+$D$308),0)","v":0},{"$f":"IFERROR(IF($E$305>0,$E$305+$E$308),0)","v":0},{"$f":"SUM(I305:L305)","v":0},{"$f":"IF((M305-INT(M305))<= 0.6,ROUNDDOWN(M305,0),ROUNDUP(M305,0))","v":0},{"$f":"IF(N305>M305,N308-M308,N305+1)","v":1},{"$f":"IF(N308>M308,TRUE,FALSE)","v":false},{"$f":"IF(N307>M307,N305,N305+N308)","v":0},"SI(N209>M209;N207+M210;N207)"]
[null,{"$f":"IF(#REF!=\"Neiva\",$E$300,0)","v":{"$error":"#REF!"}},{"$f":"IF(#REF!=\"Garzón\",$E$300,0)","v":{"$error":"#REF!"}},{"$f":"IF(#REF!=\"La Plata\",$E$300,0)","v":{"$error":"#REF!"}},{"$f":"IF(#REF!=\"Pitalito\",$E$300,0)","v":{"$error":"#REF!"}},{"$error":"#REF!"},null,null,null,null,null,null,0]
[null,{"$f":"SUM(B304:B306)","v":{"$error":"#REF!"}},{"$f":"SUM(C304:C306)","v":{"$error":"#REF!"}},{"$f":"SUM(D304:D306)","v":{"$error":"#REF!"}},{"$f":"SUM(E304:E306)","v":{"$error":"#REF!"}},{"$error":"#REF!"},null,null,{"$f":"I304+I305","v":0},null,{"$f":"K304+K305","v":0},0,0,{"$f":"N304+N305","v":0}]
[null,{"$f":"IFERROR(B306/2,0)","v":0},{"$f":"IFERROR(C306/2,0)","v":0},{"$f":"IFERROR(D306/2,0)","v":0},{"$f":"IFERROR(E306/2,0)","v":0},0,null,null,null,null,null,null,{"$f":"N307-M307","v":0},{"$f":"M308*(-1)","v":0}]
[]
[]
[]
[]
[]
[]
[]
[]
[]
[]
[]
[]
[]
[]
[]
[]
[]
[]
[]
[]
[]
[]
[]
[]
[]
[]
[]
[]
[]
[]
[]
[]
[]
[]
[]
[]
[]
[]
[]
[]
[]
[]
[]
[]
[]
[]
[]
[]
[]
[]
[]
[]
[]
[]
[]
[]
[]
[]
[]
[]
[]
[]
[]
[]
[]
[]
[]
[]
[]
[]
[]
[null,{"$f":"'PRESUPUESTO CONSOLIDADO'!A20","v":0}]
[null,{"$f":"'PRESUPUESTO CONSOLIDADO'!A21","v":0}]
[null,{"$f":"'PRESUPUESTO CONSOLIDADO'!A22","v":0}]
[null,{"$f":"'PRESUPUESTO CONSOLIDADO'!A23","v":0}]
[null,{"$f":"'PRESUPUESTO CONSOLIDADO'!A24","v":0}]
[null,{"$f":"'PRESUPUESTO CONSOLIDADO'!A25","v":0}]
[null,{"$f":"'PRESUPUESTO CONSOLIDADO'!A26","v":0}]
[null,{"$f":"'PRESUPUESTO CONSOLIDADO'!A32","v":0}]
[null,{"$f":"'PRESUPUESTO CONSOLIDADO'!#REF!","v":{"$error":"#REF!"}}]
[null,{"$f":"'PRESUPUESTO CONSOLIDADO'!A33","v":0}]
[null,{"$f":"'PRESUPUESTO CONSOLIDADO'!A34","v":0}]
[null,{"$f":"'PRESUPUESTO CONSOLIDADO'!A35","v":0}]
[null,{"$f":"'PRESUPUESTO CONSOLIDADO'!A36","v":0}]
[null,{"$f":"'PRESUPUESTO CONSOLIDADO'!A37","v":0}]
[null,{"$f":"'PRESUPUESTO CONSOLIDADO'!A38","v":0}]
[null,{"$f":"'PRESUPUESTO CONSOLIDADO'!A39","v":0}]
[null,{"$f":"'PRESUPUESTO CONSOLIDADO'!A40","v":0}]
[null,{"$f":"'PRESUPUESTO CONSOLIDADO'!A41","v":0}]
[null,{"$f":"'PRESUPUESTO CONSOLIDADO'!A42","v":0}]
[null,{"$f":"'PRESUPUESTO CONSOLIDADO'!A43","v":0}]
[null,{"$f":"'PRESUPUESTO CONSOLIDADO'!A44","v":0}]
[null,{"$f":"'PRESUPUESTO CONSOLIDADO'!A45","v":0}]
[null,{"$f":"'PRESUPUESTO CONSOLIDADO'!A46","v":0}]
[null,{"$f":"'PRESUPUESTO CONSOLIDADO'!A47","v":0}]
[null,{"$f":"'PRESUPUESTO CONSOLIDADO'!A48","v":0}]
[null,{"$f":"'PRESUPUESTO CONSOLIDADO'!A49","v":0}]
[null,{"$f":"'PRESUPUESTO CONSOLIDADO'!A50","v":0}]
[null,{"$f":"'PRESUPUESTO CONSOLIDADO'!A51","v":0}]
[null,{"$f":"'PRESUPUESTO CONSOLIDADO'!A52","v":0}]
[null,{"$f":"'PRESUPUESTO CONSOLIDADO'!A53","v":0}]
[null,{"$f":"'PRESUPUESTO CONSOLIDADO'!A54","v":0}]
[null,{"$f":"'PRESUPUESTO CONSOLIDADO'!A55","v":0}]
[null,{"$f":"'PRESUPUESTO CONSOLIDADO'!A56","v":0}]
[null,{"$f":"'PRESUPUESTO CONSOLIDADO'!A57","v":0},null,null,null,null,null,null,null,"2034N"]
[null,{"$f":"'PRESUPUESTO CONSOLIDADO'!A58","v":"Observaciones: Acto mediante el cual el aspirante admitido adquiere la calidad de estudiante."},null,null,null,null,null,null,null,"2035N"]
[null,{"$f":"'PRESUPUESTO CONSOLIDADO'!A59","v":0},null,null,null,null,null,null,null,"2029N"]
[null,{"$f":"'PRESUPUESTO CONSOLIDADO'!A60","v":0},null,null,null,null,null,null,null,"2032N"]
[null,{"$f":"'PRESUPUESTO CONSOLIDADO'!A61","v":0},null,null,null,null,null,null,null,"2036N"]
[null,{"$f":"'PRESUPUESTO CONSOLIDADO'!A62","v":11022020120201},null,null,null,null,null,null,null,"2037N"]
[null,{"$f":"'PRESUPUESTO CONSOLIDADO'!A63","v":0},null,null,null,null,null,null,null,"2038N"]
[null,{"$f":"'PRESUPUESTO CONSOLIDADO'!#REF!","v":{"$error":"#REF!"}}]
[null,{"$f":"'PRESUPUESTO CONSOLIDADO'!#REF!","v":{"$error":"#REF!"}}]
[null,{"$f":"'PRESUPUESTO CONSOLIDADO'!#REF!","v":{"$error":"#REF!"}}]
[null,{"$f":"'PRESUPUESTO CONSOLIDADO'!#REF!","v":{"$error":"#REF!"}}]
[null,{"$f":"'PRESUPUESTO CONSOLIDADO'!#REF!","v":{"$error":"#REF!"}}]

{"sheet":"2a Modificacion Presupuestal ","index":4,"n_rows":440,"n_cols":18,"rows_kept":440,"cut":false,"hidden":false,"merged":[[13,5,13,6],[7,1,7,3],[7,4,7,5],[8,0,8,1],[8,3,8,4],[8,5,8,6],[0,0,2,0],[0,1,0,5],[0,6,2,6],[1,1,1,5],[2,1,2,5],[5,0,5,6],[10,3,10,4],[11,0,11,6],[12,1,12,3],[12,5,12,6],[9,1,9,3],[22,1,22,3],[16,0,16,3],[17,1,17,3],[18,1,18,3],[19,1,19,3],[20,1,20,3],[21,1,21,3],[13,1,13,3],[41,1,41,3],[29,1,29,3],[30,1,30,3],[31,1,31,3],[32,1,32,3],[33,1,33,3],[34,1,34,3],[23,1,23,3],[24,1,24,3],[26,0,26,3],[27,1,27,3],[28,1,28,3],[42,1,42,3],[43,1,43,3],[44,1,44,3],[45,1,45,3],[46,1,46,3],[35,1,35,3],[36,1,36,3],[37,1,37,3],[38,1,38,3],[39,1,39,3],[40,1,40,3],[53,1,53,3],[54,1,54,3],[55,1,55,3],[56,1,56,3],[57,1,57,3],[58,1,58,3],[47,1,47,3],[48,1,48,3],[49,1,49,3],[50,1,50,3],[51,1,51,3],[52,1,52,3],[65,1,65,3],[66,1,66,3],[67,1,67,3],[68,1,68,3],[69,1,69,3],[79,1,79,3],[59,1,59,3],[60,1,60,3],[61,1,61,3],[62,1,62,3],[63,1,63,3],[64,1,64,3],[73,1,73,3],[74,1,74,3],[75,1,75,3],[76,1,76,3],[77,1,77,3],[78,1,78,3],[70,1,70,3],[71,1,71,3],[72,1,72,3],[85,1,85,3],[86,1,86,3],[87,1,87,3],[88,1,88,3],[89,1,89,3],[90,1,90,3],[80,1,80,3],[81,1,81,3],[82,1,82,3],[83,1,83,3],[84,1,84,3],[97,1,97,3],[98,1,98,3],[99,1,99,3],[100,1,100,3],[101,1,101,3],[102,1,102,3],[91,1,91,3],[92,1,92,3],[93,1,93,3],[94,1,94,3],[95,1,95,3],[96,1,96,3],[109,1,109,3],[110,1,110,3],[111,1,111,3],[112,1,112,3],[113,1,113,3],[114,1,114,3],[103,1,103,3],[104,1,104,3],[105,1,105,3],[106,1,106,3],[107,1,107,3],[108,1,108,3],[121,1,121,3],[122,1,122,3],[123,1,123,3],[126,1,126,3],[127,1,127,3],[124,0,124,3],[115,1,115,3],[116,1,116,3],[117,1,117,3],[118,1,118,3],[119,1,119,3],[120,1,120,3],[133,0,135,0],[133,1,135,1],[139,0,141,0],[139,1,139,5],[139,6,141,6],[140,1,140,5],[141,1,141,5],[128,1,128,3],[131,0,132,0],[131,1,132,1],[131,2,132,2],[131,3,131,5],[144,2,144,6],[145,2,145,6],[146,2,146,6],[147,2,147,6],[148,2,148,6],[149,2,149,6],[150,2,150,6],[151,2,151,6],[152,2,152,6],[153,2,153,6],[154,2,154,6],[155,2,155,6],[156,2,156,6],[157,2,157,6],[158,2,158,6],[159,2,159,6],[160,2,160,6],[161,2,161,6],[162,2,162,6],[163,2,163,6],[164,2,164,6],[165,2,165,6],[166,2,166,6],[167,2,167,6],[168,2,168,6],[169,2,169,6],[170,2,170,6],[171,2,171,6],[172,2,172,6],[173,2,173,6],[174,2,174,6],[175,2,175,6],[176,2,176,6],[177,2,177,6],[178,2,178,6],[179,2,179,6],[180,2,180,6],[181,2,181,6],[182,2,182,6],[183,2,183,6],[184,2,184,6],[185,2,185,6],[186,2,186,6],[187,2,187,6],[188,2,188,6],[189,2,189,6],[190,2,190,6],[191,2,191,6],[192,2,192,6],[193,2,193,6],[194,2,194,6],[195,2,195,6],[196,2,196,6],[197,2,197,6],[198,2,198,6],[199,2,199,6],[200,2,200,6],[201,2,201,6],[202,2,202,6],[203,2,203,6],[204,2,204,6],[205,2,205,6],[206,2,206,6],[207,2,207,6],[208,2,208,6],[209,2,209,6],[210,2,210,6],[211,2,211,6],[212,2,212,6],[213,2,213,6],[214,2,214,6],[215,2,215,6],[216,2,216,6],[217,2,217,6],[218,2,218,6],[219,2,219,6],[220,2,220,6],[221,2,221,6],[222,2,222,6],[223,2,223,6],[224,2,224,6],[225,2,225,6],[226,2,226,6],[227,2,227,6],[228,2,228,6],[229,2,229,6],[230,2,230,6],[231,2,231,6],[232,2,232,6],[233,2,233,6],[234,2,234,6],[235,2,235,6],[236,2,236,6],[237,2,237,6],[238,2,238,6],[239,2,239,6],[240,2,240,6],[241,2,241,6],[242,2,242,6],[243,2,243,6],[244,2,244,6],[245,2,245,6],[246,2,246,6],[263,0,263,2],[263,4,263,6],[247,2,247,6],[248,2,248,6],[249,2,249,6],[250,2,250,6],[251,2,251,6],[252,2,252,6],[253,2,253,6],[254,2,254,6],[255,2,255,6],[256,2,256,6],[257,2,257,6],[286,1,286,3],[287,1,287,3],[280,1,280,3],[281,1,281,3],[282,1,282,3],[283,1,283,6],[284,1,284,3],[285,1,285,3],[266,0,266,6],[268,0,268,6],[277,1,277,6],[278,1,278,3],[278,6,279,6],[279,1,279,3]]}
[null,"UNIVERSIDAD SURCOLOMBIANA",null,null,null,null,null,null,null,{"$f":"'PPTO DETALLADO'!#REF!","v":{"$error":"#REF!"}}]
[null,"GESTIÓN FINANCIERA Y DE RECURSOS FÍSICOS "]
[null,"MODIFICACIONES PRESUPUESTO INGRESOS Y EGRESOS PROYECTOS DE LA FACULTAD DE SALUD SIN EXCEDENTES DE FONDOS ESPECIALES "]
["CODIGO","AP-FIN-FO-46","VERSIÓN:",1,"VIGENCIA:",2023,"Pagina 1 de 2"]
[]
["SEGUNDA MODIFICACIÓN PRESUPUESTAL\nINFORMACION GENERAL DEL PROYECTO"]
[]
[{"$f":"'PPTO DETALLADO'!A9","v":"Facultad"},null,null,null,{"$f":"'PPTO DETALLADO'!H8","v":"Total Proyectos aprobados por la Facultad en la Vigencia"}]
[{"$f":"'PPTO DETALLADO'!F9","v":"N° Acta de aprobación Consejo Facultad"},null,null,"Fecha Aprobación 2. Modificación Acta Consejo Facultad MES/DIA/AÑO"]
[{"$f":"'PPTO DETALLADO'!A10","v":"Nombre del Proyecto"},null,null,null,{"$f":"'PPTO DETALLADO'!I10","v":"Codigo Proyecto "}]
[{"$f":"'PPTO DETALLADO'!A13","v":"Tipo de Proyecto"},null,{"$f":"'PPTO DETALLADO'!D13","v":"N° Cuenta  Bancaria"},null,null,"N° Modificion (Seleccionar)",null,null,null,null,null,null,null,null,null,null,null,1]
["Tiempo de ejecución ",null,null,null,null,null,null,null,null,null,null,null,null,null,null,null,null,2]
[{"$f":"'PPTO DETALLADO'!A16","v":"Fecha de Inicio "},null,null,null,{"$f":"'PPTO DETALLADO'!H16","v":"Fecha Finalización "},null,null,null,null,null,null,null,null,null,null,null,null,3]
[{"$f":"'PPTO DETALLADO'!A19:C19","v":"Coordinador Asignado"},null,null,null,{"$f":"'PPTO DETALLADO'!A21","v":"Nombre Ordenador del Gasto "}]
[]
[null,null,null,null,null,null,null,null,null,null,null,2]
["A. INGRESOS DEL PROYECTO",null,null,null,"Ingreso Presup Modif. 1.","Adición/Modif","Total Ingreso Ajustado Modif (2)",null,null,null,null,3]
["# CLASIFICADOR","DENOMINACION CLASIFICADOR",null,null,{"$f":"SUM(E19:E25)","v":0},{"$f":"SUM(F19:F25)","v":0},{"$f":"SUM(G19:G25)","v":0}]
[{"$f":"'1a Modificacion Presupuestal'!A19","v":0},{"$f":"'1a Modificacion Presupuestal'!B19:D19","v":0},null,null,{"$f":"'1a Modificacion Presupuestal'!G19","v":0},null,{"$f":"$E$19+$F$19","v":0}]
[{"$f":"'1a Modificacion Presupuestal'!A20","v":0},{"$f":"'1a Modificacion Presupuestal'!B20:D20","v":0},null,null,{"$f":"'1a Modificacion Presupuestal'!G20","v":0},null,{"$f":"$E$20+$F$20","v":0}]
[{"$f":"'1a Modificacion Presupuestal'!A21","v":0},{"$f":"'1a Modificacion Presupuestal'!B21:D21","v":0},null,null,{"$f":"'1a Modificacion Presupuestal'!G21","v":0},null,{"$f":"$E$21+$F$21","v":0}]
[{"$f":"'1a Modificacion Presupuestal'!A22","v":0},{"$f":"'1a Modificacion Presupuestal'!B22:D22","v":0},null,null,{"$f":"'1a Modificacion Presupuestal'!G22","v":0},null,{"$f":"$E$22+$F$22","v":0}]
[{"$f":"'1a Modificacion Presupuestal'!A23","v":0},{"$f":"'1a Modificacion Presupuestal'!B23:D23","v":0},null,null,{"$f":"'1a Modificacion Presupuestal'!G23","v":0},null,{"$f":"$E$23+$F$23","v":0}]
[{"$f":"'1a Modificacion Presupuestal'!A24","v":0},{"$f":"'1a Modificacion Presupuestal'!B24:D24","v":0},null,null,{"$f":"'1a Modificacion Presupuestal'!G24","v":0},null,{"$f":"$E$24+$F$24","v":0}]
[{"$f":"'1a Modificacion Presupuestal'!A25","v":0},{"$f":"'1a Modificacion Presupuestal'!B25:D25","v":0},null,null,{"$f":"'1a Modificacion Presupuestal'!G25","v":0},null,{"$f":"$E$25+$F$25","v":0}]
[]
["B. EGRESOS DEL PROYECTO",null,null,null,"Egreso Presup Modif. 1","Adición/Modif","Total Egreso Ajustado Modif (2)"]
["# CLASIFICADOR","DENOMINACION CLASIFICADOR",null,null,{"$f":"E125+E127+E128+E129","v":0},{"$f":"SUM(F29:F123)+F124+F127+F128+F129","v":0},{"$f":"G125+G124+G127+G128+G129","v":0}]
[{"$f":"'1a Modificacion Presupuestal'!A29","v":0},{"$f":"'1a Modificacion Presupuestal'!B29:D29","v":0},null,null,{"$f":"'1a Modificacion Presupuestal'!G29","v":0},null,{"$f":"E29+F29","v":0}]
[{"$f":"'1a Modificacion Presupuestal'!A30","v":0},{"$f":"'1a Modificacion Presupuestal'!B30:D30","v":0},null,null,{"$f":"'1a Modificacion Presupuestal'!G30","v":0},null,{"$f":"E30+F30","v":0}]
[{"$f":"'1a Modificacion Presupuestal'!A31","v":0},{"$f":"'1a Modificacion Presupuestal'!B31:D31","v":0},null,null,{"$f":"'1a Modificacion Presupuestal'!G31","v":0},null,0]
[{"$f":"'1a Modificacion Presupuestal'!A32","v":0},{"$f":"'1a Modificacion Presupuestal'!B32:D32","v":0},null,null,{"$f":"'1a Modificacion Presupuestal'!G32","v":0},null,0]
[{"$f":"'1a Modificacion Presupuestal'!A33","v":0},{"$f":"'1a Modificacion Presupuestal'!B33:D33","v":0},null,null,{"$f":"'1a Modificacion Presupuestal'!G33","v":0},null,0]
[{"$f":"'1a Modificacion Presupuestal'!A34","v":0},{"$f":"'1a Modificacion Presupuestal'!B34:D34","v":0},null,null,{"$f":"'1a Modificacion Presupuestal'!G34","v":0},null,0]
[{"$f":"'1a Modificacion Presupuestal'!A35","v":0},{"$f":"'1a Modificacion Presupuestal'!B35:D35","v":0},null,null,{"$f":"'1a Modificacion Presupuestal'!G35","v":0},null,0]
[{"$f":"'1a Modificacion Presupuestal'!A36","v":0},{"$f":"'1a Modificacion Presupuestal'!B36:D36","v":0},null,null,{"$f":"'1a Modificacion Presupuestal'!G36","v":0},null,0]
[{"$f":"'1a Modificacion Presupuestal'!A37","v":0},{"$f":"'1a Modificacion Presupuestal'!B37:D37","v":0},null,null,{"$f":"'1a Modificacion Presupuestal'!G37","v":0},null,0]
[{"$f":"'1a Modificacion Presupuestal'!A38","v":0},{"$f":"'1a Modificacion Presupuestal'!B38:D38","v":0},null,null,{"$f":"'1a Modificacion Presupuestal'!G38","v":0},null,0]
[{"$f":"'1a Modificacion Presupuestal'!A39","v":0},{"$f":"'1a Modificacion Presupuestal'!B39:D39","v":0},null,null,{"$f":"'1a Modificacion Presupuestal'!G39","v":0},null,0]
[{"$f":"'1a Modificacion Presupuestal'!A40","v":0},{"$f":"'1a Modificacion Presupuestal'!B40:D40","v":0},null,null,{"$f":"'1a Modificacion Presupuestal'!G40","v":0},null,0]
[{"$f":"'1a Modificacion Presupuestal'!A41","v":0},{"$f":"'1a Modificacion Presupuestal'!B41:D41","v":0},null,null,{"$f":"'1a Modificacion Presupuestal'!G41","v":0},null,0]
[{"$f":"'1a Modificacion Presupuestal'!A42","v":0},{"$f":"'1a Modificacion Presupuestal'!B42:D42","v":0},null,null,{"$f":"'1a Modificacion Presupuestal'!G42","v":0},null,0]
[{"$f":"'1a Modificacion Presupuestal'!A43","v":0},{"$f":"'1a Modificacion Presupuestal'!B43:D43","v":0},null,null,{"$f":"'1a Modificacion Presupuestal'!G43","v":0},null,0]
[{"$f":"'1a Modificacion Presupuestal'!A44","v":0},{"$f":"'1a Modificacion Presupuestal'!B44:D44","v":0},null,null,{"$f":"'1a Modificacion Presupuestal'!G44","v":0},null,0]
[{"$f":"'1a Modificacion Presupuestal'!A45","v":0},{"$f":"'1a Modificacion Presupuestal'!B45:D45","v":0},null,null,{"$f":"'1a Modificacion Presupuestal'!G45","v":0},null,0]
[{"$f":"'1a Modificacion Presupuestal'!A46","v":0},{"$f":"'1a Modificacion Presupuestal'!B46:D46","v":0},null,null,{"$f":"'1a Modificacion Presupuestal'!G46","v":0},null,0]
[{"$f":"'1a Modificacion Presupuestal'!A47","v":0},{"$f":"'1a Modificacion Presupuestal'!B47:D47","v":0},null,null,{"$f":"'1a Modificacion Presupuestal'!G47","v":0},null,0]
[{"$f":"'1a Modificacion Presupuestal'!A48","v":0},{"$f":"'1a Modificacion Presupuestal'!B48:D48","v":0},null,null,{"$f":"'1a Modificacion Presupuestal'!G48","v":0},null,0]
[{"$f":"'1a Modificacion Presupuestal'!A49","v":0},{"$f":"'1a Modificacion Presupuestal'!B49:D49","v":0},null,null,{"$f":"'1a Modificacion Presupuestal'!G49","v":0},null,0]
[{"$f":"'1a Modificacion Presupuestal'!A50","v":0},{"$f":"'1a Modificacion Presupuestal'!B50:D50","v":0},null,null,{"$f":"'1a Modificacion Presupuestal'!G50","v":0},null,0]
[{"$f":"'1a Modificacion Presupuestal'!A51","v":0},{"$f":"'1a Modificacion Presupuestal'!B51:D51","v":0},null,null,{"$f":"'1a Modificacion Presupuestal'!G51","v":0},null,0]
[{"$f":"'1a Modificacion Presupuestal'!A52","v":0},{"$f":"'1a Modificacion Presupuestal'!B52:D52","v":0},null,null,{"$f":"'1a Modificacion Presupuestal'!G52","v":0},null,0]
[{"$f":"'1a Modificacion Presupuestal'!A53","v":0},{"$f":"'1a Modificacion Presupuestal'!B53:D53","v":0},null,null,{"$f":"'1a Modificacion Presupuestal'!G53","v":0},null,0]
[{"$f":"'1a Modificacion Presupuestal'!A54","v":0},{"$f":"'1a Modificacion Presupuestal'!B54:D54","v":0},null,null,{"$f":"'1a Modificacion Presupuestal'!G54","v":0},null,0]
[null,{"$f":"'1a Modificacion Presupuestal'!B55:D55","v":0},null,null,{"$f":"'1a Modificacion Presupuestal'!G55","v":0},null,0]
[{"$f":"'1a Modificacion Presupuestal'!A56","v":0},{"$f":"'1a Modificacion Presupuestal'!B56:D56","v":0},null,null,{"$f":"'1a Modificacion Presupuestal'!G56","v":0},null,0]
[{"$f":"'1a Modificacion Presupuestal'!A57","v":0},{"$f":"'1a Modificacion Presupuestal'!B57:D57","v":0},null,null,{"$f":"'1a Modificacion Presupuestal'!G57","v":0},null,0]
[{"$f":"'1a Modificacion Presupuestal'!A58","v":0},{"$f":"'1a Modificacion Presupuestal'!B58:D58","v":0},null,null,{"$f":"'1a Modificacion Presupuestal'!G58","v":0},null,0]
[null,null,null,null,{"$f":"'1a Modificacion Presupuestal'!G59","v":0},null,0]
[{"$f":"'1a Modificacion Presupuestal'!A60","v":0},{"$f":"'1a Modificacion Presupuestal'!B60:D60","v":0},null,null,{"$f":"'1a Modificacion Presupuestal'!G60","v":0},null,0]
[{"$f":"'1a Modificacion Presupuestal'!A61","v":0},{"$f":"'1a Modificacion Presupuestal'!B61:D61","v":0},null,null,{"$f":"'1a Modificacion Presupuestal'!G61","v":0},null,0]
[{"$f":"'1a Modificacion Presupuestal'!A62","v":0},{"$f":"'1a Modificacion Presupuestal'!B62:D62","v":0},null,null,{"$f":"'1a Modificacion Presupuestal'!G62","v":0},null,0]
[{"$f":"'1a Modificacion Presupuestal'!A63","v":0},{"$f":"'1a Modificacion Presupuestal'!B63:D63","v":0},null,null,{"$f":"'1a Modificacion Presupuestal'!G63","v":0},null,0]
[{"$f":"'1a Modificacion Presupuestal'!A64","v":0},{"$f":"'1a Modificacion Presupuestal'!B64:D64","v":0},null,null,{"$f":"'1a Modificacion Presupuestal'!G64","v":0},null,0]
[{"$f":"'1a Modificacion Presupuestal'!A65","v":0},{"$f":"'1a Modificacion Presupuestal'!B65:D65","v":0},null,null,{"$f":"'1a Modificacion Presupuestal'!G65","v":0},null,0]
[{"$f":"'1a Modificacion Presupuestal'!A66","v":0},{"$f":"'1a Modificacion Presupuestal'!B66:D66","v":0},null,null,{"$f":"'1a Modificacion Presupuestal'!G66","v":0},null,0]
[{"$f":"'1a Modificacion Presupuestal'!A67","v":0},{"$f":"'1a Modificacion Presupuestal'!B67:D67","v":0},null,null,{"$f":"'1a Modificacion Presupuestal'!G67","v":0},null,0]
[{"$f":"'1a Modificacion Presupuestal'!A68","v":0},{"$f":"'1a Modificacion Presupuestal'!B68:D68","v":0},null,null,{"$f":"'1a Modificacion Presupuestal'!G68","v":0},null,0]
[{"$f":"'1a Modificacion Presupuestal'!A69","v":0},{"$f":"'1a Modificacion Presupuestal'!B69:D69","v":0},null,null,{"$f":"'1a Modificacion Presupuestal'!G69","v":0},null,0]
[{"$f":"'1a Modificacion Presupuestal'!A70","v":0},{"$f":"'1a Modificacion Presupuestal'!B70:D70","v":0},null,null,{"$f":"'1a Modificacion Presupuestal'!G70","v":0},null,0]
[{"$f":"'1a Modificacion Presupuestal'!A71","v":0},{"$f":"'1a Modificacion Presupuestal'!B71:D71","v":0},null,null,{"$f":"'1a Modificacion Presupuestal'!G71","v":0},null,0]
[{"$f":"'1a Modificacion Presupuestal'!A72","v":0},{"$f":"'1a Modificacion Presupuestal'!B72:D72","v":0},null,null,{"$f":"'1a Modificacion Presupuestal'!G72","v":0},null,0]
[{"$f":"'1a Modificacion Presupuestal'!A73","v":0},{"$f":"'1a Modificacion Presupuestal'!B73:D73","v":0},null,null,{"$f":"'1a Modificacion Presupuestal'!G73","v":0},null,0]
[{"$f":"'1a Modificacion Presupuestal'!A74","v":0},{"$f":"'1a Modificacion Presupuestal'!B74:D74","v":0},null,null,{"$f":"'1a Modificacion Presupuestal'!G74","v":0},null,0]
[{"$f":"'1a Modificacion Presupuestal'!A75","v":0},{"$f":"'1a Modificacion Presupuestal'!B75:D75","v":0},null,null,{"$f":"'1a Modificacion Presupuestal'!G75","v":0},null,0]
[{"$f":"'1a Modificacion Presupuestal'!A76","v":0},{"$f":"'1a Modificacion Presupuestal'!B76:D76","v":0},null,null,{"$f":"'1a Modificacion Presupuestal'!G76","v":0},null,0]
[{"$f":"'1a Modificacion Presupuestal'!A77","v":0},{"$f":"'1a Modificacion Presupuestal'!B77:D77","v":0},null,null,{"$f":"'1a Modificacion Presupuestal'!G77","v":0},null,0]
[{"$f":"'1a Modificacion Presupuestal'!A78","v":0},{"$f":"'1a Modificacion Presupuestal'!B78:D78","v":0},null,null,{"$f":"'1a Modificacion Presupuestal'!G78","v":0},null,0]
[{"$f":"'1a Modificacion Presupuestal'!A79","v":0},{"$f":"'1a Modificacion Presupuestal'!B79:D79","v":0},null,null,{"$f":"'1a Modificacion Presupuestal'!G79","v":0},null,0]
[{"$f":"'1a Modificacion Presupuestal'!A80","v":0},{"$f":"'1a Modificacion Presupuestal'!B80:D80","v":0},null,null,{"$f":"'1a Modificacion Presupuestal'!G80","v":0},null,0]
[{"$f":"'1a Modificacion Presupuestal'!A81","v":0},{"$f":"'1a Modificacion Presupuestal'!B81:D81","v":0},null,null,{"$f":"'1a Modificacion Presupuestal'!G81","v":0},null,0]
[{"$f":"'1a Modificacion Presupuestal'!A82","v":0},{"$f":"'1a Modificacion Presupuestal'!B82:D82","v":0},null,null,{"$f":"'1a Modificacion Presupuestal'!G82","v":0},null,0]
[{"$f":"'1a Modificacion Presupuestal'!A83","v":0},{"$f":"'1a Modificacion Presupuestal'!B83:D83","v":0},null,null,{"$f":"'1a Modificacion Presupuestal'!G83","v":0},null,0]
[{"$f":"'1a Modificacion Presupuestal'!A84","v":0},{"$f":"'1a Modificacion Presupuestal'!B84:D84","v":0},null,null,{"$f":"'1a Modificacion Presupuestal'!G84","v":0},null,0]
[{"$f":"'1a Modificacion Presupuestal'!A85","v":0},{"$f":"'1a Modificacion Presupuestal'!B85:D85","v":0},null,null,{"$f":"'1a Modificacion Presupuestal'!G85","v":0},null,0]
[{"$f":"'1a Modificacion Presupuestal'!A86","v":0},{"$f":"'1a Modificacion Presupuestal'!B86:D86","v":0},null,null,{"$f":"'1a Modificacion Presupuestal'!G86","v":0},null,0]
[{"$f":"'1a Modificacion Presupuestal'!A87","v":0},{"$f":"'1a Modificacion Presupuestal'!B87:D87","v":0},null,null,{"$f":"'1a Modificacion Presupuestal'!G87","v":0},null,0]
[{"$f":"'1a Modificacion Presupuestal'!A88","v":0},{"$f":"'1a Modificacion Presupuestal'!B88:D88","v":0},null,null,{"$f":"'1a Modificacion Presupuestal'!G88","v":0},null,0]
[{"$f":"'1a Modificacion Presupuestal'!A89","v":0},{"$f":"'1a Modificacion Presupuestal'!B89:D89","v":0},null,null,{"$f":"'1a Modificacion Presupuestal'!G89","v":0},null,0]
[{"$f":"'1a Modificacion Presupuestal'!A90","v":0},{"$f":"'1a Modificacion Presupuestal'!B90:D90","v":0},null,null,{"$f":"'1a Modificacion Presupuestal'!G90","v":0},null,{"$f":"E90+F90","v":0}]
[{"$f":"'1a Modificacion Presupuestal'!A91","v":0},{"$f":"'1a Modificacion Presupuestal'!B91:D91","v":0},null,null,{"$f":"'1a Modificacion Presupuestal'!G91","v":0},null,0]
[{"$f":"'1a Modificacion Presupuestal'!A92","v":0},{"$f":"'1a Modificacion Presupuestal'!B92:D92","v":0},null,null,{"$f":"'1a Modificacion Presupuestal'!G92","v":0},null,0]
[{"$f":"'1a Modificacion Presupuestal'!A93","v":0},{"$f":"'1a Modificacion Presupuestal'!B93:D93","v":0},null,null,{"$f":"'1a Modificacion Presupuestal'!G93","v":0},null,0]
[{"$f":"'1a Modificacion Presupuestal'!A94","v":0},{"$f":"'1a Modificacion Presupuestal'!B94:D94","v":0},null,null,{"$f":"'1a Modificacion Presupuestal'!G94","v":0},null,0]
[{"$f":"'1a Modificacion Presupuestal'!A95","v":0},{"$f":"'1a Modificacion Presupuestal'!B95:D95","v":0},null,null,{"$f":"'1a Modificacion Presupuestal'!G95","v":0},null,0]
[{"$f":"'1a Modificacion Presupuestal'!A96","v":0},{"$f":"'1a Modificacion Presupuestal'!B96:D96","v":0},null,null,{"$f":"'1a Modificacion Presupuestal'!G96","v":0},null,0]
[{"$f":"'1a Modificacion Presupuestal'!A97","v":0},{"$f":"'1a Modificacion Presupuestal'!B97:D97","v":0},null,null,{"$f":"'1a Modificacion Presupuestal'!G97","v":0},null,0]
[{"$f":"'1a Modificacion Presupuestal'!A98","v":0},{"$f":"'1a Modificacion Presupuestal'!B98:D98","v":0},null,null,{"$f":"'1a Modificacion Presupuestal'!G98","v":0},null,0]
[{"$f":"'1a Modificacion Presupuestal'!A99","v":0},{"$f":"'1a Modificacion Presupuestal'!B99:D99","v":0},null,null,{"$f":"'1a Modificacion Presupuestal'!G99","v":0},null,0]
[{"$f":"'1a Modificacion Presupuestal'!A100","v":0},{"$f":"'1a Modificacion Presupuestal'!B100:D100","v":0},null,null,{"$f":"'1a Modificacion Presupuestal'!G100","v":0},null,0]
[{"$f":"'1a Modificacion Presupuestal'!A101","v":0},{"$f":"'1a Modificacion Presupuestal'!B101:D101","v":0},null,null,{"$f":"'1a Modificacion Presupuestal'!G101","v":0},null,0]
[{"$f":"'1a Modificacion Presupuestal'!A102","v":0},{"$f":"'1a Modificacion Presupuestal'!B102:D102","v":0},null,null,{"$f":"'1a Modificacion Presupuestal'!G102","v":0},null,0]
[{"$f":"'1a Modificacion Presupuestal'!A103","v":0},{"$f":"'1a Modificacion Presupuestal'!B103:D103","v":0},null,null,{"$f":"'1a Modificacion Presupuestal'!G103","v":0},null,0]
[{"$f":"'1a Modificacion Presupuestal'!A104","v":0},{"$f":"'1a Modificacion Presupuestal'!B104:D104","v":0},null,null,{"$f":"'1a Modificacion Presupuestal'!G104","v":0},null,0]
[null,{"$f":"'1a Modificacion Presupuestal'!B105:D105","v":0},null,null,{"$f":"'1a Modificacion Presupuestal'!G105","v":0},null,0]
[{"$f":"'1a Modificacion Presupuestal'!A106","v":0},{"$f":"'1a Modificacion Presupuestal'!B106:D106","v":0},null,null,{"$f":"'1a Modificacion Presupuestal'!G106","v":0},null,0]
[{"$f":"'1a Modificacion Presupuestal'!A107","v":0},{"$f":"'1a Modificacion Presupuestal'!B107:D107","v":0},null,null,{"$f":"'1a Modificacion Presupuestal'!G107","v":0},null,0]
[{"$f":"'1a Modificacion Presupuestal'!A108","v":0},{"$f":"'1a Modificacion Presupuestal'!B108:D108","v":0},null,null,{"$f":"'1a Modificacion Presupuestal'!G108","v":0},null,0]
[{"$f":"'1a Modificacion Presupuestal'!A109","v":0},null,null,null,{"$f":"'1a Modificacion Presupuestal'!G109","v":0},null,0]
[{"$f":"'1a Modificacion Presupuestal'!A110","v":0},{"$f":"'1a Modificacion Presupuestal'!B110:D110","v":0},null,null,{"$f":"'1a Modificacion Presupuestal'!G110","v":0},null,0]
[{"$f":"'1a Modificacion Presupuestal'!A111","v":0},{"$f":"'1a Modificacion Presupuestal'!B111:D111","v":0},null,null,{"$f":"'1a Modificacion Presupuestal'!G111","v":0},null,0]
[{"$f":"'1a Modificacion Presupuestal'!A112","v":0},{"$f":"'1a Modificacion Presupuestal'!B112:D112","v":0},null,null,{"$f":"'1a Modificacion Presupuestal'!G112","v":0},null,0]
[{"$f":"'1a Modificacion Presupuestal'!A113","v":0},{"$f":"'1a Modificacion Presupuestal'!B113:D113","v":0},null,null,{"$f":"'1a Modificacion Presupuestal'!G113","v":0},null,0]
[{"$f":"'1a Modificacion Presupuestal'!A114","v":0},{"$f":"'1a Modificacion Presupuestal'!B114:D114","v":0},null,null,{"$f":"'1a Modificacion Presupuestal'!G114","v":0},null,0,"ADQ BIENES Y EQUIPOS"]
[{"$f":"'1a Modificacion Presupuestal'!A115","v":0},{"$f":"'1a Modificacion Presupuestal'!B115:D115","v":0},null,null,{"$f":"'1a Modificacion Presupuestal'!G115","v":0},null,0,"ADQ BIENES Y EQUIPOS"]
[{"$f":"'1a Modificacion Presupuestal'!A116","v":0},{"$f":"'1a Modificacion Presupuestal'!B116:D116","v":0},null,null,{"$f":"'1a Modificacion Presupuestal'!G116","v":0},null,0,"ADQ BIENES Y EQUIPOS"]
[{"$f":"'1a Modificacion Presupuestal'!A117","v":0},{"$f":"'1a Modificacion Presupuestal'!B117:D117","v":0},null,null,{"$f":"'1a Modificacion Presupuestal'!G117","v":0},null,0]
[{"$f":"'1a Modificacion Presupuestal'!A118","v":0},{"$f":"'1a Modificacion Presupuestal'!B118:D118","v":0},null,null,{"$f":"'1a Modificacion Presupuestal'!G118","v":0},null,0]
[{"$f":"'1a Modificacion Presupuestal'!A119","v":0},{"$f":"'1a Modificacion Presupuestal'!B119:D119","v":0},null,null,{"$f":"'1a Modificacion Presupuestal'!G119","v":0},null,0]
[{"$f":"'1a Modificacion Presupuestal'!A120","v":0},{"$f":"'1a Modificacion Presupuestal'!B120:D120","v":0},null,null,{"$f":"'1a Modificacion Presupuestal'!G120","v":0},null,0]
[null,null,null,null,null,null,{"$f":"E121+F121","v":0}]
[null,null,null,null,null,null,{"$f":"E122+F122","v":0}]
[{"$f":"'1a Modificacion Presupuestal'!A123","v":0},{"$f":"'1a Modificacion Presupuestal'!B123:D123","v":0},null,null,{"$f":"'1a Modificacion Presupuestal'!G123","v":0},null,{"$f":"E123+F123","v":0}]
[{"$f":"'PRESUPUESTO CONSOLIDADO'!A130","v":0},{"$f":"'PRESUPUESTO CONSOLIDADO'!B130:F130","v":0},null,null,{"$f":"'PRESUPUESTO CONSOLIDADO'!G130","v":0},{"$f":"$E$124-((F114+F115+F116)*1%)","v":0},{"$f":"E124+F124","v":0},"POLIZA"]
["SUBTOTAL 1.",null,null,null,{"$f":"SUM(E29:E124)","v":0},{"$f":"SUM(F29:F124)","v":0},0,null,null,null,null,null,null,null,"CALCULO GMF",{"$f":"($G$18*0.004)-#REF!","v":{"$error":"#REF!"}}]
[]
[{"$f":"'PRESUPUESTO CONSOLIDADO'!A131","v":0},{"$f":"'PRESUPUESTO CONSOLIDADO'!B131:F131","v":0},null,null,{"$f":"'PRESUPUESTO CONSOLIDADO'!G131","v":0},{"$f":"$E$127-(($G$125+$G$124)*1%)","v":0},{"$f":"E127+F127","v":0},"APOYO ESTUDIANTES "]
[{"$f":"'PRESUPUESTO CONSOLIDADO'!A132","v":0},{"$f":"'PRESUPUESTO CONSOLIDADO'!B132:F132","v":0},null,null,{"$f":"'PRESUPUESTO CONSOLIDADO'!G132","v":0},{"$f":"$E$128-(($G$125+G124)*1%)","v":0},{"$f":"E128+F128","v":0},"EQUIPO F.E."]
[{"$f":"'PRESUPUESTO CONSOLIDADO'!A133","v":0},{"$f":"'PRESUPUESTO CONSOLIDADO'!B133:F133","v":0},null,null,{"$f":"'PRESUPUESTO CONSOLIDADO'!G133","v":0},{"$f":"E129-(($G$125+$G$124+$G$127+$G$128)*0.004)","v":0},{"$f":"E129+F129","v":0},"4X1000"]
[null,null,null,null,null,null,null,null,null,null,null,null,null,null,"CALCULO AME",{"$f":"(SUM(#REF!+$G$125)*1%)-#REF!","v":{"$error":"#REF!"}}]
[]
[{"$f":"'PRESUPUESTO CONSOLIDADO'!#REF!","v":{"$error":"#REF!"}},"EXCEDENTES GENERADOS Modif (2)","# CLASIFICADOR","TOTAL EXCEDENTES GENERADOS EJECUCION PROYECTO",null,null,"Valor EXCEDENTES Modif (2)",null,0.45,"ADMINISTRACION CENTRAL  "]
[null,null,null,"% DISTRIBUCION (SELECCIONAR)","VALOR EXCEDENTE MODF 1","Adición/Modif 2",{"$f":"$G$18-$G$28","v":0},null,{"$f":"+I132+7.5%","v":0.52500000000000002},"SIN INCENTIVOS "]
[null,null,{"$f":"'1a Modificacion Presupuestal'!C134","v":0},null,{"$f":"+'1a Modificacion Presupuestal'!G134","v":0},null,{"$f":"+E134-F134","v":0},null,0.4,"FACULTAD "]
[null,null,{"$f":"'1a Modificacion Presupuestal'!C135","v":0},null,{"$f":"+'1a Modificacion Presupuestal'!G135","v":0},null,{"$f":"+E135-F135","v":0},null,{"$f":"+I134+7.5%","v":0.47500000000000003},"SIN INCENTIVOS "]
[null,null,{"$f":"'1a Modificacion Presupuestal'!C136","v":0},null,{"$f":"+'1a Modificacion Presupuestal'!G136","v":0},null,{"$f":"+E136-F136","v":0},null,0.15,"INCENTIVOS COORDINADOR "]
[null,null,null,null,null,null,null,null,0,"SIN INCENTIVOS "]
[]
[]
[null,"UNIVERSIDAD SURCOLOMBIANA"]
[null,"GESTIÓN FINANCIERA Y DE RECURSOS FÍSICOS "]
[null,"MODIFICACIONES PRESUPUESTO INGRESOS Y EGRESOS PROYECTOS DE LA FACULTAD DE SALUD SIN EXCEDENTES DE FONDOS ESPECIALES "]
["CODIGO","AP-FIN-FO-46","VERSIÓN:",1,"VIGENCIA:",2023,"Pagina 2 de 2"]
[]
["# Clasificador","Denominacion Clasificador ","Justificacion 2. Modificacion Clasificadores"]
[{"$f":"A19","v":0}]
[0]
[0]
[0]
[0]
[0]
[0]
[{"$f":"A29","v":0}]
[0]
[0]
[0]
[0]
[0]
[0]
[0]
[0]
[0]
[0]
[0]
[0]
[0]
[0]
[0]
[0]
[0]
[0]
[0]
[0]
[0]
[0]
[0]
[0]
[0]
[0]
[0]
[0]
[0]
[0]
[0]
[0]
[0]
[0]
[0]
[0]
[0]
[0]
[0]
[0]
[0]
[0]
[0]
[0]
[0]
[0]
[{"$f":"A72","v":0}]
[0]
[0]
[0]
[0]
[0]
[0]
[0]
[0]
[0]
[0]
[0]
[0]
[0]
[0]
[0]
[0]
[0]
[0]
[0]
[0]
[0]
[0]
[0]
[0]
[0]
[0]
[0]
[0]
[0]
[0]
[{"$f":"A103","v":0}]
[0]
[0]
[0]
[0]
[0]
[0]
[0]
[0]
[0]
[0]
[0]
[0]
[0]
[0]
[0]
[0]
[0]
[0]
[0]
[0]
[0]
[{"$f":"A127","v":0}]
[{"$f":"A128","v":0}]
[{"$f":"A129","v":0}]
[{"$f":"C134","v":0}]
[{"$f":"C135","v":0}]
[{"$f":"C136","v":0}]
[]
[]
[]
[]
[]
["FIRMA DECANO (A)",null,null,null,"FIRMA COORDINADOR (A)"]
[]
[]
[]
[null,null,null,null,null,null,null,null,"FALTA CUADRO ULTIMO DE SUSTENTACION DE LA MODIFICACION REALIZADA "]
[]
[null,null,null,null,null,null,null,null,null,"Neiva"]
[]
[]
[]
[]
[]
[]
[]
[null,"SEDE CENTRAL"]
[null,"ADMINISTRACION CENTRAL  ",null,null,0.45,{"$f":"#REF!*E279","v":{"$error":"#REF!"}}]
[null,"FACULTAD",null,null,0.4,{"$f":"#REF!*E280","v":{"$error":"#REF!"}}]
[null,"INCENTIVOS COORDINADOR ",null,null,0.15,{"$f":"#REF!*E281","v":{"$error":"#REF!"}}]
[null,null,null,null,{"$f":"SUM(E279:E281)","v":1},{"$f":"SUM(F279:F281)","v":{"$error":"#REF!"}}]
[]
[null,"OTROS CONVENIOS"]
[null,"ADMINISTRACION CENTRAL  ",null,null,0.5,{"$f":"#REF!*E285","v":{"$error":"#REF!"}},null,null,null,null,"Garzon","La Plata","Pitalito"]
[null,"FACULTAD",null,null,0.5,{"$f":"#REF!*E286","v":{"$error":"#REF!"}}]
[null,"INCENTIVOS COORDINADOR ",null,null,0,{"$f":"#REF!*E287","v":{"$error":"#REF!"}}]
[null,null,null,null,{"$f":"SUM(E285:E287)","v":1},{"$f":"SUM(F285:F287)","v":{"$error":"#REF!"}}]
[null,"Neiva","Garzon","La Plata","Pitalito"]
[null,{"$f":"IF(#REF!=\"Neiva\",$F$279,\"\")","v":{"$error":"#REF!"}},{"$f":"IF(#REF!=\"Garzon\",$F$279,\"\")","v":{"$error":"#REF!"}},{"$f":"IF(#REF!=\"La Plata\",$F$279,\"\")","v":{"$error":"#REF!"}},{"$f":"IF(#REF!=\"Pitalito\",$F$279,\"\")","v":{"$error":"#REF!"}}]
[null,{"$f":"IF(#REF!=\"Neiva\",$F$280,\"\")","v":{"$error":"#REF!"}},{"$f":"IF(#REF!=\"Garzon\",$F$280,\"\")","v":{"$error":"#REF!"}},{"$f":"IF(#REF!=\"La Plata\",$F$280,\"\")","v":{"$error":"#REF!"}},{"$f":"IF(#REF!=\"Pitalito\",$F$280,\"\")","v":{"$error":"#REF!"}}]
[null,{"$f":"IF(#REF!=\"Neiva\",$F$281,\"\")","v":{"$error":"#REF!"}},{"$f":"IF(#REF!=\"Garzon\",$F$281,\"\")","v":{"$error":"#REF!"}},{"$f":"IF(#REF!=\"La Plata\",$F$281,\"\")","v":{"$error":"#REF!"}},{"$f":"IF(#REF!=\"Pitalito\",$F$281,\"\")","v":{"$error":"#REF!"}}]
[null,{"$f":"SUM(B290:B292)","v":{"$error":"#REF!"}}]
[null,"Otros Convenios"]
[null,{"$f":"IF(#REF!=\"Otros Convenios\",$F$285,\"\")","v":{"$error":"#REF!"}}]
[null,{"$f":"IF(#REF!=\"Otros Convenios\",$F$286,\"\")","v":{"$error":"#REF!"}}]
[null,{"$f":"IF(#REF!=\"Otros Convenios\",$F$287,\"\")","v":{"$error":"#REF!"}}]
[null,{"$f":"SUM(B295:B297)","v":{"$error":"#REF!"}}]
[]
[null,null,null,null,null,null,null,null,null,"Garzon"]
[null,"Posgrados",null,null,null,null,null,null,null,{"$f":"IFERROR(IF($C$320>0,$C$320+$C$324),0)","v":0}]
[null,1,0.2,"El proyecto cumple con el excedente para Proyectos de Posgrados del 20% establecido en la Normatividad",null,null,null,null,null,{"$f":"IFERROR(IF($C$321>0,$C$321+$C$324),0)","v":0}]
[null,null,null,"El proyecto No cumple con el excedente para Proyectos de Posgrados del 20% establecido en la Normatividad"]
[null,null,null,null,null,null,null,null,null,{"$f":"J301+J302","v":0}]
[null,"Venta de Servicios",0.1,"El proyecto cumple con el excedente para Venta de Servicios del 10% establecido en la Normatividad"]
[null,null,null,"El proyecto No cumple con el excedente para Venta de Servicios del 10% establecido en la Normatividad"]
[]
[]
[null,{"$f":"IFERROR(B292/2,0)","v":0}]
[]
[]
[]
[]
[null,"ADMINISTRACION CENTRAL  ",null,0.45,{"$f":"IF((F314-INT(F314))<= 0.6,ROUNDDOWN(F314,0),ROUNDUP(F314,0))","v":0},{"$f":"(L57*D314)","v":0}]
[null,"FACULTAD",null,0.4,{"$f":"IF((F315-INT(F315))<= 0.6,ROUNDDOWN(F315,0),ROUNDUP(F315,0))","v":0},{"$f":"(L57*D315)","v":0},null,null,"Neiva",null,"La Plata","Pitalito","Total"]
[null,"INCENTIVOS COORDINADOR ",null,0.15,0,{"$f":"(L57*D316)","v":0},null,null,{"$f":"IFERROR(IF($B$320>0,$B$320+$B$324),0)","v":0},null,{"$f":"IFERROR(IF($D$320>0,$D$320+$D$324),0)","v":0},{"$f":"IFERROR(IF($E$320>0,$E$320+$E$324),0)","v":0},{"$f":"SUM(I316:L316)","v":0},{"$f":"IF((M316-INT(M316))<= 0.6,ROUNDDOWN(M316,0),ROUNDUP(M316,0))","v":0},{"$f":"N316","v":0},{"$f":"IF(N319>M319,TRUE,FALSE)","v":false},{"$f":"IF(N319>M319,N316+M320,N316)","v":0},"SI(N209>M209;N206-M210;N206)"]
[null,null,null,{"$f":"SUM(D314:D316)","v":1},{"$f":"SUM(E314:E316)","v":0},null,null,null,{"$f":"IFERROR(IF($B$321>0,$B$321+$B$324),0)","v":0},null,{"$f":"IFERROR(IF($D$321>0,$D$321+$D$324),0)","v":0},{"$f":"IFERROR(IF($E$321>0,$E$321+$E$324),0)","v":0},{"$f":"SUM(I317:L317)","v":0},{"$f":"IF((M317-INT(M317))<= 0.6,ROUNDDOWN(M317,0),ROUNDUP(M317,0))","v":0},{"$f":"IF(N317>M317,N320-M320,N317+1)","v":1},{"$f":"IF(N320>M320,TRUE,FALSE)","v":false},{"$f":"IF(N319>M319,N317,N317+N320)","v":0},"SI(N209>M209;N207+M210;N207)"]
[null,null,null,null,null,null,null,null,null,null,null,null,0]
[null,"Neiva","Garzon","La Plata","Pitalito","Total",null,null,{"$f":"I316+I317","v":0},null,{"$f":"K316+K317","v":0},0,0,{"$f":"N316+N317","v":0}]
[null,{"$f":"IF(#REF!=\"Neiva\",$E$314,0)","v":{"$error":"#REF!"}},{"$f":"IF(#REF!=\"Garzón\",$E$314,0)","v":{"$error":"#REF!"}},{"$f":"IF(#REF!=\"La Plata\",$E$314,0)","v":{"$error":"#REF!"}},{"$f":"IF(#REF!=\"Pitalito\",$E$314,0)","v":{"$error":"#REF!"}},{"$f":"SUM(B320:E320)","v":{"$error":"#REF!"}},null,null,null,null,null,null,{"$f":"N319-M319","v":0},{"$f":"M320*(-1)","v":0}]
[null,{"$f":"IF(#REF!=\"Neiva\",$E$315,0)","v":{"$error":"#REF!"}},{"$f":"IF(#REF!=\"Garzón\",$E$315,0)","v":{"$error":"#REF!"}},{"$f":"IF(#REF!=\"La Plata\",$E$315,0)","v":{"$error":"#REF!"}},{"$f":"IF(#REF!=\"Pitalito\",$E$315,0)","v":{"$error":"#REF!"}},{"$f":"SUM(B321:E321)","v":{"$error":"#REF!"}}]
[null,{"$f":"IF(#REF!=\"Neiva\",$E$316,0)","v":{"$error":"#REF!"}},{"$f":"IF(#REF!=\"Garzón\",$E$316,0)","v":{"$error":"#REF!"}},{"$f":"IF(#REF!=\"La Plata\",$E$316,0)","v":{"$error":"#REF!"}},{"$f":"IF(#REF!=\"Pitalito\",$E$316,0)","v":{"$error":"#REF!"}},{"$error":"#REF!"}]
[null,{"$f":"SUM(B320:B322)","v":{"$error":"#REF!"}},{"$f":"SUM(C320:C322)","v":{"$error":"#REF!"}},{"$f":"SUM(D320:D322)","v":{"$error":"#REF!"}},{"$f":"SUM(E320:E322)","v":{"$error":"#REF!"}},{"$error":"#REF!"}]
[null,{"$f":"IFERROR(B322/2,0)","v":0},{"$f":"IFERROR(C322/2,0)","v":0},{"$f":"IFERROR(D322/2,0)","v":0},{"$f":"IFERROR(E322/2,0)","v":0},0]
[]
[]
[]
[]
[]
[]
[]
[]
[]
[]
[]
[]
[]
[]
[]
[]
[]
[]
[]
[]
[]
[]
[]
[]
[]
[]
[]
[]
[]
[]
[]
[]
[]
[]
[]
[]
[]
[]
[]
[]
[]
[]
[]
[]
[]
[]
[]
[]
[]
[]
[]
[]
[]
[]
[]
[]
[]
[]
[]
[]
[]
[]
[]
[]
[]
[]
[]
[]
[]
[]
[]
[null,{"$f":"'PRESUPUESTO CONSOLIDADO'!A20","v":0}]
[null,{"$f":"'PRESUPUESTO CONSOLIDADO'!A21","v":0}]
[null,{"$f":"'PRESUPUESTO CONSOLIDADO'!A22","v":0}]
[null,{"$f":"'PRESUPUESTO CONSOLIDADO'!A23","v":0}]
[null,{"$f":"'PRESUPUESTO CONSOLIDADO'!A24","v":0}]
[null,{"$f":"'PRESUPUESTO CONSOLIDADO'!A25","v":0}]
[null,{"$f":"'PRESUPUESTO CONSOLIDADO'!A26","v":0}]
[null,{"$f":"'PRESUPUESTO CONSOLIDADO'!A32","v":0}]
[null,{"$f":"'PRESUPUESTO CONSOLIDADO'!#REF!","v":{"$error":"#REF!"}}]
[null,{"$f":"'PRESUPUESTO CONSOLIDADO'!A33","v":0}]
[null,{"$f":"'PRESUPUESTO CONSOLIDADO'!A34","v":0}]
[null,{"$f":"'PRESUPUESTO CONSOLIDADO'!A35","v":0}]
[null,{"$f":"'PRESUPUESTO CONSOLIDADO'!A36","v":0}]
[null,{"$f":"'PRESUPUESTO CONSOLIDADO'!A37","v":0}]
[null,{"$f":"'PRESUPUESTO CONSOLIDADO'!A38","v":0}]
[null,{"$f":"'PRESUPUESTO CONSOLIDADO'!A39","v":0}]
[null,{"$f":"'PRESUPUESTO CONSOLIDADO'!A40","v":0}]
[null,{"$f":"'PRESUPUESTO CONSOLIDADO'!A41","v":0}]
[null,{"$f":"'PRESUPUESTO CONSOLIDADO'!A42","v":0}]
[null,{"$f":"'PRESUPUESTO CONSOLIDADO'!A43","v":0}]
[null,{"$f":"'PRESUPUESTO CONSOLIDADO'!A44","v":0}]
[null,{"$f":"'PRESUPUESTO CONSOLIDADO'!A45","v":0}]
[null,{"$f":"'PRESUPUESTO CONSOLIDADO'!A46","v":0}]
[null,{"$f":"'PRESUPUESTO CONSOLIDADO'!A47","v":0}]
[null,{"$f":"'PRESUPUESTO CONSOLIDADO'!A48","v":0}]
[null,{"$f":"'PRESUPUESTO CONSOLIDADO'!A49","v":0}]
[null,{"$f":"'PRESUPUESTO CONSOLIDADO'!A50","v":0}]
[null,{"$f":"'PRESUPUESTO CONSOLIDADO'!A51","v":0}]
[null,{"$f":"'PRESUPUESTO CONSOLIDADO'!A52","v":0}]
[null,{"$f":"'PRESUPUESTO CONSOLIDADO'!A53","v":0},null,null,null,null,null,null,null,"2034N"]
[null,{"$f":"'PRESUPUESTO CONSOLIDADO'!A54","v":0},null,null,null,null,null,null,null,"2035N"]
[null,{"$f":"'PRESUPUESTO CONSOLIDADO'!A55","v":0},null,null,null,null,null,null,null,"2029N"]
[null,{"$f":"'PRESUPUESTO CONSOLIDADO'!A56","v":0},null,null,null,null,null,null,null,"2032N"]
[null,{"$f":"'PRESUPUESTO CONSOLIDADO'!A57","v":0},null,null,null,null,null,null,null,"2036N"]
[null,{"$f":"'PRESUPUESTO CONSOLIDADO'!A58","v":"Observaciones: Acto mediante el cual el aspirante admitido adquiere la calidad de estudiante."},null,null,null,null,null,null,null,"2037N"]
[null,{"$f":"'PRESUPUESTO CONSOLIDADO'!A59","v":0},null,null,null,null,null,null,null,"2038N"]
[null,{"$f":"'PRESUPUESTO CONSOLIDADO'!A60","v":0}]
[null,{"$f":"'PRESUPUESTO CONSOLIDADO'!A61","v":0}]
[null,{"$f":"'PRESUPUESTO CONSOLIDADO'!A62","v":11022020120201}]
[null,{"$f":"'PRESUPUESTO CONSOLIDADO'!A63","v":0}]
[null,{"$f":"'PRESUPUESTO CONSOLIDADO'!#REF!","v":{"$error":"#REF!"}}]
[null,{"$f":"'PRESUPUESTO CONSOLIDADO'!#REF!","v":{"$error":"#REF!"}}]
[null,{"$f":"'PRESUPUESTO CONSOLIDADO'!#REF!","v":{"$error":"#REF!"}}]
[null,{"$f":"'PRESUPUESTO CONSOLIDADO'!#REF!","v":{"$error":"#REF!"}}]
[null,{"$f":"'PRESUPUESTO CONSOLIDADO'!#REF!","v":{"$error":"#REF!"}}]

{"sheet":"3a Modificacion Presupuestal ","index":5,"n_rows":439,"n_cols":18,"rows_kept":439,"cut":false,"hidden":false,"merged":[[13,5,13,6],[7,1,7,3],[7,4,7,5],[8,0,8,1],[8,3,8,4],[8,5,8,6],[0,0,2,0],[0,1,0,5],[0,6,2,6],[1,1,1,5],[2,1,2,5],[5,0,5,6],[10,3,10,4],[11,0,11,6],[12,1,12,3],[12,5,12,6],[9,1,9,3],[22,1,22,3],[16,0,16,3],[17,1,17,3],[18,1,18,3],[19,1,19,3],[20,1,20,3],[21,1,21,3],[13,1,13,3],[41,1,41,3],[29,1,29,3],[30,1,30,3],[31,1,31,3],[32,1,32,3],[33,1,33,3],[34,1,34,3],[23,1,23,3],[24,1,24,3],[26,0,26,3],[27,1,27,3],[28,1,28,3],[42,1,42,3],[43,1,43,3],[44,1,44,3],[45,1,45,3],[46,1,46,3],[35,1,35,3],[36,1,36,3],[37,1,37,3],[38,1,38,3],[39,1,39,3],[40,1,40,3],[53,1,53,3],[54,1,54,3],[55,1,55,3],[56,1,56,3],[57,1,57,3],[58,1,58,3],[47,1,47,3],[48,1,48,3],[49,1,49,3],[50,1,50,3],[51,1,51,3],[52,1,52,3],[65,1,65,3],[66,1,66,3],[67,1,67,3],[68,1,68,3],[69,1,69,3],[79,1,79,3],[59,1,59,3],[60,1,60,3],[61,1,61,3],[62,1,62,3],[63,1,63,3],[64,1,64,3],[73,1,73,3],[74,1,74,3],[75,1,75,3],[76,1,76,3],[77,1,77,3],[78,1,78,3],[70,1,70,3],[71,1,71,3],[72,1,72,3],[85,1,85,3],[86,1,86,3],[87,1,87,3],[88,1,88,3],[89,1,89,3],[90,1,90,3],[80,1,80,3],[81,1,81,3],[82,1,82,3],[83,1,83,3],[84,1,84,3],[97,1,97,3],[98,1,98,3],[99,1,99,3],[100,1,100,3],[101,1,101,3],[102,1,102,3],[91,1,91,3],[92,1,92,3],[93,1,93,3],[94,1,94,3],[95,1,95,3],[96,1,96,3],[109,1,109,3],[110,1,110,3],[111,1,111,3],[112,1,112,3],[113,1,113,3],[114,1,114,3],[103,1,103,3],[104,1,104,3],[105,1,105,3],[106,1,106,3],[107,1,107,3],[108,1,108,3],[121,1,121,3],[122,1,122,3],[123,1,123,3],[126,1,126,3],[127,1,127,3],[124,0,124,3],[115,1,115,3],[116,1,116,3],[117,1,117,3],[118,1,118,3],[119,1,119,3],[120,1,120,3],[133,0,135,0],[133,1,135,1],[138,0,140,0],[138,1,138,5],[138,6,140,6],[139,1,139,5],[140,1,140,5],[128,1,128,3],[131,0,132,0],[131,1,132,1],[131,2,132,2],[131,3,131,5],[143,2,143,6],[144,2,144,6],[145,2,145,6],[146,2,146,6],[147,2,147,6],[148,2,148,6],[149,2,149,6],[150,2,150,6],[151,2,151,6],[152,2,152,6],[153,2,153,6],[154,2,154,6],[155,2,155,6],[156,2,156,6],[157,2,157,6],[158,2,158,6],[159,2,159,6],[160,2,160,6],[161,2,161,6],[162,2,162,6],[163,2,163,6],[164,2,164,6],[165,2,165,6],[166,2,166,6],[167,2,167,6],[168,2,168,6],[169,2,169,6],[170,2,170,6],[171,2,171,6],[172,2,172,6],[173,2,173,6],[174,2,174,6],[175,2,175,6],[176,2,176,6],[177,2,177,6],[178,2,178,6],[179,2,179,6],[180,2,180,6],[181,2,181,6],[182,2,182,6],[183,2,183,6],[184,2,184,6],[185,2,185,6],[186,2,186,6],[187,2,187,6],[188,2,188,6],[189,2,189,6],[190,2,190,6],[191,2,191,6],[192,2,192,6],[193,2,193,6],[194,2,194,6],[195,2,195,6],[196,2,196,6],[197,2,197,6],[198,2,198,6],[199,2,199,6],[200,2,200,6],[201,2,201,6],[202,2,202,6],[203,2,203,6],[204,2,204,6],[205,2,205,6],[206,2,206,6],[207,2,207,6],[208,2,208,6],[209,2,209,6],[210,2,210,6],[211,2,211,6],[212,2,212,6],[213,2,213,6],[214,2,214,6],[215,2,215,6],[216,2,216,6],[217,2,217,6],[218,2,218,6],[219,2,219,6],[220,2,220,6],[221,2,221,6],[222,2,222,6],[223,2,223,6],[224,2,224,6],[225,2,225,6],[226,2,226,6],[227,2,227,6],[228,2,228,6],[229,2,229,6],[230,2,230,6],[231,2,231,6],[232,2,232,6],[233,2,233,6],[234,2,234,6],[235,2,235,6],[236,2,236,6],[237,2,237,6],[238,2,238,6],[239,2,239,6],[240,2,240,6],[241,2,241,6],[242,2,242,6],[243,2,243,6],[244,2,244,6],[245,2,245,6],[262,0,262,2],[262,4,262,6],[246,2,246,6],[247,2,247,6],[248,2,248,6],[249,2,249,6],[250,2,250,6],[251,2,251,6],[252,2,252,6],[253,2,253,6],[254,2,254,6],[255,2,255,6],[256,2,256,6],[285,1,285,3],[286,1,286,3],[279,1,279,3],[280,1,280,3],[281,1,281,3],[282,1,282,6],[283,1,283,3],[284,1,284,3],[265,0,265,6],[267,0,267,6],[276,1,276,6],[277,1,277,3],[277,6,278,6],[278,1,278,3]]}
[null,"UNIVERSIDAD SURCOLOMBIANA",null,null,null,null,null,null,null,{"$f":"'PPTO DETALLADO'!#REF!","v":{"$error":"#REF!"}}]
[null,"GESTIÓN FINANCIERA Y DE RECURSOS FÍSICOS "]
[null,"MODIFICACIONES PRESUPUESTO INGRESOS Y EGRESOS PROYECTOS DE LA FACULTAD DE SALUD SIN EXCEDENTES DE FONDOS ESPECIALES "]
["CODIGO","AP-FIN-FO-46","VERSIÓN:",1,"VIGENCIA:",2023,"Pagina 1 de 2"]
[]
["TERCERA MODIFICACIÓN PRESUPUESTAL\nINFORMACION GENERAL DEL PROYECTO"]
[]
[{"$f":"'PPTO DETALLADO'!A9","v":"Facultad"},null,null,null,{"$f":"'PPTO DETALLADO'!H8","v":"Total Proyectos aprobados por la Facultad en la Vigencia"}]
[{"$f":"'PPTO DETALLADO'!F9","v":"N° Acta de aprobación Consejo Facultad"},null,null,"Fecha Aprobación 3. Modificación Acta Consejo Facultad MES/DIA/AÑO"]
[{"$f":"'PPTO DETALLADO'!A10","v":"Nombre del Proyecto"},null,null,null,{"$f":"'PPTO DETALLADO'!I10","v":"Codigo Proyecto "}]
[{"$f":"'PPTO DETALLADO'!A13","v":"Tipo de Proyecto"},null,{"$f":"'PPTO DETALLADO'!D13","v":"N° Cuenta  Bancaria"},null,null,"N° Modificion (Seleccionar)",null,null,null,null,null,null,null,null,null,null,null,1]
["Tiempo de ejecución ",null,null,null,null,null,null,null,null,null,null,null,null,null,null,null,null,2]
[{"$f":"'PPTO DETALLADO'!A16","v":"Fecha de Inicio "},null,null,null,{"$f":"'PPTO DETALLADO'!H16","v":"Fecha Finalización "},null,null,null,null,null,null,null,null,null,null,null,null,3]
[{"$f":"'PPTO DETALLADO'!A19:C19","v":"Coordinador Asignado"},null,null,null,{"$f":"'PPTO DETALLADO'!A21","v":"Nombre Ordenador del Gasto "}]
[]
[null,null,null,null,null,null,null,null,null,null,null,2]
["A. INGRESOS DEL PROYECTO",null,null,null,"Ingreso Presup Modif. 2.","Adición/Modif","Total Ingreso Ajustado Modif (3)",null,null,null,null,3]
["# CLASIFICADOR","DENOMINACION CLASIFICADOR",null,null,{"$f":"SUM(E19:E25)","v":0},{"$f":"SUM(F19:F25)","v":0},{"$f":"SUM(G19:G25)","v":0}]
[{"$f":"'2a Modificacion Presupuestal '!A19","v":0},{"$f":"'2a Modificacion Presupuestal '!B19:D19","v":0},null,null,{"$f":"'2a Modificacion Presupuestal '!G19","v":0},null,{"$f":"$E$19+$F$19","v":0}]
[{"$f":"'2a Modificacion Presupuestal '!A20","v":0},{"$f":"'2a Modificacion Presupuestal '!B20:D20","v":0},null,null,{"$f":"'2a Modificacion Presupuestal '!G20","v":0},null,{"$f":"$E$20+$F$20","v":0}]
[{"$f":"'2a Modificacion Presupuestal '!A21","v":0},{"$f":"'2a Modificacion Presupuestal '!B21:D21","v":0},null,null,{"$f":"'2a Modificacion Presupuestal '!G21","v":0},null,{"$f":"$E$21+$F$21","v":0}]
[{"$f":"'2a Modificacion Presupuestal '!A22","v":0},{"$f":"'2a Modificacion Presupuestal '!B22:D22","v":0},null,null,{"$f":"'2a Modificacion Presupuestal '!G22","v":0},null,{"$f":"$E$22+$F$22","v":0}]
[{"$f":"'2a Modificacion Presupuestal '!A23","v":0},{"$f":"'2a Modificacion Presupuestal '!B23:D23","v":0},null,null,{"$f":"'2a Modificacion Presupuestal '!G23","v":0},null,{"$f":"$E$23+$F$23","v":0}]
[{"$f":"'2a Modificacion Presupuestal '!A24","v":0},{"$f":"'2a Modificacion Presupuestal '!B24:D24","v":0},null,null,{"$f":"'2a Modificacion Presupuestal '!G24","v":0},null,{"$f":"$E$24+$F$24","v":0}]
[{"$f":"'2a Modificacion Presupuestal '!A25","v":0},{"$f":"'2a Modificacion Presupuestal '!B25:D25","v":0},null,null,{"$f":"'2a Modificacion Presupuestal '!G25","v":0},null,{"$f":"$E$25+$F$25","v":0}]
[]
["B. EGRESOS DEL PROYECTO",null,null,null,"Egreso Presup Modif. 2. ","Adición/Modif","Total Egreso Ajustado Modif (3)"]
["# CLASIFICADOR","DENOMINACION CLASIFICADOR",null,null,{"$f":"E125+E127+E128+E129","v":0},{"$f":"F125+F127+F128+F129","v":0},{"$f":"G125+G127+G128+G129","v":0}]
[{"$f":"'2a Modificacion Presupuestal '!A29","v":0},{"$f":"'2a Modificacion Presupuestal '!B29:D29","v":0},null,null,{"$f":"'2a Modificacion Presupuestal '!E29","v":0},null,{"$f":"E29+F29","v":0}]
[{"$f":"'2a Modificacion Presupuestal '!A30","v":0},{"$f":"'2a Modificacion Presupuestal '!B30:D30","v":0},null,null,{"$f":"'2a Modificacion Presupuestal '!E30","v":0},null,{"$f":"E30+F30","v":0}]
[{"$f":"'2a Modificacion Presupuestal '!A31","v":0},{"$f":"'2a Modificacion Presupuestal '!B31:D31","v":0},null,null,{"$f":"'2a Modificacion Presupuestal '!E31","v":0},null,0]
[{"$f":"'2a Modificacion Presupuestal '!A32","v":0},{"$f":"'2a Modificacion Presupuestal '!B32:D32","v":0},null,null,{"$f":"'2a Modificacion Presupuestal '!E32","v":0},null,0]
[{"$f":"'2a Modificacion Presupuestal '!A33","v":0},{"$f":"'2a Modificacion Presupuestal '!B33:D33","v":0},null,null,{"$f":"'2a Modificacion Presupuestal '!E33","v":0},null,0]
[{"$f":"'2a Modificacion Presupuestal '!A34","v":0},{"$f":"'2a Modificacion Presupuestal '!B34:D34","v":0},null,null,{"$f":"'2a Modificacion Presupuestal '!E34","v":0},null,0]
[{"$f":"'2a Modificacion Presupuestal '!A35","v":0},{"$f":"'2a Modificacion Presupuestal '!B35:D35","v":0},null,null,{"$f":"'2a Modificacion Presupuestal '!E35","v":0},null,0]
[{"$f":"'2a Modificacion Presupuestal '!A36","v":0},{"$f":"'2a Modificacion Presupuestal '!B36:D36","v":0},null,null,{"$f":"'2a Modificacion Presupuestal '!E36","v":0},null,0]
[{"$f":"'2a Modificacion Presupuestal '!A37","v":0},{"$f":"'2a Modificacion Presupuestal '!B37:D37","v":0},null,null,{"$f":"'2a Modificacion Presupuestal '!E37","v":0},null,0]
[{"$f":"'2a Modificacion Presupuestal '!A38","v":0},{"$f":"'2a Modificacion Presupuestal '!B38:D38","v":0},null,null,{"$f":"'2a Modificacion Presupuestal '!E38","v":0},null,0]
[{"$f":"'2a Modificacion Presupuestal '!A39","v":0},{"$f":"'2a Modificacion Presupuestal '!B39:D39","v":0},null,null,{"$f":"'2a Modificacion Presupuestal '!E39","v":0},null,0]
[{"$f":"'2a Modificacion Presupuestal '!A40","v":0},{"$f":"'2a Modificacion Presupuestal '!B40:D40","v":0},null,null,{"$f":"'2a Modificacion Presupuestal '!E40","v":0},null,0]
[{"$f":"'2a Modificacion Presupuestal '!A41","v":0},{"$f":"'2a Modificacion Presupuestal '!B41:D41","v":0},null,null,{"$f":"'2a Modificacion Presupuestal '!E41","v":0},null,0]
[{"$f":"'2a Modificacion Presupuestal '!A42","v":0},{"$f":"'2a Modificacion Presupuestal '!B42:D42","v":0},null,null,{"$f":"'2a Modificacion Presupuestal '!E42","v":0},null,0]
[{"$f":"'2a Modificacion Presupuestal '!A43","v":0},{"$f":"'2a Modificacion Presupuestal '!B43:D43","v":0},null,null,{"$f":"'2a Modificacion Presupuestal '!E43","v":0},null,0]
[{"$f":"'2a Modificacion Presupuestal '!A44","v":0},{"$f":"'2a Modificacion Presupuestal '!B44:D44","v":0},null,null,{"$f":"'2a Modificacion Presupuestal '!E44","v":0},null,0]
[{"$f":"'2a Modificacion Presupuestal '!A45","v":0},{"$f":"'2a Modificacion Presupuestal '!B45:D45","v":0},null,null,{"$f":"'2a Modificacion Presupuestal '!E45","v":0},null,0]
[{"$f":"'2a Modificacion Presupuestal '!A46","v":0},{"$f":"'2a Modificacion Presupuestal '!B46:D46","v":0},null,null,{"$f":"'2a Modificacion Presupuestal '!E46","v":0},null,0]
[{"$f":"'2a Modificacion Presupuestal '!A47","v":0},{"$f":"'2a Modificacion Presupuestal '!B47:D47","v":0},null,null,{"$f":"'2a Modificacion Presupuestal '!E47","v":0},null,0]
[{"$f":"'2a Modificacion Presupuestal '!A48","v":0},{"$f":"'2a Modificacion Presupuestal '!B48:D48","v":0},null,null,{"$f":"'2a Modificacion Presupuestal '!E48","v":0},null,0]
[{"$f":"'2a Modificacion Presupuestal '!A49","v":0},{"$f":"'2a Modificacion Presupuestal '!B49:D49","v":0},null,null,{"$f":"'2a Modificacion Presupuestal '!E49","v":0},null,0]
[{"$f":"'2a Modificacion Presupuestal '!A50","v":0},{"$f":"'2a Modificacion Presupuestal '!B50:D50","v":0},null,null,{"$f":"'2a Modificacion Presupuestal '!E50","v":0},null,0]
[{"$f":"'2a Modificacion Presupuestal '!A51","v":0},{"$f":"'2a Modificacion Presupuestal '!B51:D51","v":0},null,null,{"$f":"'2a Modificacion Presupuestal '!E51","v":0},null,0]
[{"$f":"'2a Modificacion Presupuestal '!A52","v":0},{"$f":"'2a Modificacion Presupuestal '!B52:D52","v":0},null,null,{"$f":"'2a Modificacion Presupuestal '!E52","v":0},null,0]
[{"$f":"'2a Modificacion Presupuestal '!A53","v":0},{"$f":"'2a Modificacion Presupuestal '!B53:D53","v":0},null,null,{"$f":"'2a Modificacion Presupuestal '!E53","v":0},null,0]
[{"$f":"'2a Modificacion Presupuestal '!A54","v":0},{"$f":"'2a Modificacion Presupuestal '!B54:D54","v":0},null,null,{"$f":"'2a Modificacion Presupuestal '!E54","v":0},null,0]
[{"$f":"'2a Modificacion Presupuestal '!A55","v":0},{"$f":"'2a Modificacion Presupuestal '!B55:D55","v":0},null,null,{"$f":"'2a Modificacion Presupuestal '!E55","v":0},null,0]
[{"$f":"'2a Modificacion Presupuestal '!A56","v":0},{"$f":"'2a Modificacion Presupuestal '!B56:D56","v":0},null,null,{"$f":"'2a Modificacion Presupuestal '!E56","v":0},null,0]
[{"$f":"'2a Modificacion Presupuestal '!A57","v":0},{"$f":"'2a Modificacion Presupuestal '!B57:D57","v":0},null,null,{"$f":"'2a Modificacion Presupuestal '!E57","v":0},null,0]
[{"$f":"'2a Modificacion Presupuestal '!A58","v":0},{"$f":"'2a Modificacion Presupuestal '!B58:D58","v":0},null,null,{"$f":"'2a Modificacion Presupuestal '!E58","v":0},null,0]
[{"$f":"'2a Modificacion Presupuestal '!A59","v":0},{"$f":"'2a Modificacion Presupuestal '!B59:D59","v":0},null,null,{"$f":"'2a Modificacion Presupuestal '!E59","v":0},null,0]
[{"$f":"'2a Modificacion Presupuestal '!A60","v":0},{"$f":"'2a Modificacion Presupuestal '!B60:D60","v":0},null,null,{"$f":"'2a Modificacion Presupuestal '!E60","v":0},null,0]
[{"$f":"'2a Modificacion Presupuestal '!A61","v":0},{"$f":"'2a Modificacion Presupuestal '!B61:D61","v":0},null,null,{"$f":"'2a Modificacion Presupuestal '!E61","v":0},null,0]
[{"$f":"'2a Modificacion Presupuestal '!A62","v":0},{"$f":"'2a Modificacion Presupuestal '!B62:D62","v":0},null,null,{"$f":"'2a Modificacion Presupuestal '!E62","v":0},null,0]
[{"$f":"'2a Modificacion Presupuestal '!A63","v":0},{"$f":"'2a Modificacion Presupuestal '!B63:D63","v":0},null,null,{"$f":"'2a Modificacion Presupuestal '!E63","v":0},null,0]
[{"$f":"'2a Modificacion Presupuestal '!A64","v":0},{"$f":"'2a Modificacion Presupuestal '!B64:D64","v":0},null,null,{"$f":"'2a Modificacion Presupuestal '!E64","v":0},null,0]
[{"$f":"'2a Modificacion Presupuestal '!A65","v":0},{"$f":"'2a Modificacion Presupuestal '!B65:D65","v":0},null,null,{"$f":"'2a Modificacion Presupuestal '!E65","v":0},null,0]
[{"$f":"'2a Modificacion Presupuestal '!A66","v":0},{"$f":"'2a Modificacion Presupuestal '!B66:D66","v":0},null,null,{"$f":"'2a Modificacion Presupuestal '!E66","v":0},null,0]
[{"$f":"'2a Modificacion Presupuestal '!A67","v":0},{"$f":"'2a Modificacion Presupuestal '!B67:D67","v":0},null,null,{"$f":"'2a Modificacion Presupuestal '!E67","v":0},null,0]
[{"$f":"'2a Modificacion Presupuestal '!A68","v":0},{"$f":"'2a Modificacion Presupuestal '!B68:D68","v":0},null,null,{"$f":"'2a Modificacion Presupuestal '!E68","v":0},null,0]
[{"$f":"'2a Modificacion Presupuestal '!A69","v":0},{"$f":"'2a Modificacion Presupuestal '!B69:D69","v":0},null,null,{"$f":"'2a Modificacion Presupuestal '!E69","v":0},null,0]
[{"$f":"'2a Modificacion Presupuestal '!A70","v":0},{"$f":"'2a Modificacion Presupuestal '!B70:D70","v":0},null,null,{"$f":"'2a Modificacion Presupuestal '!E70","v":0},null,0]
[{"$f":"'2a Modificacion Presupuestal '!A71","v":0},{"$f":"'2a Modificacion Presupuestal '!B71:D71","v":0},null,null,{"$f":"'2a Modificacion Presupuestal '!E71","v":0},null,0]
[{"$f":"'2a Modificacion Presupuestal '!A72","v":0},{"$f":"'2a Modificacion Presupuestal '!B72:D72","v":0},null,null,{"$f":"'2a Modificacion Presupuestal '!E72","v":0},null,0]
[{"$f":"'2a Modificacion Presupuestal '!A73","v":0},{"$f":"'2a Modificacion Presupuestal '!B73:D73","v":0},null,null,{"$f":"'2a Modificacion Presupuestal '!E73","v":0},null,0]
[{"$f":"'2a Modificacion Presupuestal '!A74","v":0},{"$f":"'2a Modificacion Presupuestal '!B74:D74","v":0},null,null,{"$f":"'2a Modificacion Presupuestal '!E74","v":0},null,0]
[{"$f":"'2a Modificacion Presupuestal '!A75","v":0},{"$f":"'2a Modificacion Presupuestal '!B75:D75","v":0},null,null,{"$f":"'2a Modificacion Presupuestal '!E75","v":0},null,0]
[{"$f":"'2a Modificacion Presupuestal '!A76","v":0},{"$f":"'2a Modificacion Presupuestal '!B76:D76","v":0},null,null,{"$f":"'2a Modificacion Presupuestal '!E76","v":0},null,0]
[{"$f":"'2a Modificacion Presupuestal '!A77","v":0},{"$f":"'2a Modificacion Presupuestal '!B77:D77","v":0},null,null,{"$f":"'2a Modificacion Presupuestal '!E77","v":0},null,0]
[{"$f":"'2a Modificacion Presupuestal '!A78","v":0},{"$f":"'2a Modificacion Presupuestal '!B78:D78","v":0},null,null,{"$f":"'2a Modificacion Presupuestal '!E78","v":0},null,0]
[{"$f":"'2a Modificacion Presupuestal '!A79","v":0},{"$f":"'2a Modificacion Presupuestal '!B79:D79","v":0},null,null,{"$f":"'2a Modificacion Presupuestal '!E79","v":0},null,0]
[{"$f":"'2a Modificacion Presupuestal '!A80","v":0},{"$f":"'2a Modificacion Presupuestal '!B80:D80","v":0},null,null,{"$f":"'2a Modificacion Presupuestal '!E80","v":0},null,0]
[{"$f":"'2a Modificacion Presupuestal '!A81","v":0},{"$f":"'2a Modificacion Presupuestal '!B81:D81","v":0},null,null,{"$f":"'2a Modificacion Presupuestal '!E81","v":0},null,0]
[{"$f":"'2a Modificacion Presupuestal '!A82","v":0},{"$f":"'2a Modificacion Presupuestal '!B82:D82","v":0},null,null,{"$f":"'2a Modificacion Presupuestal '!E82","v":0},null,0]
[{"$f":"'2a Modificacion Presupuestal '!A83","v":0},{"$f":"'2a Modificacion Presupuestal '!B83:D83","v":0},null,null,{"$f":"'2a Modificacion Presupuestal '!E83","v":0},null,0]
[{"$f":"'2a Modificacion Presupuestal '!A84","v":0},{"$f":"'2a Modificacion Presupuestal '!B84:D84","v":0},null,null,{"$f":"'2a Modificacion Presupuestal '!E84","v":0},null,0]
[{"$f":"'2a Modificacion Presupuestal '!A85","v":0},{"$f":"'2a Modificacion Presupuestal '!B85:D85","v":0},null,null,{"$f":"'2a Modificacion Presupuestal '!E85","v":0},null,0]
[{"$f":"'2a Modificacion Presupuestal '!A86","v":0},{"$f":"'2a Modificacion Presupuestal '!B86:D86","v":0},null,null,{"$f":"'2a Modificacion Presupuestal '!E86","v":0},null,0]
[{"$f":"'2a Modificacion Presupuestal '!A87","v":0},{"$f":"'2a Modificacion Presupuestal '!B87:D87","v":0},null,null,{"$f":"'2a Modificacion Presupuestal '!E87","v":0},null,0]
[{"$f":"'2a Modificacion Presupuestal '!A88","v":0},{"$f":"'2a Modificacion Presupuestal '!B88:D88","v":0},null,null,{"$f":"'2a Modificacion Presupuestal '!E88","v":0},null,0]
[{"$f":"'2a Modificacion Presupuestal '!A89","v":0},{"$f":"'2a Modificacion Presupuestal '!B89:D89","v":0},null,null,{"$f":"'2a Modificacion Presupuestal '!E89","v":0},null,0]
[{"$f":"'2a Modificacion Presupuestal '!A90","v":0},{"$f":"'2a Modificacion Presupuestal '!B90:D90","v":0},null,null,{"$f":"'2a Modificacion Presupuestal '!E90","v":0},null,{"$f":"E90+F90","v":0}]
[{"$f":"'2a Modificacion Presupuestal '!A91","v":0},{"$f":"'2a Modificacion Presupuestal '!B91:D91","v":0},null,null,{"$f":"'2a Modificacion Presupuestal '!E91","v":0},null,0]
[{"$f":"'2a Modificacion Presupuestal '!A92","v":0},{"$f":"'2a Modificacion Presupuestal '!B92:D92","v":0},null,null,{"$f":"'2a Modificacion Presupuestal '!E92","v":0},null,0]
[{"$f":"'2a Modificacion Presupuestal '!A93","v":0},{"$f":"'2a Modificacion Presupuestal '!B93:D93","v":0},null,null,{"$f":"'2a Modificacion Presupuestal '!E93","v":0},null,0]
[{"$f":"'2a Modificacion Presupuestal '!A94","v":0},{"$f":"'2a Modificacion Presupuestal '!B94:D94","v":0},null,null,{"$f":"'2a Modificacion Presupuestal '!E94","v":0},null,0]
[{"$f":"'2a Modificacion Presupuestal '!A95","v":0},{"$f":"'2a Modificacion Presupuestal '!B95:D95","v":0},null,null,{"$f":"'2a Modificacion Presupuestal '!E95","v":0},null,0]
[{"$f":"'2a Modificacion Presupuestal '!A96","v":0},{"$f":"'2a Modificacion Presupuestal '!B96:D96","v":0},null,null,{"$f":"'2a Modificacion Presupuestal '!E96","v":0},null,0]
[{"$f":"'2a Modificacion Presupuestal '!A97","v":0},{"$f":"'2a Modificacion Presupuestal '!B97:D97","v":0},null,null,{"$f":"'2a Modificacion Presupuestal '!E97","v":0},null,0]
[{"$f":"'2a Modificacion Presupuestal '!A98","v":0},{"$f":"'2a Modificacion Presupuestal '!B98:D98","v":0},null,null,{"$f":"'2a Modificacion Presupuestal '!E98","v":0},null,0]
[{"$f":"'2a Modificacion Presupuestal '!A99","v":0},{"$f":"'2a Modificacion Presupuestal '!B99:D99","v":0},null,null,{"$f":"'2a Modificacion Presupuestal '!E99","v":0},null,0]
[{"$f":"'2a Modificacion Presupuestal '!A100","v":0},{"$f":"'2a Modificacion Presupuestal '!B100:D100","v":0},null,null,{"$f":"'2a Modificacion Presupuestal '!E100","v":0},null,0]
[{"$f":"'2a Modificacion Presupuestal '!A101","v":0},{"$f":"'2a Modificacion Presupuestal '!B101:D101","v":0},null,null,{"$f":"'2a Modificacion Presupuestal '!E101","v":0},null,0]
[{"$f":"'2a Modificacion Presupuestal '!A102","v":0},{"$f":"'2a Modificacion Presupuestal '!B102:D102","v":0},null,null,{"$f":"'2a Modificacion Presupuestal '!E102","v":0},null,0]
[{"$f":"'2a Modificacion Presupuestal '!A103","v":0},{"$f":"'2a Modificacion Presupuestal '!B103:D103","v":0},null,null,{"$f":"'2a Modificacion Presupuestal '!E103","v":0},null,0]
[{"$f":"'2a Modificacion Presupuestal '!A104","v":0},{"$f":"'2a Modificacion Presupuestal '!B104:D104","v":0},null,null,{"$f":"'2a Modificacion Presupuestal '!E104","v":0},null,0]
[{"$f":"'2a Modificacion Presupuestal '!A105","v":0},{"$f":"'2a Modificacion Presupuestal '!B105:D105","v":0},null,null,{"$f":"'2a Modificacion Presupuestal '!E105","v":0},null,0]
[{"$f":"'2a Modificacion Presupuestal '!A106","v":0},{"$f":"'2a Modificacion Presupuestal '!B106:D106","v":0},null,null,{"$f":"'2a Modificacion Presupuestal '!E106","v":0},null,0]
[{"$f":"'2a Modificacion Presupuestal '!A107","v":0},{"$f":"'2a Modificacion Presupuestal '!B107:D107","v":0},null,null,{"$f":"'2a Modificacion Presupuestal '!E107","v":0},null,0]
[{"$f":"'2a Modificacion Presupuestal '!A108","v":0},{"$f":"'2a Modificacion Presupuestal '!B108:D108","v":0},null,null,{"$f":"'2a Modificacion Presupuestal '!E108","v":0},null,0]
[{"$f":"'2a Modificacion Presupuestal '!A109","v":0},{"$f":"'2a Modificacion Presupuestal '!B109:D109","v":0},null,null,{"$f":"'2a Modificacion Presupuestal '!E109","v":0},null,0]
[{"$f":"'2a Modificacion Presupuestal '!A110","v":0},{"$f":"'2a Modificacion Presupuestal '!B110:D110","v":0},null,null,{"$f":"'2a Modificacion Presupuestal '!E110","v":0},null,0]
[{"$f":"'2a Modificacion Presupuestal '!A111","v":0},{"$f":"'2a Modificacion Presupuestal '!B111:D111","v":0},null,null,{"$f":"'2a Modificacion Presupuestal '!E111","v":0},null,0]
[{"$f":"'2a Modificacion Presupuestal '!A112","v":0},{"$f":"'2a Modificacion Presupuestal '!B112:D112","v":0},null,null,{"$f":"'2a Modificacion Presupuestal '!E112","v":0},null,0]
[{"$f":"'2a Modificacion Presupuestal '!A113","v":0},{"$f":"'2a Modificacion Presupuestal '!B113:D113","v":0},null,null,{"$f":"'2a Modificacion Presupuestal '!E113","v":0},null,0]
[{"$f":"'2a Modificacion Presupuestal '!A114","v":0},{"$f":"'2a Modificacion Presupuestal '!B114:D114","v":0},null,null,{"$f":"'2a Modificacion Presupuestal '!E114","v":0},null,0,"ADQ BIENES Y EQUIPOS"]
[{"$f":"'2a Modificacion Presupuestal '!A115","v":0},{"$f":"'2a Modificacion Presupuestal '!B115:D115","v":0},null,null,{"$f":"'2a Modificacion Presupuestal '!E115","v":0},null,0,"ADQ BIENES Y EQUIPOS"]
[{"$f":"'2a Modificacion Presupuestal '!A116","v":0},{"$f":"'2a Modificacion Presupuestal '!B116:D116","v":0},null,null,{"$f":"'2a Modificacion Presupuestal '!E116","v":0},null,0,"ADQ BIENES Y EQUIPOS"]
[{"$f":"'2a Modificacion Presupuestal '!A117","v":0},{"$f":"'2a Modificacion Presupuestal '!B117:D117","v":0},null,null,{"$f":"'2a Modificacion Presupuestal '!E117","v":0},null,0]
[{"$f":"'2a Modificacion Presupuestal '!A118","v":0},{"$f":"'2a Modificacion Presupuestal '!B118:D118","v":0},null,null,{"$f":"'2a Modificacion Presupuestal '!E118","v":0},null,0]
[{"$f":"'2a Modificacion Presupuestal '!A119","v":0},{"$f":"'2a Modificacion Presupuestal '!B119:D119","v":0},null,null,{"$f":"'2a Modificacion Presupuestal '!E119","v":0},null,0]
[{"$f":"'2a Modificacion Presupuestal '!A120","v":0},{"$f":"'2a Modificacion Presupuestal '!B120:D120","v":0},null,null,{"$f":"'2a Modificacion Presupuestal '!E120","v":0},null,0]
[{"$f":"'2a Modificacion Presupuestal '!A121","v":0},{"$f":"'2a Modificacion Presupuestal '!B121:D121","v":0},null,null,{"$f":"'2a Modificacion Presupuestal '!E121","v":0},null,{"$f":"E121+F121","v":0}]
[{"$f":"'2a Modificacion Presupuestal '!A122","v":0},{"$f":"'2a Modificacion Presupuestal '!B122:D122","v":0},null,null,{"$f":"'2a Modificacion Presupuestal '!E122","v":0},null,{"$f":"E122+F122","v":0}]
[{"$f":"'2a Modificacion Presupuestal '!A123","v":0},{"$f":"'2a Modificacion Presupuestal '!B123:D123","v":0},null,null,{"$f":"'2a Modificacion Presupuestal '!E123","v":0},null,{"$f":"E123+F123","v":0}]
[{"$f":"'PRESUPUESTO CONSOLIDADO'!A130","v":0},{"$f":"'PRESUPUESTO CONSOLIDADO'!B130:F130","v":0},null,null,{"$f":"'PRESUPUESTO CONSOLIDADO'!G130","v":0},{"$f":"$E$124-((F114+F115+F116)*1%)","v":0},{"$f":"E124+F124","v":0},"POLIZA"]
["SUBTOTAL 1.",null,null,null,{"$f":"SUM(E29:E124)","v":0},{"$f":"SUM(F29:F124)","v":0},{"$f":"SUM(G29:G124)","v":0},null,null,null,null,null,null,null,"CALCULO GMF",{"$f":"($G$18*0.004)-#REF!","v":{"$error":"#REF!"}}]
[]
[{"$f":"'PRESUPUESTO CONSOLIDADO'!A131","v":0},{"$f":"'PRESUPUESTO CONSOLIDADO'!B131:F131","v":0},null,null,{"$f":"'PRESUPUESTO CONSOLIDADO'!G131","v":0},{"$f":"$E$127-(($G$125+$G$124)*1%)","v":0},{"$f":"E127+F127","v":0},"APOYO ESTUDIANTES "]
[{"$f":"'PRESUPUESTO CONSOLIDADO'!A132","v":0},{"$f":"'PRESUPUESTO CONSOLIDADO'!B132:F132","v":0},null,null,{"$f":"'PRESUPUESTO CONSOLIDADO'!G132","v":0},{"$f":"$E$128-(($G$125+G124)*1%)","v":0},{"$f":"E128+F128","v":0},"EQUIPO F.E."]
[{"$f":"'PRESUPUESTO CONSOLIDADO'!A133","v":0},{"$f":"'PRESUPUESTO CONSOLIDADO'!B133:F133","v":0},null,null,{"$f":"'PRESUPUESTO CONSOLIDADO'!G133","v":0},{"$f":"E129-(($G$125+$G$124+$G$127+$G$128)*0.004)","v":0},{"$f":"E129+F129","v":0},"4X1000"]
[null,null,null,null,null,null,null,null,null,null,null,null,null,null,"CALCULO AME",{"$f":"(SUM(#REF!+$G$125)*1%)-#REF!","v":{"$error":"#REF!"}}]
[]
[{"$f":"'PRESUPUESTO CONSOLIDADO'!#REF!","v":{"$error":"#REF!"}},"EXCEDENTES GENERADOS Modif (3)","# CLASIFICADOR","TOTAL EXCEDENTES GENERADOS EJECUCION PROYECTO",null,null,"Valor EXCEDENTES Modif (3)",null,0.45,"ADMINISTRACION CENTRAL  "]
[null,null,null,"% DISTRIBUCION (SELECCIONAR)","VALOR EXCEDENTE MODF 2","Adición/Modif 3",{"$f":"$G$18-$G$28","v":0},null,{"$f":"+I132+7.5%","v":0.52500000000000002},"SIN INCENTIVOS "]
[null,null,null,null,{"$f":"+'2a Modificacion Presupuestal '!G134","v":0},null,{"$f":"+E134-F134","v":0},null,0.4,"FACULTAD "]
[null,null,null,null,{"$f":"+'2a Modificacion Presupuestal '!G135","v":0},null,{"$f":"+E135-F135","v":0},null,{"$f":"+I134+7.5%","v":0.47500000000000003},"SIN INCENTIVOS "]
[null,null,null,null,{"$f":"+'2a Modificacion Presupuestal '!G136","v":0},null,0,null,0.15,"INCENTIVOS COORDINADOR "]
[null,null,null,null,null,null,null,null,0,"SIN INCENTIVOS "]
[]
[null,"UNIVERSIDAD SURCOLOMBIANA"]
[null,"GESTIÓN FINANCIERA Y DE RECURSOS FÍSICOS "]
[null,"MODIFICACIONES PRESUPUESTO INGRESOS Y EGRESOS PROYECTOS DE LA FACULTAD DE SALUD SIN EXCEDENTES DE FONDOS ESPECIALES "]
["CODIGO","AP-FIN-FO-46","VERSIÓN:",1,"VIGENCIA:",2023,"Pagina 1 de 1"]
[]
["# Clasificador","Denominacion Clasificador ","Justificacion 3. Modificacion Clasificadores"]
[{"$f":"A19","v":0}]
[0]
[0]
[0]
[0]
[0]
[0]
[{"$f":"A29","v":0}]
[0]
[0]
[0]
[0]
[0]
[0]
[0]
[0]
[0]
[0]
[0]
[0]
[0]
[0]
[0]
[0]
[0]
[0]
[0]
[0]
[0]
[0]
[0]
[0]
[0]
[0]
[0]
[0]
[0]
[0]
[0]
[0]
[0]
[0]
[0]
[0]
[0]
[0]
[0]
[0]
[0]
[0]
[0]
[0]
[0]
[{"$f":"A71","v":0}]
[0]
[0]
[0]
[0]
[0]
[0]
[0]
[0]
[0]
[0]
[0]
[0]
[0]
[0]
[0]
[0]
[0]
[0]
[0]
[0]
[0]
[0]
[0]
[0]
[0]
[0]
[0]
[0]
[0]
[0]
[0]
[{"$f":"A103","v":0}]
[0]
[0]
[0]
[0]
[0]
[0]
[0]
[0]
[0]
[0]
[0]
[0]
[0]
[0]
[0]
[0]
[0]
[0]
[0]
[0]
[0]
[{"$f":"A127","v":0}]
[{"$f":"A128","v":0}]
[{"$f":"A129","v":0}]
[{"$f":"C134","v":0}]
[{"$f":"C135","v":0}]
[{"$f":"C136","v":0}]
[]
[]
[]
[]
[]
["FIRMA DECANO (A)",null,null,null,"FIRMA COORDINADOR (A)"]
[]
[]
[]
[]
[]
[]
[]
[null,null,null,null,null,null,null,null,"FALTA CUADRO ULTIMO DE SUSTENTACION DE LA MODIFICACION REALIZADA "]
[]
[null,null,null,null,null,null,null,null,null,"Neiva"]
[]
[]
[]
[null,"SEDE CENTRAL"]
[null,"ADMINISTRACION CENTRAL  ",null,null,0.45,{"$f":"#REF!*E278","v":{"$error":"#REF!"}}]
[null,"FACULTAD",null,null,0.4,{"$f":"#REF!*E279","v":{"$error":"#REF!"}}]
[null,"INCENTIVOS COORDINADOR ",null,null,0.15,{"$f":"#REF!*E280","v":{"$error":"#REF!"}}]
[null,null,null,null,{"$f":"SUM(E278:E280)","v":1},{"$f":"SUM(F278:F280)","v":{"$error":"#REF!"}}]
[]
[null,"OTROS CONVENIOS"]
[null,"ADMINISTRACION CENTRAL  ",null,null,0.5,{"$f":"#REF!*E284","v":{"$error":"#REF!"}}]
[null,"FACULTAD",null,null,0.5,{"$f":"#REF!*E285","v":{"$error":"#REF!"}}]
[null,"INCENTIVOS COORDINADOR ",null,null,0,{"$f":"#REF!*E286","v":{"$error":"#REF!"}}]
[null,null,null,null,{"$f":"SUM(E284:E286)","v":1},{"$f":"SUM(F284:F286)","v":{"$error":"#REF!"}}]
[null,"Neiva","Garzon","La Plata","Pitalito",null,null,null,null,null,"Garzon","La Plata","Pitalito"]
[null,{"$f":"IF(#REF!=\"Neiva\",$F$278,\"\")","v":{"$error":"#REF!"}},{"$f":"IF(#REF!=\"Garzon\",$F$278,\"\")","v":{"$error":"#REF!"}},{"$f":"IF(#REF!=\"La Plata\",$F$278,\"\")","v":{"$error":"#REF!"}},{"$f":"IF(#REF!=\"Pitalito\",$F$278,\"\")","v":{"$error":"#REF!"}}]
[null,{"$f":"IF(#REF!=\"Neiva\",$F$279,\"\")","v":{"$error":"#REF!"}},{"$f":"IF(#REF!=\"Garzon\",$F$279,\"\")","v":{"$error":"#REF!"}},{"$f":"IF(#REF!=\"La Plata\",$F$279,\"\")","v":{"$error":"#REF!"}},{"$f":"IF(#REF!=\"Pitalito\",$F$279,\"\")","v":{"$error":"#REF!"}}]
[null,{"$f":"IF(#REF!=\"Neiva\",$F$280,\"\")","v":{"$error":"#REF!"}},{"$f":"IF(#REF!=\"Garzon\",$F$280,\"\")","v":{"$error":"#REF!"}},{"$f":"IF(#REF!=\"La Plata\",$F$280,\"\")","v":{"$error":"#REF!"}},{"$f":"IF(#REF!=\"Pitalito\",$F$280,\"\")","v":{"$error":"#REF!"}}]
[null,{"$f":"SUM(B289:B291)","v":{"$error":"#REF!"}}]
[null,"Otros Convenios"]
[null,{"$f":"IF(#REF!=\"Otros Convenios\",$F$284,\"\")","v":{"$error":"#REF!"}}]
[null,{"$f":"IF(#REF!=\"Otros Convenios\",$F$285,\"\")","v":{"$error":"#REF!"}}]
[null,{"$f":"IF(#REF!=\"Otros Convenios\",$F$286,\"\")","v":{"$error":"#REF!"}}]
[null,{"$f":"SUM(B294:B296)","v":{"$error":"#REF!"}}]
[]
[]
[null,"Posgrados"]
[null,1,0.2,"El proyecto cumple con el excedente para Proyectos de Posgrados del 20% establecido en la Normatividad"]
[null,null,null,"El proyecto No cumple con el excedente para Proyectos de Posgrados del 20% establecido en la Normatividad"]
[null,null,null,null,null,null,null,null,null,"Garzon"]
[null,"Venta de Servicios",0.1,"El proyecto cumple con el excedente para Venta de Servicios del 10% establecido en la Normatividad",null,null,null,null,null,{"$f":"IFERROR(IF($C$319>0,$C$319+$C$323),0)","v":0}]
[null,null,null,"El proyecto No cumple con el excedente para Venta de Servicios del 10% establecido en la Normatividad",null,null,null,null,null,{"$f":"IFERROR(IF($C$320>0,$C$320+$C$323),0)","v":0}]
[]
[null,null,null,null,null,null,null,null,null,{"$f":"J304+J305","v":0}]
[null,{"$f":"IFERROR(B291/2,0)","v":0}]
[]
[]
[]
[]
[null,"ADMINISTRACION CENTRAL  ",null,0.45,{"$f":"IF((F313-INT(F313))<= 0.6,ROUNDDOWN(F313,0),ROUNDUP(F313,0))","v":0},{"$f":"(L57*D313)","v":0}]
[null,"FACULTAD",null,0.4,{"$f":"IF((F314-INT(F314))<= 0.6,ROUNDDOWN(F314,0),ROUNDUP(F314,0))","v":0},{"$f":"(L57*D314)","v":0}]
[null,"INCENTIVOS COORDINADOR ",null,0.15,0,{"$f":"(L57*D315)","v":0}]
[null,null,null,{"$f":"SUM(D313:D315)","v":1},{"$f":"SUM(E313:E315)","v":0}]
[]
[null,"Neiva","Garzon","La Plata","Pitalito","Total",null,null,"Neiva",null,"La Plata","Pitalito","Total"]
[null,{"$f":"IF(#REF!=\"Neiva\",$E$313,0)","v":{"$error":"#REF!"}},{"$f":"IF(#REF!=\"Garzón\",$E$313,0)","v":{"$error":"#REF!"}},{"$f":"IF(#REF!=\"La Plata\",$E$313,0)","v":{"$error":"#REF!"}},{"$f":"IF(#REF!=\"Pitalito\",$E$313,0)","v":{"$error":"#REF!"}},{"$f":"SUM(B319:E319)","v":{"$error":"#REF!"}},null,null,{"$f":"IFERROR(IF($B$319>0,$B$319+$B$323),0)","v":0},null,{"$f":"IFERROR(IF($D$319>0,$D$319+$D$323),0)","v":0},{"$f":"IFERROR(IF($E$319>0,$E$319+$E$323),0)","v":0},{"$f":"SUM(I319:L319)","v":0},{"$f":"IF((M319-INT(M319))<= 0.6,ROUNDDOWN(M319,0),ROUNDUP(M319,0))","v":0},{"$f":"N319","v":0},{"$f":"IF(N322>M322,TRUE,FALSE)","v":false},{"$f":"IF(N322>M322,N319+M323,N319)","v":0},"SI(N209>M209;N206-M210;N206)"]
[null,{"$f":"IF(#REF!=\"Neiva\",$E$314,0)","v":{"$error":"#REF!"}},{"$f":"IF(#REF!=\"Garzón\",$E$314,0)","v":{"$error":"#REF!"}},{"$f":"IF(#REF!=\"La Plata\",$E$314,0)","v":{"$error":"#REF!"}},{"$f":"IF(#REF!=\"Pitalito\",$E$314,0)","v":{"$error":"#REF!"}},{"$f":"SUM(B320:E320)","v":{"$error":"#REF!"}},null,null,{"$f":"IFERROR(IF($B$320>0,$B$320+$B$323),0)","v":0},null,{"$f":"IFERROR(IF($D$320>0,$D$320+$D$323),0)","v":0},{"$f":"IFERROR(IF($E$320>0,$E$320+$E$323),0)","v":0},{"$f":"SUM(I320:L320)","v":0},{"$f":"IF((M320-INT(M320))<= 0.6,ROUNDDOWN(M320,0),ROUNDUP(M320,0))","v":0},{"$f":"IF(N320>M320,N323-M323,N320+1)","v":1},{"$f":"IF(N323>M323,TRUE,FALSE)","v":false},{"$f":"IF(N322>M322,N320,N320+N323)","v":0},"SI(N209>M209;N207+M210;N207)"]
[null,{"$f":"IF(#REF!=\"Neiva\",$E$315,0)","v":{"$error":"#REF!"}},{"$f":"IF(#REF!=\"Garzón\",$E$315,0)","v":{"$error":"#REF!"}},{"$f":"IF(#REF!=\"La Plata\",$E$315,0)","v":{"$error":"#REF!"}},{"$f":"IF(#REF!=\"Pitalito\",$E$315,0)","v":{"$error":"#REF!"}},{"$error":"#REF!"},null,null,null,null,null,null,0]
[null,{"$f":"SUM(B319:B321)","v":{"$error":"#REF!"}},{"$f":"SUM(C319:C321)","v":{"$error":"#REF!"}},{"$f":"SUM(D319:D321)","v":{"$error":"#REF!"}},{"$f":"SUM(E319:E321)","v":{"$error":"#REF!"}},{"$error":"#REF!"},null,null,{"$f":"I319+I320","v":0},null,{"$f":"K319+K320","v":0},0,0,{"$f":"N319+N320","v":0}]
[null,{"$f":"IFERROR(B321/2,0)","v":0},{"$f":"IFERROR(C321/2,0)","v":0},{"$f":"IFERROR(D321/2,0)","v":0},{"$f":"IFERROR(E321/2,0)","v":0},0,null,null,null,null,null,null,{"$f":"N322-M322","v":0},{"$f":"M323*(-1)","v":0}]
[]
[]
[]
[]
[]
[]
[]
[]
[]
[]
[]
[]
[]
[]
[]
[]
[]
[]
[]
[]
[]
[]
[]
[]
[]
[]
[]
[]
[]
[]
[]
[]
[]
[]
[]
[]
[]
[]
[]
[]
[]
[]
[]
[]
[]
[]
[]
[]
[]
[]
[]
[]
[]
[]
[]
[]
[]
[]
[]
[]
[]
[]
[]
[]
[]
[]
[]
[]
[]
[]
[]
[null,{"$f":"'PRESUPUESTO CONSOLIDADO'!A20","v":0}]
[null,{"$f":"'PRESUPUESTO CONSOLIDADO'!A21","v":0}]
[null,{"$f":"'PRESUPUESTO CONSOLIDADO'!A22","v":0}]
[null,{"$f":"'PRESUPUESTO CONSOLIDADO'!A23","v":0}]
[null,{"$f":"'PRESUPUESTO CONSOLIDADO'!A24","v":0}]
[null,{"$f":"'PRESUPUESTO CONSOLIDADO'!A25","v":0}]
[null,{"$f":"'PRESUPUESTO CONSOLIDADO'!A26","v":0}]
[null,{"$f":"'PRESUPUESTO CONSOLIDADO'!A32","v":0}]
[null,{"$f":"'PRESUPUESTO CONSOLIDADO'!#REF!","v":{"$error":"#REF!"}}]
[null,{"$f":"'PRESUPUESTO CONSOLIDADO'!A33","v":0}]
[null,{"$f":"'PRESUPUESTO CONSOLIDADO'!A34","v":0}]
[null,{"$f":"'PRESUPUESTO CONSOLIDADO'!A35","v":0}]
[null,{"$f":"'PRESUPUESTO CONSOLIDADO'!A36","v":0}]
[null,{"$f":"'PRESUPUESTO CONSOLIDADO'!A37","v":0}]
[null,{"$f":"'PRESUPUESTO CONSOLIDADO'!A38","v":0}]
[null,{"$f":"'PRESUPUESTO CONSOLIDADO'!A39","v":0}]
[null,{"$f":"'PRESUPUESTO CONSOLIDADO'!A40","v":0}]
[null,{"$f":"'PRESUPUESTO CONSOLIDADO'!A41","v":0}]
[null,{"$f":"'PRESUPUESTO CONSOLIDADO'!A42","v":0}]
[null,{"$f":"'PRESUPUESTO CONSOLIDADO'!A43","v":0}]
[null,{"$f":"'PRESUPUESTO CONSOLIDADO'!A44","v":0}]
[null,{"$f":"'PRESUPUESTO CONSOLIDADO'!A45","v":0}]
[null,{"$f":"'PRESUPUESTO CONSOLIDADO'!A46","v":0}]
[null,{"$f":"'PRESUPUESTO CONSOLIDADO'!A47","v":0}]
[null,{"$f":"'PRESUPUESTO CONSOLIDADO'!A48","v":0}]
[null,{"$f":"'PRESUPUESTO CONSOLIDADO'!A49","v":0}]
[null,{"$f":"'PRESUPUESTO CONSOLIDADO'!A50","v":0}]
[null,{"$f":"'PRESUPUESTO CONSOLIDADO'!A51","v":0}]
[null,{"$f":"'PRESUPUESTO CONSOLIDADO'!A52","v":0}]
[null,{"$f":"'PRESUPUESTO CONSOLIDADO'!A53","v":0}]
[null,{"$f":"'PRESUPUESTO CONSOLIDADO'!A54","v":0}]
[null,{"$f":"'PRESUPUESTO CONSOLIDADO'!A55","v":0}]
[null,{"$f":"'PRESUPUESTO CONSOLIDADO'!A56","v":0}]
[null,{"$f":"'PRESUPUESTO CONSOLIDADO'!A57","v":0},null,null,null,null,null,null,null,"2034N"]
[null,{"$f":"'PRESUPUESTO CONSOLIDADO'!A58","v":"Observaciones: Acto mediante el cual el aspirante admitido adquiere la calidad de estudiante."},null,null,null,null,null,null,null,"2035N"]
[null,{"$f":"'PRESUPUESTO CONSOLIDADO'!A59","v":0},null,null,null,null,null,null,null,"2029N"]
[null,{"$f":"'PRESUPUESTO CONSOLIDADO'!A60","v":0},null,null,null,null,null,null,null,"2032N"]
[null,{"$f":"'PRESUPUESTO CONSOLIDADO'!A61","v":0},null,null,null,null,null,null,null,"2036N"]
[null,{"$f":"'PRESUPUESTO CONSOLIDADO'!A62","v":11022020120201},null,null,null,null,null,null,null,"2037N"]
[null,{"$f":"'PRESUPUESTO CONSOLIDADO'!A63","v":0},null,null,null,null,null,null,null,"2038N"]
[null,{"$f":"'PRESUPUESTO CONSOLIDADO'!#REF!","v":{"$error":"#REF!"}}]
[null,{"$f":"'PRESUPUESTO CONSOLIDADO'!#REF!","v":{"$error":"#REF!"}}]
[null,{"$f":"'PRESUPUESTO CONSOLIDADO'!#REF!","v":{"$error":"#REF!"}}]
[null,{"$f":"'PRESUPUESTO CONSOLIDADO'!#REF!","v":{"$error":"#REF!"}}]
[null,{"$f":"'PRESUPUESTO CONSOLIDADO'!#REF!","v":{"$error":"#REF!"}}]

{"sheet":"Modificacion Presupuestal1","index":6,"n_rows":210,"n_cols":11,"rows_kept":210,"cut":false,"hidden":true,"merged":[[147,3,147,5],[2,2,5,2],[2,3,2,4],[3,3,5,4],[2,5,5,6],[87,2,90,2],[87,3,87,4],[87,5,90,6],[88,3,90,4],[131,3,131,6],[132,3,132,6],[133,3,133,6],[140,2,140,6],[141,2,141,5],[146,3,146,5],[117,3,117,6],[118,3,118,6],[130,3,130,6],[119,3,119,6],[120,3,120,6],[121,3,121,6],[122,3,122,6],[123,3,123,6],[124,3,124,6],[125,3,125,6],[126,3,126,6],[127,3,127,6],[128,3,128,6],[129,3,129,6],[112,3,112,6],[113,3,113,6],[114,3,114,6],[115,3,115,6],[116,3,116,6],[107,3,107,6],[108,3,108,6],[109,3,109,6],[110,3,110,6],[111,3,111,6],[102,3,102,6],[103,3,103,6],[104,3,104,6],[105,3,105,6],[106,3,106,6],[98,2,98,3],[98,5,99,5],[98,6,99,6],[99,2,99,3],[101,3,101,6],[93,2,93,6],[94,3,94,6],[95,3,95,6],[96,3,96,6],[97,3,97,6],[76,2,76,6],[82,2,82,6],[83,2,83,5],[16,2,16,3],[29,2,29,3],[71,3,71,4],[72,3,72,4],[73,3,73,4],[74,3,74,4],[13,2,13,3],[13,5,14,5],[13,6,14,6],[14,2,14,3],[75,3,75,4],[8,2,8,6],[9,3,9,6],[10,3,10,6],[11,3,11,6],[12,3,12,6]]}
[]
[]
[null,null,null,"PROYECCION SOCIAL"]
[null,null,null,"PRESUPUESTO PROYECTOS O ACTIVIDADES DE PROYECCION SOCIAL"]
[]
[]
[null,null,"CODIGO","MI-PSO-FO-02","VERSIÓN: 6","VIGENCIA:",{"$f":"PRESUPUESTO1!#REF!","v":{"$error":"#REF!"}}]
[]
[null,null,"PRIMERA MODIFICACIÓN PRESUPUESTAL\nINFORMACION GENERAL DEL PROYECTO"]
[null,null,"Proyecto",{"$f":"IF(PRESUPUESTO1!E8=\"\",\"\",PRESUPUESTO1!E8)","v":"Acto Administrativo"}]
[null,null,"Coordinador",{"$f":"IF(PRESUPUESTO1!E9=\"\",\"\",PRESUPUESTO1!E9)","v":""}]
[null,null,"Facultad",{"$f":"IF(PRESUPUESTO1!E10=\"\",\"\",PRESUPUESTO1!E10)","v":""}]
[null,null,"Decano (a)",{"$f":"IF(PRESUPUESTO1!E11=\"\",\"\",PRESUPUESTO1!E11)","v":""}]
[null,null,"Fecha programada para el inicio de las actividades del proyecto",null,{"$f":"IF(PRESUPUESTO1!F12=\"\",\"\",PRESUPUESTO1!F12)","v":"N° Modificación"},"Duración",{"$f":"IF(E14=\"\",\"\",(ROUND(DAYS360(E14,E15,1)/30,0) & \" Meses\"))","v":{"$error":"#VALUE!"}}]
[null,null,"Fecha programada para la terminación de las actividades del proyecto",null,{"$f":"IF(PRESUPUESTO1!F13=\"\",\"\",PRESUPUESTO1!F13)","v":{"$error":"#REF!"}}]
[]
[null,null,"A. INGRESOS DEL PROYECTO",null,"Ingreso Presup","Adición/Modif","Ingreso Ajustado"]
[null,null,"Código","Descripción",{"$f":"ROUND(SUM(E19:E28),0)","v":{"$error":"#N/A"}},{"$f":"ROUND(SUM(F19:F28),0)","v":-10000},{"$f":"ROUND(SUM(G19:G28),0)","v":{"$error":"#N/A"}}]
[null,null,{"$f":"IF(PRESUPUESTO1!C20=\"\",\"\",PRESUPUESTO1!C20)","v":1001},{"$f":"IF(PRESUPUESTO1!D20=\"\",\"\",PRESUPUESTO1!D20)","v":{"$error":"#N/A"}},{"$f":"IF(PRESUPUESTO1!G20=\"\",\"\",PRESUPUESTO1!G20)","v":{"$error":"#N/A"}},-10000,{"$f":"IF(E19=\"\",0,K19)","v":{"$error":"#N/A"}},null,null,null,{"$f":"(E19+F19)","v":{"$error":"#N/A"}}]
[null,null,{"$f":"IF(PRESUPUESTO1!C21=\"\",\"\",PRESUPUESTO1!C21)","v":1002},{"$f":"IF(PRESUPUESTO1!E21=\"\",\"\",PRESUPUESTO1!E21)","v":""},{"$f":"IF(PRESUPUESTO1!G21=\"\",\"\",PRESUPUESTO1!G21)","v":{"$error":"#N/A"}},0,{"$f":"IF(E20=\"\",0,K20)","v":{"$error":"#N/A"}},null,null,null,{"$f":"(E20+F20)","v":{"$error":"#N/A"}}]
[null,null,{"$f":"IF(PRESUPUESTO1!C22=\"\",\"\",PRESUPUESTO1!C22)","v":1003},{"$f":"IF(PRESUPUESTO1!E22=\"\",\"\",PRESUPUESTO1!E22)","v":""},{"$f":"IF(PRESUPUESTO1!G22=\"\",\"\",PRESUPUESTO1!G22)","v":{"$error":"#N/A"}},0,{"$error":"#N/A"},null,null,null,{"$error":"#N/A"}]
[null,null,{"$f":"IF(PRESUPUESTO1!C23=\"\",\"\",PRESUPUESTO1!C23)","v":""},{"$f":"IF(PRESUPUESTO1!E23=\"\",\"\",PRESUPUESTO1!E23)","v":""},{"$f":"IF(PRESUPUESTO1!G23=\"\",\"\",PRESUPUESTO1!G23)","v":""},0,0,null,null,null,{"$error":"#VALUE!"}]
[null,null,{"$f":"IF(PRESUPUESTO1!C24=\"\",\"\",PRESUPUESTO1!C24)","v":""},{"$f":"IF(PRESUPUESTO1!E24=\"\",\"\",PRESUPUESTO1!E24)","v":""},{"$f":"IF(PRESUPUESTO1!G24=\"\",\"\",PRESUPUESTO1!G24)","v":""},0,0,null,null,null,{"$error":"#VALUE!"}]
[null,null,{"$f":"IF(PRESUPUESTO1!C25=\"\",\"\",PRESUPUESTO1!C25)","v":""},{"$f":"IF(PRESUPUESTO1!E25=\"\",\"\",PRESUPUESTO1!E25)","v":""},{"$f":"IF(PRESUPUESTO1!G25=\"\",\"\",PRESUPUESTO1!G25)","v":""},0,0,null,null,null,{"$error":"#VALUE!"}]
[null,null,null,{"$f":"IF(PRESUPUESTO1!E26=\"\",\"\",PRESUPUESTO1!E26)","v":""},{"$f":"IF(PRESUPUESTO1!G26=\"\",\"\",PRESUPUESTO1!G26)","v":""},0,0,null,null,null,{"$error":"#VALUE!"}]
[null,null,{"$f":"IF(PRESUPUESTO1!#REF!=\"\",\"\",PRESUPUESTO1!#REF!)","v":{"$error":"#REF!"}},{"$f":"IF(PRESUPUESTO1!#REF!=\"\",\"\",PRESUPUESTO1!#REF!)","v":{"$error":"#REF!"}},null,0,0,null,null,null,0]
[null,null,{"$f":"IF(PRESUPUESTO1!#REF!=\"\",\"\",PRESUPUESTO1!#REF!)","v":{"$error":"#REF!"}},{"$f":"IF(PRESUPUESTO1!#REF!=\"\",\"\",PRESUPUESTO1!#REF!)","v":{"$error":"#REF!"}},null,0,0,null,null,null,0]
[null,null,{"$f":"IF(PRESUPUESTO1!#REF!=\"\",\"\",PRESUPUESTO1!#REF!)","v":{"$error":"#REF!"}},{"$f":"IF(PRESUPUESTO1!#REF!=\"\",\"\",PRESUPUESTO1!#REF!)","v":{"$error":"#REF!"}},null,0,0,null,null,null,0]
[]
[null,null,"B. EGRESOS DEL PROYECTO",null,"Egreso Presup","Adición/Modif","Egreso Ajustado"]
[null,null,"Código","Descripción",{"$f":"ROUND(SUM(E32:E67)+E69+E70,0)","v":{"$error":"#VALUE!"}},{"$f":"ROUND(SUM(F32:F67)+F69,0)","v":-40},{"$f":"ROUND(SUM(G32:G67)+G69+G70,0)","v":{"$error":"#N/A"}}]
[null,null,{"$f":"IF(PRESUPUESTO1!C32=\"\",\"\",PRESUPUESTO1!C32)","v":2007},{"$f":"IF(PRESUPUESTO1!D32=\"\",\"\",PRESUPUESTO1!D32)","v":"DENOMINACION CLASIFICADOR"},{"$f":"IF(PRESUPUESTO1!G32=\"\",\"\",PRESUPUESTO1!G32)","v":""},0,{"$f":"IF(E32=\"\",0,K32)","v":0},null,null,null,{"$f":"(E32+F32)","v":{"$error":"#VALUE!"}}]
[null,null,{"$f":"IF(PRESUPUESTO1!C33=\"\",\"\",PRESUPUESTO1!C33)","v":""},{"$f":"IF(PRESUPUESTO1!D33=\"\",\"\",PRESUPUESTO1!D33)","v":""},{"$f":"IF(PRESUPUESTO1!G33=\"\",\"\",PRESUPUESTO1!G33)","v":""},0,{"$f":"IF(E33=\"\",0,K33)","v":0},null,null,null,{"$f":"(E33+F33)","v":{"$error":"#VALUE!"}}]
[null,null,{"$f":"IF(PRESUPUESTO1!C34=\"\",\"\",PRESUPUESTO1!C34)","v":""},{"$f":"IF(PRESUPUESTO1!E34=\"\",\"\",PRESUPUESTO1!E34)","v":""},{"$f":"IF(PRESUPUESTO1!G34=\"\",\"\",PRESUPUESTO1!G34)","v":""},0,0,null,null,null,{"$error":"#VALUE!"}]
[null,null,{"$f":"IF(PRESUPUESTO1!C35=\"\",\"\",PRESUPUESTO1!C35)","v":""},{"$f":"IF(PRESUPUESTO1!E35=\"\",\"\",PRESUPUESTO1!E35)","v":""},{"$f":"IF(PRESUPUESTO1!G35=\"\",\"\",PRESUPUESTO1!G35)","v":""},0,0,null,null,null,{"$error":"#VALUE!"}]
[null,null,{"$f":"IF(PRESUPUESTO1!C36=\"\",\"\",PRESUPUESTO1!C36)","v":""},{"$f":"IF(PRESUPUESTO1!E36=\"\",\"\",PRESUPUESTO1!E36)","v":""},{"$f":"IF(PRESUPUESTO1!G36=\"\",\"\",PRESUPUESTO1!G36)","v":""},0,0,null,null,null,{"$error":"#VALUE!"}]
[null,null,{"$f":"IF(PRESUPUESTO1!C37=\"\",\"\",PRESUPUESTO1!C37)","v":""},{"$f":"IF(PRESUPUESTO1!E37=\"\",\"\",PRESUPUESTO1!E37)","v":""},{"$f":"IF(PRESUPUESTO1!G37=\"\",\"\",PRESUPUESTO1!G37)","v":""},0,0,null,null,null,{"$error":"#VALUE!"}]
[null,null,{"$f":"IF(PRESUPUESTO1!C38=\"\",\"\",PRESUPUESTO1!C38)","v":""},{"$f":"IF(PRESUPUESTO1!E38=\"\",\"\",PRESUPUESTO1!E38)","v":""},{"$f":"IF(PRESUPUESTO1!G38=\"\",\"\",PRESUPUESTO1!G38)","v":""},0,0,null,null,null,{"$error":"#VALUE!"}]
[null,null,{"$f":"IF(PRESUPUESTO1!C39=\"\",\"\",PRESUPUESTO1!C39)","v":""},{"$f":"IF(PRESUPUESTO1!E39=\"\",\"\",PRESUPUESTO1!E39)","v":""},{"$f":"IF(PRESUPUESTO1!G39=\"\",\"\",PRESUPUESTO1!G39)","v":""},0,0,null,null,null,{"$error":"#VALUE!"}]
[null,null,{"$f":"IF(PRESUPUESTO1!#REF!=\"\",\"\",PRESUPUESTO1!#REF!)","v":{"$error":"#REF!"}},{"$f":"IF(PRESUPUESTO1!#REF!=\"\",\"\",PRESUPUESTO1!#REF!)","v":{"$error":"#REF!"}},null,0,0,null,null,null,0]
[null,null,{"$f":"IF(PRESUPUESTO1!#REF!=\"\",\"\",PRESUPUESTO1!#REF!)","v":{"$error":"#REF!"}},{"$f":"IF(PRESUPUESTO1!#REF!=\"\",\"\",PRESUPUESTO1!#REF!)","v":{"$error":"#REF!"}},null,0,0,null,null,null,0]
[null,null,{"$f":"IF(PRESUPUESTO1!#REF!=\"\",\"\",PRESUPUESTO1!#REF!)","v":{"$error":"#REF!"}},{"$f":"IF(PRESUPUESTO1!#REF!=\"\",\"\",PRESUPUESTO1!#REF!)","v":{"$error":"#REF!"}},null,0,0,null,null,null,0]
[null,null,{"$f":"IF(PRESUPUESTO1!#REF!=\"\",\"\",PRESUPUESTO1!#REF!)","v":{"$error":"#REF!"}},{"$f":"IF(PRESUPUESTO1!#REF!=\"\",\"\",PRESUPUESTO1!#REF!)","v":{"$error":"#REF!"}},null,0,0,null,null,null,0]
[null,null,{"$f":"IF(PRESUPUESTO1!#REF!=\"\",\"\",PRESUPUESTO1!#REF!)","v":{"$error":"#REF!"}},{"$f":"IF(PRESUPUESTO1!#REF!=\"\",\"\",PRESUPUESTO1!#REF!)","v":{"$error":"#REF!"}},null,0,0,null,null,null,0]
[null,null,{"$f":"IF(PRESUPUESTO1!#REF!=\"\",\"\",PRESUPUESTO1!#REF!)","v":{"$error":"#REF!"}},{"$f":"IF(PRESUPUESTO1!#REF!=\"\",\"\",PRESUPUESTO1!#REF!)","v":{"$error":"#REF!"}},null,0,0,null,null,null,0]
[null,null,{"$f":"IF(PRESUPUESTO1!#REF!=\"\",\"\",PRESUPUESTO1!#REF!)","v":{"$error":"#REF!"}},{"$f":"IF(PRESUPUESTO1!#REF!=\"\",\"\",PRESUPUESTO1!#REF!)","v":{"$error":"#REF!"}},null,0,0,null,null,null,0]
[null,null,{"$f":"IF(PRESUPUESTO1!#REF!=\"\",\"\",PRESUPUESTO1!#REF!)","v":{"$error":"#REF!"}},{"$f":"IF(PRESUPUESTO1!#REF!=\"\",\"\",PRESUPUESTO1!#REF!)","v":{"$error":"#REF!"}},null,0,0,null,null,null,0]
[null,null,{"$f":"IF(PRESUPUESTO1!#REF!=\"\",\"\",PRESUPUESTO1!#REF!)","v":{"$error":"#REF!"}},{"$f":"IF(PRESUPUESTO1!#REF!=\"\",\"\",PRESUPUESTO1!#REF!)","v":{"$error":"#REF!"}},null,0,0,null,null,null,0]
[null,null,{"$f":"IF(PRESUPUESTO1!#REF!=\"\",\"\",PRESUPUESTO1!#REF!)","v":{"$error":"#REF!"}},{"$f":"IF(PRESUPUESTO1!#REF!=\"\",\"\",PRESUPUESTO1!#REF!)","v":{"$error":"#REF!"}},null,0,0,null,null,null,0]
[null,null,{"$f":"IF(PRESUPUESTO1!#REF!=\"\",\"\",PRESUPUESTO1!#REF!)","v":{"$error":"#REF!"}},{"$f":"IF(PRESUPUESTO1!#REF!=\"\",\"\",PRESUPUESTO1!#REF!)","v":{"$error":"#REF!"}},null,0,0,null,null,null,0]
[null,null,{"$f":"IF(PRESUPUESTO1!#REF!=\"\",\"\",PRESUPUESTO1!#REF!)","v":{"$error":"#REF!"}},{"$f":"IF(PRESUPUESTO1!#REF!=\"\",\"\",PRESUPUESTO1!#REF!)","v":{"$error":"#REF!"}},null,0,0,null,null,null,0]
[null,null,{"$f":"IF(PRESUPUESTO1!#REF!=\"\",\"\",PRESUPUESTO1!#REF!)","v":{"$error":"#REF!"}},{"$f":"IF(PRESUPUESTO1!#REF!=\"\",\"\",PRESUPUESTO1!#REF!)","v":{"$error":"#REF!"}},null,0,0,null,null,null,0]
[null,null,{"$f":"IF(PRESUPUESTO1!#REF!=\"\",\"\",PRESUPUESTO1!#REF!)","v":{"$error":"#REF!"}},{"$f":"IF(PRESUPUESTO1!#REF!=\"\",\"\",PRESUPUESTO1!#REF!)","v":{"$error":"#REF!"}},null,0,0,null,null,null,0]
[null,null,{"$f":"IF(PRESUPUESTO1!#REF!=\"\",\"\",PRESUPUESTO1!#REF!)","v":{"$error":"#REF!"}},{"$f":"IF(PRESUPUESTO1!#REF!=\"\",\"\",PRESUPUESTO1!#REF!)","v":{"$error":"#REF!"}},null,0,0,null,null,null,0]
[null,null,{"$f":"IF(PRESUPUESTO1!#REF!=\"\",\"\",PRESUPUESTO1!#REF!)","v":{"$error":"#REF!"}},{"$f":"IF(PRESUPUESTO1!#REF!=\"\",\"\",PRESUPUESTO1!#REF!)","v":{"$error":"#REF!"}},null,0,0,null,null,null,0]
[null,null,{"$f":"IF(PRESUPUESTO1!#REF!=\"\",\"\",PRESUPUESTO1!#REF!)","v":{"$error":"#REF!"}},{"$f":"IF(PRESUPUESTO1!#REF!=\"\",\"\",PRESUPUESTO1!#REF!)","v":{"$error":"#REF!"}},null,0,0,null,null,null,0]
[null,null,{"$f":"IF(PRESUPUESTO1!#REF!=\"\",\"\",PRESUPUESTO1!#REF!)","v":{"$error":"#REF!"}},{"$f":"IF(PRESUPUESTO1!#REF!=\"\",\"\",PRESUPUESTO1!#REF!)","v":{"$error":"#REF!"}},null,0,0,null,null,null,0]
[null,null,{"$f":"IF(PRESUPUESTO1!#REF!=\"\",\"\",PRESUPUESTO1!#REF!)","v":{"$error":"#REF!"}},{"$f":"IF(PRESUPUESTO1!#REF!=\"\",\"\",PRESUPUESTO1!#REF!)","v":{"$error":"#REF!"}},null,0,0,null,null,null,0]
[null,null,{"$f":"IF(PRESUPUESTO1!#REF!=\"\",\"\",PRESUPUESTO1!#REF!)","v":{"$error":"#REF!"}},{"$f":"IF(PRESUPUESTO1!#REF!=\"\",\"\",PRESUPUESTO1!#REF!)","v":{"$error":"#REF!"}},null,0,0,null,null,null,0]
[null,null,{"$f":"IF(PRESUPUESTO1!#REF!=\"\",\"\",PRESUPUESTO1!#REF!)","v":{"$error":"#REF!"}},{"$f":"IF(PRESUPUESTO1!#REF!=\"\",\"\",PRESUPUESTO1!#REF!)","v":{"$error":"#REF!"}},null,0,0,null,null,null,0]
[null,null,{"$f":"IF(PRESUPUESTO1!#REF!=\"\",\"\",PRESUPUESTO1!#REF!)","v":{"$error":"#REF!"}},{"$f":"IF(PRESUPUESTO1!#REF!=\"\",\"\",PRESUPUESTO1!#REF!)","v":{"$error":"#REF!"}},null,0,0,null,null,null,0]
[null,null,{"$f":"IF(PRESUPUESTO1!#REF!=\"\",\"\",PRESUPUESTO1!#REF!)","v":{"$error":"#REF!"}},{"$f":"IF(PRESUPUESTO1!#REF!=\"\",\"\",PRESUPUESTO1!#REF!)","v":{"$error":"#REF!"}},null,0,0,null,null,null,0]
[null,null,{"$f":"IF(PRESUPUESTO1!#REF!=\"\",\"\",PRESUPUESTO1!#REF!)","v":{"$error":"#REF!"}},{"$f":"IF(PRESUPUESTO1!#REF!=\"\",\"\",PRESUPUESTO1!#REF!)","v":{"$error":"#REF!"}},null,0,0,null,null,null,0]
[null,null,{"$f":"IF(PRESUPUESTO1!#REF!=\"\",\"\",PRESUPUESTO1!#REF!)","v":{"$error":"#REF!"}},{"$f":"IF(PRESUPUESTO1!#REF!=\"\",\"\",PRESUPUESTO1!#REF!)","v":{"$error":"#REF!"}},null,0,0,null,null,null,0]
[null,null,{"$f":"IF(PRESUPUESTO1!#REF!=\"\",\"\",PRESUPUESTO1!#REF!)","v":{"$error":"#REF!"}},{"$f":"IF(PRESUPUESTO1!#REF!=\"\",\"\",PRESUPUESTO1!#REF!)","v":{"$error":"#REF!"}},null,0,0,null,null,null,0]
[null,null,{"$f":"IF(PRESUPUESTO1!#REF!=\"\",\"\",PRESUPUESTO1!#REF!)","v":{"$error":"#REF!"}},{"$f":"IF(PRESUPUESTO1!#REF!=\"\",\"\",PRESUPUESTO1!#REF!)","v":{"$error":"#REF!"}},null,0,0,null,null,null,0]
[null,null,{"$f":"IF(PRESUPUESTO1!#REF!=\"\",\"\",PRESUPUESTO1!#REF!)","v":{"$error":"#REF!"}},{"$f":"IF(PRESUPUESTO1!#REF!=\"\",\"\",PRESUPUESTO1!#REF!)","v":{"$error":"#REF!"}},null,0,0,null,null,null,0]
[]
[null,null,{"$f":"PRESUPUESTO1!E41","v":0},{"$f":"IF(PRESUPUESTO1!D41=\"\",\"\",PRESUPUESTO1!D41)","v":{"$error":"#REF!"}},{"$f":"IF(PRESUPUESTO1!G41=\"\",\"\",PRESUPUESTO1!G41)","v":""},{"$f":"N(F18)*0.004","v":-40},{"$f":"N(G18)*0.004","v":{"$error":"#N/A"}}]
[null,null,{"$f":"PRESUPUESTO1!E42","v":0},{"$f":"IF(PRESUPUESTO1!D42=\"\",\"\",PRESUPUESTO1!D42)","v":{"$error":"#REF!"}},{"$f":"IF(PRESUPUESTO1!G42=\"\",\"\",PRESUPUESTO1!G42)","v":""},{"$f":"N(F31*0.03)","v":-1.2},{"$f":"SUM(G32:G69)*0.03","v":{"$error":"#N/A"}}]
[]
[null,null,"% Ajustado","C. DISTRIBUCION DE EXCEDENTES",null,"Montos Presup","Monto Ajustado"]
[null,null,{"$f":"IFERROR(IF(G73=0,0,((G73*100)/G18)),0)/100","v":0},"EXCEDENTES GENERADOS POR LA EJECUCION DEL PROYECTO",null,{"$f":"IF(PRESUPUESTO1!#REF!=\"\",\"\",PRESUPUESTO1!#REF!)","v":{"$error":"#REF!"}},{"$f":"ROUND(G18-G31,0)","v":{"$error":"#N/A"}}]
[null,null,0.2,"RECURSOS GENERADOS PARA DISTRIBUCION DE INCENTIVOS",null,{"$f":"IF(PRESUPUESTO1!#REF!=\"\",\"\",PRESUPUESTO1!#REF!)","v":{"$error":"#REF!"}},{"$f":"($G$73*20%)","v":{"$error":"#N/A"}}]
[null,null,0.4,"RECURSOS DESTINADOS A FINANCIAR PLAN DE DESARROLLO DE LA FACULTAD",null,{"$f":"IF(PRESUPUESTO1!#REF!=\"\",\"\",PRESUPUESTO1!#REF!)","v":{"$error":"#REF!"}},{"$f":"($G$73*40%)","v":{"$error":"#N/A"}}]
[null,null,0.4,"RECURSOS DESTINADOS A FINANCIAR PLAN DE DESARROLLO INSTITUCIONAL",null,{"$f":"IF(PRESUPUESTO1!#REF!=\"\",\"\",PRESUPUESTO1!#REF!)","v":{"$error":"#REF!"}},{"$f":"($G$73*40%)","v":{"$error":"#N/A"}}]
[null,null,{"$f":"IF(G73=0,\"\",IF(G73>(G18*0.1),C152,C153))","v":{"$error":"#N/A"}}]
[]
[]
[]
[]
[]
[null,null,"FIRMA DECANO (A)                                                                                                                                                      FIRMA COORDINADOR (A)"]
[]
[]
[]
[]
[null,null,null,"PROYECCION SOCIAL"]
[null,null,null,"PRESUPUESTO PROYECTOS O ACTIVIDADES DE PROYECCION SOCIAL"]
[]
[]
[null,null,"CODIGO","MI-PSO-FO-02",{"$f":"E7","v":"VERSIÓN: 6"},"VIGENCIA:",{"$f":"G7","v":{"$error":"#REF!"}}]
[]
[null,null,"PRIMERA SUSTENTACION MODIFICACIÓN PRESUPUESTAL\nINFORMACION GENERAL DEL PROYECTO"]
[null,null,"Proyecto",{"$f":"D10","v":"Acto Administrativo"}]
[null,null,"Coordinador",{"$f":"D11","v":""}]
[null,null,"Facultad",{"$f":"D12","v":""}]
[null,null,"Decano (a)",{"$f":"D13","v":""}]
[null,null,"Fecha programada para el inicio de las actividades del proyecto",null,{"$f":"E14","v":"N° Modificación"},"Duración",{"$f":"IF(E99=\"\",\"\",(ROUND(DAYS360(E99,E100,1)/30,0) & \" Meses\"))","v":{"$error":"#VALUE!"}}]
[null,null,"Fecha programada para la terminación de las actividades del proyecto",null,{"$f":"E15","v":{"$error":"#REF!"}}]
[]
[null,null,"Código","Sustentación a las modificaciones al Presupuesto"]
[null,null,1001]
[]
[]
[]
[]
[]
[]
[]
[]
[]
[]
[]
[]
[]
[]
[]
[]
[]
[]
[]
[]
[]
[]
[]
[]
[]
[]
[]
[]
[]
[]
[]
[]
[]
[]
[]
[]
[]
[null,null,"FIRMA DECANO (A)                                                                                                                                        FIRMA COORDINADOR (A)"]
[]
[]
[]
[]
[]
[]
[]
[]
[]
[]
[null,null,"El presente Presupuesto del Proyecto Genera excedentes por encima de lo establecido para ser reconocido como solidario y por lo tanto debe ser gestionado a través de la Oficina de Fondos Especiales"]
[null,null,"El presente Presupuesto del Proyecto genera excedentes por debajo de lo establecido en los Acuerdos de Fondos Especiales y por tanto debe Gestionarse a través de la Vicerrectoría de Investigación y Proyección Social como un Proyecto Solidario."]
[]
[null,null,1001]
[null,null,"1001.1"]
[null,null,"1001.2"]
[null,null,"1002.1"]
[null,null,"1002.2"]
[null,null,1003]
[null,null,1004]
[null,null,1005]
[null,null,1006]
[null,null,"1007.1"]
[null,null,"1007.2"]
[null,null,"1008.1"]
[null,null,"1008.2"]
[null,null,1009]
[null,null,1010]
[null,null,1011]
[null,null,1012]
[null,null,1013]
[null,null,1014]
[null,null,1015]
[null,null,"2001.1"]
[null,null,"2001.2"]
[null,null,2002]
[null,null,2003]
[null,null,2004]
[null,null,2005]
[null,null,2006]
[null,null,2007]
[null,null,2008]
[null,null,2009]
[null,null,2010]
[null,null,2011]
[null,null,2012]
[null,null,2013]
[null,null,2014]
[null,null,2015]
[null,null,2016]
[null,null,2017]
[null,null,2018]
[null,null,"2019.1"]
[null,null,"2019.2"]
[null,null,"2020.1"]
[null,null,"2020.2"]
[null,null,2021]
[null,null,2022]
[null,null,2024]
[null,null,2026]
[null,null,2027]
[null,null,2028]
[null,null,2029]
[null,null,2030]
[null,null,2031]
[null,null,2032]
[null,null,2033]
[null,null,2034]
[null,null,2035]

{"sheet":"2da_Modificacion Presupuestal1","index":7,"n_rows":210,"n_cols":11,"rows_kept":210,"cut":false,"hidden":true,"merged":[[147,3,147,5],[131,3,131,6],[132,3,132,6],[133,3,133,6],[140,2,140,6],[141,2,141,5],[146,3,146,5],[126,3,126,6],[127,3,127,6],[128,3,128,6],[129,3,129,6],[130,3,130,6],[121,3,121,6],[122,3,122,6],[123,3,123,6],[124,3,124,6],[125,3,125,6],[116,3,116,6],[117,3,117,6],[118,3,118,6],[119,3,119,6],[120,3,120,6],[111,3,111,6],[112,3,112,6],[113,3,113,6],[114,3,114,6],[115,3,115,6],[106,3,106,6],[107,3,107,6],[108,3,108,6],[109,3,109,6],[110,3,110,6],[101,3,101,6],[102,3,102,6],[103,3,103,6],[104,3,104,6],[105,3,105,6],[94,3,94,6],[95,3,95,6],[96,3,96,6],[97,3,97,6],[98,2,98,3],[98,5,99,5],[98,6,99,6],[99,2,99,3],[87,2,90,2],[87,3,87,4],[87,5,90,6],[88,3,90,4],[93,2,93,6],[74,3,74,4],[75,3,75,4],[76,2,76,6],[82,2,82,6],[83,2,83,5],[16,2,16,3],[29,2,29,3],[71,3,71,4],[72,3,72,4],[73,3,73,4],[9,3,9,6],[10,3,10,6],[11,3,11,6],[12,3,12,6],[13,2,13,3],[13,5,14,5],[13,6,14,6],[14,2,14,3],[2,2,5,2],[2,3,2,4],[2,5,5,6],[3,3,5,4],[8,2,8,6]]}
[]
[]
[null,null,null,"PROYECCION SOCIAL"]
[null,null,null,"PRESUPUESTO PROYECTOS O ACTIVIDADES DE PROYECCION SOCIAL"]
[]
[]
[null,null,"CODIGO","MI-PSO-FO-02",{"$f":"'Modificacion Presupuestal1'!E7","v":"VERSIÓN: 6"},"VIGENCIA:",{"$f":"'Modificacion Presupuestal1'!G7","v":{"$error":"#REF!"}}]
[]
[null,null,"SEGUNDA MODIFICACIÓN PRESUPUESTAL\nINFORMACION GENERAL DEL PROYECTO"]
[null,null,"Proyecto",{"$f":"IF(PRESUPUESTO1!E8=\"\",\"\",PRESUPUESTO1!E8)","v":"Acto Administrativo"}]
[null,null,"Coordinador",{"$f":"IF(PRESUPUESTO1!E9=\"\",\"\",PRESUPUESTO1!E9)","v":""}]
[null,null,"Facultad",{"$f":"IF(PRESUPUESTO1!E10=\"\",\"\",PRESUPUESTO1!E10)","v":""}]
[null,null,"Decano (a)",{"$f":"IF(PRESUPUESTO1!E11=\"\",\"\",PRESUPUESTO1!E11)","v":""}]
[null,null,"Fecha programada para el inicio de las actividades del proyecto",null,{"$f":"IF(PRESUPUESTO1!F12=\"\",\"\",PRESUPUESTO1!F12)","v":"N° Modificación"},"Duración",{"$f":"IF(E14=\"\",\"\",(ROUND(DAYS360(E14,E15,1)/30,0) & \" Meses\"))","v":{"$error":"#VALUE!"}}]
[null,null,"Fecha programada para la terminación de las actividades del proyecto",null,{"$f":"IF(PRESUPUESTO1!F13=\"\",\"\",PRESUPUESTO1!F13)","v":{"$error":"#REF!"}}]
[]
[null,null,"A. INGRESOS DEL PROYECTO",null,"Ingreso Presup","Adición/Modif","Ingreso Ajustado"]
[null,null,"Código","Descripción",{"$f":"ROUND(SUM(E19:E28),0)","v":{"$error":"#N/A"}},{"$f":"ROUND(SUM(F19:F28),0)","v":0},{"$f":"ROUND(SUM(G19:G28),0)","v":{"$error":"#N/A"}}]
[null,null,{"$f":"IF(PRESUPUESTO1!C20=\"\",\"\",PRESUPUESTO1!C20)","v":1001},{"$f":"IF(PRESUPUESTO1!D20=\"\",\"\",PRESUPUESTO1!D20)","v":{"$error":"#N/A"}},{"$f":"'Modificacion Presupuestal1'!G19","v":{"$error":"#N/A"}},0,{"$f":"IF(E19=\"\",0,K19)","v":{"$error":"#N/A"}},null,null,null,{"$f":"(E19+F19)","v":{"$error":"#N/A"}}]
[null,null,{"$f":"IF(PRESUPUESTO1!C21=\"\",\"\",PRESUPUESTO1!C21)","v":1002},{"$f":"IF(PRESUPUESTO1!E21=\"\",\"\",PRESUPUESTO1!E21)","v":""},{"$f":"'Modificacion Presupuestal1'!G20","v":{"$error":"#N/A"}},0,{"$f":"IF(E20=\"\",0,K20)","v":{"$error":"#N/A"}},null,null,null,{"$f":"(E20+F20)","v":{"$error":"#N/A"}}]
[null,null,{"$f":"IF(PRESUPUESTO1!C22=\"\",\"\",PRESUPUESTO1!C22)","v":1003},{"$f":"IF(PRESUPUESTO1!E22=\"\",\"\",PRESUPUESTO1!E22)","v":""},{"$f":"'Modificacion Presupuestal1'!G21","v":{"$error":"#N/A"}},0,{"$error":"#N/A"},null,null,null,{"$error":"#N/A"}]
[null,null,{"$f":"IF(PRESUPUESTO1!C23=\"\",\"\",PRESUPUESTO1!C23)","v":""},{"$f":"IF(PRESUPUESTO1!E23=\"\",\"\",PRESUPUESTO1!E23)","v":""},{"$f":"'Modificacion Presupuestal1'!G22","v":0},0,0,null,null,null,0]
[null,null,{"$f":"IF(PRESUPUESTO1!C24=\"\",\"\",PRESUPUESTO1!C24)","v":""},{"$f":"IF(PRESUPUESTO1!E24=\"\",\"\",PRESUPUESTO1!E24)","v":""},{"$f":"'Modificacion Presupuestal1'!G23","v":0},0,0,null,null,null,0]
[null,null,{"$f":"IF(PRESUPUESTO1!C25=\"\",\"\",PRESUPUESTO1!C25)","v":""},{"$f":"IF(PRESUPUESTO1!E25=\"\",\"\",PRESUPUESTO1!E25)","v":""},{"$f":"'Modificacion Presupuestal1'!G24","v":0},0,0,null,null,null,0]
[null,null,{"$f":"IF(PRESUPUESTO1!C26=\"\",\"\",PRESUPUESTO1!C26)","v":""},{"$f":"IF(PRESUPUESTO1!E26=\"\",\"\",PRESUPUESTO1!E26)","v":""},{"$f":"'Modificacion Presupuestal1'!G25","v":0},0,0,null,null,null,0]
[null,null,{"$f":"IF(PRESUPUESTO1!#REF!=\"\",\"\",PRESUPUESTO1!#REF!)","v":{"$error":"#REF!"}},{"$f":"IF(PRESUPUESTO1!#REF!=\"\",\"\",PRESUPUESTO1!#REF!)","v":{"$error":"#REF!"}},{"$f":"'Modificacion Presupuestal1'!G26","v":0},0,0,null,null,null,0]
[null,null,{"$f":"IF(PRESUPUESTO1!#REF!=\"\",\"\",PRESUPUESTO1!#REF!)","v":{"$error":"#REF!"}},{"$f":"IF(PRESUPUESTO1!#REF!=\"\",\"\",PRESUPUESTO1!#REF!)","v":{"$error":"#REF!"}},{"$f":"'Modificacion Presupuestal1'!G27","v":0},0,0,null,null,null,0]
[null,null,{"$f":"IF(PRESUPUESTO1!#REF!=\"\",\"\",PRESUPUESTO1!#REF!)","v":{"$error":"#REF!"}},{"$f":"IF(PRESUPUESTO1!#REF!=\"\",\"\",PRESUPUESTO1!#REF!)","v":{"$error":"#REF!"}},{"$f":"'Modificacion Presupuestal1'!G28","v":0},0,0,null,null,null,0]
[]
[null,null,"B. COSTOS DEL PROYECTO",null,"Egreso Presup","Adición/Modif","Egreso Ajustado"]
[null,null,"Código","Descripción",{"$f":"ROUND(SUM(E32:E67)+E69+E70,0)","v":{"$error":"#N/A"}},{"$f":"ROUND(SUM(F32:F67)+F69,0)","v":0},{"$f":"ROUND(SUM(G32:G67)+G69+G70,0)","v":{"$error":"#N/A"}}]
[null,null,{"$f":"IF(PRESUPUESTO1!C32=\"\",\"\",PRESUPUESTO1!C32)","v":2007},{"$f":"IF(PRESUPUESTO1!D32=\"\",\"\",PRESUPUESTO1!D32)","v":"DENOMINACION CLASIFICADOR"},{"$f":"'Modificacion Presupuestal1'!G32","v":0},0,{"$f":"IF(E32=\"\",0,K32)","v":0},null,null,null,{"$f":"(E32+F32)","v":0}]
[null,null,{"$f":"IF(PRESUPUESTO1!C33=\"\",\"\",PRESUPUESTO1!C33)","v":""},{"$f":"IF(PRESUPUESTO1!D33=\"\",\"\",PRESUPUESTO1!D33)","v":""},{"$f":"'Modificacion Presupuestal1'!G33","v":0},0,{"$f":"IF(E33=\"\",0,K33)","v":0},null,null,null,{"$f":"(E33+F33)","v":0}]
[null,null,{"$f":"IF(PRESUPUESTO1!C34=\"\",\"\",PRESUPUESTO1!C34)","v":""},{"$f":"IF(PRESUPUESTO1!E34=\"\",\"\",PRESUPUESTO1!E34)","v":""},{"$f":"'Modificacion Presupuestal1'!G34","v":0},0,0,null,null,null,0]
[null,null,{"$f":"IF(PRESUPUESTO1!C35=\"\",\"\",PRESUPUESTO1!C35)","v":""},{"$f":"IF(PRESUPUESTO1!E35=\"\",\"\",PRESUPUESTO1!E35)","v":""},{"$f":"'Modificacion Presupuestal1'!G35","v":0},0,0,null,null,null,0]
[null,null,{"$f":"IF(PRESUPUESTO1!C36=\"\",\"\",PRESUPUESTO1!C36)","v":""},{"$f":"IF(PRESUPUESTO1!E36=\"\",\"\",PRESUPUESTO1!E36)","v":""},{"$f":"'Modificacion Presupuestal1'!G36","v":0},0,0,null,null,null,0]
[null,null,{"$f":"IF(PRESUPUESTO1!C37=\"\",\"\",PRESUPUESTO1!C37)","v":""},{"$f":"IF(PRESUPUESTO1!E37=\"\",\"\",PRESUPUESTO1!E37)","v":""},{"$f":"'Modificacion Presupuestal1'!G37","v":0},0,0,null,null,null,0]
[null,null,{"$f":"IF(PRESUPUESTO1!C38=\"\",\"\",PRESUPUESTO1!C38)","v":""},{"$f":"IF(PRESUPUESTO1!E38=\"\",\"\",PRESUPUESTO1!E38)","v":""},{"$f":"'Modificacion Presupuestal1'!G38","v":0},0,0,null,null,null,0]
[null,null,{"$f":"IF(PRESUPUESTO1!C39=\"\",\"\",PRESUPUESTO1!C39)","v":""},{"$f":"IF(PRESUPUESTO1!E39=\"\",\"\",PRESUPUESTO1!E39)","v":""},{"$f":"'Modificacion Presupuestal1'!G39","v":0},0,0,null,null,null,0]
[null,null,{"$f":"IF(PRESUPUESTO1!#REF!=\"\",\"\",PRESUPUESTO1!#REF!)","v":{"$error":"#REF!"}},{"$f":"IF(PRESUPUESTO1!#REF!=\"\",\"\",PRESUPUESTO1!#REF!)","v":{"$error":"#REF!"}},{"$f":"'Modificacion Presupuestal1'!G40","v":0},0,0,null,null,null,0]
[null,null,{"$f":"IF(PRESUPUESTO1!#REF!=\"\",\"\",PRESUPUESTO1!#REF!)","v":{"$error":"#REF!"}},{"$f":"IF(PRESUPUESTO1!#REF!=\"\",\"\",PRESUPUESTO1!#REF!)","v":{"$error":"#REF!"}},{"$f":"'Modificacion Presupuestal1'!G41","v":0},0,0,null,null,null,0]
[null,null,{"$f":"IF(PRESUPUESTO1!#REF!=\"\",\"\",PRESUPUESTO1!#REF!)","v":{"$error":"#REF!"}},{"$f":"IF(PRESUPUESTO1!#REF!=\"\",\"\",PRESUPUESTO1!#REF!)","v":{"$error":"#REF!"}},{"$f":"'Modificacion Presupuestal1'!G42","v":0},0,0,null,null,null,0]
[null,null,{"$f":"IF(PRESUPUESTO1!#REF!=\"\",\"\",PRESUPUESTO1!#REF!)","v":{"$error":"#REF!"}},{"$f":"IF(PRESUPUESTO1!#REF!=\"\",\"\",PRESUPUESTO1!#REF!)","v":{"$error":"#REF!"}},{"$f":"'Modificacion Presupuestal1'!G43","v":0},0,0,null,null,null,0]
[null,null,{"$f":"IF(PRESUPUESTO1!#REF!=\"\",\"\",PRESUPUESTO1!#REF!)","v":{"$error":"#REF!"}},{"$f":"IF(PRESUPUESTO1!#REF!=\"\",\"\",PRESUPUESTO1!#REF!)","v":{"$error":"#REF!"}},{"$f":"'Modificacion Presupuestal1'!G44","v":0},0,0,null,null,null,0]
[null,null,{"$f":"IF(PRESUPUESTO1!#REF!=\"\",\"\",PRESUPUESTO1!#REF!)","v":{"$error":"#REF!"}},{"$f":"IF(PRESUPUESTO1!#REF!=\"\",\"\",PRESUPUESTO1!#REF!)","v":{"$error":"#REF!"}},{"$f":"'Modificacion Presupuestal1'!G45","v":0},0,0,null,null,null,0]
[null,null,{"$f":"IF(PRESUPUESTO1!#REF!=\"\",\"\",PRESUPUESTO1!#REF!)","v":{"$error":"#REF!"}},{"$f":"IF(PRESUPUESTO1!#REF!=\"\",\"\",PRESUPUESTO1!#REF!)","v":{"$error":"#REF!"}},{"$f":"'Modificacion Presupuestal1'!G46","v":0},0,0,null,null,null,0]
[null,null,{"$f":"IF(PRESUPUESTO1!#REF!=\"\",\"\",PRESUPUESTO1!#REF!)","v":{"$error":"#REF!"}},{"$f":"IF(PRESUPUESTO1!#REF!=\"\",\"\",PRESUPUESTO1!#REF!)","v":{"$error":"#REF!"}},{"$f":"'Modificacion Presupuestal1'!G47","v":0},0,0,null,null,null,0]
[null,null,{"$f":"IF(PRESUPUESTO1!#REF!=\"\",\"\",PRESUPUESTO1!#REF!)","v":{"$error":"#REF!"}},{"$f":"IF(PRESUPUESTO1!#REF!=\"\",\"\",PRESUPUESTO1!#REF!)","v":{"$error":"#REF!"}},{"$f":"'Modificacion Presupuestal1'!G48","v":0},0,0,null,null,null,0]
[null,null,{"$f":"IF(PRESUPUESTO1!#REF!=\"\",\"\",PRESUPUESTO1!#REF!)","v":{"$error":"#REF!"}},{"$f":"IF(PRESUPUESTO1!#REF!=\"\",\"\",PRESUPUESTO1!#REF!)","v":{"$error":"#REF!"}},{"$f":"'Modificacion Presupuestal1'!G49","v":0},0,0,null,null,null,0]
[null,null,{"$f":"IF(PRESUPUESTO1!#REF!=\"\",\"\",PRESUPUESTO1!#REF!)","v":{"$error":"#REF!"}},{"$f":"IF(PRESUPUESTO1!#REF!=\"\",\"\",PRESUPUESTO1!#REF!)","v":{"$error":"#REF!"}},{"$f":"'Modificacion Presupuestal1'!G50","v":0},0,0,null,null,null,0]
[null,null,{"$f":"IF(PRESUPUESTO1!#REF!=\"\",\"\",PRESUPUESTO1!#REF!)","v":{"$error":"#REF!"}},{"$f":"IF(PRESUPUESTO1!#REF!=\"\",\"\",PRESUPUESTO1!#REF!)","v":{"$error":"#REF!"}},{"$f":"'Modificacion Presupuestal1'!G51","v":0},0,0,null,null,null,0]
[null,null,{"$f":"IF(PRESUPUESTO1!#REF!=\"\",\"\",PRESUPUESTO1!#REF!)","v":{"$error":"#REF!"}},{"$f":"IF(PRESUPUESTO1!#REF!=\"\",\"\",PRESUPUESTO1!#REF!)","v":{"$error":"#REF!"}},{"$f":"'Modificacion Presupuestal1'!G52","v":0},0,0,null,null,null,0]
[null,null,{"$f":"IF(PRESUPUESTO1!#REF!=\"\",\"\",PRESUPUESTO1!#REF!)","v":{"$error":"#REF!"}},{"$f":"IF(PRESUPUESTO1!#REF!=\"\",\"\",PRESUPUESTO1!#REF!)","v":{"$error":"#REF!"}},{"$f":"'Modificacion Presupuestal1'!G53","v":0},0,0,null,null,null,0]
[null,null,{"$f":"IF(PRESUPUESTO1!#REF!=\"\",\"\",PRESUPUESTO1!#REF!)","v":{"$error":"#REF!"}},{"$f":"IF(PRESUPUESTO1!#REF!=\"\",\"\",PRESUPUESTO1!#REF!)","v":{"$error":"#REF!"}},{"$f":"'Modificacion Presupuestal1'!G54","v":0},0,0,null,null,null,0]
[null,null,{"$f":"IF(PRESUPUESTO1!#REF!=\"\",\"\",PRESUPUESTO1!#REF!)","v":{"$error":"#REF!"}},{"$f":"IF(PRESUPUESTO1!#REF!=\"\",\"\",PRESUPUESTO1!#REF!)","v":{"$error":"#REF!"}},{"$f":"'Modificacion Presupuestal1'!G55","v":0},0,0,null,null,null,0]
[null,null,{"$f":"IF(PRESUPUESTO1!#REF!=\"\",\"\",PRESUPUESTO1!#REF!)","v":{"$error":"#REF!"}},{"$f":"IF(PRESUPUESTO1!#REF!=\"\",\"\",PRESUPUESTO1!#REF!)","v":{"$error":"#REF!"}},{"$f":"'Modificacion Presupuestal1'!G56","v":0},0,0,null,null,null,0]
[null,null,{"$f":"IF(PRESUPUESTO1!#REF!=\"\",\"\",PRESUPUESTO1!#REF!)","v":{"$error":"#REF!"}},{"$f":"IF(PRESUPUESTO1!#REF!=\"\",\"\",PRESUPUESTO1!#REF!)","v":{"$error":"#REF!"}},{"$f":"'Modificacion Presupuestal1'!G57","v":0},0,0,null,null,null,0]
[null,null,{"$f":"IF(PRESUPUESTO1!#REF!=\"\",\"\",PRESUPUESTO1!#REF!)","v":{"$error":"#REF!"}},{"$f":"IF(PRESUPUESTO1!#REF!=\"\",\"\",PRESUPUESTO1!#REF!)","v":{"$error":"#REF!"}},{"$f":"'Modificacion Presupuestal1'!G58","v":0},0,0,null,null,null,0]
[null,null,{"$f":"IF(PRESUPUESTO1!#REF!=\"\",\"\",PRESUPUESTO1!#REF!)","v":{"$error":"#REF!"}},{"$f":"IF(PRESUPUESTO1!#REF!=\"\",\"\",PRESUPUESTO1!#REF!)","v":{"$error":"#REF!"}},{"$f":"'Modificacion Presupuestal1'!G59","v":0},0,0,null,null,null,0]
[null,null,{"$f":"IF(PRESUPUESTO1!#REF!=\"\",\"\",PRESUPUESTO1!#REF!)","v":{"$error":"#REF!"}},{"$f":"IF(PRESUPUESTO1!#REF!=\"\",\"\",PRESUPUESTO1!#REF!)","v":{"$error":"#REF!"}},{"$f":"'Modificacion Presupuestal1'!G60","v":0},0,0,null,null,null,0]
[null,null,{"$f":"IF(PRESUPUESTO1!#REF!=\"\",\"\",PRESUPUESTO1!#REF!)","v":{"$error":"#REF!"}},{"$f":"IF(PRESUPUESTO1!#REF!=\"\",\"\",PRESUPUESTO1!#REF!)","v":{"$error":"#REF!"}},{"$f":"'Modificacion Presupuestal1'!G61","v":0},0,0,null,null,null,0]
[null,null,{"$f":"IF(PRESUPUESTO1!#REF!=\"\",\"\",PRESUPUESTO1!#REF!)","v":{"$error":"#REF!"}},{"$f":"IF(PRESUPUESTO1!#REF!=\"\",\"\",PRESUPUESTO1!#REF!)","v":{"$error":"#REF!"}},{"$f":"'Modificacion Presupuestal1'!G62","v":0},0,0,null,null,null,0]
[null,null,{"$f":"IF(PRESUPUESTO1!#REF!=\"\",\"\",PRESUPUESTO1!#REF!)","v":{"$error":"#REF!"}},{"$f":"IF(PRESUPUESTO1!#REF!=\"\",\"\",PRESUPUESTO1!#REF!)","v":{"$error":"#REF!"}},{"$f":"'Modificacion Presupuestal1'!G63","v":0},0,0,null,null,null,0]
[null,null,{"$f":"IF(PRESUPUESTO1!#REF!=\"\",\"\",PRESUPUESTO1!#REF!)","v":{"$error":"#REF!"}},{"$f":"IF(PRESUPUESTO1!#REF!=\"\",\"\",PRESUPUESTO1!#REF!)","v":{"$error":"#REF!"}},{"$f":"'Modificacion Presupuestal1'!G64","v":0},0,0,null,null,null,0]
[null,null,{"$f":"IF(PRESUPUESTO1!#REF!=\"\",\"\",PRESUPUESTO1!#REF!)","v":{"$error":"#REF!"}},{"$f":"IF(PRESUPUESTO1!#REF!=\"\",\"\",PRESUPUESTO1!#REF!)","v":{"$error":"#REF!"}},{"$f":"'Modificacion Presupuestal1'!G65","v":0},0,0,null,null,null,0]
[null,null,{"$f":"IF(PRESUPUESTO1!#REF!=\"\",\"\",PRESUPUESTO1!#REF!)","v":{"$error":"#REF!"}},{"$f":"IF(PRESUPUESTO1!#REF!=\"\",\"\",PRESUPUESTO1!#REF!)","v":{"$error":"#REF!"}},{"$f":"'Modificacion Presupuestal1'!G66","v":0},0,0,null,null,null,0]
[null,null,{"$f":"IF(PRESUPUESTO1!#REF!=\"\",\"\",PRESUPUESTO1!#REF!)","v":{"$error":"#REF!"}},{"$f":"IF(PRESUPUESTO1!#REF!=\"\",\"\",PRESUPUESTO1!#REF!)","v":{"$error":"#REF!"}},{"$f":"'Modificacion Presupuestal1'!G67","v":0},0,0,null,null,null,0]
[]
[null,null,{"$f":"PRESUPUESTO1!E41","v":0},{"$f":"IF(PRESUPUESTO1!D41=\"\",\"\",PRESUPUESTO1!D41)","v":{"$error":"#REF!"}},{"$f":"'Modificacion Presupuestal1'!G69","v":{"$error":"#N/A"}},{"$f":"N(F18)*0.004","v":0},{"$f":"N(G18)*0.004","v":{"$error":"#N/A"}}]
[null,null,{"$f":"PRESUPUESTO1!E42","v":0},{"$f":"IF(PRESUPUESTO1!D42=\"\",\"\",PRESUPUESTO1!D42)","v":{"$error":"#REF!"}},{"$f":"'Modificacion Presupuestal1'!G70","v":{"$error":"#N/A"}},{"$f":"N(F31*0.03)","v":0},{"$f":"SUM(G32:G69)*0.03","v":{"$error":"#N/A"}}]
[]
[null,null,"% Ajustado","C. DISTRIBUCION DE EXCEDENTES",null,"Montos Presup","Monto Ajustado"]
[null,null,{"$f":"IFERROR(IF(G73=0,0,((G73*100)/G18)),0)","v":0},"EXCEDENTES GENERADOS POR LA EJECUCION DEL PROYECTO",null,{"$f":"'Modificacion Presupuestal1'!G73","v":{"$error":"#N/A"}},{"$f":"ROUND(G18-G31,0)","v":{"$error":"#N/A"}}]
[null,null,0.2,"RECURSOS GENERADOS PARA DISTRIBUCION DE INCENTIVOS",null,{"$f":"'Modificacion Presupuestal1'!G74","v":{"$error":"#N/A"}},{"$f":"($G$73*20%)","v":{"$error":"#N/A"}}]
[null,null,0.4,"RECURSOS DESTINADOS A FINANCIAR PLAN DE DESARROLLO DE LA FACULTAD",null,{"$f":"'Modificacion Presupuestal1'!G75","v":{"$error":"#N/A"}},{"$f":"($G$73*40%)","v":{"$error":"#N/A"}}]
[null,null,0.4,"RECURSOS DESTINADOS A FINANCIAR PLAN DE DESARROLLO INSTITUCIONAL",null,{"$f":"'Modificacion Presupuestal1'!G76","v":{"$error":"#N/A"}},{"$f":"($G$73*40%)","v":{"$error":"#N/A"}}]
[null,null,{"$f":"IF(G73=0,\"\",IF(G73>(G18*0.1),C152,C153))","v":{"$error":"#N/A"}}]
[]
[]
[]
[]
[]
[null,null,"FIRMA DECANO (A)                                                                                                                                                     FIRMA COORDINADOR (A)"]
[]
[]
[]
[]
[null,null,null,"PROYECCION SOCIAL"]
[null,null,null,"PRESUPUESTO PROYECTOS O ACTIVIDADES DE PROYECCION SOCIAL"]
[]
[]
[null,null,"CODIGO","MI-PSO-FO-02",{"$f":"E7","v":"VERSIÓN: 6"},"VIGENCIA:",{"$f":"G7","v":{"$error":"#REF!"}}]
[]
[null,null,"SEGUNDA SUSTENTACION MODIFICACIÓN PRESUPUESTAL\nINFORMACION GENERAL DEL PROYECTO"]
[null,null,"Proyecto",{"$f":"D10","v":"Acto Administrativo"}]
[null,null,"Coordinador",{"$f":"D11","v":""}]
[null,null,"Facultad",{"$f":"D12","v":""}]
[null,null,"Decano (a)",{"$f":"D13","v":""}]
[null,null,"Fecha programada para el inicio de las actividades del proyecto",null,{"$f":"E14","v":"N° Modificación"},"Duración",{"$f":"IF(E99=\"\",\"\",(ROUND(DAYS360(E99,E100,1)/30,0) & \" Meses\"))","v":{"$error":"#VALUE!"}}]
[null,null,"Fecha programada para la terminación de las actividades del proyecto",null,{"$f":"E15","v":{"$error":"#REF!"}}]
[]
[null,null,"Código","Sustentación a las modificaciones al Presupuesto"]
[]
[]
[]
[]
[]
[]
[]
[]
[]
[]
[]
[]
[]
[]
[]
[]
[]
[]
[]
[]
[]
[]
[]
[]
[]
[]
[]
[]
[]
[]
[]
[]
[]
[]
[]
[]
[]
[]
[null,null,"FIRMA DECANO (A)                                                                                                                                       FIRMA COORDINADOR (A)"]
[]
[]
[]
[]
[]
[]
[]
[]
[]
[]
[null,null,"El presente Presupuesto del Proyecto Genera excedentes por encima de lo establecido para ser reconocido como solidario y por lo tanto debe ser gestionado a través de la Oficina de Fondos Especiales"]
[null,null,"El presente Presupuesto del Proyecto genera excedentes por debajo de lo establecido en los Acuerdos de Fondos Especiales y por tanto debe Gestionarse a través de la Vicerrectoría de Investigación y Proyección Social como un Proyecto Solidario."]
[]
[null,null,1001]
[null,null,"1001.1"]
[null,null,"1001.2"]
[null,null,"1002.1"]
[null,null,"1002.2"]
[null,null,1003]
[null,null,1004]
[null,null,1005]
[null,null,1006]
[null,null,"1007.1"]
[null,null,"1007.2"]
[null,null,"1008.1"]
[null,null,"1008.2"]
[null,null,1009]
[null,null,1010]
[null,null,1011]
[null,null,1012]
[null,null,1013]
[null,null,1014]
[null,null,1015]
[null,null,"2001.1"]
[null,null,"2001.2"]
[null,null,2002]
[null,null,2003]
[null,null,2004]
[null,null,2005]
[null,null,2006]
[null,null,2007]
[null,null,2008]
[null,null,2009]
[null,null,2010]
[null,null,2011]
[null,null,2012]
[null,null,2013]
[null,null,2014]
[null,null,2015]
[null,null,2016]
[null,null,2017]
[null,null,2018]
[null,null,"2019.1"]
[null,null,"2019.2"]
[null,null,"2020.1"]
[null,null,"2020.2"]
[null,null,2021]
[null,null,2022]
[null,null,2024]
[null,null,2026]
[null,null,2027]
[null,null,2028]
[null,null,2029]
[null,null,2030]
[null,null,2031]
[null,null,2032]
[null,null,2033]
[null,null,2034]
[null,null,2035]

{"sheet":"3da_Modificacion Presupuestal1","index":8,"n_rows":210,"n_cols":11,"rows_kept":210,"cut":false,"hidden":true,"merged":[[147,3,147,5],[131,3,131,6],[132,3,132,6],[133,3,133,6],[140,2,140,6],[141,2,141,5],[146,3,146,5],[126,3,126,6],[127,3,127,6],[128,3,128,6],[129,3,129,6],[130,3,130,6],[121,3,121,6],[122,3,122,6],[123,3,123,6],[124,3,124,6],[125,3,125,6],[116,3,116,6],[117,3,117,6],[118,3,118,6],[119,3,119,6],[120,3,120,6],[111,3,111,6],[112,3,112,6],[113,3,113,6],[114,3,114,6],[115,3,115,6],[106,3,106,6],[107,3,107,6],[108,3,108,6],[109,3,109,6],[110,3,110,6],[101,3,101,6],[102,3,102,6],[103,3,103,6],[104,3,104,6],[105,3,105,6],[94,3,94,6],[95,3,95,6],[96,3,96,6],[97,3,97,6],[98,2,98,3],[98,5,99,5],[98,6,99,6],[99,2,99,3],[87,2,90,2],[87,3,87,4],[87,5,90,6],[88,3,90,4],[93,2,93,6],[74,3,74,4],[75,3,75,4],[76,2,76,6],[82,2,82,6],[83,2,83,5],[16,2,16,3],[29,2,29,3],[71,3,71,4],[72,3,72,4],[73,3,73,4],[9,3,9,6],[10,3,10,6],[11,3,11,6],[12,3,12,6],[13,2,13,3],[13,5,14,5],[13,6,14,6],[14,2,14,3],[2,2,5,2],[2,3,2,4],[2,5,5,6],[3,3,5,4],[8,2,8,6]]}
[]
[]
[null,null,null,"PROYECCION SOCIAL"]
[null,null,null,"PRESUPUESTO PROYECTOS O ACTIVIDADES DE PROYECCION SOCIAL"]
[]
[]
[null,null,"CODIGO","MI-PSO-FO-02",{"$f":"'2da_Modificacion Presupuestal1'!E7","v":"VERSIÓN: 6"},"VIGENCIA:",{"$f":"'2da_Modificacion Presupuestal1'!G7","v":{"$error":"#REF!"}}]
[]
[null,null,"TERCERA MODIFICACIÓN PRESUPUESTAL\nINFORMACION GENERAL DEL PROYECTO"]
[null,null,"Proyecto",{"$f":"IF(PRESUPUESTO1!E8=\"\",\"\",PRESUPUESTO1!E8)","v":"Acto Administrativo"}]
[null,null,"Coordinador",{"$f":"IF(PRESUPUESTO1!E9=\"\",\"\",PRESUPUESTO1!E9)","v":""}]
[null,null,"Facultad",{"$f":"IF(PRESUPUESTO1!E10=\"\",\"\",PRESUPUESTO1!E10)","v":""}]
[null,null,"Decano (a)",{"$f":"IF(PRESUPUESTO1!E11=\"\",\"\",PRESUPUESTO1!E11)","v":""}]
[null,null,"Fecha programada para el inicio de las actividades del proyecto",null,{"$f":"IF(PRESUPUESTO1!F12=\"\",\"\",PRESUPUESTO1!F12)","v":"N° Modificación"},"Duración",{"$f":"IF(E14=\"\",\"\",(ROUND(DAYS360(E14,E15,1)/30,0) & \" Meses\"))","v":{"$error":"#VALUE!"}}]
[null,null,"Fecha programada para la terminación de las actividades del proyecto",null,{"$f":"IF(PRESUPUESTO1!F13=\"\",\"\",PRESUPUESTO1!F13)","v":{"$error":"#REF!"}}]
[]
[null,null,"A. INGRESOS DEL PROYECTO",null,"Ingreso Presup","Adición/Modif","Ingreso Ajustado"]
[null,null,"Código","Descripción",{"$f":"ROUND(SUM(E19:E28),0)","v":{"$error":"#N/A"}},{"$f":"ROUND(SUM(F19:F28),0)","v":0},{"$f":"ROUND(SUM(G19:G28),0)","v":{"$error":"#N/A"}}]
[null,null,null,{"$f":"IF(PRESUPUESTO1!D20=\"\",\"\",PRESUPUESTO1!D20)","v":{"$error":"#N/A"}},{"$f":"'2da_Modificacion Presupuestal1'!G19","v":{"$error":"#N/A"}},0,{"$f":"IF(E19=\"\",0,K19)","v":{"$error":"#N/A"}},null,null,null,{"$f":"(E19+F19)","v":{"$error":"#N/A"}}]
[null,null,{"$f":"IF(PRESUPUESTO1!C21=\"\",\"\",PRESUPUESTO1!C21)","v":1002},{"$f":"IF(PRESUPUESTO1!E21=\"\",\"\",PRESUPUESTO1!E21)","v":""},{"$f":"'2da_Modificacion Presupuestal1'!G20","v":{"$error":"#N/A"}},0,{"$f":"IF(E20=\"\",0,K20)","v":{"$error":"#N/A"}},null,null,null,{"$f":"(E20+F20)","v":{"$error":"#N/A"}}]
[null,null,{"$f":"IF(PRESUPUESTO1!C22=\"\",\"\",PRESUPUESTO1!C22)","v":1003},{"$f":"IF(PRESUPUESTO1!E22=\"\",\"\",PRESUPUESTO1!E22)","v":""},{"$f":"'2da_Modificacion Presupuestal1'!G21","v":{"$error":"#N/A"}},0,{"$error":"#N/A"},null,null,null,{"$error":"#N/A"}]
[null,null,{"$f":"IF(PRESUPUESTO1!C23=\"\",\"\",PRESUPUESTO1!C23)","v":""},{"$f":"IF(PRESUPUESTO1!E23=\"\",\"\",PRESUPUESTO1!E23)","v":""},{"$f":"'2da_Modificacion Presupuestal1'!G22","v":0},0,0,null,null,null,0]
[null,null,{"$f":"IF(PRESUPUESTO1!C24=\"\",\"\",PRESUPUESTO1!C24)","v":""},{"$f":"IF(PRESUPUESTO1!E24=\"\",\"\",PRESUPUESTO1!E24)","v":""},{"$f":"'2da_Modificacion Presupuestal1'!G23","v":0},0,0,null,null,null,0]
[null,null,{"$f":"IF(PRESUPUESTO1!C25=\"\",\"\",PRESUPUESTO1!C25)","v":""},{"$f":"IF(PRESUPUESTO1!E25=\"\",\"\",PRESUPUESTO1!E25)","v":""},{"$f":"'2da_Modificacion Presupuestal1'!G24","v":0},0,0,null,null,null,0]
[null,null,{"$f":"IF(PRESUPUESTO1!C26=\"\",\"\",PRESUPUESTO1!C26)","v":""},{"$f":"IF(PRESUPUESTO1!E26=\"\",\"\",PRESUPUESTO1!E26)","v":""},{"$f":"'2da_Modificacion Presupuestal1'!G25","v":0},0,0,null,null,null,0]
[null,null,{"$f":"IF(PRESUPUESTO1!#REF!=\"\",\"\",PRESUPUESTO1!#REF!)","v":{"$error":"#REF!"}},{"$f":"IF(PRESUPUESTO1!#REF!=\"\",\"\",PRESUPUESTO1!#REF!)","v":{"$error":"#REF!"}},{"$f":"'2da_Modificacion Presupuestal1'!G26","v":0},0,0,null,null,null,0]
[null,null,{"$f":"IF(PRESUPUESTO1!#REF!=\"\",\"\",PRESUPUESTO1!#REF!)","v":{"$error":"#REF!"}},{"$f":"IF(PRESUPUESTO1!#REF!=\"\",\"\",PRESUPUESTO1!#REF!)","v":{"$error":"#REF!"}},{"$f":"'2da_Modificacion Presupuestal1'!G27","v":0},0,0,null,null,null,0]
[null,null,{"$f":"IF(PRESUPUESTO1!#REF!=\"\",\"\",PRESUPUESTO1!#REF!)","v":{"$error":"#REF!"}},{"$f":"IF(PRESUPUESTO1!#REF!=\"\",\"\",PRESUPUESTO1!#REF!)","v":{"$error":"#REF!"}},{"$f":"'2da_Modificacion Presupuestal1'!G28","v":0},0,0,null,null,null,0]
[]
[null,null,"B. EGRESOS DEL PROYECTO",null,"Egreso Presup","Adición/Modif","Egreso Ajustado"]
[null,null,"Código","Descripción",{"$f":"ROUND(SUM(E32:E67)+E69+E70,0)","v":{"$error":"#N/A"}},{"$f":"ROUND(SUM(F32:F67)+F69,0)","v":0},{"$f":"ROUND(SUM(G32:G67)+G69+G70,0)","v":{"$error":"#N/A"}}]
[null,null,{"$f":"IF(PRESUPUESTO1!C32=\"\",\"\",PRESUPUESTO1!C32)","v":2007},{"$f":"IF(PRESUPUESTO1!D32=\"\",\"\",PRESUPUESTO1!D32)","v":"DENOMINACION CLASIFICADOR"},{"$f":"'2da_Modificacion Presupuestal1'!G32","v":0},0,{"$f":"IF(E32=\"\",0,K32)","v":0},null,null,null,{"$f":"(E32+F32)","v":0}]
[null,null,{"$f":"IF(PRESUPUESTO1!C33=\"\",\"\",PRESUPUESTO1!C33)","v":""},{"$f":"IF(PRESUPUESTO1!D33=\"\",\"\",PRESUPUESTO1!D33)","v":""},{"$f":"'2da_Modificacion Presupuestal1'!G33","v":0},0,{"$f":"IF(E33=\"\",0,K33)","v":0},null,null,null,{"$f":"(E33+F33)","v":0}]
[null,null,{"$f":"IF(PRESUPUESTO1!C34=\"\",\"\",PRESUPUESTO1!C34)","v":""},{"$f":"IF(PRESUPUESTO1!E34=\"\",\"\",PRESUPUESTO1!E34)","v":""},{"$f":"'2da_Modificacion Presupuestal1'!G34","v":0},0,0,null,null,null,0]
[null,null,{"$f":"IF(PRESUPUESTO1!C35=\"\",\"\",PRESUPUESTO1!C35)","v":""},{"$f":"IF(PRESUPUESTO1!E35=\"\",\"\",PRESUPUESTO1!E35)","v":""},{"$f":"'2da_Modificacion Presupuestal1'!G35","v":0},0,0,null,null,null,0]
[null,null,{"$f":"IF(PRESUPUESTO1!C36=\"\",\"\",PRESUPUESTO1!C36)","v":""},{"$f":"IF(PRESUPUESTO1!E36=\"\",\"\",PRESUPUESTO1!E36)","v":""},{"$f":"'2da_Modificacion Presupuestal1'!G36","v":0},0,0,null,null,null,0]
[null,null,{"$f":"IF(PRESUPUESTO1!C37=\"\",\"\",PRESUPUESTO1!C37)","v":""},{"$f":"IF(PRESUPUESTO1!E37=\"\",\"\",PRESUPUESTO1!E37)","v":""},{"$f":"'2da_Modificacion Presupuestal1'!G37","v":0},0,0,null,null,null,0]
[null,null,{"$f":"IF(PRESUPUESTO1!C38=\"\",\"\",PRESUPUESTO1!C38)","v":""},{"$f":"IF(PRESUPUESTO1!E38=\"\",\"\",PRESUPUESTO1!E38)","v":""},{"$f":"'2da_Modificacion Presupuestal1'!G38","v":0},0,0,null,null,null,0]
[null,null,{"$f":"IF(PRESUPUESTO1!C39=\"\",\"\",PRESUPUESTO1!C39)","v":""},{"$f":"IF(PRESUPUESTO1!E39=\"\",\"\",PRESUPUESTO1!E39)","v":""},{"$f":"'2da_Modificacion Presupuestal1'!G39","v":0},0,0,null,null,null,0]
[null,null,{"$f":"IF(PRESUPUESTO1!#REF!=\"\",\"\",PRESUPUESTO1!#REF!)","v":{"$error":"#REF!"}},{"$f":"IF(PRESUPUESTO1!#REF!=\"\",\"\",PRESUPUESTO1!#REF!)","v":{"$error":"#REF!"}},{"$f":"'2da_Modificacion Presupuestal1'!G40","v":0},0,0,null,null,null,0]
[null,null,{"$f":"IF(PRESUPUESTO1!#REF!=\"\",\"\",PRESUPUESTO1!#REF!)","v":{"$error":"#REF!"}},{"$f":"IF(PRESUPUESTO1!#REF!=\"\",\"\",PRESUPUESTO1!#REF!)","v":{"$error":"#REF!"}},{"$f":"'2da_Modificacion Presupuestal1'!G41","v":0},0,0,null,null,null,0]
[null,null,{"$f":"IF(PRESUPUESTO1!#REF!=\"\",\"\",PRESUPUESTO1!#REF!)","v":{"$error":"#REF!"}},{"$f":"IF(PRESUPUESTO1!#REF!=\"\",\"\",PRESUPUESTO1!#REF!)","v":{"$error":"#REF!"}},{"$f":"'2da_Modificacion Presupuestal1'!G42","v":0},0,0,null,null,null,0]
[null,null,{"$f":"IF(PRESUPUESTO1!#REF!=\"\",\"\",PRESUPUESTO1!#REF!)","v":{"$error":"#REF!"}},{"$f":"IF(PRESUPUESTO1!#REF!=\"\",\"\",PRESUPUESTO1!#REF!)","v":{"$error":"#REF!"}},{"$f":"'2da_Modificacion Presupuestal1'!G43","v":0},0,0,null,null,null,0]
[null,null,{"$f":"IF(PRESUPUESTO1!#REF!=\"\",\"\",PRESUPUESTO1!#REF!)","v":{"$error":"#REF!"}},{"$f":"IF(PRESUPUESTO1!#REF!=\"\",\"\",PRESUPUESTO1!#REF!)","v":{"$error":"#REF!"}},{"$f":"'2da_Modificacion Presupuestal1'!G44","v":0},0,0,null,null,null,0]
[null,null,{"$f":"IF(PRESUPUESTO1!#REF!=\"\",\"\",PRESUPUESTO1!#REF!)","v":{"$error":"#REF!"}},{"$f":"IF(PRESUPUESTO1!#REF!=\"\",\"\",PRESUPUESTO1!#REF!)","v":{"$error":"#REF!"}},{"$f":"'2da_Modificacion Presupuestal1'!G45","v":0},0,0,null,null,null,0]
[null,null,{"$f":"IF(PRESUPUESTO1!#REF!=\"\",\"\",PRESUPUESTO1!#REF!)","v":{"$error":"#REF!"}},{"$f":"IF(PRESUPUESTO1!#REF!=\"\",\"\",PRESUPUESTO1!#REF!)","v":{"$error":"#REF!"}},{"$f":"'2da_Modificacion Presupuestal1'!G46","v":0},0,0,null,null,null,0]
[null,null,{"$f":"IF(PRESUPUESTO1!#REF!=\"\",\"\",PRESUPUESTO1!#REF!)","v":{"$error":"#REF!"}},{"$f":"IF(PRESUPUESTO1!#REF!=\"\",\"\",PRESUPUESTO1!#REF!)","v":{"$error":"#REF!"}},{"$f":"'2da_Modificacion Presupuestal1'!G47","v":0},0,0,null,null,null,0]
[null,null,{"$f":"IF(PRESUPUESTO1!#REF!=\"\",\"\",PRESUPUESTO1!#REF!)","v":{"$error":"#REF!"}},{"$f":"IF(PRESUPUESTO1!#REF!=\"\",\"\",PRESUPUESTO1!#REF!)","v":{"$error":"#REF!"}},{"$f":"'2da_Modificacion Presupuestal1'!G48","v":0},0,0,null,null,null,0]
[null,null,{"$f":"IF(PRESUPUESTO1!#REF!=\"\",\"\",PRESUPUESTO1!#REF!)","v":{"$error":"#REF!"}},{"$f":"IF(PRESUPUESTO1!#REF!=\"\",\"\",PRESUPUESTO1!#REF!)","v":{"$error":"#REF!"}},{"$f":"'2da_Modificacion Presupuestal1'!G49","v":0},0,0,null,null,null,0]
[null,null,{"$f":"IF(PRESUPUESTO1!#REF!=\"\",\"\",PRESUPUESTO1!#REF!)","v":{"$error":"#REF!"}},{"$f":"IF(PRESUPUESTO1!#REF!=\"\",\"\",PRESUPUESTO1!#REF!)","v":{"$error":"#REF!"}},{"$f":"'2da_Modificacion Presupuestal1'!G50","v":0},0,0,null,null,null,0]
[null,null,{"$f":"IF(PRESUPUESTO1!#REF!=\"\",\"\",PRESUPUESTO1!#REF!)","v":{"$error":"#REF!"}},{"$f":"IF(PRESUPUESTO1!#REF!=\"\",\"\",PRESUPUESTO1!#REF!)","v":{"$error":"#REF!"}},{"$f":"'2da_Modificacion Presupuestal1'!G51","v":0},0,0,null,null,null,0]
[null,null,{"$f":"IF(PRESUPUESTO1!#REF!=\"\",\"\",PRESUPUESTO1!#REF!)","v":{"$error":"#REF!"}},{"$f":"IF(PRESUPUESTO1!#REF!=\"\",\"\",PRESUPUESTO1!#REF!)","v":{"$error":"#REF!"}},{"$f":"'2da_Modificacion Presupuestal1'!G52","v":0},0,0,null,null,null,0]
[null,null,{"$f":"IF(PRESUPUESTO1!#REF!=\"\",\"\",PRESUPUESTO1!#REF!)","v":{"$error":"#REF!"}},{"$f":"IF(PRESUPUESTO1!#REF!=\"\",\"\",PRESUPUESTO1!#REF!)","v":{"$error":"#REF!"}},{"$f":"'2da_Modificacion Presupuestal1'!G53","v":0},0,0,null,null,null,0]
[null,null,{"$f":"IF(PRESUPUESTO1!#REF!=\"\",\"\",PRESUPUESTO1!#REF!)","v":{"$error":"#REF!"}},{"$f":"IF(PRESUPUESTO1!#REF!=\"\",\"\",PRESUPUESTO1!#REF!)","v":{"$error":"#REF!"}},{"$f":"'2da_Modificacion Presupuestal1'!G54","v":0},0,0,null,null,null,0]
[null,null,{"$f":"IF(PRESUPUESTO1!#REF!=\"\",\"\",PRESUPUESTO1!#REF!)","v":{"$error":"#REF!"}},{"$f":"IF(PRESUPUESTO1!#REF!=\"\",\"\",PRESUPUESTO1!#REF!)","v":{"$error":"#REF!"}},{"$f":"'2da_Modificacion Presupuestal1'!G55","v":0},0,0,null,null,null,0]
[null,null,{"$f":"IF(PRESUPUESTO1!#REF!=\"\",\"\",PRESUPUESTO1!#REF!)","v":{"$error":"#REF!"}},{"$f":"IF(PRESUPUESTO1!#REF!=\"\",\"\",PRESUPUESTO1!#REF!)","v":{"$error":"#REF!"}},{"$f":"'2da_Modificacion Presupuestal1'!G56","v":0},0,0,null,null,null,0]
[null,null,{"$f":"IF(PRESUPUESTO1!#REF!=\"\",\"\",PRESUPUESTO1!#REF!)","v":{"$error":"#REF!"}},{"$f":"IF(PRESUPUESTO1!#REF!=\"\",\"\",PRESUPUESTO1!#REF!)","v":{"$error":"#REF!"}},{"$f":"'2da_Modificacion Presupuestal1'!G57","v":0},0,0,null,null,null,0]
[null,null,{"$f":"IF(PRESUPUESTO1!#REF!=\"\",\"\",PRESUPUESTO1!#REF!)","v":{"$error":"#REF!"}},{"$f":"IF(PRESUPUESTO1!#REF!=\"\",\"\",PRESUPUESTO1!#REF!)","v":{"$error":"#REF!"}},{"$f":"'2da_Modificacion Presupuestal1'!G58","v":0},0,0,null,null,null,0]
[null,null,{"$f":"IF(PRESUPUESTO1!#REF!=\"\",\"\",PRESUPUESTO1!#REF!)","v":{"$error":"#REF!"}},{"$f":"IF(PRESUPUESTO1!#REF!=\"\",\"\",PRESUPUESTO1!#REF!)","v":{"$error":"#REF!"}},{"$f":"'2da_Modificacion Presupuestal1'!G59","v":0},0,0,null,null,null,0]
[null,null,{"$f":"IF(PRESUPUESTO1!#REF!=\"\",\"\",PRESUPUESTO1!#REF!)","v":{"$error":"#REF!"}},{"$f":"IF(PRESUPUESTO1!#REF!=\"\",\"\",PRESUPUESTO1!#REF!)","v":{"$error":"#REF!"}},{"$f":"'2da_Modificacion Presupuestal1'!G60","v":0},0,0,null,null,null,0]
[null,null,{"$f":"IF(PRESUPUESTO1!#REF!=\"\",\"\",PRESUPUESTO1!#REF!)","v":{"$error":"#REF!"}},{"$f":"IF(PRESUPUESTO1!#REF!=\"\",\"\",PRESUPUESTO1!#REF!)","v":{"$error":"#REF!"}},{"$f":"'2da_Modificacion Presupuestal1'!G61","v":0},0,0,null,null,null,0]
[null,null,{"$f":"IF(PRESUPUESTO1!#REF!=\"\",\"\",PRESUPUESTO1!#REF!)","v":{"$error":"#REF!"}},{"$f":"IF(PRESUPUESTO1!#REF!=\"\",\"\",PRESUPUESTO1!#REF!)","v":{"$error":"#REF!"}},{"$f":"'2da_Modificacion Presupuestal1'!G62","v":0},0,0,null,null,null,0]
[null,null,{"$f":"IF(PRESUPUESTO1!#REF!=\"\",\"\",PRESUPUESTO1!#REF!)","v":{"$error":"#REF!"}},{"$f":"IF(PRESUPUESTO1!#REF!=\"\",\"\",PRESUPUESTO1!#REF!)","v":{"$error":"#REF!"}},{"$f":"'2da_Modificacion Presupuestal1'!G63","v":0},0,0,null,null,null,0]
[null,null,{"$f":"IF(PRESUPUESTO1!#REF!=\"\",\"\",PRESUPUESTO1!#REF!)","v":{"$error":"#REF!"}},{"$f":"IF(PRESUPUESTO1!#REF!=\"\",\"\",PRESUPUESTO1!#REF!)","v":{"$error":"#REF!"}},{"$f":"'2da_Modificacion Presupuestal1'!G64","v":0},0,0,null,null,null,0]
[null,null,{"$f":"IF(PRESUPUESTO1!#REF!=\"\",\"\",PRESUPUESTO1!#REF!)","v":{"$error":"#REF!"}},{"$f":"IF(PRESUPUESTO1!#REF!=\"\",\"\",PRESUPUESTO1!#REF!)","v":{"$error":"#REF!"}},{"$f":"'2da_Modificacion Presupuestal1'!G65","v":0},0,0,null,null,null,0]
[null,null,{"$f":"IF(PRESUPUESTO1!#REF!=\"\",\"\",PRESUPUESTO1!#REF!)","v":{"$error":"#REF!"}},{"$f":"IF(PRESUPUESTO1!#REF!=\"\",\"\",PRESUPUESTO1!#REF!)","v":{"$error":"#REF!"}},{"$f":"'2da_Modificacion Presupuestal1'!G66","v":0},0,0,null,null,null,0]
[null,null,{"$f":"IF(PRESUPUESTO1!#REF!=\"\",\"\",PRESUPUESTO1!#REF!)","v":{"$error":"#REF!"}},{"$f":"IF(PRESUPUESTO1!#REF!=\"\",\"\",PRESUPUESTO1!#REF!)","v":{"$error":"#REF!"}},{"$f":"'2da_Modificacion Presupuestal1'!G67","v":0},0,0,null,null,null,0]
[]
[null,null,{"$f":"PRESUPUESTO1!E41","v":0},{"$f":"IF(PRESUPUESTO1!D41=\"\",\"\",PRESUPUESTO1!D41)","v":{"$error":"#REF!"}},{"$f":"'2da_Modificacion Presupuestal1'!G69","v":{"$error":"#N/A"}},{"$f":"N(F18)*0.004","v":0},{"$f":"N(G18)*0.004","v":{"$error":"#N/A"}}]
[null,null,{"$f":"PRESUPUESTO1!E42","v":0},{"$f":"IF(PRESUPUESTO1!D42=\"\",\"\",PRESUPUESTO1!D42)","v":{"$error":"#REF!"}},{"$f":"'2da_Modificacion Presupuestal1'!G70","v":{"$error":"#N/A"}},{"$f":"N(F31*0.03)","v":0},{"$f":"SUM(G32:G69)*0.03","v":{"$error":"#N/A"}}]
[]
[null,null,"% Ajustado","C. DISTRIBUCION DE EXCEDENTES",null,"Montos Presup","Monto Ajustado"]
[null,null,{"$f":"IFERROR(IF(G73=0,0,((G73*100)/G18)),0)","v":0},"EXCEDENTES GENERADOS POR LA EJECUCION DEL PROYECTO",null,{"$f":"'2da_Modificacion Presupuestal1'!G73","v":{"$error":"#N/A"}},{"$f":"ROUND(G18-G31,0)","v":{"$error":"#N/A"}}]
[null,null,0.2,"RECURSOS GENERADOS PARA DISTRIBUCION DE INCENTIVOS",null,{"$f":"'2da_Modificacion Presupuestal1'!G74","v":{"$error":"#N/A"}},{"$f":"($G$73*20%)","v":{"$error":"#N/A"}}]
[null,null,0.4,"RECURSOS DESTINADOS A FINANCIAR PLAN DE DESARROLLO DE LA FACULTAD",null,{"$f":"'2da_Modificacion Presupuestal1'!G75","v":{"$error":"#N/A"}},{"$f":"($G$73*40%)","v":{"$error":"#N/A"}}]
[null,null,0.4,"RECURSOS DESTINADOS A FINANCIAR PLAN DE DESARROLLO INSTITUCIONAL",null,{"$f":"'2da_Modificacion Presupuestal1'!G76","v":{"$error":"#N/A"}},{"$f":"($G$73*40%)","v":{"$error":"#N/A"}}]
[null,null,{"$f":"IF(G73=0,\"\",IF(G73>(G18*0.1),C152,C153))","v":{"$error":"#N/A"}}]
[]
[]
[]
[]
[]
[null,null,"FIRMA DECANO                                                                                                                                                      FIRMA COORDINADOR"]
[]
[]
[]
[]
[null,null,null,"PROYECCION SOCIAL"]
[null,null,null,"PRESUPUESTO PROYECTOS O ACTIVIDADES DE PROYECCION SOCIAL"]
[]
[]
[null,null,"CODIGO","MI-PSO-FO-02",{"$f":"E7","v":"VERSIÓN: 6"},"VIGENCIA:",{"$f":"G7","v":{"$error":"#REF!"}}]
[]
[null,null,"TERCERA SUSTENTACION MODIFICACIÓN PRESUPUESTAL\nINFORMACION GENERAL DEL PROYECTO"]
[null,null,"Proyecto",{"$f":"D10","v":"Acto Administrativo"}]
[null,null,"Coordinador",{"$f":"D11","v":""}]
[null,null,"Facultad",{"$f":"D12","v":""}]
[null,null,"Decano (a)",{"$f":"D13","v":""}]
[null,null,"Fecha programada para el inicio de las actividades del proyecto",null,{"$f":"E14","v":"N° Modificación"},"Duración",{"$f":"IF(E99=\"\",\"\",(ROUND(DAYS360(E99,E100,1)/30,0) & \" Meses\"))","v":{"$error":"#VALUE!"}}]
[null,null,"Fecha programada para la terminación de las actividades del proyecto",null,{"$f":"E15","v":{"$error":"#REF!"}}]
[]
[null,null,"Código","Sustentación a las modificaciones al Presupuesto"]
[]
[]
[]
[]
[]
[]
[]
[]
[]
[]
[]
[]
[]
[]
[]
[]
[]
[]
[]
[]
[]
[]
[]
[]
[]
[]
[]
[]
[]
[]
[]
[]
[]
[]
[]
[]
[]
[]
[null,null,"FIRMA DECANO (A)                                                                                                                                       FIRMA COORDINADOR (A)"]
[]
[]
[]
[]
[]
[]
[]
[]
[]
[]
[null,null,"El presente Presupuesto del Proyecto Genera excedentes por encima de lo establecido para ser reconocido como solidario y por lo tanto debe ser gestionado a través de la Oficina de Fondos Especiales"]
[null,null,"El presente Presupuesto del Proyecto genera excedentes por debajo de lo establecido en los Acuerdos de Fondos Especiales y por tanto debe Gestionarse a través de la Vicerrectoría de Investigación y Proyección Social como un Proyecto Solidario."]
[]
[null,null,1001]
[null,null,"1001.1"]
[null,null,"1001.2"]
[null,null,"1002.1"]
[null,null,"1002.2"]
[null,null,1003]
[null,null,1004]
[null,null,1005]
[null,null,1006]
[null,null,"1007.1"]
[null,null,"1007.2"]
[null,null,"1008.1"]
[null,null,"1008.2"]
[null,null,1009]
[null,null,1010]
[null,null,1011]
[null,null,1012]
[null,null,1013]
[null,null,1014]
[null,null,1015]
[null,null,"2001.1"]
[null,null,"2001.2"]
[null,null,2002]
[null,null,2003]
[null,null,2004]
[null,null,2005]
[null,null,2006]
[null,null,2007]
[null,null,2008]
[null,null,2009]
[null,null,2010]
[null,null,2011]
[null,null,2012]
[null,null,2013]
[null,null,2014]
[null,null,2015]
[null,null,2016]
[null,null,2017]
[null,null,2018]
[null,null,"2019.1"]
[null,null,"2019.2"]
[null,null,"2020.1"]
[null,null,"2020.2"]
[null,null,2021]
[null,null,2022]
[null,null,2024]
[null,null,2026]
[null,null,2027]
[null,null,2028]
[null,null,2029]
[null,null,2030]
[null,null,2031]
[null,null,2032]
[null,null,2033]
[null,null,2034]
[null,null,2035]

{"sheet":"Hoja1","index":9,"n_rows":0,"n_cols":0,"rows_kept":0,"cut":false,"hidden":true,"merged":[]}